Workbook

Sheet 目录
A1: 序号 | B1: 工作表名
A2: 1 | B2: 目录
A3: 2 | B3: 快捷键使用说明
A4: 3 | B4: 核对薪酬步骤
A5: 4 | B5: 科目标准字段
A6: 5 | B6: 备查标准字段
A7: 6 | B7: 审核记录
A8: 7 | B8: 抽凭
A9: 8 | B9: 上年科目余额表
A10: 9 | B10: 资产负债表
A11: 10 | B11: 利润表
A12: 11 | B12: 科目余额表
A13: 12 | B13: 序时账
A14: 13 | B14: 折旧摊销借贷核对
A15: 14 | B15: 税费借贷核对
A16: 15 | B16: 职工薪酬借贷核对
A17: 16 | B17: 职工薪酬调整明细
A18: 17 | B18: 职工薪酬差异核对后
A19: 18 | B19: 职工薪酬本年支付分析
A20: 19 | B20: 职工薪酬计提支付结余月汇总
A21: 20 | B21: 薪酬余额分析汇总
A22: 21 | B22: 薪酬本年支付序时账
A23: 22 | B23: 薪酬次年支付序时账1-5月
A24: 23 | B24: 工会经费审核明细

Sheet 快捷键使用说明

Sheet 核对薪酬步骤
A1: 步骤 | B1: 环节 | C1: 助理操作指引
A2: 一 | B2: 整理数据 | C2: 导入科目余额表、序时账
B3: 整理数据 | C3: 将【科目余额表】【序时账】中的科目名称去掉科目代码（例如：1001\银行存款 修改成 银行存款）
A4: 二 | B4: 标准化科目 | C4: 在【科目余额表】J列、K列、L列选择科目标准字段
B5: 标准化科目 | C5: 在【序时账】-【凭证类别】列标记计提、支付、结转
B6: 标准化科目 | C6: 在【序时账】-【纳税年度】列标记计提、支付归属年度
B7: 标准化科目 | C7: 需要标准化的科目参照【科目标准字段】（即报表类底稿、扣除类1底稿、资产类1底稿账面取数）
B8: 标准化科目 | C8: 在序时账使用XLOOKUP匹配【科目余额表】中的标准字段
B9: 标准化科目 | C9: 标准化科目字段时的注意事项：
B10: 标准化科目 | C10: 1.只有一级和末级需要选择标准字段，参考N列的一级、末级
B11: 标准化科目 | C11: 2.一级科目名称只选择一级字段，目的是取数核对（一级=末级的合计）
B12: 标准化科目 | C12: 3.一级科目要找全，容易漏的主要有在建工程、研发支出
B13: 标准化科目 | C13: 4.序时账要把J列、K列、L列公式下拉到底
B14: 标准化科目 | C14: 5.如果科目余额表中部分科目没有区分三级薪酬项目，就利用序时账的辅助项直接批量粘贴辅助项目三级薪酬
A15: 三 | B15: 查找差异 | C15: 【序时账】A列（标签列）就是凭证唯一值，可使用【序时账筛选】功能（ALT+T），也可以自行连接凭证的年月日号
B16: 查找差异 | C16: 【职工薪酬差异核对】透视表字段排列参考右图上
B17: 查找差异 | C17: 【职工薪酬差异核对】透视表布局与核对公式参考右图下
B18: 查找差异 | C18: 【职工薪酬差异核对】透视表更改数据源，保证涵盖全部的序时账数据
B19: 查找差异 | C19: 【职工薪酬差异核对】中刷新透视表，查看F列、G列差异
A20: 四 | B20: 分析差异 | C20: 复制【职工薪酬差异核对】透视表中差异对应的标签在【序时账】A列（标签列）筛选
B21: 分析差异 | C21: 如果要批量复制筛选，可以使用ALT+W（前提是将标签列统一补0，可使用右键+4，例如标签18，补0为0018）
B22: 分析差异 | C22: 分析筛选出的凭证差异原因，并标记此凭证
B23: 分析差异 | C23: 将差异凭证及原因填入【2-2-1扣除类专项底稿（1）】-【职工薪酬及党组织工作经费账面核对调整表】
B24: 分析差异 | C24: 在【职工薪酬及党组织工作经费确认明细表】第41行与42行查看核对结果
A25: 五 | B25: 填写底稿 | C25: 将标准化准确无误后的【科目余额表】复制到【2-2-1扣除类专项底稿（1）】-【0-3科目余额表基础数据】
B26: 填写底稿 | C26: 有时科目余额表没有三级字段，需要用序时账透视出新的科目余额表借贷方发生额
A27: 六 | B27: 留存备查 | C27: 将标准化准确无误的科目代码、科目名称、标准字段复制到【备查标准字段】，便于以后年度使用

Sheet 科目标准字段
A1: 标准一级字段 | B1: 应付职工薪酬 | C1: 管理费用 | D1: 销售费用 | E1: 财务费用 | F1: 制造费用 | G1: 研发支出 | H1: 生产成本 | I1: 在建工程 | J1: 固定资产原值 | K1: 累计折旧 | L1: 无形资产原值 | M1: 无形资产摊销 | N1: 长期待摊费用 | O1: 长期待摊费用摊销 | P1: 使用权资产 | Q1: 主营业务收入 | R1: 其他业务收入 | S1: 营业外收入 | T1: 主营业务成本 | U1: 其他业务成本 | V1: 营业外支出 | W1: 税金及附加 | X1: 应交税费
A2: 标准二级字段 | B2: 一、职工薪酬 | C2: 一、职工薪酬 | D2: 一、职工薪酬 | E2: 六、佣金和手续费 | F2: 一、职工薪酬 | G2: 一、职工薪酬 | H2: 一、职工薪酬 | I2: 一、职工薪酬 | J2: （一）房屋、建筑物（原值） | K2: （一）房屋、建筑物（折旧） | L2: （一）专利权（原值） | M2: （一）专利权（累计摊销） | N2: （一）已足额提取折旧的固定资产的改建支出（原值） | O2: （一）已足额提取折旧的固定资产的改建支出（累计摊销） | P2: 使用权资产累计折旧 | Q2: 销售商品收入 | R2: 销售材料收入 | S2: 非流动资产处置利得 | T2: 销售商品成本 | U2: 销售材料成本 | V2: 非流动资产处置损失 | W2: 税费 | X2: 税费
C3: 二、劳务费 | D3: 二、劳务费 | E3: 二十一、利息收支 | F3: 七、资产折旧摊销费 | G3: 七、资产折旧摊销费 | H3: 七、资产折旧摊销费 | I3: 七、资产折旧摊销费 | J3: （二）飞机、火车、轮船、机器、机械和其他生产设备（原值） | K3: （二）飞机、火车、轮船、机器、机械和其他生产设备（折旧） | L3: （二）商标权（原值） | M3: （二）商标权（累计摊销） | N3: （二）租入固定资产的改建支出（原值） | O3: （二）租入固定资产的改建支出（累计摊销） | P3: 未确认融资费用 | Q3: 销售商品收入-非货币性资产交换收入 | R3: 销售材料收入-非货币性资产交换收入 | S3: 非货币性资产交换利得 | T3: 销售商品成本-非货币性资产交换成本 | U3: 销售材料成本-非货币性资产交换成本 | V3: 非货币性资产交换损失
C4: 三、咨询顾问费 | D4: 三、咨询顾问费 | E4: 二十二、汇兑差额 | J4: （三）与生产经营活动有关的器具、工具、家具等（原值） | K4: （三）与生产经营活动有关的器具、工具、家具等（折旧） | L4: （三）著作权（原值） | M4: （三）著作权（累计摊销） | N4: （三）固定资产的大修理支出（原值） | O4: （三）固定资产的大修理支出（累计摊销） | Q4: 提供劳务收入 | R4: 出租固定资产收入 | S4: 债务重组利得 | T4: 提供劳务成本 | U4: 出租固定资产成本 | V4: 债务务重组损失
C5: 四、业务招待费 | D5: 四、业务招待费 | E5: 二十三、现金折扣 | J5: （四）飞机、火车、轮船以外的运输工具（原值） | K5: （四）飞机、火车、轮船以外的运输工具（折旧） | L5: （四）土地使用权（原值） | M5: （四）土地使用权（累计摊销） | N5: （四）开办费（原值） | O5: （四）开办费（累计摊销） | Q5: 建造合同收入 | R5: 出租无形资产收入 | S5: 政府补助利得 | T5: 建造合同成本 | U5: 出租无形资产成本 | V5: 非常损失
C6: 五、广告费和业务宣传费 | D6: 五、广告费和业务宣传费 | E6: 二十五、其他 | J6: （五）电子设备（原值） | K6: （五）电子设备（折旧） | L6: （五）非专利技术（原值） | M6: （五）非专利技术（累计摊销） | N6: （五）其他（原值） | O6: （五）其他（累计摊销） | Q6: 让渡资产使用权收入 | R6: 出租包装物和商品收入 | S6: 盘盈利得 | T6: 让渡资产使用权成本 | U6: 包装物出租成本 | V6: 损赠支出
C7: 六、佣金和手续费 | D7: 六、佣金和手续费 | J7: （六）其他（原值） | K7: （六）其他（折旧） | L7: （六）特许权使用费（原值） | M7: （六）特许权使用费（累计摊销） | N7: （一）已足额提取折旧的固定资产的改建支出 | Q7: 其他 | R7: 其他 | S7: 捐赠利得 | T7: 其他 | U7: 其他 | V7: 赞助支出
C8: 七、资产折旧摊销费 | D8: 七、资产折旧摊销费 | J8: 使用权资产 | K8: 使用权资产累计折旧 | L8: （七）软件（原值） | M8: （七）软件（累计摊销） | N8: （二）租入固定资产的改建支出 | S8: 罚没利得 | V8: 罚没支出
C9: 八、财产损耗、盘亏及毁损损失 | D9: 八、财产损耗、盘亏及毁损损失 | L9: （八）其他（原值） | M9: （八）其他（累计摊销） | N9: （三）固定资产的大修理支出 | S9: 确实无法偿付的应付款项 | V9: 坏账损失
C10: 九、办公费 | D10: 九、办公费 | N10: （四）开办费 | S10: 汇兑收益 | V10: 无法收回的债券股权投资损失
C11: 十、董事会费 | D11: 十、董事会费 | N11: （五）其他 | S11: 其他 | V11: 其他
C12: 十一、租赁费 | D12: 十一、租赁费
C13: 十二、诉讼费 | D13: 十二、诉讼费
C14: 十三、差旅费 | D14: 十三、差旅费
C15: 十四、保险费 | D15: 十四、保险费
C16: 十五、运输、仓储费 | D16: 十五、运输、仓储费
C17: 十六、修理费 | D17: 十六、修理费
C18: 十七、包装费 | D18: 十七、包装费
C19: 十八、技术转让费 | D19: 十八、技术转让费
C20: 十九、研究费用 | D20: 十九、研究费用
C21: 二十、各项税费 | D21: 二十、各项税费
C22: 二十四、党组织工作经费 | D22: 二十四、党组织工作经费
C23: 二十五、其他 | D23: 二十五、其他
A26: 标准二级字段 | B26: 一、职工薪酬 | C26: 七、资产折旧摊销费 | D26: 税费
A27: 标准三级字段 | B27: 工资薪金支出 | C27: 固定资产折旧费用 | D27: 房产税
B28: 职工福利费支出 | C28: 无形资产摊销费用 | D28: 土地使用税
B29: 职工教育经费支出 | C29: 长期待摊摊销费用 | D29: 车船使用税
B30: 工会经费支出 | C30: 使用权资产折旧费用 | D30: 个人所得税
B31: 基本养老保险费 | D31: 印花税
B32: 基本医疗保险费 | D32: 水资源税
B33: 失业保险费 | D33: 环境保护税
B34: 工伤保险费 | D34: 资源税
B35: 生育保险费
B36: 住房公积金
B37: 补充养老保险
B38: 补充医疗保险
B39: 辞退福利
B40: 大病医疗保险
B41: 其他
B42: 党组织工作经费
B43: 劳务派遣薪酬
B44: 互助金
B45: 商业保险

Sheet 备查标准字段
A1: 科目代码 | B1: 科目名称 | C1: 标准一级字段 | D1: 标准二级字段 | E1: 标准三级字段

Sheet 审核记录 (hidden)
A1: 审核项目 | B1: 业务类型 | C1: 审核日期 | D1: 具体时间 | E1: 审核事项 | F1: 准备资料 | G1: 审核目标 | H1: 审核程序 | I1: 具体执行程序 | J1: 待落实问题 | K1: 落实原因 | L1: 审核结论 | M1: 交换意见稿

Sheet 抽凭 (hidden)
A1: 大类 | B1: 小类 | C1: 摘要关键字 | E1: 科目关键字1 | F1: 科目关键字2 | G1: 抽凭方向 | H1: 抽凭原因 | I1: 借方发生额 | J1: 贷方发生额 | K1: 借方笔数 | L1: 贷方笔数 | M1: 最大金额 | N1: 最小金额 | O1: 平均金额

Sheet 上年科目余额表
A1: 科目编码 | B1: 科目名称 | C1: 方向 | D1: 上年期初余额 | E1: 上年借方 | F1: 上年贷方 | G1: 上年期末余额 | H1: 方向 | I1: 科目级次

Sheet 资产负债表
A1: 分类 | B1: 类别 | C1: 有无未 | D1: 项目 | E1: 行次 | F1: 期末数 | G1: 年初数 | H1: 本期变动额 | I1: 期末比例 | J1: 期初比例 | K1: 本期变动率 | L1: 审核记录 | M1: =COUNTA(B:B) -> 1 | N1: 项目 | O1: 求和项:本期变动额 | P1: 求和项:本期变动率 | Q1: 求和项:期末数 | R1: 求和项:期末比例 | S1: 求和项:年初数 | T1: 求和项:期初比例
H2: =F2-G2 -> 0 | I2: =F2/OFFSET(F$1,$M$1-1,0) ->  | J2: =G2/OFFSET(G$1,$M$1-1,0) ->  | K2: =IFERROR(H2/G2,0) -> 0 | N2: (空白) | O2: 0 | P2: 0
H3: 0 | I3: =F3/OFFSET(F$1,$M$1-1,0) ->  | J3: =G3/OFFSET(G$1,$M$1-1,0) ->  | K3: 0 | N3: 总计 | O3: 0 | P3: 0
H4: 0 | K4: 0
H5: 0 | K5: 0
H6: 0 | K6: 0
H7: 0 | K7: 0
H8: 0 | K8: 0
H9: 0 | K9: 0
H10: 0 | K10: 0
H11: =F11-G11 -> 0 | K11: =IFERROR(H11/G11,0) -> 0
H12: 0 | K12: 0
H13: 0 | K13: 0
H14: 0 | K14: 0
H15: 0 | K15: 0
H16: 0 | K16: 0
H17: 0 | K17: 0
H18: 0 | K18: 0
H19: 0 | K19: 0
H20: 0 | K20: 0
H21: 0 | K21: 0
H22: 0 | K22: 0
H23: 0 | K23: 0
H24: 0 | K24: 0
H25: 0 | K25: 0
H26: 0 | K26: 0
H27: 0 | K27: 0
H28: 0 | K28: 0
H29: 0 | K29: 0
H30: 0 | K30: 0
H31: 0 | K31: 0
H32: 0 | K32: 0
H33: 0 | K33: 0
H34: 0 | K34: 0
H35: 0 | I35: =F35/OFFSET(F$1,$M$1-1,0) ->  | J35: =G35/OFFSET(G$1,$M$1-1,0) ->  | K35: 0
H36: 0 | I36: =F36/OFFSET(F$1,$M$1-1,0) ->  | J36: =G36/OFFSET(G$1,$M$1-1,0) ->  | K36: 0
H37: 0 | I37: =F37/OFFSET(F$1,$M$1-1,0) ->  | J37: =G37/OFFSET(G$1,$M$1-1,0) ->  | K37: 0
H38: 0 | I38: =F38/OFFSET(F$1,$M$1-1,0) ->  | J38: =G38/OFFSET(G$1,$M$1-1,0) ->  | K38: 0
H39: 0 | I39: =F39/OFFSET(F$1,$M$1-1,0) ->  | J39: =G39/OFFSET(G$1,$M$1-1,0) ->  | K39: 0
H40: 0 | I40: =F40/OFFSET(F$1,$M$1-1,0) ->  | J40: =G40/OFFSET(G$1,$M$1-1,0) ->  | K40: 0
H41: 0 | I41: =F41/OFFSET(F$1,$M$1-1,0) ->  | J41: =G41/OFFSET(G$1,$M$1-1,0) ->  | K41: 0
H42: 0 | I42: =F42/OFFSET(F$1,$M$1-1,0) ->  | J42: =G42/OFFSET(G$1,$M$1-1,0) ->  | K42: 0
H43: =F43-G43 -> 0 | I43: =F43/OFFSET(F$1,$M$1-1,0) ->  | J43: =G43/OFFSET(G$1,$M$1-1,0) ->  | K43: =IFERROR(H43/G43,0) -> 0
H44: 0 | K44: 0
H45: 0 | K45: 0
H46: 0 | K46: 0
H47: 0 | K47: 0
H48: 0 | K48: 0
H49: 0 | K49: 0
H50: 0 | K50: 0
H51: 0 | K51: 0
H52: 0 | K52: 0
H53: 0 | K53: 0
H54: 0 | K54: 0
H55: 0 | K55: 0
H56: 0 | K56: 0
H57: 0 | K57: 0
H58: 0 | K58: 0
H59: 0 | K59: 0
H60: 0 | K60: 0
H61: =F61-G61 -> 0 | I61: =F61/OFFSET(F$1,$M$1-1,0) ->  | J61: =G61/OFFSET(G$1,$M$1-1,0) ->  | K61: =IFERROR(H61/G61,0) -> 0
H62: 0 | K62: 0
H63: 0 | K63: 0
H64: 0 | K64: 0
H65: 0 | K65: 0
H66: 0 | K66: 0
H67: 0 | K67: 0
H68: 0 | K68: 0
H69: 0 | K69: 0
H70: 0 | K70: 0
H71: 0 | K71: 0
H72: 0 | K72: 0
H73: 0 | K73: 0
H74: 0 | K74: 0
H75: 0 | K75: 0
H76: 0 | K76: 0
H77: 0 | K77: 0
H78: 0 | K78: 0
H79: 0 | K79: 0
H80: 0 | K80: 0
H81: 0 | I81: =F81/OFFSET(F$1,$M$1-1,0) ->  | J81: =G81/OFFSET(G$1,$M$1-1,0) ->  | K81: 0
H82: 0 | I82: =F82/OFFSET(F$1,$M$1-1,0) ->  | J82: =G82/OFFSET(G$1,$M$1-1,0) ->  | K82: 0
H83: 0 | I83: =F83/OFFSET(F$1,$M$1-1,0) ->  | J83: =G83/OFFSET(G$1,$M$1-1,0) ->  | K83: 0

Sheet 利润表
A1: 项目 | B1: 行次 | C1: 本期实际数 | D1: 本月 | E1: 上期实际数 | F1: 本年变动额 | G1: 本年变动率 | H1: 分母总成本 | I1: 审核记录
F2: =C2-E2 -> 0 | G2: =IFERROR(F2/E2,0) -> 0 | H2: =C2/$C$9 -> 
F3: =C3-E3 -> 0 | G3: 0 | H3: =C3/$C$9 ->  | L3: 1322422.46
F4: 0 | G4: 0 | L4: 802521450.7
F5: 0 | G5: 0 | L5: 44036192.69
F6: 0 | G6: 0 | L6: 19135655.55
F7: 0 | G7: 0
F8: 0 | G8: 0 | L8: 11180306.18
F9: 0 | G9: 0 | L9: 1716182.3
F10: 0 | G10: 0 | L10: 12319596.43
F11: 0 | G11: 0 | L11: 52138.06
F12: 0 | G12: 0 | L12: 1712340.7
F13: 0 | G13: 0 | L13: 67576.78
F14: 0 | G14: 0 | L14: 4761.9
F15: 0 | G15: 0
F16: 0 | G16: 0 | L16: 787522182.6
F17: 0 | G17: 0 | L17: 114689346.5
F18: 0 | G18: 0
F19: 0 | G19: 0
F20: 0 | G20: 0
F21: 0 | G21: 0
F22: 0 | G22: 0
F23: 0 | G23: 0
F24: 0 | G24: 0
F25: 0 | G25: 0
F26: 0 | G26: 0
F27: 0 | G27: 0
F28: 0 | G28: 0
F29: 0 | G29: 0
F30: 0 | G30: 0
F31: 0 | G31: 0
F32: 0 | G32: 0
F33: 0 | G33: 0
F34: 0 | G34: 0
F35: =C35-E35 -> 0 | G35: 0 | H35: =C35/$C$9 -> 
F36: 0 | G36: 0
F37: 0 | G37: 0
F38: 0 | G38: 0
F39: 0 | G39: 0
F40: 0 | G40: 0
F41: 0 | G41: 0
F42: 0 | G42: 0
F43: 0 | G43: 0
F44: 0 | G44: 0
F45: 0 | G45: 0
F46: 0 | G46: 0
F47: 0 | G47: 0
F48: 0 | G48: 0
F49: 0 | G49: 0
F50: 0 | G50: 0
F51: 0 | G51: 0
F52: 0 | G52: 0
F53: 0 | G53: 0
F54: 0 | G54: 0
F55: 0 | G55: 0
F56: 0 | G56: 0
F57: 0 | G57: 0
F58: 0 | G58: 0
F59: 0 | G59: 0
F60: 0 | G60: 0
F61: 0 | G61: 0
F62: 0 | G62: 0
F63: 0 | G63: 0
F64: 0 | G64: 0
F65: 0 | G65: 0
F66: 0 | G66: =IFERROR(F66/E66,0) -> 0
F67: 0 | G67: =IFERROR(F67/E67,0) -> 0

Sheet 科目余额表
A1: 科目编码 | B1: 科目名称 | C1: 方向 | D1: 期初余额 | E1: 本期借方 | F1: 本期贷方 | G1: 期末余额 | H1: 方向 | I1: 科目级次 | J1: 标准一级字段 | K1: 标准二级字段 | L1: 标准三级字段 | M1: 四级明细 | N1: 取数核对 | O1: 是否末级 | P1: 报表项目 | Q1: 有无未 | R1: 分工 | S1: 审核记录 | T1: 上年借方 | U1: 本年借方变动额 | V1: 本年借方变动率 | W1: 上年贷方 | X1: 本年贷方变动额 | Y1: 本年贷方变动率 | Z1: 科目明细结构占比 | AA1: 重要科目 | AB1: 0.3 | AC1: 0.3
A2: 1001 | B2: 库存现金 | C2: 借 | D2: 31616.32 | E2: 1603944.53 | F2: 1607622 | G2: 27938.85 | H2: 借 | I2: 1 | N2: =IF(J2="","",IF((SUMIFS(E:E,$J:$J,$J2,$I:$I,1)-SUMIFS(E:E,$J:$J,$J2,$O:$O,"末级"))=0,"取数正确","取数错误")) ->  | O2: =IF(I2=1,"一级",IF(I2>=I3,"末级","")) -> 一级 | T2: =IFERROR(VLOOKUP($A2,上年科目余额表!$A:$G,5,0),"上年无数据") -> 上年无数据 | U2: =IFERROR(E2-T2,0) -> 0 | V2: =IFERROR(U2/E2,0) -> 0 | W2: =IFERROR(VLOOKUP($A2,上年科目余额表!$A:$G,6,0),"上年无数据") -> 上年无数据 | X2: =IFERROR(F2-W2,0) -> 0 | Y2: =IFERROR(X2/F2,0) -> 0 | Z2: =IFERROR(E2/SUMIFS(E:E,J:J,J:J,O:O,"一级"),0) -> 0 | AA2: =IF(OR(AB2<>"",AC2<>""),"重要科目","") ->  | AB2: =IF(J2="","",IF(ABS(Z2)>$AB$1,"重要科目","")) ->  | AC2: =IFERROR(IF(IF(OR(J2="",O2="一级"),"",SUMPRODUCT(($J$2:$J$342=J2)*($Z$2:$Z$342>Z2))+1)<COUNTIFS(J:J,J2)*$AC$1,"重要科目",""),"") -> 
A3: 1002 | B3: 银行存款 | C3: 借 | D3: 11722286.33 | E3: 3975495268 | F3: 3907973551 | G3: 79244004.21 | H3: 借 | I3: 1 | N3: =IF(J3="","",IF((SUMIFS(E:E,$J:$J,$J3,$I:$I,1)-SUMIFS(E:E,$J:$J,$J3,$O:$O,"末级"))=0,"取数正确","取数错误")) ->  | O3: =IF(I3=1,"一级",IF(I3>=I4,"末级","")) -> 一级 | T3: =IFERROR(VLOOKUP($A3,上年科目余额表!$A:$G,5,0),"上年无数据") -> 上年无数据 | U3: =IFERROR(E3-T3,0) -> 0 | V3: =IFERROR(U3/E3,0) -> 0 | W3: =IFERROR(VLOOKUP($A3,上年科目余额表!$A:$G,6,0),"上年无数据") -> 上年无数据 | X3: =IFERROR(F3-W3,0) -> 0 | Y3: =IFERROR(X3/F3,0) -> 0 | Z3: =IFERROR(E3/SUMIFS(E:E,J:J,J:J,O:O,"一级"),0) -> 0 | AA3: =IF(OR(AB3<>"",AC3<>""),"重要科目","") ->  | AB3: =IF(J3="","",IF(ABS(Z3)>$AB$1,"重要科目","")) ->  | AC3: =IFERROR(IF(IF(OR(J3="",O3="一级"),"",SUMPRODUCT(($J$2:$J$342=J3)*($Z$2:$Z$342>Z3))+1)<COUNTIFS(J:J,J3)*$AC$1,"重要科目",""),"") -> 
A4: 100201 | B4: 银行存款-基本存款户 | C4: 借 | D4: 274945.03 | E4: 1411661129 | F4: 1406802265 | G4: 5133808.77 | H4: 借 | I4: 2 | T4: =IFERROR(VLOOKUP($A4,上年科目余额表!$A:$G,5,0),"上年无数据") -> 上年无数据 | U4: 0 | V4: 0 | W4: =IFERROR(VLOOKUP($A4,上年科目余额表!$A:$G,6,0),"上年无数据") -> 上年无数据 | X4: 0 | Y4: 0 | Z4: 0
A5: 10020101 | B5: 银行存款-基本存款户-工行24921870 | C5: 借 | D5: 274945.03 | E5: 1411661129 | F5: 1406802265 | G5: 5133808.77 | H5: 借 | I5: 3 | O5: 末级 | T5: =IFERROR(VLOOKUP($A5,上年科目余额表!$A:$G,5,0),"上年无数据") -> 上年无数据 | U5: 0 | V5: 0 | W5: =IFERROR(VLOOKUP($A5,上年科目余额表!$A:$G,6,0),"上年无数据") -> 上年无数据 | X5: 0 | Y5: 0 | Z5: 0
A6: 100202 | B6: 银行存款-一般存款户 | C6: 借 | D6: 11447341.3 | E6: 2563834140 | F6: 2501171285 | G6: 74110195.44 | H6: 借 | I6: 2 | T6: =IFERROR(VLOOKUP($A6,上年科目余额表!$A:$G,5,0),"上年无数据") -> 上年无数据 | U6: 0 | V6: 0 | W6: =IFERROR(VLOOKUP($A6,上年科目余额表!$A:$G,6,0),"上年无数据") -> 上年无数据 | X6: 0 | Y6: 0 | Z6: 0
A7: 10020201 | B7: 银行存款-一般存款户-工行24922016 | C7: 借 | D7: 6344.86 | E7: 20726413.77 | F7: 17520677.69 | G7: 3212080.94 | H7: 借 | I7: 3 | O7: 末级 | T7: =IFERROR(VLOOKUP($A7,上年科目余额表!$A:$G,5,0),"上年无数据") -> 上年无数据 | U7: 0 | V7: 0 | W7: =IFERROR(VLOOKUP($A7,上年科目余额表!$A:$G,6,0),"上年无数据") -> 上年无数据 | X7: 0 | Y7: 0 | Z7: 0
A8: 10020202 | B8: 银行存款-一般存款户-民生70010518 | C8: 借 | D8: 34485.32 | E8: 99.98 | F8: 200 | G8: 34385.3 | H8: 借 | I8: 3 | O8: 末级 | T8: =IFERROR(VLOOKUP($A8,上年科目余额表!$A:$G,5,0),"上年无数据") -> 上年无数据 | U8: 0 | V8: 0 | W8: =IFERROR(VLOOKUP($A8,上年科目余额表!$A:$G,6,0),"上年无数据") -> 上年无数据 | X8: 0 | Y8: 0 | Z8: 0
A9: 10020203 | B9: 银行存款-一般存款户-山西银行26500010 | C9: 借 | D9: 612677.61 | E9: 62457271.48 | F9: 62929352.5 | G9: 140596.59 | H9: 借 | I9: 3 | O9: 末级 | T9: =IFERROR(VLOOKUP($A9,上年科目余额表!$A:$G,5,0),"上年无数据") -> 上年无数据 | U9: 0 | V9: 0 | W9: =IFERROR(VLOOKUP($A9,上年科目余额表!$A:$G,6,0),"上年无数据") -> 上年无数据 | X9: 0 | Y9: 0 | Z9: 0
A10: 10020204 | B10: 银行存款-一般存款户-浦发00000495 | C10: 借 | D10: 707.69 | E10: 6.17 | F10: 330 | G10: 383.86 | H10: 借 | I10: 3 | O10: 末级 | T10: =IFERROR(VLOOKUP($A10,上年科目余额表!$A:$G,5,0),"上年无数据") -> 上年无数据 | U10: 0 | V10: 0 | W10: =IFERROR(VLOOKUP($A10,上年科目余额表!$A:$G,6,0),"上年无数据") -> 上年无数据 | X10: 0 | Y10: 0 | Z10: 0
A11: 10020208 | B11: 银行存款-一般存款户-襄垣农商行00022736 | C11: 借 | D11: 20241.29 | E11: 1397985763 | F11: 1397176991 | G11: 829013.33 | H11: 借 | I11: 3 | O11: 末级 | T11: =IFERROR(VLOOKUP($A11,上年科目余额表!$A:$G,5,0),"上年无数据") -> 上年无数据 | U11: 0 | V11: 0 | W11: =IFERROR(VLOOKUP($A11,上年科目余额表!$A:$G,6,0),"上年无数据") -> 上年无数据 | X11: 0 | Y11: 0 | Z11: 0
A12: 10020211 | B12: 银行存款-一般存款户-交通银行10387308 | C12: 借 | D12: 30249.72 | E12: 152001989.9 | F12: 152001370 | G12: 30869.64 | H12: 借 | I12: 3 | O12: 末级 | T12: =IFERROR(VLOOKUP($A12,上年科目余额表!$A:$G,5,0),"上年无数据") -> 上年无数据 | U12: 0 | V12: 0 | W12: =IFERROR(VLOOKUP($A12,上年科目余额表!$A:$G,6,0),"上年无数据") -> 上年无数据 | X12: 0 | Y12: 0 | Z12: 0
A13: 10020212 | B13: 银行存款-一般存款户-光大银行00225156 | C13: 借 | D13: 1123607.49 | E13: 68102386.72 | F13: 68613369 | G13: 612625.21 | H13: 借 | I13: 3 | O13: 末级 | T13: =IFERROR(VLOOKUP($A13,上年科目余额表!$A:$G,5,0),"上年无数据") -> 上年无数据 | U13: 0 | V13: 0 | W13: =IFERROR(VLOOKUP($A13,上年科目余额表!$A:$G,6,0),"上年无数据") -> 上年无数据 | X13: 0 | Y13: 0 | Z13: 0
A14: 10020213 | B14: 银行存款-一般存款户-华夏银行00201278 | C14: 借 | D14: 224197.57 | E14: 12053292.93 | F14: 11774143.06 | G14: 503347.44 | H14: 借 | I14: 3 | O14: 末级 | T14: =IFERROR(VLOOKUP($A14,上年科目余额表!$A:$G,5,0),"上年无数据") -> 上年无数据 | U14: 0 | V14: 0 | W14: =IFERROR(VLOOKUP($A14,上年科目余额表!$A:$G,6,0),"上年无数据") -> 上年无数据 | X14: 0 | Y14: 0 | Z14: 0
A15: 10020218 | B15: 银行存款-一般存款户-渤海银行63000161 | C15: 借 | D15: 538.58 | E15: 1004.05 | F15: 220 | G15: 1322.63 | H15: 借 | I15: 3 | O15: 末级 | T15: =IFERROR(VLOOKUP($A15,上年科目余额表!$A:$G,5,0),"上年无数据") -> 上年无数据 | U15: 0 | V15: 0 | W15: =IFERROR(VLOOKUP($A15,上年科目余额表!$A:$G,6,0),"上年无数据") -> 上年无数据 | X15: 0 | Y15: 0 | Z15: 0
A16: 10020219 | B16: 银行存款-一般存款户-襄垣浦发00000039 | C16: 借 | D16: 102898.57 | E16: 497875493.3 | F16: 497509033.9 | G16: 469358.01 | H16: 借 | I16: 3 | O16: 末级 | T16: =IFERROR(VLOOKUP($A16,上年科目余额表!$A:$G,5,0),"上年无数据") -> 上年无数据 | U16: 0 | V16: 0 | W16: =IFERROR(VLOOKUP($A16,上年科目余额表!$A:$G,6,0),"上年无数据") -> 上年无数据 | X16: 0 | Y16: 0 | Z16: 0
A17: 10020220 | B17: 银行存款-一般存款户-襄垣农商行(安全专户)00061577 | C17: 借 | D17: 586800.59 | E17: 44202578.37 | F17: 44328203.02 | G17: 461175.94 | H17: 借 | I17: 3 | O17: 末级 | T17: =IFERROR(VLOOKUP($A17,上年科目余额表!$A:$G,5,0),"上年无数据") -> 上年无数据 | U17: 0 | V17: 0 | W17: =IFERROR(VLOOKUP($A17,上年科目余额表!$A:$G,6,0),"上年无数据") -> 上年无数据 | X17: 0 | Y17: 0 | Z17: 0
A18: 10020222 | B18: 银行存款-一般存款户-长治兴业00047344 | C18: 借 | D18: 129846.44 | E18: 117202520.4 | F18: 116951160 | G18: 381206.86 | H18: 借 | I18: 3 | O18: 末级 | T18: =IFERROR(VLOOKUP($A18,上年科目余额表!$A:$G,5,0),"上年无数据") -> 上年无数据 | U18: 0 | V18: 0 | W18: =IFERROR(VLOOKUP($A18,上年科目余额表!$A:$G,6,0),"上年无数据") -> 上年无数据 | X18: 0 | Y18: 0 | Z18: 0
A19: 10020223 | B19: 银行存款-一般存款户-晋商银行001896 | C19: 借 | D19: 1299.22 | E19: 29288490.14 | F19: 29280000 | G19: 9789.36 | H19: 借 | I19: 3 | O19: 末级 | T19: =IFERROR(VLOOKUP($A19,上年科目余额表!$A:$G,5,0),"上年无数据") -> 上年无数据 | U19: 0 | V19: 0 | W19: =IFERROR(VLOOKUP($A19,上年科目余额表!$A:$G,6,0),"上年无数据") -> 上年无数据 | X19: 0 | Y19: 0 | Z19: 0
A20: 10020225 | B20: 银行存款-一般存款户-融汇村镇银行（土地复垦专户）300016户 | C20: 借 | D20: 4227772.49 | E20: 16840615.52 | F20: 0 | G20: 21068388.01 | H20: 借 | I20: 3 | O20: 末级 | T20: =IFERROR(VLOOKUP($A20,上年科目余额表!$A:$G,5,0),"上年无数据") -> 上年无数据 | U20: 0 | V20: 0 | W20: =IFERROR(VLOOKUP($A20,上年科目余额表!$A:$G,6,0),"上年无数据") -> 上年无数据 | X20: 0 | Y20: 0 | Z20: 0
A21: 10020226 | B21: 银行存款-一般存款户-襄垣浦发银行（矿山环境治理基金）000385 | C21: 借 | D21: 4328105.66 | E21: 46032010.96 | F21: 4330000.33 | G21: 46030116.29 | H21: 借 | I21: 3 | O21: 末级 | T21: =IFERROR(VLOOKUP($A21,上年科目余额表!$A:$G,5,0),"上年无数据") -> 上年无数据 | U21: 0 | V21: 0 | W21: =IFERROR(VLOOKUP($A21,上年科目余额表!$A:$G,6,0),"上年无数据") -> 上年无数据 | X21: 0 | Y21: 0 | Z21: 0
A22: 10020227 | B22: 银行存款-一般存款户-中信银行401061 | C22: 借 | D22: 17568.2 | E22: 29981720.83 | F22: 29977526.53 | G22: 21762.5 | H22: 借 | I22: 3 | O22: 末级 | T22: =IFERROR(VLOOKUP($A22,上年科目余额表!$A:$G,5,0),"上年无数据") -> 上年无数据 | U22: 0 | V22: 0 | W22: =IFERROR(VLOOKUP($A22,上年科目余额表!$A:$G,6,0),"上年无数据") -> 上年无数据 | X22: 0 | Y22: 0 | Z22: 0
A23: 10020228 | B23: 银行存款-一般存款户-山西银行襄垣支行2007700000001618 | C23: 平 | D23: 0 | E23: 69082481.86 | F23: 68778708.33 | G23: 303773.53 | H23: 借 | I23: 3 | O23: 末级 | T23: =IFERROR(VLOOKUP($A23,上年科目余额表!$A:$G,5,0),"上年无数据") -> 上年无数据 | U23: 0 | V23: 0 | W23: =IFERROR(VLOOKUP($A23,上年科目余额表!$A:$G,6,0),"上年无数据") -> 上年无数据 | X23: 0 | Y23: 0 | Z23: 0
A24: 1012 | B24: 其他货币资金 | C24: 平 | D24: 0 | E24: 16000000 | F24: 0 | G24: 16000000 | H24: 借 | I24: 1 | O24: 一级 | T24: =IFERROR(VLOOKUP($A24,上年科目余额表!$A:$G,5,0),"上年无数据") -> 上年无数据 | U24: 0 | V24: 0 | W24: =IFERROR(VLOOKUP($A24,上年科目余额表!$A:$G,6,0),"上年无数据") -> 上年无数据 | X24: 0 | Y24: 0 | Z24: 0
A25: 101204 | B25: 其他货币资金-信用证保证金 | C25: 平 | D25: 0 | E25: 6000000 | F25: 0 | G25: 6000000 | H25: 借 | I25: 2 | O25: 末级 | T25: =IFERROR(VLOOKUP($A25,上年科目余额表!$A:$G,5,0),"上年无数据") -> 上年无数据 | U25: 0 | V25: 0 | W25: =IFERROR(VLOOKUP($A25,上年科目余额表!$A:$G,6,0),"上年无数据") -> 上年无数据 | X25: 0 | Y25: 0 | Z25: 0
A26: 101207 | B26: 其他货币资金-承兑保证金 | C26: 平 | D26: 0 | E26: 10000000 | F26: 0 | G26: 10000000 | H26: 借 | I26: 2 | O26: 末级 | T26: =IFERROR(VLOOKUP($A26,上年科目余额表!$A:$G,5,0),"上年无数据") -> 上年无数据 | U26: 0 | V26: 0 | W26: =IFERROR(VLOOKUP($A26,上年科目余额表!$A:$G,6,0),"上年无数据") -> 上年无数据 | X26: 0 | Y26: 0 | Z26: 0
A27: 1121 | B27: 应收票据 | C27: 借 | D27: 650000 | E27: 262764288 | F27: 263314288 | G27: 100000 | H27: 借 | I27: 1 | O27: 一级 | T27: =IFERROR(VLOOKUP($A27,上年科目余额表!$A:$G,5,0),"上年无数据") -> 上年无数据 | U27: 0 | V27: 0 | W27: =IFERROR(VLOOKUP($A27,上年科目余额表!$A:$G,6,0),"上年无数据") -> 上年无数据 | X27: 0 | Y27: 0 | Z27: 0
A28: 112101 | B28: 应收票据-银行承兑汇票 | C28: 借 | D28: 650000 | E28: 242764288 | F28: 243314288 | G28: 100000 | H28: 借 | I28: 2 | O28: 末级 | T28: =IFERROR(VLOOKUP($A28,上年科目余额表!$A:$G,5,0),"上年无数据") -> 上年无数据 | U28: 0 | V28: 0 | W28: =IFERROR(VLOOKUP($A28,上年科目余额表!$A:$G,6,0),"上年无数据") -> 上年无数据 | X28: 0 | Y28: 0 | Z28: 0
A29: 112103 | B29: 应收票据-信用证 | C29: 平 | D29: 0 | E29: 20000000 | F29: 20000000 | G29: 0 | H29: 平 | I29: 2 | O29: 末级 | T29: =IFERROR(VLOOKUP($A29,上年科目余额表!$A:$G,5,0),"上年无数据") -> 上年无数据 | U29: 0 | V29: 0 | W29: =IFERROR(VLOOKUP($A29,上年科目余额表!$A:$G,6,0),"上年无数据") -> 上年无数据 | X29: 0 | Y29: 0 | Z29: 0
A30: 1122 | B30: 应收账款 | C30: 借 | D30: 476693525.9 | E30: 3353175340 | F30: 3021906962 | G30: 807961904.1 | H30: 借 | I30: 1 | O30: 一级 | T30: =IFERROR(VLOOKUP($A30,上年科目余额表!$A:$G,5,0),"上年无数据") -> 上年无数据 | U30: 0 | V30: 0 | W30: =IFERROR(VLOOKUP($A30,上年科目余额表!$A:$G,6,0),"上年无数据") -> 上年无数据 | X30: 0 | Y30: 0 | Z30: 0
A31: 112201 | B31: 应收账款-集团内部 | C31: 借 | D31: 283942470.3 | E31: 3479021429 | F31: 2961005762 | G31: 801958137.2 | H31: 借 | I31: 2 | O31: 末级 | T31: =IFERROR(VLOOKUP($A31,上年科目余额表!$A:$G,5,0),"上年无数据") -> 上年无数据 | U31: 0 | V31: 0 | W31: =IFERROR(VLOOKUP($A31,上年科目余额表!$A:$G,6,0),"上年无数据") -> 上年无数据 | X31: 0 | Y31: 0 | Z31: 0
A32: 112202 | B32: 应收账款-集团外部 | C32: 借 | D32: 192751055.6 | E32: -125846088.7 | F32: 60901200 | G32: 6003766.9 | H32: 借 | I32: 2 | O32: 末级 | T32: =IFERROR(VLOOKUP($A32,上年科目余额表!$A:$G,5,0),"上年无数据") -> 上年无数据 | U32: 0 | V32: 0 | W32: =IFERROR(VLOOKUP($A32,上年科目余额表!$A:$G,6,0),"上年无数据") -> 上年无数据 | X32: 0 | Y32: 0 | Z32: 0
A33: 1123 | B33: 预付账款 | C33: 借 | D33: 291930210 | E33: 52369604.16 | F33: 210487981.7 | G33: 133811832.4 | H33: 借 | I33: 1 | O33: 一级 | T33: =IFERROR(VLOOKUP($A33,上年科目余额表!$A:$G,5,0),"上年无数据") -> 上年无数据 | U33: 0 | V33: 0 | W33: =IFERROR(VLOOKUP($A33,上年科目余额表!$A:$G,6,0),"上年无数据") -> 上年无数据 | X33: 0 | Y33: 0 | Z33: 0
A34: 112301 | B34: 预付账款-集团内部 | C34: 借 | D34: 55531 | E34: 2100000 | F34: 2471588.1 | G34: 316057.1 | H34: 贷 | I34: 2 | O34: 末级 | T34: =IFERROR(VLOOKUP($A34,上年科目余额表!$A:$G,5,0),"上年无数据") -> 上年无数据 | U34: 0 | V34: 0 | W34: =IFERROR(VLOOKUP($A34,上年科目余额表!$A:$G,6,0),"上年无数据") -> 上年无数据 | X34: 0 | Y34: 0 | Z34: 0
A35: 112302 | B35: 预付账款-集团外部 | C35: 借 | D35: 291874679 | E35: 50269604.16 | F35: 208016393.6 | G35: 134127889.5 | H35: 借 | I35: 2 | O35: 末级 | T35: =IFERROR(VLOOKUP($A35,上年科目余额表!$A:$G,5,0),"上年无数据") -> 上年无数据 | U35: 0 | V35: 0 | W35: =IFERROR(VLOOKUP($A35,上年科目余额表!$A:$G,6,0),"上年无数据") -> 上年无数据 | X35: 0 | Y35: 0 | Z35: 0
A36: 1221 | B36: 其他应收款 | C36: 借 | D36: 2549467818 | E36: 1013654216 | F36: 480414407.5 | G36: 3082707626 | H36: 借 | I36: 1 | O36: 一级 | T36: =IFERROR(VLOOKUP($A36,上年科目余额表!$A:$G,5,0),"上年无数据") -> 上年无数据 | U36: 0 | V36: 0 | W36: =IFERROR(VLOOKUP($A36,上年科目余额表!$A:$G,6,0),"上年无数据") -> 上年无数据 | X36: 0 | Y36: 0 | Z36: 0
A37: 122101 | B37: 其他应收款-单位其他应收款 | C37: 借 | D37: 2548045073 | E37: 1012552286 | F37: 479860415.5 | G37: 3080736943 | H37: 借 | I37: 2 | O37: 末级 | T37: =IFERROR(VLOOKUP($A37,上年科目余额表!$A:$G,5,0),"上年无数据") -> 上年无数据 | U37: 0 | V37: 0 | W37: =IFERROR(VLOOKUP($A37,上年科目余额表!$A:$G,6,0),"上年无数据") -> 上年无数据 | X37: 0 | Y37: 0 | Z37: 0
A38: 122102 | B38: 其他应收款-个人其他应收款 | C38: 借 | D38: 1063544.96 | E38: 1101930 | F38: 553991.97 | G38: 1611482.99 | H38: 借 | I38: 2 | O38: 末级 | T38: =IFERROR(VLOOKUP($A38,上年科目余额表!$A:$G,5,0),"上年无数据") -> 上年无数据 | U38: 0 | V38: 0 | W38: =IFERROR(VLOOKUP($A38,上年科目余额表!$A:$G,6,0),"上年无数据") -> 上年无数据 | X38: 0 | Y38: 0 | Z38: 0
A39: 122103 | B39: 其他应收款-其他 | C39: 借 | D39: 359200 | E39: 0 | F39: 0 | G39: 359200 | H39: 借 | I39: 2 | O39: 末级 | T39: =IFERROR(VLOOKUP($A39,上年科目余额表!$A:$G,5,0),"上年无数据") -> 上年无数据 | U39: 0 | V39: 0 | W39: =IFERROR(VLOOKUP($A39,上年科目余额表!$A:$G,6,0),"上年无数据") -> 上年无数据 | X39: 0 | Y39: 0 | Z39: 0
A40: 1231 | B40: 坏账准备 | C40: 贷 | D40: 1838100.71 | E40: 0 | F40: -780588.97 | G40: 1057511.74 | H40: 贷 | I40: 1 | O40: 一级 | T40: =IFERROR(VLOOKUP($A40,上年科目余额表!$A:$G,5,0),"上年无数据") -> 上年无数据 | U40: 0 | V40: 0 | W40: =IFERROR(VLOOKUP($A40,上年科目余额表!$A:$G,6,0),"上年无数据") -> 上年无数据 | X40: 0 | Y40: 0 | Z40: 0
A41: 123101 | B41: 坏账准备-应收帐款坏帐准备 | C41: 贷 | D41: 30548.02 | E41: 0 | F41: -529.19 | G41: 30018.83 | H41: 贷 | I41: 2 | O41: 末级 | T41: =IFERROR(VLOOKUP($A41,上年科目余额表!$A:$G,5,0),"上年无数据") -> 上年无数据 | U41: 0 | V41: 0 | W41: =IFERROR(VLOOKUP($A41,上年科目余额表!$A:$G,6,0),"上年无数据") -> 上年无数据 | X41: 0 | Y41: 0 | Z41: 0
A42: 123102 | B42: 坏账准备-其它应收款坏帐准备 | C42: 贷 | D42: 348179.29 | E42: 0 | F42: 8674.17 | G42: 356853.46 | H42: 贷 | I42: 2 | O42: 末级 | T42: =IFERROR(VLOOKUP($A42,上年科目余额表!$A:$G,5,0),"上年无数据") -> 上年无数据 | U42: 0 | V42: 0 | W42: =IFERROR(VLOOKUP($A42,上年科目余额表!$A:$G,6,0),"上年无数据") -> 上年无数据 | X42: 0 | Y42: 0 | Z42: 0
A43: 123103 | B43: 坏账准备-预付账款坏账准备 | C43: 贷 | D43: 1459373.4 | E43: 0 | F43: -788733.95 | G43: 670639.45 | H43: 贷 | I43: 2 | O43: 末级 | T43: =IFERROR(VLOOKUP($A43,上年科目余额表!$A:$G,5,0),"上年无数据") -> 上年无数据 | U43: 0 | V43: 0 | W43: =IFERROR(VLOOKUP($A43,上年科目余额表!$A:$G,6,0),"上年无数据") -> 上年无数据 | X43: 0 | Y43: 0 | Z43: 0
A44: 1403 | B44: 原材料 | C44: 借 | D44: 74288.66 | E44: 96188976.45 | F44: 58243783.25 | G44: 38019481.86 | H44: 借 | I44: 1 | O44: 一级 | T44: =IFERROR(VLOOKUP($A44,上年科目余额表!$A:$G,5,0),"上年无数据") -> 上年无数据 | U44: 0 | V44: 0 | W44: =IFERROR(VLOOKUP($A44,上年科目余额表!$A:$G,6,0),"上年无数据") -> 上年无数据 | X44: 0 | Y44: 0 | Z44: 0
A45: 140398 | B45: 原材料-暂估材料 | C45: 平 | D45: 0 | E45: 13902220.88 | F45: 0 | G45: 13902220.88 | H45: 借 | I45: 2 | O45: 末级 | T45: =IFERROR(VLOOKUP($A45,上年科目余额表!$A:$G,5,0),"上年无数据") -> 上年无数据 | U45: 0 | V45: 0 | W45: =IFERROR(VLOOKUP($A45,上年科目余额表!$A:$G,6,0),"上年无数据") -> 上年无数据 | X45: 0 | Y45: 0 | Z45: 0
A46: 140399 | B46: 原材料-其他 | C46: 借 | D46: 74288.66 | E46: 82286755.57 | F46: 58243783.25 | G46: 24117260.98 | H46: 借 | I46: 2 | O46: 末级 | T46: =IFERROR(VLOOKUP($A46,上年科目余额表!$A:$G,5,0),"上年无数据") -> 上年无数据 | U46: 0 | V46: 0 | W46: =IFERROR(VLOOKUP($A46,上年科目余额表!$A:$G,6,0),"上年无数据") -> 上年无数据 | X46: 0 | Y46: 0 | Z46: 0
A47: 1405 | B47: 库存商品 | C47: 借 | D47: 13677191.08 | E47: 441945693 | F47: 422587608.1 | G47: 33035275.92 | H47: 借 | I47: 1 | O47: 一级 | T47: =IFERROR(VLOOKUP($A47,上年科目余额表!$A:$G,5,0),"上年无数据") -> 上年无数据 | U47: 0 | V47: 0 | W47: =IFERROR(VLOOKUP($A47,上年科目余额表!$A:$G,6,0),"上年无数据") -> 上年无数据 | X47: 0 | Y47: 0 | Z47: 0
A48: 1411 | B48: 周转材料 | C48: 平 | D48: 0 | E48: 341499.45 | F48: 341499.45 | G48: 0 | H48: 平 | I48: 1 | O48: 一级 | T48: =IFERROR(VLOOKUP($A48,上年科目余额表!$A:$G,5,0),"上年无数据") -> 上年无数据 | U48: 0 | V48: 0 | W48: =IFERROR(VLOOKUP($A48,上年科目余额表!$A:$G,6,0),"上年无数据") -> 上年无数据 | X48: 0 | Y48: 0 | Z48: 0
A49: 141101 | B49: 周转材料-低值易耗品 | C49: 平 | D49: 0 | E49: 341499.45 | F49: 341499.45 | G49: 0 | H49: 平 | I49: 2 | O49: 末级 | T49: =IFERROR(VLOOKUP($A49,上年科目余额表!$A:$G,5,0),"上年无数据") -> 上年无数据 | U49: 0 | V49: 0 | W49: =IFERROR(VLOOKUP($A49,上年科目余额表!$A:$G,6,0),"上年无数据") -> 上年无数据 | X49: 0 | Y49: 0 | Z49: 0
A50: 1511 | B50: 长期股权投资 | C50: 借 | D50: 189799700 | E50: 243415340.8 | F50: 0 | G50: 433215040.8 | H50: 借 | I50: 1 | O50: 一级 | T50: =IFERROR(VLOOKUP($A50,上年科目余额表!$A:$G,5,0),"上年无数据") -> 上年无数据 | U50: 0 | V50: 0 | W50: =IFERROR(VLOOKUP($A50,上年科目余额表!$A:$G,6,0),"上年无数据") -> 上年无数据 | X50: 0 | Y50: 0 | Z50: 0
A51: 151101 | B51: 长期股权投资-投资成本 | C51: 借 | D51: 189799700 | E51: 243415340.8 | F51: 0 | G51: 433215040.8 | H51: 借 | I51: 2 | O51: 末级 | T51: =IFERROR(VLOOKUP($A51,上年科目余额表!$A:$G,5,0),"上年无数据") -> 上年无数据 | U51: 0 | V51: 0 | W51: =IFERROR(VLOOKUP($A51,上年科目余额表!$A:$G,6,0),"上年无数据") -> 上年无数据 | X51: 0 | Y51: 0 | Z51: 0
A52: 1601 | B52: 固定资产 | C52: 借 | D52: 981165780.6 | E52: 9694852.9 | F52: 0 | G52: 990860633.5 | H52: 借 | I52: 1 | O52: 一级 | T52: =IFERROR(VLOOKUP($A52,上年科目余额表!$A:$G,5,0),"上年无数据") -> 上年无数据 | U52: 0 | V52: 0 | W52: =IFERROR(VLOOKUP($A52,上年科目余额表!$A:$G,6,0),"上年无数据") -> 上年无数据 | X52: 0 | Y52: 0 | Z52: 0
A53: 1602 | B53: 累计折旧 | C53: 贷 | D53: 741759668 | E53: 0 | F53: 38099631.02 | G53: 779859299 | H53: 贷 | I53: 1 | O53: 一级 | T53: =IFERROR(VLOOKUP($A53,上年科目余额表!$A:$G,5,0),"上年无数据") -> 上年无数据 | U53: 0 | V53: 0 | W53: =IFERROR(VLOOKUP($A53,上年科目余额表!$A:$G,6,0),"上年无数据") -> 上年无数据 | X53: 0 | Y53: 0 | Z53: 0
A54: 1604 | B54: 在建工程 | C54: 借 | D54: 185749479.5 | E54: 197709612.8 | F54: 44834872.69 | G54: 338624219.6 | H54: 借 | I54: 1 | O54: 一级 | T54: =IFERROR(VLOOKUP($A54,上年科目余额表!$A:$G,5,0),"上年无数据") -> 上年无数据 | U54: 0 | V54: 0 | W54: =IFERROR(VLOOKUP($A54,上年科目余额表!$A:$G,6,0),"上年无数据") -> 上年无数据 | X54: 0 | Y54: 0 | Z54: 0
A55: 160401 | B55: 在建工程-土建工程 | C55: 借 | D55: 185749479.5 | E55: 197709612.8 | F55: 44834872.69 | G55: 338624219.6 | H55: 借 | I55: 2 | O55: 末级 | T55: =IFERROR(VLOOKUP($A55,上年科目余额表!$A:$G,5,0),"上年无数据") -> 上年无数据 | U55: 0 | V55: 0 | W55: =IFERROR(VLOOKUP($A55,上年科目余额表!$A:$G,6,0),"上年无数据") -> 上年无数据 | X55: 0 | Y55: 0 | Z55: 0
A56: 1701 | B56: 无形资产 | C56: 借 | D56: 508197132 | E56: 0 | F56: 0 | G56: 508197132 | H56: 借 | I56: 1 | O56: 一级 | T56: =IFERROR(VLOOKUP($A56,上年科目余额表!$A:$G,5,0),"上年无数据") -> 上年无数据 | U56: 0 | V56: 0 | W56: =IFERROR(VLOOKUP($A56,上年科目余额表!$A:$G,6,0),"上年无数据") -> 上年无数据 | X56: 0 | Y56: 0 | Z56: 0
A57: 170101 | B57: 无形资产-采矿权 | C57: 借 | D57: 500039882 | E57: 0 | F57: 0 | G57: 500039882 | H57: 借 | I57: 2 | O57: 末级 | T57: =IFERROR(VLOOKUP($A57,上年科目余额表!$A:$G,5,0),"上年无数据") -> 上年无数据 | U57: 0 | V57: 0 | W57: =IFERROR(VLOOKUP($A57,上年科目余额表!$A:$G,6,0),"上年无数据") -> 上年无数据 | X57: 0 | Y57: 0 | Z57: 0
A58: 170102 | B58: 无形资产-土地使用权 | C58: 借 | D58: 8157250 | E58: 0 | F58: 0 | G58: 8157250 | H58: 借 | I58: 2 | O58: 末级 | T58: =IFERROR(VLOOKUP($A58,上年科目余额表!$A:$G,5,0),"上年无数据") -> 上年无数据 | U58: 0 | V58: 0 | W58: =IFERROR(VLOOKUP($A58,上年科目余额表!$A:$G,6,0),"上年无数据") -> 上年无数据 | X58: 0 | Y58: 0 | Z58: 0
A59: 1702 | B59: 累计摊销 | C59: 贷 | D59: 428536891.6 | E59: 0 | F59: 15327145.04 | G59: 443864036.6 | H59: 贷 | I59: 1 | O59: 一级 | T59: =IFERROR(VLOOKUP($A59,上年科目余额表!$A:$G,5,0),"上年无数据") -> 上年无数据 | U59: 0 | V59: 0 | W59: =IFERROR(VLOOKUP($A59,上年科目余额表!$A:$G,6,0),"上年无数据") -> 上年无数据 | X59: 0 | Y59: 0 | Z59: 0
A60: 170201 | B60: 累计摊销-采矿权摊销 | C60: 贷 | D60: 426111800 | E60: 0 | F60: 15164000 | G60: 441275800 | H60: 贷 | I60: 2 | O60: 末级 | T60: =IFERROR(VLOOKUP($A60,上年科目余额表!$A:$G,5,0),"上年无数据") -> 上年无数据 | U60: 0 | V60: 0 | W60: =IFERROR(VLOOKUP($A60,上年科目余额表!$A:$G,6,0),"上年无数据") -> 上年无数据 | X60: 0 | Y60: 0 | Z60: 0
A61: 170202 | B61: 累计摊销-土地使用权摊销 | C61: 贷 | D61: 2425091.6 | E61: 0 | F61: 163145.04 | G61: 2588236.64 | H61: 贷 | I61: 2 | O61: 末级 | T61: =IFERROR(VLOOKUP($A61,上年科目余额表!$A:$G,5,0),"上年无数据") -> 上年无数据 | U61: 0 | V61: 0 | W61: =IFERROR(VLOOKUP($A61,上年科目余额表!$A:$G,6,0),"上年无数据") -> 上年无数据 | X61: 0 | Y61: 0 | Z61: 0
A62: 2001 | B62: 短期借款 | C62: 贷 | D62: 356736228.3 | E62: 397286228.3 | F62: 372950000 | G62: 332400000 | H62: 贷 | I62: 1 | O62: 一级 | T62: =IFERROR(VLOOKUP($A62,上年科目余额表!$A:$G,5,0),"上年无数据") -> 上年无数据 | U62: 0 | V62: 0 | W62: =IFERROR(VLOOKUP($A62,上年科目余额表!$A:$G,6,0),"上年无数据") -> 上年无数据 | X62: 0 | Y62: 0 | Z62: 0
A63: 2201 | B63: 应付票据 | C63: 平 | D63: 0 | E63: 0 | F63: 30000000 | G63: 30000000 | H63: 贷 | I63: 1 | O63: 一级 | T63: =IFERROR(VLOOKUP($A63,上年科目余额表!$A:$G,5,0),"上年无数据") -> 上年无数据 | U63: 0 | V63: 0 | W63: =IFERROR(VLOOKUP($A63,上年科目余额表!$A:$G,6,0),"上年无数据") -> 上年无数据 | X63: 0 | Y63: 0 | Z63: 0
A64: 220101 | B64: 应付票据-银行承兑汇票 | C64: 平 | D64: 0 | E64: 0 | F64: 10000000 | G64: 10000000 | H64: 贷 | I64: 2 | O64: 末级 | T64: =IFERROR(VLOOKUP($A64,上年科目余额表!$A:$G,5,0),"上年无数据") -> 上年无数据 | U64: 0 | V64: 0 | W64: =IFERROR(VLOOKUP($A64,上年科目余额表!$A:$G,6,0),"上年无数据") -> 上年无数据 | X64: 0 | Y64: 0 | Z64: 0
A65: 220103 | B65: 应付票据-国内信用证 | C65: 平 | D65: 0 | E65: 0 | F65: 20000000 | G65: 20000000 | H65: 贷 | I65: 2 | O65: 末级 | T65: =IFERROR(VLOOKUP($A65,上年科目余额表!$A:$G,5,0),"上年无数据") -> 上年无数据 | U65: 0 | V65: 0 | W65: =IFERROR(VLOOKUP($A65,上年科目余额表!$A:$G,6,0),"上年无数据") -> 上年无数据 | X65: 0 | Y65: 0 | Z65: 0
A66: 2202 | B66: 应付账款 | C66: 贷 | D66: 87508655.98 | E66: 195804130.3 | F66: 234062805.5 | G66: 125767331.2 | H66: 贷 | I66: 1 | O66: 一级 | T66: =IFERROR(VLOOKUP($A66,上年科目余额表!$A:$G,5,0),"上年无数据") -> 上年无数据 | U66: 0 | V66: 0 | W66: =IFERROR(VLOOKUP($A66,上年科目余额表!$A:$G,6,0),"上年无数据") -> 上年无数据 | X66: 0 | Y66: 0 | Z66: 0
A67: 220201 | B67: 应付账款-集团内部 | C67: 贷 | D67: 19052307.97 | E67: 119629754.6 | F67: 131514360.2 | G67: 30936913.49 | H67: 贷 | I67: 2 | N67: =IF(J67="","",IF((SUMIFS(E:E,$J:$J,$J67,$I:$I,1)-SUMIFS(E:E,$J:$J,$J67,$O:$O,"末级"))=0,"取数正确","取数错误")) ->  | O67: =IF(I67=1,"一级",IF(I67>=I68,"末级","")) -> 末级 | T67: =IFERROR(VLOOKUP($A67,上年科目余额表!$A:$G,5,0),"上年无数据") -> 上年无数据 | U67: =IFERROR(E67-T67,0) -> 0 | V67: =IFERROR(U67/E67,0) -> 0 | W67: =IFERROR(VLOOKUP($A67,上年科目余额表!$A:$G,6,0),"上年无数据") -> 上年无数据 | X67: =IFERROR(F67-W67,0) -> 0 | Y67: =IFERROR(X67/F67,0) -> 0 | Z67: =IFERROR(E67/SUMIFS(E:E,J:J,J:J,O:O,"一级"),0) -> 0 | AA67: =IF(OR(AB67<>"",AC67<>""),"重要科目","") ->  | AB67: =IF(J67="","",IF(ABS(Z67)>$AB$1,"重要科目","")) ->  | AC67: =IFERROR(IF(IF(OR(J67="",O67="一级"),"",SUMPRODUCT(($J$2:$J$342=J67)*($Z$2:$Z$342>Z67))+1)<COUNTIFS(J:J,J67)*$AC$1,"重要科目",""),"") -> 
A68: 220202 | B68: 应付账款-集团外部 | C68: 贷 | D68: 68456348.01 | E68: 76174375.65 | F68: 102548445.3 | G68: 94830417.71 | H68: 贷 | I68: 2 | O68: 末级 | T68: =IFERROR(VLOOKUP($A68,上年科目余额表!$A:$G,5,0),"上年无数据") -> 上年无数据 | U68: 0 | V68: 0 | W68: =IFERROR(VLOOKUP($A68,上年科目余额表!$A:$G,6,0),"上年无数据") -> 上年无数据 | X68: 0 | Y68: 0 | Z68: 0
A69: 2211 | B69: 应付职工薪酬 | C69: 贷 | D69: 190318762.7 | E69: 196883632.3 | F69: 217268380.1 | G69: 210703510.5 | H69: 贷 | I69: 1 | O69: 一级 | T69: =IFERROR(VLOOKUP($A69,上年科目余额表!$A:$G,5,0),"上年无数据") -> 上年无数据 | U69: 0 | V69: 0 | W69: =IFERROR(VLOOKUP($A69,上年科目余额表!$A:$G,6,0),"上年无数据") -> 上年无数据 | X69: 0 | Y69: 0 | Z69: 0
A70: 221101 | B70: 应付职工薪酬-应付工资 | C70: 贷 | D70: 38594155.5 | E70: 173609271.2 | F70: 176209271.2 | G70: 41194155.5 | H70: 贷 | I70: 2 | T70: =IFERROR(VLOOKUP($A70,上年科目余额表!$A:$G,5,0),"上年无数据") -> 上年无数据 | U70: 0 | V70: 0 | W70: =IFERROR(VLOOKUP($A70,上年科目余额表!$A:$G,6,0),"上年无数据") -> 上年无数据 | X70: 0 | Y70: 0 | Z70: 0
A71: 22110101 | B71: 应付职工薪酬-应付工资-工资 | C71: 贷 | D71: 38594155.5 | E71: 173609271.2 | F71: 176209271.2 | G71: 41194155.5 | H71: 贷 | I71: 3 | O71: 末级 | T71: =IFERROR(VLOOKUP($A71,上年科目余额表!$A:$G,5,0),"上年无数据") -> 上年无数据 | U71: 0 | V71: 0 | W71: =IFERROR(VLOOKUP($A71,上年科目余额表!$A:$G,6,0),"上年无数据") -> 上年无数据 | X71: 0 | Y71: 0 | Z71: 0
A72: 221102 | B72: 应付职工薪酬-应付福利费 | C72: 贷 | D72: 25145220 | E72: 2294906.27 | F72: 5819546.27 | G72: 28669860 | H72: 贷 | I72: 2 | T72: =IFERROR(VLOOKUP($A72,上年科目余额表!$A:$G,5,0),"上年无数据") -> 上年无数据 | U72: 0 | V72: 0 | W72: =IFERROR(VLOOKUP($A72,上年科目余额表!$A:$G,6,0),"上年无数据") -> 上年无数据 | X72: 0 | Y72: 0 | Z72: 0
A73: 22110202 | B73: 应付职工薪酬-应付福利费-职工医药费 | C73: 平 | D73: 0 | E73: 243981.23 | F73: 243981.23 | G73: 0 | H73: 平 | I73: 3 | O73: 末级 | T73: =IFERROR(VLOOKUP($A73,上年科目余额表!$A:$G,5,0),"上年无数据") -> 上年无数据 | U73: 0 | V73: 0 | W73: =IFERROR(VLOOKUP($A73,上年科目余额表!$A:$G,6,0),"上年无数据") -> 上年无数据 | X73: 0 | Y73: 0 | Z73: 0
A74: 22110203 | B74: 应付职工薪酬-应付福利费-取暖补贴 | C74: 贷 | D74: 25145220 | E74: 0 | F74: 3524640 | G74: 28669860 | H74: 贷 | I74: 3 | O74: 末级 | T74: =IFERROR(VLOOKUP($A74,上年科目余额表!$A:$G,5,0),"上年无数据") -> 上年无数据 | U74: 0 | V74: 0 | W74: =IFERROR(VLOOKUP($A74,上年科目余额表!$A:$G,6,0),"上年无数据") -> 上年无数据 | X74: 0 | Y74: 0 | Z74: 0
A75: 22110207 | B75: 应付职工薪酬-应付福利费-独生子女费 | C75: 平 | D75: 0 | E75: 100000 | F75: 100000 | G75: 0 | H75: 平 | I75: 3 | O75: 末级 | T75: =IFERROR(VLOOKUP($A75,上年科目余额表!$A:$G,5,0),"上年无数据") -> 上年无数据 | U75: 0 | V75: 0 | W75: =IFERROR(VLOOKUP($A75,上年科目余额表!$A:$G,6,0),"上年无数据") -> 上年无数据 | X75: 0 | Y75: 0 | Z75: 0
A76: 22110299 | B76: 应付职工薪酬-应付福利费-其他 | C76: 平 | D76: 0 | E76: 1950925.04 | F76: 1950925.04 | G76: 0 | H76: 平 | I76: 3 | O76: 末级 | T76: =IFERROR(VLOOKUP($A76,上年科目余额表!$A:$G,5,0),"上年无数据") -> 上年无数据 | U76: 0 | V76: 0 | W76: =IFERROR(VLOOKUP($A76,上年科目余额表!$A:$G,6,0),"上年无数据") -> 上年无数据 | X76: 0 | Y76: 0 | Z76: 0
A77: 221103 | B77: 应付职工薪酬-社会保险费 | C77: 贷 | D77: 120359572.2 | E77: 17947624.63 | F77: 33214886.57 | G77: 135626834.1 | H77: 贷 | I77: 2 | T77: =IFERROR(VLOOKUP($A77,上年科目余额表!$A:$G,5,0),"上年无数据") -> 上年无数据 | U77: 0 | V77: 0 | W77: =IFERROR(VLOOKUP($A77,上年科目余额表!$A:$G,6,0),"上年无数据") -> 上年无数据 | X77: 0 | Y77: 0 | Z77: 0
A78: 22110301 | B78: 应付职工薪酬-社会保险费-基本养老金 | C78: 贷 | D78: 113132804.3 | E78: 5902198.16 | F78: 18889914.52 | G78: 126120520.7 | H78: 贷 | I78: 3 | O78: 末级 | T78: =IFERROR(VLOOKUP($A78,上年科目余额表!$A:$G,5,0),"上年无数据") -> 上年无数据 | U78: 0 | V78: 0 | W78: =IFERROR(VLOOKUP($A78,上年科目余额表!$A:$G,6,0),"上年无数据") -> 上年无数据 | X78: 0 | Y78: 0 | Z78: 0
A79: 22110303 | B79: 应付职工薪酬-社会保险费-医疗保险金 | C79: 贷 | D79: 918115.96 | E79: 7638745.57 | F79: 8440464.27 | G79: 1719834.66 | H79: 贷 | I79: 3 | T79: =IFERROR(VLOOKUP($A79,上年科目余额表!$A:$G,5,0),"上年无数据") -> 上年无数据 | U79: 0 | V79: 0 | W79: =IFERROR(VLOOKUP($A79,上年科目余额表!$A:$G,6,0),"上年无数据") -> 上年无数据 | X79: 0 | Y79: 0 | Z79: 0
A80: 2211030301 | B80: 应付职工薪酬-社会保险费-医疗保险金-基本医疗保险 | C80: 贷 | D80: 918115.96 | E80: 7638745.57 | F80: 8440464.27 | G80: 1719834.66 | H80: 贷 | I80: 4 | O80: 末级 | T80: =IFERROR(VLOOKUP($A80,上年科目余额表!$A:$G,5,0),"上年无数据") -> 上年无数据 | U80: 0 | V80: 0 | W80: =IFERROR(VLOOKUP($A80,上年科目余额表!$A:$G,6,0),"上年无数据") -> 上年无数据 | X80: 0 | Y80: 0 | Z80: 0
A81: 22110305 | B81: 应付职工薪酬-社会保险费-失业保险金 | C81: 贷 | D81: 6308651.87 | E81: 0 | F81: 1477826.88 | G81: 7786478.75 | H81: 贷 | I81: 3 | O81: 末级 | T81: =IFERROR(VLOOKUP($A81,上年科目余额表!$A:$G,5,0),"上年无数据") -> 上年无数据 | U81: 0 | V81: 0 | W81: =IFERROR(VLOOKUP($A81,上年科目余额表!$A:$G,6,0),"上年无数据") -> 上年无数据 | X81: 0 | Y81: 0 | Z81: 0
A82: 22110306 | B82: 应付职工薪酬-社会保险费-工伤保险金 | C82: 平 | D82: 0 | E82: 4406680.9 | F82: 4406680.9 | G82: 0 | H82: 平 | I82: 3 | O82: 末级 | T82: =IFERROR(VLOOKUP($A82,上年科目余额表!$A:$G,5,0),"上年无数据") -> 上年无数据 | U82: 0 | V82: 0 | W82: =IFERROR(VLOOKUP($A82,上年科目余额表!$A:$G,6,0),"上年无数据") -> 上年无数据 | X82: 0 | Y82: 0 | Z82: 0
A83: 221105 | B83: 应付职工薪酬-工会经费 | C83: 贷 | D83: 3493784.46 | E83: 2437769.81 | F83: 2024676.13 | G83: 3080690.78 | H83: 贷 | I83: 2 | O83: 末级 | T83: =IFERROR(VLOOKUP($A83,上年科目余额表!$A:$G,5,0),"上年无数据") -> 上年无数据 | U83: 0 | V83: 0 | W83: =IFERROR(VLOOKUP($A83,上年科目余额表!$A:$G,6,0),"上年无数据") -> 上年无数据 | X83: 0 | Y83: 0 | Z83: 0
A84: 221106 | B84: 应付职工薪酬-职工教育经费 | C84: 贷 | D84: 2726030.59 | E84: 594060.44 | F84: 0 | G84: 2131970.15 | H84: 贷 | I84: 2 | O84: 末级 | T84: =IFERROR(VLOOKUP($A84,上年科目余额表!$A:$G,5,0),"上年无数据") -> 上年无数据 | U84: 0 | V84: 0 | W84: =IFERROR(VLOOKUP($A84,上年科目余额表!$A:$G,6,0),"上年无数据") -> 上年无数据 | X84: 0 | Y84: 0 | Z84: 0
A85: 2221 | B85: 应交税费 | C85: 贷 | D85: 281806148.4 | E85: 1280122943 | F85: 1226506185 | G85: 228189390.6 | H85: 贷 | I85: 1 | O85: 一级 | T85: =IFERROR(VLOOKUP($A85,上年科目余额表!$A:$G,5,0),"上年无数据") -> 上年无数据 | U85: 0 | V85: 0 | W85: =IFERROR(VLOOKUP($A85,上年科目余额表!$A:$G,6,0),"上年无数据") -> 上年无数据 | X85: 0 | Y85: 0 | Z85: 0
A86: 222101 | B86: 应交税费-应交增值税 | C86: 平 | D86: 0 | E86: 513352457.8 | F86: 513352457.8 | G86: 0 | H86: 平 | I86: 2 | T86: =IFERROR(VLOOKUP($A86,上年科目余额表!$A:$G,5,0),"上年无数据") -> 上年无数据 | U86: 0 | V86: 0 | W86: =IFERROR(VLOOKUP($A86,上年科目余额表!$A:$G,6,0),"上年无数据") -> 上年无数据 | X86: 0 | Y86: 0 | Z86: 0
A87: 22210101 | B87: 应交税费-应交增值税-进项税额 | C87: 平 | D87: 0 | E87: 31003754.13 | F87: 31003754.13 | G87: 0 | H87: 平 | I87: 3 | O87: 末级 | T87: =IFERROR(VLOOKUP($A87,上年科目余额表!$A:$G,5,0),"上年无数据") -> 上年无数据 | U87: 0 | V87: 0 | W87: =IFERROR(VLOOKUP($A87,上年科目余额表!$A:$G,6,0),"上年无数据") -> 上年无数据 | X87: 0 | Y87: 0 | Z87: 0
A88: 22210103 | B88: 应交税费-应交增值税-转出未交增值税 | C88: 平 | D88: 0 | E88: 225672194.8 | F88: 225672194.8 | G88: 0 | H88: 平 | I88: 3 | O88: 末级 | T88: =IFERROR(VLOOKUP($A88,上年科目余额表!$A:$G,5,0),"上年无数据") -> 上年无数据 | U88: 0 | V88: 0 | W88: =IFERROR(VLOOKUP($A88,上年科目余额表!$A:$G,6,0),"上年无数据") -> 上年无数据 | X88: 0 | Y88: 0 | Z88: 0
A89: 22210104 | B89: 应交税费-应交增值税-减免税款 | C89: 平 | D89: 0 | E89: 280 | F89: 280 | G89: 0 | H89: 平 | I89: 3 | O89: 末级 | T89: =IFERROR(VLOOKUP($A89,上年科目余额表!$A:$G,5,0),"上年无数据") -> 上年无数据 | U89: 0 | V89: 0 | W89: =IFERROR(VLOOKUP($A89,上年科目余额表!$A:$G,6,0),"上年无数据") -> 上年无数据 | X89: 0 | Y89: 0 | Z89: 0
A90: 22210105 | B90: 应交税费-应交增值税-销项税额 | C90: 平 | D90: 0 | E90: 254872978.9 | F90: 254872978.9 | G90: 0 | H90: 平 | I90: 3 | O90: 末级 | T90: =IFERROR(VLOOKUP($A90,上年科目余额表!$A:$G,5,0),"上年无数据") -> 上年无数据 | U90: 0 | V90: 0 | W90: =IFERROR(VLOOKUP($A90,上年科目余额表!$A:$G,6,0),"上年无数据") -> 上年无数据 | X90: 0 | Y90: 0 | Z90: 0
A91: 22210107 | B91: 应交税费-应交增值税-进项税额转出 | C91: 平 | D91: 0 | E91: 1803250.01 | F91: 1803250.01 | G91: 0 | H91: 平 | I91: 3 | O91: 末级 | T91: =IFERROR(VLOOKUP($A91,上年科目余额表!$A:$G,5,0),"上年无数据") -> 上年无数据 | U91: 0 | V91: 0 | W91: =IFERROR(VLOOKUP($A91,上年科目余额表!$A:$G,6,0),"上年无数据") -> 上年无数据 | X91: 0 | Y91: 0 | Z91: 0
A92: 222102 | B92: 应交税费-未交增值税 | C92: 贷 | D92: 40831506.44 | E92: 239200077.7 | F92: 225672194.8 | G92: 27303623.5 | H92: 贷 | I92: 2 | O92: 末级 | T92: =IFERROR(VLOOKUP($A92,上年科目余额表!$A:$G,5,0),"上年无数据") -> 上年无数据 | U92: 0 | V92: 0 | W92: =IFERROR(VLOOKUP($A92,上年科目余额表!$A:$G,6,0),"上年无数据") -> 上年无数据 | X92: 0 | Y92: 0 | Z92: 0
A93: 222105 | B93: 应交税费-应交资源税 | C93: 贷 | D93: 28742872.19 | E93: 162203106.8 | F93: 156546066 | G93: 23085831.42 | H93: 贷 | I93: 2 | O93: 末级 | T93: =IFERROR(VLOOKUP($A93,上年科目余额表!$A:$G,5,0),"上年无数据") -> 上年无数据 | U93: 0 | V93: 0 | W93: =IFERROR(VLOOKUP($A93,上年科目余额表!$A:$G,6,0),"上年无数据") -> 上年无数据 | X93: 0 | Y93: 0 | Z93: 0
A94: 222106 | B94: 应交税费-应交所得税 | C94: 贷 | D94: 194823345 | E94: 328715059.1 | F94: 293993109 | G94: 160101394.9 | H94: 贷 | I94: 2 | O94: 末级 | T94: =IFERROR(VLOOKUP($A94,上年科目余额表!$A:$G,5,0),"上年无数据") -> 上年无数据 | U94: 0 | V94: 0 | W94: =IFERROR(VLOOKUP($A94,上年科目余额表!$A:$G,6,0),"上年无数据") -> 上年无数据 | X94: 0 | Y94: 0 | Z94: 0
A95: 222108 | B95: 应交税费-应交城市维护建设税 | C95: 贷 | D95: 2041575.31 | E95: 11960003.87 | F95: 11283609.74 | G95: 1365181.18 | H95: 贷 | I95: 2 | O95: 末级 | T95: =IFERROR(VLOOKUP($A95,上年科目余额表!$A:$G,5,0),"上年无数据") -> 上年无数据 | U95: 0 | V95: 0 | W95: =IFERROR(VLOOKUP($A95,上年科目余额表!$A:$G,6,0),"上年无数据") -> 上年无数据 | X95: 0 | Y95: 0 | Z95: 0
A96: 222109 | B96: 应交税费-应交房产税 | C96: 贷 | D96: 656136.48 | E96: 1312272.96 | F96: 1312272.96 | G96: 656136.48 | H96: 贷 | I96: 2 | O96: 末级 | T96: =IFERROR(VLOOKUP($A96,上年科目余额表!$A:$G,5,0),"上年无数据") -> 上年无数据 | U96: 0 | V96: 0 | W96: =IFERROR(VLOOKUP($A96,上年科目余额表!$A:$G,6,0),"上年无数据") -> 上年无数据 | X96: 0 | Y96: 0 | Z96: 0
A97: 222110 | B97: 应交税费-应交土地使用税 | C97: 贷 | D97: 1184046.79 | E97: 2368093.58 | F97: 2368093.58 | G97: 1184046.79 | H97: 贷 | I97: 2 | O97: 末级 | T97: =IFERROR(VLOOKUP($A97,上年科目余额表!$A:$G,5,0),"上年无数据") -> 上年无数据 | U97: 0 | V97: 0 | W97: =IFERROR(VLOOKUP($A97,上年科目余额表!$A:$G,6,0),"上年无数据") -> 上年无数据 | X97: 0 | Y97: 0 | Z97: 0
A98: 222112 | B98: 应交税费-代交个人所得税 | C98: 贷 | D98: 229436.56 | E98: 1155251.04 | F98: 1636662.74 | G98: 710848.26 | H98: 贷 | I98: 2 | O98: 末级 | T98: =IFERROR(VLOOKUP($A98,上年科目余额表!$A:$G,5,0),"上年无数据") -> 上年无数据 | U98: 0 | V98: 0 | W98: =IFERROR(VLOOKUP($A98,上年科目余额表!$A:$G,6,0),"上年无数据") -> 上年无数据 | X98: 0 | Y98: 0 | Z98: 0
A99: 222113 | B99: 应交税费-应交印花税 | C99: 贷 | D99: 132310.3 | E99: 574459.18 | F99: 717473.17 | G99: 275324.29 | H99: 贷 | I99: 2 | O99: 末级 | T99: =IFERROR(VLOOKUP($A99,上年科目余额表!$A:$G,5,0),"上年无数据") -> 上年无数据 | U99: 0 | V99: 0 | W99: =IFERROR(VLOOKUP($A99,上年科目余额表!$A:$G,6,0),"上年无数据") -> 上年无数据 | X99: 0 | Y99: 0 | Z99: 0
A100: 222114 | B100: 应交税费-应交规费 | C100: 贷 | D100: 13785055.46 | E100: 14212480.01 | F100: 14554564.49 | G100: 14127139.94 | H100: 贷 | I100: 2 | T100: =IFERROR(VLOOKUP($A100,上年科目余额表!$A:$G,5,0),"上年无数据") -> 上年无数据 | U100: 0 | V100: 0 | W100: =IFERROR(VLOOKUP($A100,上年科目余额表!$A:$G,6,0),"上年无数据") -> 上年无数据 | X100: 0 | Y100: 0 | Z100: 0
A101: 22211401 | B101: 应交税费-应交规费-教育费附加 | C101: 贷 | D101: 681859.23 | E101: 6632916.37 | F101: 6770165.85 | G101: 819108.71 | H101: 贷 | I101: 3 | O101: 末级 | T101: =IFERROR(VLOOKUP($A101,上年科目余额表!$A:$G,5,0),"上年无数据") -> 上年无数据 | U101: 0 | V101: 0 | W101: =IFERROR(VLOOKUP($A101,上年科目余额表!$A:$G,6,0),"上年无数据") -> 上年无数据 | X101: 0 | Y101: 0 | Z101: 0
A102: 22211402 | B102: 应交税费-应交规费-水资源补偿费 | C102: 贷 | D102: 5698902.93 | E102: 0 | F102: 0 | G102: 5698902.93 | H102: 贷 | I102: 3 | O102: 末级 | T102: =IFERROR(VLOOKUP($A102,上年科目余额表!$A:$G,5,0),"上年无数据") -> 上年无数据 | U102: 0 | V102: 0 | W102: =IFERROR(VLOOKUP($A102,上年科目余额表!$A:$G,6,0),"上年无数据") -> 上年无数据 | X102: 0 | Y102: 0 | Z102: 0
A103: 22211403 | B103: 应交税费-应交规费-残疾人保障金 | C103: 平 | D103: 0 | E103: 1921170.64 | F103: 1921170.64 | G103: 0 | H103: 平 | I103: 3 | O103: 末级 | T103: =IFERROR(VLOOKUP($A103,上年科目余额表!$A:$G,5,0),"上年无数据") -> 上年无数据 | U103: 0 | V103: 0 | W103: =IFERROR(VLOOKUP($A103,上年科目余额表!$A:$G,6,0),"上年无数据") -> 上年无数据 | X103: 0 | Y103: 0 | Z103: 0
A104: 22211404 | B104: 应交税费-应交规费-河道管理费 | C104: 贷 | D104: 866402.01 | E104: 0 | F104: 0 | G104: 866402.01 | H104: 贷 | I104: 3 | O104: 末级 | T104: =IFERROR(VLOOKUP($A104,上年科目余额表!$A:$G,5,0),"上年无数据") -> 上年无数据 | U104: 0 | V104: 0 | W104: =IFERROR(VLOOKUP($A104,上年科目余额表!$A:$G,6,0),"上年无数据") -> 上年无数据 | X104: 0 | Y104: 0 | Z104: 0
A105: 22211405 | B105: 应交税费-应交规费-上交工会经费 | C105: 贷 | D105: 472204.78 | E105: 1236448.74 | F105: 1349784.09 | G105: 585540.13 | H105: 贷 | I105: 3 | O105: 末级 | T105: =IFERROR(VLOOKUP($A105,上年科目余额表!$A:$G,5,0),"上年无数据") -> 上年无数据 | U105: 0 | V105: 0 | W105: =IFERROR(VLOOKUP($A105,上年科目余额表!$A:$G,6,0),"上年无数据") -> 上年无数据 | X105: 0 | Y105: 0 | Z105: 0
A106: 22211407 | B106: 应交税费-应交规费-地方教育费附加 | C106: 贷 | D106: 454572.82 | E106: 4421944.26 | F106: 4513443.91 | G106: 546072.47 | H106: 贷 | I106: 3 | O106: 末级 | T106: =IFERROR(VLOOKUP($A106,上年科目余额表!$A:$G,5,0),"上年无数据") -> 上年无数据 | U106: 0 | V106: 0 | W106: =IFERROR(VLOOKUP($A106,上年科目余额表!$A:$G,6,0),"上年无数据") -> 上年无数据 | X106: 0 | Y106: 0 | Z106: 0
A107: 22211410 | B107: 应交税费-应交规费-可持续发展基金 | C107: 贷 | D107: 5611113.69 | E107: 0 | F107: 0 | G107: 5611113.69 | H107: 贷 | I107: 3 | O107: 末级 | T107: =IFERROR(VLOOKUP($A107,上年科目余额表!$A:$G,5,0),"上年无数据") -> 上年无数据 | U107: 0 | V107: 0 | W107: =IFERROR(VLOOKUP($A107,上年科目余额表!$A:$G,6,0),"上年无数据") -> 上年无数据 | X107: 0 | Y107: 0 | Z107: 0
A108: 222126 | B108: 应交税费-应交水资源税 | C108: 平 | D108: 0 | E108: 4654205.9 | F108: 4654205.9 | G108: 0 | H108: 平 | I108: 2 | O108: 末级 | T108: =IFERROR(VLOOKUP($A108,上年科目余额表!$A:$G,5,0),"上年无数据") -> 上年无数据 | U108: 0 | V108: 0 | W108: =IFERROR(VLOOKUP($A108,上年科目余额表!$A:$G,6,0),"上年无数据") -> 上年无数据 | X108: 0 | Y108: 0 | Z108: 0
A109: 222127 | B109: 应交税费-应交环境保护税 | C109: 平 | D109: 0 | E109: 415474.58 | F109: 415474.58 | G109: 0 | H109: 平 | I109: 2 | O109: 末级 | T109: =IFERROR(VLOOKUP($A109,上年科目余额表!$A:$G,5,0),"上年无数据") -> 上年无数据 | U109: 0 | V109: 0 | W109: =IFERROR(VLOOKUP($A109,上年科目余额表!$A:$G,6,0),"上年无数据") -> 上年无数据 | X109: 0 | Y109: 0 | Z109: 0
A110: 222131 | B110: 应交税费-应交土地增值税 | C110: 借 | D110: 620136.14 | E110: 0 | F110: 0 | G110: 620136.14 | H110: 借 | I110: 2 | O110: 末级 | T110: =IFERROR(VLOOKUP($A110,上年科目余额表!$A:$G,5,0),"上年无数据") -> 上年无数据 | U110: 0 | V110: 0 | W110: =IFERROR(VLOOKUP($A110,上年科目余额表!$A:$G,6,0),"上年无数据") -> 上年无数据 | X110: 0 | Y110: 0 | Z110: 0
A111: 2241 | B111: 其他应付款 | C111: 贷 | D111: 411342225.8 | E111: 142717343.9 | F111: 95107697.83 | G111: 363732579.7 | H111: 贷 | I111: 1 | O111: 一级 | T111: =IFERROR(VLOOKUP($A111,上年科目余额表!$A:$G,5,0),"上年无数据") -> 上年无数据 | U111: 0 | V111: 0 | W111: =IFERROR(VLOOKUP($A111,上年科目余额表!$A:$G,6,0),"上年无数据") -> 上年无数据 | X111: 0 | Y111: 0 | Z111: 0
A112: 224101 | B112: 其他应付款-单位其他应付款 | C112: 贷 | D112: 157853683.6 | E112: 125037372.4 | F112: 64806342.19 | G112: 97622653.36 | H112: 贷 | I112: 2 | O112: 末级 | T112: =IFERROR(VLOOKUP($A112,上年科目余额表!$A:$G,5,0),"上年无数据") -> 上年无数据 | U112: 0 | V112: 0 | W112: =IFERROR(VLOOKUP($A112,上年科目余额表!$A:$G,6,0),"上年无数据") -> 上年无数据 | X112: 0 | Y112: 0 | Z112: 0
A113: 224102 | B113: 其他应付款-个人其他应付款 | C113: 贷 | D113: 28978789.69 | E113: 832169.99 | F113: 808866.74 | G113: 28955486.44 | H113: 贷 | I113: 2 | T113: =IFERROR(VLOOKUP($A113,上年科目余额表!$A:$G,5,0),"上年无数据") -> 上年无数据 | U113: 0 | V113: 0 | W113: =IFERROR(VLOOKUP($A113,上年科目余额表!$A:$G,6,0),"上年无数据") -> 上年无数据 | X113: 0 | Y113: 0 | Z113: 0
A114: 22410202 | B114: 其他应付款-个人其他应付款-内退工资户 | C114: 贷 | D114: 108307.69 | E114: 341974.11 | F114: 308018.22 | G114: 74351.8 | H114: 贷 | I114: 3 | O114: 末级 | T114: =IFERROR(VLOOKUP($A114,上年科目余额表!$A:$G,5,0),"上年无数据") -> 上年无数据 | U114: 0 | V114: 0 | W114: =IFERROR(VLOOKUP($A114,上年科目余额表!$A:$G,6,0),"上年无数据") -> 上年无数据 | X114: 0 | Y114: 0 | Z114: 0
A115: 22410203 | B115: 其他应付款-个人其他应付款-九庄村民补偿款 | C115: 贷 | D115: 12996 | E115: 0 | F115: 1200 | G115: 14196 | H115: 贷 | I115: 3 | O115: 末级 | T115: =IFERROR(VLOOKUP($A115,上年科目余额表!$A:$G,5,0),"上年无数据") -> 上年无数据 | U115: 0 | V115: 0 | W115: =IFERROR(VLOOKUP($A115,上年科目余额表!$A:$G,6,0),"上年无数据") -> 上年无数据 | X115: 0 | Y115: 0 | Z115: 0
A116: 22410204 | B116: 其他应付款-个人其他应付款-寨沟村民补偿款 | C116: 贷 | D116: 764954 | E116: 0 | F116: 0 | G116: 764954 | H116: 贷 | I116: 3 | O116: 末级 | T116: =IFERROR(VLOOKUP($A116,上年科目余额表!$A:$G,5,0),"上年无数据") -> 上年无数据 | U116: 0 | V116: 0 | W116: =IFERROR(VLOOKUP($A116,上年科目余额表!$A:$G,6,0),"上年无数据") -> 上年无数据 | X116: 0 | Y116: 0 | Z116: 0
A117: 22410206 | B117: 其他应付款-个人其他应付款-押金 | C117: 贷 | D117: 13461829 | E117: 119700 | F117: 85000 | G117: 13427129 | H117: 贷 | I117: 3 | O117: 末级 | T117: =IFERROR(VLOOKUP($A117,上年科目余额表!$A:$G,5,0),"上年无数据") -> 上年无数据 | U117: 0 | V117: 0 | W117: =IFERROR(VLOOKUP($A117,上年科目余额表!$A:$G,6,0),"上年无数据") -> 上年无数据 | X117: 0 | Y117: 0 | Z117: 0
A118: 22410207 | B118: 其他应付款-个人其他应付款-废料款 | C118: 贷 | D118: 9070 | E118: 4420 | F118: 0 | G118: 4650 | H118: 贷 | I118: 3 | O118: 末级 | T118: =IFERROR(VLOOKUP($A118,上年科目余额表!$A:$G,5,0),"上年无数据") -> 上年无数据 | U118: 0 | V118: 0 | W118: =IFERROR(VLOOKUP($A118,上年科目余额表!$A:$G,6,0),"上年无数据") -> 上年无数据 | X118: 0 | Y118: 0 | Z118: 0
A119: 22410214 | B119: 其他应付款-个人其他应付款-风险抵押金（公有） | C119: 贷 | D119: 9080450 | E119: 308500 | F119: 0 | G119: 8771950 | H119: 贷 | I119: 3 | O119: 末级 | T119: =IFERROR(VLOOKUP($A119,上年科目余额表!$A:$G,5,0),"上年无数据") -> 上年无数据 | U119: 0 | V119: 0 | W119: =IFERROR(VLOOKUP($A119,上年科目余额表!$A:$G,6,0),"上年无数据") -> 上年无数据 | X119: 0 | Y119: 0 | Z119: 0
A120: 22410217 | B120: 其他应付款-个人其他应付款-代顺达物流收购车借资款 | C120: 贷 | D120: 5540000 | E120: 0 | F120: 0 | G120: 5540000 | H120: 贷 | I120: 3 | O120: 末级 | T120: =IFERROR(VLOOKUP($A120,上年科目余额表!$A:$G,5,0),"上年无数据") -> 上年无数据 | U120: 0 | V120: 0 | W120: =IFERROR(VLOOKUP($A120,上年科目余额表!$A:$G,6,0),"上年无数据") -> 上年无数据 | X120: 0 | Y120: 0 | Z120: 0
A121: 22410218 | B121: 其他应付款-个人其他应付款-押金（公有） | C121: 平 | D121: 0 | E121: 0 | F121: 300000 | G121: 300000 | H121: 贷 | I121: 3 | O121: 末级 | T121: =IFERROR(VLOOKUP($A121,上年科目余额表!$A:$G,5,0),"上年无数据") -> 上年无数据 | U121: 0 | V121: 0 | W121: =IFERROR(VLOOKUP($A121,上年科目余额表!$A:$G,6,0),"上年无数据") -> 上年无数据 | X121: 0 | Y121: 0 | Z121: 0
A122: 22410219 | B122: 其他应付款-个人其他应付款-工资（公有） | C122: 贷 | D122: 1183 | E122: 57575.88 | F122: 114648.52 | G122: 58255.64 | H122: 贷 | I122: 3 | O122: 末级 | T122: =IFERROR(VLOOKUP($A122,上年科目余额表!$A:$G,5,0),"上年无数据") -> 上年无数据 | U122: 0 | V122: 0 | W122: =IFERROR(VLOOKUP($A122,上年科目余额表!$A:$G,6,0),"上年无数据") -> 上年无数据 | X122: 0 | Y122: 0 | Z122: 0
A123: 224103 | B123: 其他应付款-部门其他应付款 | C123: 贷 | D123: 6296.9 | E123: 6296.9 | F123: 0 | G123: 0 | H123: 平 | I123: 2 | O123: 末级 | T123: =IFERROR(VLOOKUP($A123,上年科目余额表!$A:$G,5,0),"上年无数据") -> 上年无数据 | U123: 0 | V123: 0 | W123: =IFERROR(VLOOKUP($A123,上年科目余额表!$A:$G,6,0),"上年无数据") -> 上年无数据 | X123: 0 | Y123: 0 | Z123: 0
A124: 224104 | B124: 其他应付款-待付款项 | C124: 贷 | D124: 224503455.6 | E124: 16841504.58 | F124: 29492488.9 | G124: 237154439.9 | H124: 贷 | I124: 2 | T124: =IFERROR(VLOOKUP($A124,上年科目余额表!$A:$G,5,0),"上年无数据") -> 上年无数据 | U124: 0 | V124: 0 | W124: =IFERROR(VLOOKUP($A124,上年科目余额表!$A:$G,6,0),"上年无数据") -> 上年无数据 | X124: 0 | Y124: 0 | Z124: 0
A125: 22410404 | B125: 其他应付款-待付款项-长兴小区房款 | C125: 贷 | D125: 64332324.74 | E125: 210051.6 | F125: 210051.6 | G125: 64332324.74 | H125: 贷 | I125: 3 | O125: 末级 | T125: =IFERROR(VLOOKUP($A125,上年科目余额表!$A:$G,5,0),"上年无数据") -> 上年无数据 | U125: 0 | V125: 0 | W125: =IFERROR(VLOOKUP($A125,上年科目余额表!$A:$G,6,0),"上年无数据") -> 上年无数据 | X125: 0 | Y125: 0 | Z125: 0
A126: 22410405 | B126: 其他应付款-待付款项-橱柜款 | C126: 贷 | D126: 510000 | E126: 9000 | F126: 0 | G126: 501000 | H126: 贷 | I126: 3 | O126: 末级 | T126: =IFERROR(VLOOKUP($A126,上年科目余额表!$A:$G,5,0),"上年无数据") -> 上年无数据 | U126: 0 | V126: 0 | W126: =IFERROR(VLOOKUP($A126,上年科目余额表!$A:$G,6,0),"上年无数据") -> 上年无数据 | X126: 0 | Y126: 0 | Z126: 0
A127: 22410406 | B127: 其他应付款-待付款项-工伤一次性赔偿款 | C127: 贷 | D127: 467791 | E127: 1551408.32 | F127: 2451480.05 | G127: 1367862.73 | H127: 贷 | I127: 3 | O127: 末级 | T127: =IFERROR(VLOOKUP($A127,上年科目余额表!$A:$G,5,0),"上年无数据") -> 上年无数据 | U127: 0 | V127: 0 | W127: =IFERROR(VLOOKUP($A127,上年科目余额表!$A:$G,6,0),"上年无数据") -> 上年无数据 | X127: 0 | Y127: 0 | Z127: 0
A128: 22410409 | B128: 其他应付款-待付款项-长兴小区车位款 | C128: 贷 | D128: 2630000 | E128: 0 | F128: 0 | G128: 2630000 | H128: 贷 | I128: 3 | O128: 末级 | T128: =IFERROR(VLOOKUP($A128,上年科目余额表!$A:$G,5,0),"上年无数据") -> 上年无数据 | U128: 0 | V128: 0 | W128: =IFERROR(VLOOKUP($A128,上年科目余额表!$A:$G,6,0),"上年无数据") -> 上年无数据 | X128: 0 | Y128: 0 | Z128: 0
A129: 22410410 | B129: 其他应付款-待付款项-西北阳回迁楼房款 | C129: 贷 | D129: 990000 | E129: 0 | F129: 0 | G129: 990000 | H129: 贷 | I129: 3 | O129: 末级 | T129: =IFERROR(VLOOKUP($A129,上年科目余额表!$A:$G,5,0),"上年无数据") -> 上年无数据 | U129: 0 | V129: 0 | W129: =IFERROR(VLOOKUP($A129,上年科目余额表!$A:$G,6,0),"上年无数据") -> 上年无数据 | X129: 0 | Y129: 0 | Z129: 0
A130: 22410411 | B130: 其他应付款-待付款项-大郝沟小区房款 | C130: 贷 | D130: 26122393.5 | E130: 0 | F130: 0 | G130: 26122393.5 | H130: 贷 | I130: 3 | O130: 末级 | T130: =IFERROR(VLOOKUP($A130,上年科目余额表!$A:$G,5,0),"上年无数据") -> 上年无数据 | U130: 0 | V130: 0 | W130: =IFERROR(VLOOKUP($A130,上年科目余额表!$A:$G,6,0),"上年无数据") -> 上年无数据 | X130: 0 | Y130: 0 | Z130: 0
A131: 22410413 | B131: 其他应付款-待付款项-回乡补助金 | C131: 贷 | D131: 1933405 | E131: 0 | F131: 0 | G131: 1933405 | H131: 贷 | I131: 3 | N131: =IF(J131="","",IF((SUMIFS(E:E,$J:$J,$J131,$I:$I,1)-SUMIFS(E:E,$J:$J,$J131,$O:$O,"末级"))=0,"取数正确","取数错误")) ->  | O131: =IF(I131=1,"一级",IF(I131>=I132,"末级","")) -> 末级 | T131: =IFERROR(VLOOKUP($A131,上年科目余额表!$A:$G,5,0),"上年无数据") -> 上年无数据 | U131: =IFERROR(E131-T131,0) -> 0 | V131: =IFERROR(U131/E131,0) -> 0 | W131: =IFERROR(VLOOKUP($A131,上年科目余额表!$A:$G,6,0),"上年无数据") -> 上年无数据 | X131: =IFERROR(F131-W131,0) -> 0 | Y131: =IFERROR(X131/F131,0) -> 0 | Z131: =IFERROR(E131/SUMIFS(E:E,J:J,J:J,O:O,"一级"),0) -> 0 | AA131: =IF(OR(AB131<>"",AC131<>""),"重要科目","") ->  | AB131: =IF(J131="","",IF(ABS(Z131)>$AB$1,"重要科目","")) ->  | AC131: =IFERROR(IF(IF(OR(J131="",O131="一级"),"",SUMPRODUCT(($J$2:$J$342=J131)*($Z$2:$Z$342>Z131))+1)<COUNTIFS(J:J,J131)*$AC$1,"重要科目",""),"") -> 
A132: 22410415 | B132: 其他应付款-待付款项-县北坡搬迁工作组 | C132: 贷 | D132: 370882 | E132: 0 | F132: 0 | G132: 370882 | H132: 贷 | I132: 3 | O132: 末级 | T132: =IFERROR(VLOOKUP($A132,上年科目余额表!$A:$G,5,0),"上年无数据") -> 上年无数据 | U132: 0 | V132: 0 | W132: =IFERROR(VLOOKUP($A132,上年科目余额表!$A:$G,6,0),"上年无数据") -> 上年无数据 | X132: 0 | Y132: 0 | Z132: 0
A133: 22410417 | B133: 其他应付款-待付款项-九庄回迁楼房款 | C133: 贷 | D133: 55620445.24 | E133: 0 | F133: 0 | G133: 55620445.24 | H133: 贷 | I133: 3 | O133: 末级 | T133: =IFERROR(VLOOKUP($A133,上年科目余额表!$A:$G,5,0),"上年无数据") -> 上年无数据 | U133: 0 | V133: 0 | W133: =IFERROR(VLOOKUP($A133,上年科目余额表!$A:$G,6,0),"上年无数据") -> 上年无数据 | X133: 0 | Y133: 0 | Z133: 0
A134: 22410461 | B134: 其他应付款-待付款项-个人养老保险（公有） | C134: 贷 | D134: 47461181.56 | E134: 2657456.24 | F134: 7966493.6 | G134: 52770218.92 | H134: 贷 | I134: 3 | O134: 末级 | T134: =IFERROR(VLOOKUP($A134,上年科目余额表!$A:$G,5,0),"上年无数据") -> 上年无数据 | U134: 0 | V134: 0 | W134: =IFERROR(VLOOKUP($A134,上年科目余额表!$A:$G,6,0),"上年无数据") -> 上年无数据 | X134: 0 | Y134: 0 | Z134: 0
A135: 22410462 | B135: 其他应付款-待付款项-个人医疗保险（公有） | C135: 贷 | D135: 534530.36 | E135: 2305197.56 | F135: 2098447.68 | G135: 327780.48 | H135: 贷 | I135: 3 | O135: 末级 | T135: =IFERROR(VLOOKUP($A135,上年科目余额表!$A:$G,5,0),"上年无数据") -> 上年无数据 | U135: 0 | V135: 0 | W135: =IFERROR(VLOOKUP($A135,上年科目余额表!$A:$G,6,0),"上年无数据") -> 上年无数据 | X135: 0 | Y135: 0 | Z135: 0
A136: 22410463 | B136: 其他应付款-待付款项-个人失业保险（公有） | C136: 贷 | D136: 2710845.3 | E136: 0 | F136: 294383.3 | G136: 3005228.6 | H136: 贷 | I136: 3 | O136: 末级 | T136: =IFERROR(VLOOKUP($A136,上年科目余额表!$A:$G,5,0),"上年无数据") -> 上年无数据 | U136: 0 | V136: 0 | W136: =IFERROR(VLOOKUP($A136,上年科目余额表!$A:$G,6,0),"上年无数据") -> 上年无数据 | X136: 0 | Y136: 0 | Z136: 0
A137: 22410465 | B137: 其他应付款-待付款项-个人住房公积金（公有） | C137: 借 | D137: 9669.6 | E137: 0 | F137: 0 | G137: 9669.6 | H137: 借 | I137: 3 | O137: 末级 | T137: =IFERROR(VLOOKUP($A137,上年科目余额表!$A:$G,5,0),"上年无数据") -> 上年无数据 | U137: 0 | V137: 0 | W137: =IFERROR(VLOOKUP($A137,上年科目余额表!$A:$G,6,0),"上年无数据") -> 上年无数据 | X137: 0 | Y137: 0 | Z137: 0
A138: 22410475 | B138: 其他应付款-待付款项-预提费用（公有） | C138: 贷 | D138: 18000000 | E138: 9438032.67 | F138: 16438032.67 | G138: 25000000 | H138: 贷 | I138: 3 | O138: 末级 | T138: =IFERROR(VLOOKUP($A138,上年科目余额表!$A:$G,5,0),"上年无数据") -> 上年无数据 | U138: 0 | V138: 0 | W138: =IFERROR(VLOOKUP($A138,上年科目余额表!$A:$G,6,0),"上年无数据") -> 上年无数据 | X138: 0 | Y138: 0 | Z138: 0
A139: 22410478 | B139: 其他应付款-待付款项-长兴嘉禾B区 | C139: 贷 | D139: 900000 | E139: 0 | F139: 0 | G139: 900000 | H139: 贷 | I139: 3 | O139: 末级 | T139: =IFERROR(VLOOKUP($A139,上年科目余额表!$A:$G,5,0),"上年无数据") -> 上年无数据 | U139: 0 | V139: 0 | W139: =IFERROR(VLOOKUP($A139,上年科目余额表!$A:$G,6,0),"上年无数据") -> 上年无数据 | X139: 0 | Y139: 0 | Z139: 0
A140: 22410479 | B140: 其他应付款-待付款项-井下意外伤害赔偿款 | C140: 贷 | D140: 622100 | E140: 0 | F140: 0 | G140: 622100 | H140: 贷 | I140: 3 | O140: 末级 | T140: =IFERROR(VLOOKUP($A140,上年科目余额表!$A:$G,5,0),"上年无数据") -> 上年无数据 | U140: 0 | V140: 0 | W140: =IFERROR(VLOOKUP($A140,上年科目余额表!$A:$G,6,0),"上年无数据") -> 上年无数据 | X140: 0 | Y140: 0 | Z140: 0
A141: 22410486 | B141: 其他应付款-待付款项-其他（公有） | C141: 贷 | D141: 1307226.47 | E141: 670358.19 | F141: 0 | G141: 636868.28 | H141: 贷 | I141: 3 | O141: 末级 | T141: =IFERROR(VLOOKUP($A141,上年科目余额表!$A:$G,5,0),"上年无数据") -> 上年无数据 | U141: 0 | V141: 0 | W141: =IFERROR(VLOOKUP($A141,上年科目余额表!$A:$G,6,0),"上年无数据") -> 上年无数据 | X141: 0 | Y141: 0 | Z141: 0
A142: 22410493 | B142: 其他应付款-待付款项-新工人岗前体检押金 | C142: 平 | D142: 0 | E142: 0 | F142: 33600 | G142: 33600 | H142: 贷 | I142: 3 | O142: 末级 | T142: =IFERROR(VLOOKUP($A142,上年科目余额表!$A:$G,5,0),"上年无数据") -> 上年无数据 | U142: 0 | V142: 0 | W142: =IFERROR(VLOOKUP($A142,上年科目余额表!$A:$G,6,0),"上年无数据") -> 上年无数据 | X142: 0 | Y142: 0 | Z142: 0
A143: 2401 | B143: 递延收益 | C143: 平 | D143: 0 | E143: 0 | F143: 1000000 | G143: 1000000 | H143: 贷 | I143: 1 | O143: 一级 | T143: =IFERROR(VLOOKUP($A143,上年科目余额表!$A:$G,5,0),"上年无数据") -> 上年无数据 | U143: 0 | V143: 0 | W143: =IFERROR(VLOOKUP($A143,上年科目余额表!$A:$G,6,0),"上年无数据") -> 上年无数据 | X143: 0 | Y143: 0 | Z143: 0
A144: 2501 | B144: 长期借款 | C144: 贷 | D144: 244000000 | E144: 61000000 | F144: 374000000 | G144: 557000000 | H144: 贷 | I144: 1 | O144: 一级 | T144: =IFERROR(VLOOKUP($A144,上年科目余额表!$A:$G,5,0),"上年无数据") -> 上年无数据 | U144: 0 | V144: 0 | W144: =IFERROR(VLOOKUP($A144,上年科目余额表!$A:$G,6,0),"上年无数据") -> 上年无数据 | X144: 0 | Y144: 0 | Z144: 0
A145: 2701 | B145: 长期应付款 | C145: 平 | D145: 0 | E145: 0 | F145: 75000000 | G145: 75000000 | H145: 贷 | I145: 1 | O145: 一级 | T145: =IFERROR(VLOOKUP($A145,上年科目余额表!$A:$G,5,0),"上年无数据") -> 上年无数据 | U145: 0 | V145: 0 | W145: =IFERROR(VLOOKUP($A145,上年科目余额表!$A:$G,6,0),"上年无数据") -> 上年无数据 | X145: 0 | Y145: 0 | Z145: 0
A146: 270101 | B146: 长期应付款-融资租赁业务贷款 | C146: 平 | D146: 0 | E146: 0 | F146: 75000000 | G146: 75000000 | H146: 贷 | I146: 2 | O146: 末级 | T146: =IFERROR(VLOOKUP($A146,上年科目余额表!$A:$G,5,0),"上年无数据") -> 上年无数据 | U146: 0 | V146: 0 | W146: =IFERROR(VLOOKUP($A146,上年科目余额表!$A:$G,6,0),"上年无数据") -> 上年无数据 | X146: 0 | Y146: 0 | Z146: 0
A147: 4001 | B147: 实收资本 | C147: 贷 | D147: 500000000 | E147: 0 | F147: 0 | G147: 500000000 | H147: 贷 | I147: 1 | O147: 一级 | T147: =IFERROR(VLOOKUP($A147,上年科目余额表!$A:$G,5,0),"上年无数据") -> 上年无数据 | U147: 0 | V147: 0 | W147: =IFERROR(VLOOKUP($A147,上年科目余额表!$A:$G,6,0),"上年无数据") -> 上年无数据 | X147: 0 | Y147: 0 | Z147: 0
A148: 400102 | B148: 实收资本-法人资本 | C148: 贷 | D148: 500000000 | E148: 0 | F148: 0 | G148: 500000000 | H148: 贷 | I148: 2 | O148: 末级 | T148: =IFERROR(VLOOKUP($A148,上年科目余额表!$A:$G,5,0),"上年无数据") -> 上年无数据 | U148: 0 | V148: 0 | W148: =IFERROR(VLOOKUP($A148,上年科目余额表!$A:$G,6,0),"上年无数据") -> 上年无数据 | X148: 0 | Y148: 0 | Z148: 0
A149: 4002 | B149: 资本公积 | C149: 贷 | D149: 54904600 | E149: 0 | F149: 0 | G149: 54904600 | H149: 贷 | I149: 1 | O149: 一级 | T149: =IFERROR(VLOOKUP($A149,上年科目余额表!$A:$G,5,0),"上年无数据") -> 上年无数据 | U149: 0 | V149: 0 | W149: =IFERROR(VLOOKUP($A149,上年科目余额表!$A:$G,6,0),"上年无数据") -> 上年无数据 | X149: 0 | Y149: 0 | Z149: 0
A150: 400203 | B150: 资本公积-其他资本公积 | C150: 贷 | D150: 54904600 | E150: 0 | F150: 0 | G150: 54904600 | H150: 贷 | I150: 2 | O150: 末级 | T150: =IFERROR(VLOOKUP($A150,上年科目余额表!$A:$G,5,0),"上年无数据") -> 上年无数据 | U150: 0 | V150: 0 | W150: =IFERROR(VLOOKUP($A150,上年科目余额表!$A:$G,6,0),"上年无数据") -> 上年无数据 | X150: 0 | Y150: 0 | Z150: 0
A151: 4101 | B151: 盈余公积 | C151: 贷 | D151: 275239620.9 | E151: 0 | F151: 82108698.94 | G151: 357348319.8 | H151: 贷 | I151: 1 | O151: 一级 | T151: =IFERROR(VLOOKUP($A151,上年科目余额表!$A:$G,5,0),"上年无数据") -> 上年无数据 | U151: 0 | V151: 0 | W151: =IFERROR(VLOOKUP($A151,上年科目余额表!$A:$G,6,0),"上年无数据") -> 上年无数据 | X151: 0 | Y151: 0 | Z151: 0
A152: 410101 | B152: 盈余公积-法定盈余公积 | C152: 贷 | D152: 275239620.9 | E152: 0 | F152: 82108698.94 | G152: 357348319.8 | H152: 贷 | I152: 2 | O152: 末级 | T152: =IFERROR(VLOOKUP($A152,上年科目余额表!$A:$G,5,0),"上年无数据") -> 上年无数据 | U152: 0 | V152: 0 | W152: =IFERROR(VLOOKUP($A152,上年科目余额表!$A:$G,6,0),"上年无数据") -> 上年无数据 | X152: 0 | Y152: 0 | Z152: 0
A153: 4103 | B153: 本年利润 | C153: 平 | D153: 0 | E153: 1971588562 | F153: 1971588562 | G153: 0 | H153: 平 | I153: 1 | O153: 一级 | T153: =IFERROR(VLOOKUP($A153,上年科目余额表!$A:$G,5,0),"上年无数据") -> 上年无数据 | U153: 0 | V153: 0 | W153: =IFERROR(VLOOKUP($A153,上年科目余额表!$A:$G,6,0),"上年无数据") -> 上年无数据 | X153: 0 | Y153: 0 | Z153: 0
A154: 4104 | B154: 利润分配 | C154: 贷 | D154: 1286946278 | E154: 173256965.5 | F154: 912235255.9 | G154: 2025924568 | H154: 贷 | I154: 1 | O154: 一级 | T154: =IFERROR(VLOOKUP($A154,上年科目余额表!$A:$G,5,0),"上年无数据") -> 上年无数据 | U154: 0 | V154: 0 | W154: =IFERROR(VLOOKUP($A154,上年科目余额表!$A:$G,6,0),"上年无数据") -> 上年无数据 | X154: 0 | Y154: 0 | Z154: 0
A155: 410401 | B155: 利润分配-提取法定盈余公积金 | C155: 平 | D155: 0 | E155: 82108698.94 | F155: 82108698.94 | G155: 0 | H155: 平 | I155: 2 | O155: 末级 | T155: =IFERROR(VLOOKUP($A155,上年科目余额表!$A:$G,5,0),"上年无数据") -> 上年无数据 | U155: 0 | V155: 0 | W155: =IFERROR(VLOOKUP($A155,上年科目余额表!$A:$G,6,0),"上年无数据") -> 上年无数据 | X155: 0 | Y155: 0 | Z155: 0
A156: 410411 | B156: 利润分配-未分配利润 | C156: 贷 | D156: 1286946278 | E156: 91148266.53 | F156: 830126557 | G156: 2025924568 | H156: 贷 | I156: 2 | O156: 末级 | T156: =IFERROR(VLOOKUP($A156,上年科目余额表!$A:$G,5,0),"上年无数据") -> 上年无数据 | U156: 0 | V156: 0 | W156: =IFERROR(VLOOKUP($A156,上年科目余额表!$A:$G,6,0),"上年无数据") -> 上年无数据 | X156: 0 | Y156: 0 | Z156: 0
A157: 4301 | B157: 专项储备 | C157: 贷 | D157: 348221848.5 | E157: 113717803.6 | F157: 140549897.2 | G157: 375053942.1 | H157: 贷 | I157: 1 | O157: 一级 | T157: =IFERROR(VLOOKUP($A157,上年科目余额表!$A:$G,5,0),"上年无数据") -> 上年无数据 | U157: 0 | V157: 0 | W157: =IFERROR(VLOOKUP($A157,上年科目余额表!$A:$G,6,0),"上年无数据") -> 上年无数据 | X157: 0 | Y157: 0 | Z157: 0
A158: 430101 | B158: 专项储备-维简费 | C158: 贷 | D158: 25539204.69 | E158: 43334872.69 | F158: 17795668 | G158: 0 | H158: 平 | I158: 2 | O158: 末级 | T158: =IFERROR(VLOOKUP($A158,上年科目余额表!$A:$G,5,0),"上年无数据") -> 上年无数据 | U158: 0 | V158: 0 | W158: =IFERROR(VLOOKUP($A158,上年科目余额表!$A:$G,6,0),"上年无数据") -> 上年无数据 | X158: 0 | Y158: 0 | Z158: 0
A159: 430102 | B159: 专项储备-安全费 | C159: 贷 | D159: 131992650.9 | E159: 64582198.62 | F159: 85678103.31 | G159: 153088555.6 | H159: 贷 | I159: 2 | T159: =IFERROR(VLOOKUP($A159,上年科目余额表!$A:$G,5,0),"上年无数据") -> 上年无数据 | U159: 0 | V159: 0 | W159: =IFERROR(VLOOKUP($A159,上年科目余额表!$A:$G,6,0),"上年无数据") -> 上年无数据 | X159: 0 | Y159: 0 | Z159: 0
A160: 43010201 | B160: 专项储备-安全费-安全费用提取数 | C160: 贷 | D160: 131992650.9 | E160: 32291099.31 | F160: 53387004 | G160: 153088555.6 | H160: 贷 | I160: 3 | O160: 末级 | T160: =IFERROR(VLOOKUP($A160,上年科目余额表!$A:$G,5,0),"上年无数据") -> 上年无数据 | U160: 0 | V160: 0 | W160: =IFERROR(VLOOKUP($A160,上年科目余额表!$A:$G,6,0),"上年无数据") -> 上年无数据 | X160: 0 | Y160: 0 | Z160: 0
A161: 43010202 | B161: 专项储备-安全费-安全改造与隐患治理支出 | C161: 平 | D161: 0 | E161: 1376481.33 | F161: 1376481.33 | G161: 0 | H161: 平 | I161: 3 | O161: 末级 | T161: =IFERROR(VLOOKUP($A161,上年科目余额表!$A:$G,5,0),"上年无数据") -> 上年无数据 | U161: 0 | V161: 0 | W161: =IFERROR(VLOOKUP($A161,上年科目余额表!$A:$G,6,0),"上年无数据") -> 上年无数据 | X161: 0 | Y161: 0 | Z161: 0
A162: 43010203 | B162: 专项储备-安全费-安全避险与应急救援支出 | C162: 平 | D162: 0 | E162: 1271791.48 | F162: 1271791.48 | G162: 0 | H162: 平 | I162: 3 | O162: 末级 | T162: =IFERROR(VLOOKUP($A162,上年科目余额表!$A:$G,5,0),"上年无数据") -> 上年无数据 | U162: 0 | V162: 0 | W162: =IFERROR(VLOOKUP($A162,上年科目余额表!$A:$G,6,0),"上年无数据") -> 上年无数据 | X162: 0 | Y162: 0 | Z162: 0
A163: 43010204 | B163: 专项储备-安全费-危险源评估支出 | C163: 平 | D163: 0 | E163: 459318.62 | F163: 459318.62 | G163: 0 | H163: 平 | I163: 3 | O163: 末级 | T163: =IFERROR(VLOOKUP($A163,上年科目余额表!$A:$G,5,0),"上年无数据") -> 上年无数据 | U163: 0 | V163: 0 | W163: =IFERROR(VLOOKUP($A163,上年科目余额表!$A:$G,6,0),"上年无数据") -> 上年无数据 | X163: 0 | Y163: 0 | Z163: 0
A164: 43010205 | B164: 专项储备-安全费-安全生产检查评价支出 | C164: 平 | D164: 0 | E164: 3732240.58 | F164: 3732240.58 | G164: 0 | H164: 平 | I164: 3 | O164: 末级 | T164: =IFERROR(VLOOKUP($A164,上年科目余额表!$A:$G,5,0),"上年无数据") -> 上年无数据 | U164: 0 | V164: 0 | W164: =IFERROR(VLOOKUP($A164,上年科目余额表!$A:$G,6,0),"上年无数据") -> 上年无数据 | X164: 0 | Y164: 0 | Z164: 0
A165: 43010206 | B165: 专项储备-安全费-安全防护支出 | C165: 平 | D165: 0 | E165: 24154 | F165: 24154 | G165: 0 | H165: 平 | I165: 3 | O165: 末级 | T165: =IFERROR(VLOOKUP($A165,上年科目余额表!$A:$G,5,0),"上年无数据") -> 上年无数据 | U165: 0 | V165: 0 | W165: =IFERROR(VLOOKUP($A165,上年科目余额表!$A:$G,6,0),"上年无数据") -> 上年无数据 | X165: 0 | Y165: 0 | Z165: 0
A166: 43010207 | B166: 专项储备-安全费-安全宣传培训支出 | C166: 平 | D166: 0 | E166: 1998572.82 | F166: 1998572.82 | G166: 0 | H166: 平 | I166: 3 | O166: 末级 | T166: =IFERROR(VLOOKUP($A166,上年科目余额表!$A:$G,5,0),"上年无数据") -> 上年无数据 | U166: 0 | V166: 0 | W166: =IFERROR(VLOOKUP($A166,上年科目余额表!$A:$G,6,0),"上年无数据") -> 上年无数据 | X166: 0 | Y166: 0 | Z166: 0
A167: 43010208 | B167: 专项储备-安全费-安全设施检测支出 | C167: 平 | D167: 0 | E167: 836760.03 | F167: 836760.03 | G167: 0 | H167: 平 | I167: 3 | O167: 末级 | T167: =IFERROR(VLOOKUP($A167,上年科目余额表!$A:$G,5,0),"上年无数据") -> 上年无数据 | U167: 0 | V167: 0 | W167: =IFERROR(VLOOKUP($A167,上年科目余额表!$A:$G,6,0),"上年无数据") -> 上年无数据 | X167: 0 | Y167: 0 | Z167: 0
A168: 43010209 | B168: 专项储备-安全费-安全新技术应用支出 | C168: 平 | D168: 0 | E168: 751732.67 | F168: 751732.67 | G168: 0 | H168: 平 | I168: 3 | O168: 末级 | T168: =IFERROR(VLOOKUP($A168,上年科目余额表!$A:$G,5,0),"上年无数据") -> 上年无数据 | U168: 0 | V168: 0 | W168: =IFERROR(VLOOKUP($A168,上年科目余额表!$A:$G,6,0),"上年无数据") -> 上年无数据 | X168: 0 | Y168: 0 | Z168: 0
A169: 43010210 | B169: 专项储备-安全费-其他安全支出 | C169: 平 | D169: 0 | E169: 21840047.78 | F169: 21840047.78 | G169: 0 | H169: 平 | I169: 3 | O169: 末级 | T169: =IFERROR(VLOOKUP($A169,上年科目余额表!$A:$G,5,0),"上年无数据") -> 上年无数据 | U169: 0 | V169: 0 | W169: =IFERROR(VLOOKUP($A169,上年科目余额表!$A:$G,6,0),"上年无数据") -> 上年无数据 | X169: 0 | Y169: 0 | Z169: 0
A170: 430103 | B170: 专项储备-矿山环境治理恢复基金 | C170: 贷 | D170: 113842182.8 | E170: 5800732.29 | F170: 28178291.87 | G170: 136219742.3 | H170: 贷 | I170: 2 | O170: 末级 | T170: =IFERROR(VLOOKUP($A170,上年科目余额表!$A:$G,5,0),"上年无数据") -> 上年无数据 | U170: 0 | V170: 0 | W170: =IFERROR(VLOOKUP($A170,上年科目余额表!$A:$G,6,0),"上年无数据") -> 上年无数据 | X170: 0 | Y170: 0 | Z170: 0
A171: 430104 | B171: 专项储备-转产发展基金 | C171: 贷 | D171: 76847810.15 | E171: 0 | F171: 8897834 | G171: 85745644.15 | H171: 贷 | I171: 2 | O171: 末级 | T171: =IFERROR(VLOOKUP($A171,上年科目余额表!$A:$G,5,0),"上年无数据") -> 上年无数据 | U171: 0 | V171: 0 | W171: =IFERROR(VLOOKUP($A171,上年科目余额表!$A:$G,6,0),"上年无数据") -> 上年无数据 | X171: 0 | Y171: 0 | Z171: 0
A172: 5001 | B172: 生产成本 | C172: 平 | D172: 0 | E172: 441945693 | F172: 441945693 | G172: 0 | H172: 平 | I172: 1 | O172: 一级 | T172: =IFERROR(VLOOKUP($A172,上年科目余额表!$A:$G,5,0),"上年无数据") -> 上年无数据 | U172: 0 | V172: 0 | W172: =IFERROR(VLOOKUP($A172,上年科目余额表!$A:$G,6,0),"上年无数据") -> 上年无数据 | X172: 0 | Y172: 0 | Z172: 0
A173: 500101 | B173: 生产成本-直接材料 | C173: 平 | D173: 0 | E173: 32879675.41 | F173: 32879675.41 | G173: 0 | H173: 平 | I173: 2 | T173: =IFERROR(VLOOKUP($A173,上年科目余额表!$A:$G,5,0),"上年无数据") -> 上年无数据 | U173: 0 | V173: 0 | W173: =IFERROR(VLOOKUP($A173,上年科目余额表!$A:$G,6,0),"上年无数据") -> 上年无数据 | X173: 0 | Y173: 0 | Z173: 0
A174: 50010101 | B174: 生产成本-直接材料-生产用直接材料 | C174: 平 | D174: 0 | E174: 32879675.41 | F174: 32879675.41 | G174: 0 | H174: 平 | I174: 3 | T174: =IFERROR(VLOOKUP($A174,上年科目余额表!$A:$G,5,0),"上年无数据") -> 上年无数据 | U174: 0 | V174: 0 | W174: =IFERROR(VLOOKUP($A174,上年科目余额表!$A:$G,6,0),"上年无数据") -> 上年无数据 | X174: 0 | Y174: 0 | Z174: 0
A175: 5001010105 | B175: 生产成本-直接材料-生产用直接材料-钢材 | C175: 平 | D175: 0 | E175: 2665691.26 | F175: 2665691.26 | G175: 0 | H175: 平 | I175: 4 | O175: 末级 | T175: =IFERROR(VLOOKUP($A175,上年科目余额表!$A:$G,5,0),"上年无数据") -> 上年无数据 | U175: 0 | V175: 0 | W175: =IFERROR(VLOOKUP($A175,上年科目余额表!$A:$G,6,0),"上年无数据") -> 上年无数据 | X175: 0 | Y175: 0 | Z175: 0
A176: 5001010106 | B176: 生产成本-直接材料-生产用直接材料-木材 | C176: 平 | D176: 0 | E176: 1440888.17 | F176: 1440888.17 | G176: 0 | H176: 平 | I176: 4 | O176: 末级 | T176: =IFERROR(VLOOKUP($A176,上年科目余额表!$A:$G,5,0),"上年无数据") -> 上年无数据 | U176: 0 | V176: 0 | W176: =IFERROR(VLOOKUP($A176,上年科目余额表!$A:$G,6,0),"上年无数据") -> 上年无数据 | X176: 0 | Y176: 0 | Z176: 0
A177: 5001010133 | B177: 生产成本-直接材料-生产用直接材料-炸药 | C177: 平 | D177: 0 | E177: 33627.65 | F177: 33627.65 | G177: 0 | H177: 平 | I177: 4 | O177: 末级 | T177: =IFERROR(VLOOKUP($A177,上年科目余额表!$A:$G,5,0),"上年无数据") -> 上年无数据 | U177: 0 | V177: 0 | W177: =IFERROR(VLOOKUP($A177,上年科目余额表!$A:$G,6,0),"上年无数据") -> 上年无数据 | X177: 0 | Y177: 0 | Z177: 0
A178: 5001010134 | B178: 生产成本-直接材料-生产用直接材料-雷管 | C178: 平 | D178: 0 | E178: 15804 | F178: 15804 | G178: 0 | H178: 平 | I178: 4 | O178: 末级 | T178: =IFERROR(VLOOKUP($A178,上年科目余额表!$A:$G,5,0),"上年无数据") -> 上年无数据 | U178: 0 | V178: 0 | W178: =IFERROR(VLOOKUP($A178,上年科目余额表!$A:$G,6,0),"上年无数据") -> 上年无数据 | X178: 0 | Y178: 0 | Z178: 0
A179: 5001010192 | B179: 生产成本-直接材料-生产用直接材料-其他 | C179: 平 | D179: 0 | E179: 3915945.7 | F179: 3915945.7 | G179: 0 | H179: 平 | I179: 4 | O179: 末级 | T179: =IFERROR(VLOOKUP($A179,上年科目余额表!$A:$G,5,0),"上年无数据") -> 上年无数据 | U179: 0 | V179: 0 | W179: =IFERROR(VLOOKUP($A179,上年科目余额表!$A:$G,6,0),"上年无数据") -> 上年无数据 | X179: 0 | Y179: 0 | Z179: 0
A180: 5001010197 | B180: 生产成本-直接材料-生产用直接材料-辅助材料 | C180: 平 | D180: 0 | E180: 24807718.63 | F180: 24807718.63 | G180: 0 | H180: 平 | I180: 4 | O180: 末级 | T180: =IFERROR(VLOOKUP($A180,上年科目余额表!$A:$G,5,0),"上年无数据") -> 上年无数据 | U180: 0 | V180: 0 | W180: =IFERROR(VLOOKUP($A180,上年科目余额表!$A:$G,6,0),"上年无数据") -> 上年无数据 | X180: 0 | Y180: 0 | Z180: 0
A181: 500102 | B181: 生产成本-直接人工 | C181: 平 | D181: 0 | E181: 138103720.9 | F181: 138103720.9 | G181: 0 | H181: 平 | I181: 2 | T181: =IFERROR(VLOOKUP($A181,上年科目余额表!$A:$G,5,0),"上年无数据") -> 上年无数据 | U181: 0 | V181: 0 | W181: =IFERROR(VLOOKUP($A181,上年科目余额表!$A:$G,6,0),"上年无数据") -> 上年无数据 | X181: 0 | Y181: 0 | Z181: 0
A182: 50010202 | B182: 生产成本-直接人工-职工薪酬 | C182: 平 | D182: 0 | E182: 138103720.9 | F182: 138103720.9 | G182: 0 | H182: 平 | I182: 3 | T182: =IFERROR(VLOOKUP($A182,上年科目余额表!$A:$G,5,0),"上年无数据") -> 上年无数据 | U182: 0 | V182: 0 | W182: =IFERROR(VLOOKUP($A182,上年科目余额表!$A:$G,6,0),"上年无数据") -> 上年无数据 | X182: 0 | Y182: 0 | Z182: 0
A183: 5001020201 | B183: 生产成本-直接人工-职工薪酬-工资 | C183: 平 | D183: 0 | E183: 132764366 | F183: 132764366 | G183: 0 | H183: 平 | I183: 4 | O183: 末级 | T183: =IFERROR(VLOOKUP($A183,上年科目余额表!$A:$G,5,0),"上年无数据") -> 上年无数据 | U183: 0 | V183: 0 | W183: =IFERROR(VLOOKUP($A183,上年科目余额表!$A:$G,6,0),"上年无数据") -> 上年无数据 | X183: 0 | Y183: 0 | Z183: 0
A184: 5001020211 | B184: 生产成本-直接人工-职工薪酬-职工福利费 | C184: 平 | D184: 0 | E184: 5339355 | F184: 5339355 | G184: 0 | H184: 平 | I184: 4 | T184: =IFERROR(VLOOKUP($A184,上年科目余额表!$A:$G,5,0),"上年无数据") -> 上年无数据 | U184: 0 | V184: 0 | W184: =IFERROR(VLOOKUP($A184,上年科目余额表!$A:$G,6,0),"上年无数据") -> 上年无数据 | X184: 0 | Y184: 0 | Z184: 0
A185: 500102021105 | B185: 生产成本-直接人工-职工薪酬-职工福利费-非货币性福利 | C185: 平 | D185: 0 | E185: 5339355 | F185: 5339355 | G185: 0 | H185: 平 | I185: 5 | O185: 末级 | T185: =IFERROR(VLOOKUP($A185,上年科目余额表!$A:$G,5,0),"上年无数据") -> 上年无数据 | U185: 0 | V185: 0 | W185: =IFERROR(VLOOKUP($A185,上年科目余额表!$A:$G,6,0),"上年无数据") -> 上年无数据 | X185: 0 | Y185: 0 | Z185: 0
A186: 500103 | B186: 生产成本-直接费用 | C186: 平 | D186: 0 | E186: 47148846.43 | F186: 47148846.43 | G186: 0 | H186: 平 | I186: 2 | T186: =IFERROR(VLOOKUP($A186,上年科目余额表!$A:$G,5,0),"上年无数据") -> 上年无数据 | U186: 0 | V186: 0 | W186: =IFERROR(VLOOKUP($A186,上年科目余额表!$A:$G,6,0),"上年无数据") -> 上年无数据 | X186: 0 | Y186: 0 | Z186: 0
A187: 50010302 | B187: 生产成本-直接费用-职工薪酬 | C187: 平 | D187: 0 | E187: 13943200 | F187: 13943200 | G187: 0 | H187: 平 | I187: 3 | T187: =IFERROR(VLOOKUP($A187,上年科目余额表!$A:$G,5,0),"上年无数据") -> 上年无数据 | U187: 0 | V187: 0 | W187: =IFERROR(VLOOKUP($A187,上年科目余额表!$A:$G,6,0),"上年无数据") -> 上年无数据 | X187: 0 | Y187: 0 | Z187: 0
A188: 5001030204 | B188: 生产成本-直接费用-职工薪酬-基本养老金 | C188: 平 | D188: 0 | E188: 13943200 | F188: 13943200 | G188: 0 | H188: 平 | I188: 4 | O188: 末级 | T188: =IFERROR(VLOOKUP($A188,上年科目余额表!$A:$G,5,0),"上年无数据") -> 上年无数据 | U188: 0 | V188: 0 | W188: =IFERROR(VLOOKUP($A188,上年科目余额表!$A:$G,6,0),"上年无数据") -> 上年无数据 | X188: 0 | Y188: 0 | Z188: 0
A189: 50010310 | B189: 生产成本-直接费用-水电费 | C189: 平 | D189: 0 | E189: 28471087.8 | F189: 28471087.8 | G189: 0 | H189: 平 | I189: 3 | T189: =IFERROR(VLOOKUP($A189,上年科目余额表!$A:$G,5,0),"上年无数据") -> 上年无数据 | U189: 0 | V189: 0 | W189: =IFERROR(VLOOKUP($A189,上年科目余额表!$A:$G,6,0),"上年无数据") -> 上年无数据 | X189: 0 | Y189: 0 | Z189: 0
A190: 5001031002 | B190: 生产成本-直接费用-水电费-电费 | C190: 平 | D190: 0 | E190: 28471087.8 | F190: 28471087.8 | G190: 0 | H190: 平 | I190: 4 | O190: 末级 | T190: =IFERROR(VLOOKUP($A190,上年科目余额表!$A:$G,5,0),"上年无数据") -> 上年无数据 | U190: 0 | V190: 0 | W190: =IFERROR(VLOOKUP($A190,上年科目余额表!$A:$G,6,0),"上年无数据") -> 上年无数据 | X190: 0 | Y190: 0 | Z190: 0
A191: 50010398 | B191: 生产成本-直接费用-其他 | C191: 平 | D191: 0 | E191: 4734558.63 | F191: 4734558.63 | G191: 0 | H191: 平 | I191: 3 | O191: 末级 | T191: =IFERROR(VLOOKUP($A191,上年科目余额表!$A:$G,5,0),"上年无数据") -> 上年无数据 | U191: 0 | V191: 0 | W191: =IFERROR(VLOOKUP($A191,上年科目余额表!$A:$G,6,0),"上年无数据") -> 上年无数据 | X191: 0 | Y191: 0 | Z191: 0
A192: 500104 | B192: 生产成本-制造费用 | C192: 平 | D192: 0 | E192: 223813450.2 | F192: 223813450.2 | G192: 0 | H192: 平 | I192: 2 | O192: 末级 | T192: =IFERROR(VLOOKUP($A192,上年科目余额表!$A:$G,5,0),"上年无数据") -> 上年无数据 | U192: 0 | V192: 0 | W192: =IFERROR(VLOOKUP($A192,上年科目余额表!$A:$G,6,0),"上年无数据") -> 上年无数据 | X192: 0 | Y192: 0 | Z192: 0
A193: 5101 | B193: 制造费用 | C193: 平 | D193: 0 | E193: 223813450.2 | F193: 223813450.2 | G193: 0 | H193: 平 | I193: 1 | O193: 一级 | T193: =IFERROR(VLOOKUP($A193,上年科目余额表!$A:$G,5,0),"上年无数据") -> 上年无数据 | U193: 0 | V193: 0 | W193: =IFERROR(VLOOKUP($A193,上年科目余额表!$A:$G,6,0),"上年无数据") -> 上年无数据 | X193: 0 | Y193: 0 | Z193: 0
A194: 510101 | B194: 制造费用-生产用直接材料 | C194: 平 | D194: 0 | E194: 8512883.01 | F194: 8512883.01 | G194: 0 | H194: 平 | I194: 2 | T194: =IFERROR(VLOOKUP($A194,上年科目余额表!$A:$G,5,0),"上年无数据") -> 上年无数据 | U194: 0 | V194: 0 | W194: =IFERROR(VLOOKUP($A194,上年科目余额表!$A:$G,6,0),"上年无数据") -> 上年无数据 | X194: 0 | Y194: 0 | Z194: 0
A195: 51010106 | B195: 制造费用-生产用直接材料-木材 | C195: 平 | D195: 0 | E195: 261176 | F195: 261176 | G195: 0 | H195: 平 | I195: 3 | N195: =IF(J195="","",IF((SUMIFS(E:E,$J:$J,$J195,$I:$I,1)-SUMIFS(E:E,$J:$J,$J195,$O:$O,"末级"))=0,"取数正确","取数错误")) ->  | O195: =IF(I195=1,"一级",IF(I195>=I196,"末级","")) -> 末级 | T195: =IFERROR(VLOOKUP($A195,上年科目余额表!$A:$G,5,0),"上年无数据") -> 上年无数据 | U195: =IFERROR(E195-T195,0) -> 0 | V195: =IFERROR(U195/E195,0) -> 0 | W195: =IFERROR(VLOOKUP($A195,上年科目余额表!$A:$G,6,0),"上年无数据") -> 上年无数据 | X195: =IFERROR(F195-W195,0) -> 0 | Y195: =IFERROR(X195/F195,0) -> 0 | Z195: =IFERROR(E195/SUMIFS(E:E,J:J,J:J,O:O,"一级"),0) -> 0 | AA195: =IF(OR(AB195<>"",AC195<>""),"重要科目","") ->  | AB195: =IF(J195="","",IF(ABS(Z195)>$AB$1,"重要科目","")) ->  | AC195: =IFERROR(IF(IF(OR(J195="",O195="一级"),"",SUMPRODUCT(($J$2:$J$342=J195)*($Z$2:$Z$342>Z195))+1)<COUNTIFS(J:J,J195)*$AC$1,"重要科目",""),"") -> 
A196: 51010111 | B196: 制造费用-生产用直接材料-五金交电 | C196: 平 | D196: 0 | E196: 24755 | F196: 24755 | G196: 0 | H196: 平 | I196: 3 | O196: 末级 | T196: =IFERROR(VLOOKUP($A196,上年科目余额表!$A:$G,5,0),"上年无数据") -> 上年无数据 | U196: 0 | V196: 0 | W196: =IFERROR(VLOOKUP($A196,上年科目余额表!$A:$G,6,0),"上年无数据") -> 上年无数据 | X196: 0 | Y196: 0 | Z196: 0
A197: 51010122 | B197: 制造费用-生产用直接材料-石灰粉 | C197: 平 | D197: 0 | E197: 802774.85 | F197: 802774.85 | G197: 0 | H197: 平 | I197: 3 | O197: 末级 | T197: =IFERROR(VLOOKUP($A197,上年科目余额表!$A:$G,5,0),"上年无数据") -> 上年无数据 | U197: 0 | V197: 0 | W197: =IFERROR(VLOOKUP($A197,上年科目余额表!$A:$G,6,0),"上年无数据") -> 上年无数据 | X197: 0 | Y197: 0 | Z197: 0
A198: 51010124 | B198: 制造费用-生产用直接材料-石灰 | C198: 平 | D198: 0 | E198: 64530 | F198: 64530 | G198: 0 | H198: 平 | I198: 3 | O198: 末级 | T198: =IFERROR(VLOOKUP($A198,上年科目余额表!$A:$G,5,0),"上年无数据") -> 上年无数据 | U198: 0 | V198: 0 | W198: =IFERROR(VLOOKUP($A198,上年科目余额表!$A:$G,6,0),"上年无数据") -> 上年无数据 | X198: 0 | Y198: 0 | Z198: 0
A199: 51010146 | B199: 制造费用-生产用直接材料-配件 | C199: 平 | D199: 0 | E199: 126163.74 | F199: 126163.74 | G199: 0 | H199: 平 | I199: 3 | O199: 末级 | T199: =IFERROR(VLOOKUP($A199,上年科目余额表!$A:$G,5,0),"上年无数据") -> 上年无数据 | U199: 0 | V199: 0 | W199: =IFERROR(VLOOKUP($A199,上年科目余额表!$A:$G,6,0),"上年无数据") -> 上年无数据 | X199: 0 | Y199: 0 | Z199: 0
A200: 51010169 | B200: 制造费用-生产用直接材料-蒸汽 | C200: 平 | D200: 0 | E200: 6525005.5 | F200: 6525005.5 | G200: 0 | H200: 平 | I200: 3 | O200: 末级 | T200: =IFERROR(VLOOKUP($A200,上年科目余额表!$A:$G,5,0),"上年无数据") -> 上年无数据 | U200: 0 | V200: 0 | W200: =IFERROR(VLOOKUP($A200,上年科目余额表!$A:$G,6,0),"上年无数据") -> 上年无数据 | X200: 0 | Y200: 0 | Z200: 0
... 214 more rows

Sheet 序时账
A1: 标签 | B1: 单位 | C1: 年 | D1: 月 | E1: 日 | F1: 凭证号 | G1: 摘要 | H1: 科目名称 | I1: 对方科目 | J1: 借方 | K1: 贷方 | L1: 方向 | M1: 首代码 | N1: 科目代码 | O1: 审核记录 | P1: 凭证类别 | Q1: 纳税年度 | R1: 标准一级字段 | S1: 标准二级字段 | T1: 标准三级字段 | U1: 辅助科目 | V1: 调整凭证标签 | W1: 调整原因 | X1: 调整项目 | Y1: 应付职工薪酬借方调整 | Z1: 应付职工薪酬贷方调整 | AA1: 成本费用调整金额 | AB1: 原金额 | AC1: 反金额
A2: 0001 | C2: 2022 | D2: 1 | E2: 25 | F2: 00001 | G2: 支民爆科狗饲料费-其他 | H2: 制造费用-其他 | J2: 1680 | L2: 借 | M2: 5 | N2: 5101 | R2: =_xlfn.XLOOKUP($H2,科目余额表!$B:$B,科目余额表!J:J) -> 0 | S2: =_xlfn.XLOOKUP($H2,科目余额表!$B:$B,科目余额表!K:K,"") -> 0 | T2: =_xlfn.XLOOKUP($H2,科目余额表!$B:$B,科目余额表!L:L,"") -> 0 | V2: =A2 -> 0001 | Y2: =IFERROR(_xlfn.IFS(LEFT(W2,1)="3",AB2,LEFT(W2,1)="1",AC2),0) -> 0 | Z2: =IFERROR(_xlfn.IFS(LEFT(W2,1)="3",AB2,LEFT(W2,1)="1",AC2),0) -> 0 | AA2: =IFERROR(_xlfn.IFS(LEFT(W2,1)="4",AB2,LEFT(W2,1)="2",AC2),0) -> 0 | AB2: =J2+K2 -> 1680 | AC2: =-AB2 -> -1680
A3: 0001 | C3: 2022 | D3: 1 | E3: 25 | F3: 00001 | G3: 1.5日转谷隆原粮油店款-购买商品、接受劳务支付的现金 | H3: 银行存款-基本存款户-工行24921870-购买商品、接受劳务支付的现金 | K3: 1680 | L3: 贷 | M3: 1 | N3: 10020101 | R3: =_xlfn.XLOOKUP($H3,科目余额表!$B:$B,科目余额表!J:J) ->  | S3: =_xlfn.XLOOKUP($H3,科目余额表!$B:$B,科目余额表!K:K,"") ->  | T3: =_xlfn.XLOOKUP($H3,科目余额表!$B:$B,科目余额表!L:L,"") ->  | V3: =A3 -> 0001 | Y3: =IFERROR(_xlfn.IFS(LEFT(W3,1)="3",AB3,LEFT(W3,1)="1",AC3),0) -> 0 | Z3: =IFERROR(_xlfn.IFS(LEFT(W3,1)="3",AB3,LEFT(W3,1)="1",AC3),0) -> 0 | AA3: =IFERROR(_xlfn.IFS(LEFT(W3,1)="4",AB3,LEFT(W3,1)="2",AC3),0) -> 0 | AB3: =J3+K3 -> 1680 | AC3: =-AB3 -> -1680
A4: 0002 | C4: 2022 | D4: 1 | E4: 25 | F4: 00002 | G4: 支办公室《山西法制报》费 | H4: 其他应付款-待付款项-预提费用（公有） | J4: 792 | L4: 借 | M4: 2 | N4: 22410475 | R4: =_xlfn.XLOOKUP($H4,科目余额表!$B:$B,科目余额表!J:J) -> 0 | S4: =_xlfn.XLOOKUP($H4,科目余额表!$B:$B,科目余额表!K:K,"") -> 0 | T4: =_xlfn.XLOOKUP($H4,科目余额表!$B:$B,科目余额表!L:L,"") -> 0 | V4: 0002 | Y4: 0 | Z4: 0 | AA4: 0 | AB4: 792 | AC4: -792
A5: 0002 | C5: 2022 | D5: 1 | E5: 25 | F5: 00002 | G5: 1.5日转中国邮政集团公司长治市分公司款-购买商品、接受劳务支付的现金 | H5: 银行存款-基本存款户-工行24921870-购买商品、接受劳务支付的现金 | K5: 792 | L5: 贷 | M5: 1 | N5: 10020101 | R5: =_xlfn.XLOOKUP($H5,科目余额表!$B:$B,科目余额表!J:J) ->  | S5: =_xlfn.XLOOKUP($H5,科目余额表!$B:$B,科目余额表!K:K,"") ->  | T5: =_xlfn.XLOOKUP($H5,科目余额表!$B:$B,科目余额表!L:L,"") ->  | V5: 0002 | Y5: 0 | Z5: 0 | AA5: 0 | AB5: 792 | AC5: -792
A6: 0003 | C6: 2022 | D6: 1 | E6: 25 | F6: 00003 | G6: 支工资-张敏 | H6: 其他应付款-个人其他应付款-内退工资户-张敏 | J6: 16447.39 | L6: 借 | M6: 2 | N6: 22410202 | R6: =_xlfn.XLOOKUP($H6,科目余额表!$B:$B,科目余额表!J:J) ->  | S6: =_xlfn.XLOOKUP($H6,科目余额表!$B:$B,科目余额表!K:K,"") ->  | T6: =_xlfn.XLOOKUP($H6,科目余额表!$B:$B,科目余额表!L:L,"") ->  | V6: 0003 | Y6: 0 | Z6: 0 | AA6: 0 | AB6: 16447.39 | AC6: -16447.39
A7: 0003 | C7: 2022 | D7: 1 | E7: 25 | F7: 00003 | G7: 1.5日支工资-支付给职工以及为职工支付的现金 | H7: 银行存款-基本存款户-工行24921870-支付给职工以及为职工支付的现金 | K7: 16447.39 | L7: 贷 | M7: 1 | N7: 10020101 | R7: =_xlfn.XLOOKUP($H7,科目余额表!$B:$B,科目余额表!J:J) ->  | S7: =_xlfn.XLOOKUP($H7,科目余额表!$B:$B,科目余额表!K:K,"") ->  | T7: =_xlfn.XLOOKUP($H7,科目余额表!$B:$B,科目余额表!L:L,"") ->  | V7: 0003 | Y7: 0 | Z7: 0 | AA7: 0 | AB7: 16447.39 | AC7: -16447.39
A8: 0004 | C8: 2022 | D8: 1 | E8: 25 | F8: 00004 | G8: 付水泥款-潞城市安科讯物贸有限公司 | H8: 预付账款-集团外部-潞城市安科讯物贸有限公司 | J8: 100000 | L8: 借 | M8: 1 | N8: 112302 | R8: =_xlfn.XLOOKUP($H8,科目余额表!$B:$B,科目余额表!J:J) ->  | S8: =_xlfn.XLOOKUP($H8,科目余额表!$B:$B,科目余额表!K:K,"") ->  | T8: =_xlfn.XLOOKUP($H8,科目余额表!$B:$B,科目余额表!L:L,"") ->  | V8: 0004 | Y8: 0 | Z8: 0 | AA8: 0 | AB8: 100000 | AC8: -100000
A9: 0004 | C9: 2022 | D9: 1 | E9: 25 | F9: 00004 | G9: 1.6日转安科讯物贸公司款-购买商品、接受劳务支付的现金 | H9: 银行存款-基本存款户-工行24921870-购买商品、接受劳务支付的现金 | K9: 100000 | L9: 贷 | M9: 1 | N9: 10020101 | R9: =_xlfn.XLOOKUP($H9,科目余额表!$B:$B,科目余额表!J:J) ->  | S9: =_xlfn.XLOOKUP($H9,科目余额表!$B:$B,科目余额表!K:K,"") ->  | T9: =_xlfn.XLOOKUP($H9,科目余额表!$B:$B,科目余额表!L:L,"") ->  | V9: 0004 | Y9: 0 | Z9: 0 | AA9: 0 | AB9: 100000 | AC9: -100000
A10: 0005 | C10: 2022 | D10: 1 | E10: 25 | F10: 00005 | G10: 收医疗保险-收到其他与经营活动有关的现金 | H10: 库存现金-收到其他与经营活动有关的现金 | J10: 1828.08 | L10: 借 | M10: 1 | N10: 1001 | R10: =_xlfn.XLOOKUP($H10,科目余额表!$B:$B,科目余额表!J:J) ->  | S10: =_xlfn.XLOOKUP($H10,科目余额表!$B:$B,科目余额表!K:K,"") ->  | T10: =_xlfn.XLOOKUP($H10,科目余额表!$B:$B,科目余额表!L:L,"") ->  | V10: 0005 | Y10: 0 | Z10: 0 | AA10: 0 | AB10: 1828.08 | AC10: -1828.08
A11: 0005 | C11: 2022 | D11: 1 | E11: 25 | F11: 00005 | G11: 收医疗保险 | H11: 应付职工薪酬-社会保险费-医疗保险金-基本医疗保险 | K11: 1355.88 | L11: 贷 | M11: 2 | N11: 2211030301 | R11: =_xlfn.XLOOKUP($H11,科目余额表!$B:$B,科目余额表!J:J) -> 0 | S11: =_xlfn.XLOOKUP($H11,科目余额表!$B:$B,科目余额表!K:K,"") -> 0 | T11: =_xlfn.XLOOKUP($H11,科目余额表!$B:$B,科目余额表!L:L,"") -> 0 | V11: 0005 | Y11: 0 | Z11: 0 | AA11: 0 | AB11: 1355.88 | AC11: -1355.88
A12: 0005 | C12: 2022 | D12: 1 | E12: 25 | F12: 00005 | G12: 收医疗保险 | H12: 其他应付款-待付款项-个人医疗保险（公有） | K12: 472.2 | L12: 贷 | M12: 2 | N12: 22410462 | R12: =_xlfn.XLOOKUP($H12,科目余额表!$B:$B,科目余额表!J:J) -> 0 | S12: =_xlfn.XLOOKUP($H12,科目余额表!$B:$B,科目余额表!K:K,"") -> 0 | T12: =_xlfn.XLOOKUP($H12,科目余额表!$B:$B,科目余额表!L:L,"") -> 0 | V12: 0005 | Y12: 0 | Z12: 0 | AA12: 0 | AB12: 472.2 | AC12: -472.2
A13: 0006 | C13: 2022 | D13: 1 | E13: 25 | F13: 00006 | G13: 1.12日收集团公司往来款-山西襄矿集团有限公司（本部）-收到其他与经营活动有关的现金 | H13: 银行存款-基本存款户-工行24921870-山西襄矿集团有限公司（本部）-收到其他与经营活动有关的现金 | J13: 11600000 | L13: 借 | M13: 1 | N13: 10020101 | R13: =_xlfn.XLOOKUP($H13,科目余额表!$B:$B,科目余额表!J:J) ->  | S13: =_xlfn.XLOOKUP($H13,科目余额表!$B:$B,科目余额表!K:K,"") ->  | T13: =_xlfn.XLOOKUP($H13,科目余额表!$B:$B,科目余额表!L:L,"") ->  | V13: 0006 | Y13: 0 | Z13: 0 | AA13: 0 | AB13: 11600000 | AC13: -11600000
A14: 0006 | C14: 2022 | D14: 1 | E14: 25 | F14: 00006 | G14: 1.12日收集团公司往来款-山西襄矿集团有限公司（本部） | H14: 其他应收款-单位其他应收款-山西襄矿集团有限公司（本部） | K14: 11600000 | L14: 贷 | M14: 1 | N14: 122101 | R14: =_xlfn.XLOOKUP($H14,科目余额表!$B:$B,科目余额表!J:J) ->  | S14: =_xlfn.XLOOKUP($H14,科目余额表!$B:$B,科目余额表!K:K,"") ->  | T14: =_xlfn.XLOOKUP($H14,科目余额表!$B:$B,科目余额表!L:L,"") ->  | V14: 0006 | Y14: 0 | Z14: 0 | AA14: 0 | AB14: 11600000 | AC14: -11600000
A15: 0007 | C15: 2022 | D15: 1 | E15: 25 | F15: 00007 | G15: 支物业服务费-襄垣县新天地物业管理有限公司 | H15: 其他应付款-单位其他应付款-襄垣县新天地物业管理有限公司 | J15: 200000 | L15: 借 | M15: 2 | N15: 224101 | R15: =_xlfn.XLOOKUP($H15,科目余额表!$B:$B,科目余额表!J:J) ->  | S15: =_xlfn.XLOOKUP($H15,科目余额表!$B:$B,科目余额表!K:K,"") ->  | T15: =_xlfn.XLOOKUP($H15,科目余额表!$B:$B,科目余额表!L:L,"") ->  | V15: 0007 | Y15: 0 | Z15: 0 | AA15: 0 | AB15: 200000 | AC15: -200000
A16: 0007 | C16: 2022 | D16: 1 | E16: 25 | F16: 00007 | G16: 1.6日转新天地物业公司款-支付其他与经营活动有关的现金 | H16: 银行存款-基本存款户-工行24921870-支付其他与经营活动有关的现金 | K16: 200000 | L16: 贷 | M16: 1 | N16: 10020101 | R16: =_xlfn.XLOOKUP($H16,科目余额表!$B:$B,科目余额表!J:J) ->  | S16: =_xlfn.XLOOKUP($H16,科目余额表!$B:$B,科目余额表!K:K,"") ->  | T16: =_xlfn.XLOOKUP($H16,科目余额表!$B:$B,科目余额表!L:L,"") ->  | V16: 0007 | Y16: 0 | Z16: 0 | AA16: 0 | AB16: 200000 | AC16: -200000
A17: 0008 | C17: 2022 | D17: 1 | E17: 25 | F17: 00008 | G17: 预付变频全自动工业洗脱机等-上海沃勋洗涤设备有限公司 | H17: 预付账款-集团外部-上海沃勋洗涤设备有限公司 | J17: 84000 | L17: 借 | M17: 1 | N17: 112302 | R17: =_xlfn.XLOOKUP($H17,科目余额表!$B:$B,科目余额表!J:J) ->  | S17: =_xlfn.XLOOKUP($H17,科目余额表!$B:$B,科目余额表!K:K,"") ->  | T17: =_xlfn.XLOOKUP($H17,科目余额表!$B:$B,科目余额表!L:L,"") ->  | V17: 0008 | Y17: 0 | Z17: 0 | AA17: 0 | AB17: 84000 | AC17: -84000
A18: 0008 | C18: 2022 | D18: 1 | E18: 25 | F18: 00008 | G18: 1.6日转上海沃勋洗涤设备公司款-支付其他与经营活动有关的现金 | H18: 银行存款-基本存款户-工行24921870-支付其他与经营活动有关的现金 | K18: 84000 | L18: 贷 | M18: 1 | N18: 10020101 | R18: =_xlfn.XLOOKUP($H18,科目余额表!$B:$B,科目余额表!J:J) ->  | S18: =_xlfn.XLOOKUP($H18,科目余额表!$B:$B,科目余额表!K:K,"") ->  | T18: =_xlfn.XLOOKUP($H18,科目余额表!$B:$B,科目余额表!L:L,"") ->  | V18: 0008 | Y18: 0 | Z18: 0 | AA18: 0 | AB18: 84000 | AC18: -84000
A19: 0009 | C19: 2022 | D19: 1 | E19: 25 | F19: 00009 | G19: 1.7日工行1870户转入款-不涉及现金流量 | H19: 银行存款-一般存款户-中信银行401061-不涉及现金流量 | J19: 11000 | L19: 借 | M19: 1 | N19: 10020227 | R19: =_xlfn.XLOOKUP($H19,科目余额表!$B:$B,科目余额表!J:J) ->  | S19: =_xlfn.XLOOKUP($H19,科目余额表!$B:$B,科目余额表!K:K,"") ->  | T19: =_xlfn.XLOOKUP($H19,科目余额表!$B:$B,科目余额表!L:L,"") ->  | V19: 0009 | Y19: 0 | Z19: 0 | AA19: 0 | AB19: 11000 | AC19: -11000
A20: 0009 | C20: 2022 | D20: 1 | E20: 25 | F20: 00009 | G20: 1.7日转中信银行401061户款-不涉及现金流量 | H20: 银行存款-基本存款户-工行24921870-不涉及现金流量 | K20: 11000 | L20: 贷 | M20: 1 | N20: 10020101 | R20: =_xlfn.XLOOKUP($H20,科目余额表!$B:$B,科目余额表!J:J) ->  | S20: =_xlfn.XLOOKUP($H20,科目余额表!$B:$B,科目余额表!K:K,"") ->  | T20: =_xlfn.XLOOKUP($H20,科目余额表!$B:$B,科目余额表!L:L,"") ->  | V20: 0009 | Y20: 0 | Z20: 0 | AA20: 0 | AB20: 11000 | AC20: -11000
A21: 0009 | C21: 2022 | D21: 1 | E21: 25 | F21: 00009 | G21: 1.7日工行1870户转入款-不涉及现金流量 | H21: 银行存款-一般存款户-中信银行401061-不涉及现金流量 | J21: 16000 | L21: 借 | M21: 1 | N21: 10020227 | R21: =_xlfn.XLOOKUP($H21,科目余额表!$B:$B,科目余额表!J:J) ->  | S21: =_xlfn.XLOOKUP($H21,科目余额表!$B:$B,科目余额表!K:K,"") ->  | T21: =_xlfn.XLOOKUP($H21,科目余额表!$B:$B,科目余额表!L:L,"") ->  | V21: 0009 | Y21: 0 | Z21: 0 | AA21: 0 | AB21: 16000 | AC21: -16000
A22: 0009 | C22: 2022 | D22: 1 | E22: 25 | F22: 00009 | G22: 1.7日转中信银行401061户款-不涉及现金流量 | H22: 银行存款-基本存款户-工行24921870-不涉及现金流量 | K22: 16000 | L22: 贷 | M22: 1 | N22: 10020101 | R22: =_xlfn.XLOOKUP($H22,科目余额表!$B:$B,科目余额表!J:J) ->  | S22: =_xlfn.XLOOKUP($H22,科目余额表!$B:$B,科目余额表!K:K,"") ->  | T22: =_xlfn.XLOOKUP($H22,科目余额表!$B:$B,科目余额表!L:L,"") ->  | V22: 0009 | Y22: 0 | Z22: 0 | AA22: 0 | AB22: 16000 | AC22: -16000
A23: 0010 | C23: 2022 | D23: 1 | E23: 25 | F23: 00010 | G23: 支年度决算补助 | H23: 其他应付款-待付款项-预提费用（公有） | J23: 16000 | L23: 借 | M23: 2 | N23: 22410475 | R23: =_xlfn.XLOOKUP($H23,科目余额表!$B:$B,科目余额表!J:J) -> 0 | S23: =_xlfn.XLOOKUP($H23,科目余额表!$B:$B,科目余额表!K:K,"") -> 0 | T23: =_xlfn.XLOOKUP($H23,科目余额表!$B:$B,科目余额表!L:L,"") -> 0 | V23: 0010 | Y23: 0 | Z23: 0 | AA23: 0 | AB23: 16000 | AC23: -16000
A24: 0010 | C24: 2022 | D24: 1 | E24: 25 | F24: 00010 | G24: 1.7日支年度决算补助-支付给职工以及为职工支付的现金 | H24: 银行存款-一般存款户-中信银行401061-支付给职工以及为职工支付的现金 | K24: 16000 | L24: 贷 | M24: 1 | N24: 10020227 | R24: =_xlfn.XLOOKUP($H24,科目余额表!$B:$B,科目余额表!J:J) ->  | S24: =_xlfn.XLOOKUP($H24,科目余额表!$B:$B,科目余额表!K:K,"") ->  | T24: =_xlfn.XLOOKUP($H24,科目余额表!$B:$B,科目余额表!L:L,"") ->  | V24: 0010 | Y24: 0 | Z24: 0 | AA24: 0 | AB24: 16000 | AC24: -16000
A25: 0011 | C25: 2022 | D25: 1 | E25: 25 | F25: 00011 | G25: 支指标考核奖励金费 | H25: 其他应付款-待付款项-预提费用（公有） | J25: 11000 | L25: 借 | M25: 2 | N25: 22410475 | R25: =_xlfn.XLOOKUP($H25,科目余额表!$B:$B,科目余额表!J:J) -> 0 | S25: =_xlfn.XLOOKUP($H25,科目余额表!$B:$B,科目余额表!K:K,"") -> 0 | T25: =_xlfn.XLOOKUP($H25,科目余额表!$B:$B,科目余额表!L:L,"") -> 0 | V25: 0011 | Y25: 0 | Z25: 0 | AA25: 0 | AB25: 11000 | AC25: -11000
A26: 0011 | C26: 2022 | D26: 1 | E26: 25 | F26: 00011 | G26: 1.7日支指标考核奖励金费-支付给职工以及为职工支付的现金 | H26: 银行存款-一般存款户-中信银行401061-支付给职工以及为职工支付的现金 | K26: 11000 | L26: 贷 | M26: 1 | N26: 10020227 | R26: =_xlfn.XLOOKUP($H26,科目余额表!$B:$B,科目余额表!J:J) ->  | S26: =_xlfn.XLOOKUP($H26,科目余额表!$B:$B,科目余额表!K:K,"") ->  | T26: =_xlfn.XLOOKUP($H26,科目余额表!$B:$B,科目余额表!L:L,"") ->  | V26: 0011 | Y26: 0 | Z26: 0 | AA26: 0 | AB26: 11000 | AC26: -11000
A27: 0012 | C27: 2022 | D27: 1 | E27: 25 | F27: 00012 | G27: 付电费-县电业局 | H27: 其他应收款-单位其他应收款-县电业局 | J27: 20393.03 | L27: 借 | M27: 1 | N27: 122101 | R27: =_xlfn.XLOOKUP($H27,科目余额表!$B:$B,科目余额表!J:J) ->  | S27: =_xlfn.XLOOKUP($H27,科目余额表!$B:$B,科目余额表!K:K,"") ->  | T27: =_xlfn.XLOOKUP($H27,科目余额表!$B:$B,科目余额表!L:L,"") ->  | V27: 0012 | Y27: 0 | Z27: 0 | AA27: 0 | AB27: 20393.03 | AC27: -20393.03
A28: 0012 | C28: 2022 | D28: 1 | E28: 25 | F28: 00012 | G28: 1.10日转国网山西省电力公司款-购买商品、接受劳务支付的现金 | H28: 银行存款-基本存款户-工行24921870-购买商品、接受劳务支付的现金 | K28: 20393.03 | L28: 贷 | M28: 1 | N28: 10020101 | R28: =_xlfn.XLOOKUP($H28,科目余额表!$B:$B,科目余额表!J:J) ->  | S28: =_xlfn.XLOOKUP($H28,科目余额表!$B:$B,科目余额表!K:K,"") ->  | T28: =_xlfn.XLOOKUP($H28,科目余额表!$B:$B,科目余额表!L:L,"") ->  | V28: 0012 | Y28: 0 | Z28: 0 | AA28: 0 | AB28: 20393.03 | AC28: -20393.03
A29: 0013 | C29: 2022 | D29: 1 | E29: 25 | F29: 00013 | G29: 付电费-县电业局 | H29: 其他应收款-单位其他应收款-县电业局 | J29: 4587.19 | L29: 借 | M29: 1 | N29: 122101 | R29: =_xlfn.XLOOKUP($H29,科目余额表!$B:$B,科目余额表!J:J) ->  | S29: =_xlfn.XLOOKUP($H29,科目余额表!$B:$B,科目余额表!K:K,"") ->  | T29: =_xlfn.XLOOKUP($H29,科目余额表!$B:$B,科目余额表!L:L,"") ->  | V29: 0013 | Y29: 0 | Z29: 0 | AA29: 0 | AB29: 4587.19 | AC29: -4587.19
A30: 0013 | C30: 2022 | D30: 1 | E30: 25 | F30: 00013 | G30: 1.10日转国网山西省电力公司款-购买商品、接受劳务支付的现金 | H30: 银行存款-基本存款户-工行24921870-购买商品、接受劳务支付的现金 | K30: 4587.19 | L30: 贷 | M30: 1 | N30: 10020101 | R30: =_xlfn.XLOOKUP($H30,科目余额表!$B:$B,科目余额表!J:J) ->  | S30: =_xlfn.XLOOKUP($H30,科目余额表!$B:$B,科目余额表!K:K,"") ->  | T30: =_xlfn.XLOOKUP($H30,科目余额表!$B:$B,科目余额表!L:L,"") ->  | V30: 0013 | Y30: 0 | Z30: 0 | AA30: 0 | AB30: 4587.19 | AC30: -4587.19
A31: 0014 | C31: 2022 | D31: 1 | E31: 25 | F31: 00014 | G31: 1.10日工行1870户转入款-不涉及现金流量 | H31: 银行存款-一般存款户-襄垣农商行00022736-不涉及现金流量 | J31: 100000 | L31: 借 | M31: 1 | N31: 10020208 | R31: =_xlfn.XLOOKUP($H31,科目余额表!$B:$B,科目余额表!J:J) ->  | S31: =_xlfn.XLOOKUP($H31,科目余额表!$B:$B,科目余额表!K:K,"") ->  | T31: =_xlfn.XLOOKUP($H31,科目余额表!$B:$B,科目余额表!L:L,"") ->  | V31: 0014 | Y31: 0 | Z31: 0 | AA31: 0 | AB31: 100000 | AC31: -100000
A32: 0014 | C32: 2022 | D32: 1 | E32: 25 | F32: 00014 | G32: 1.10日转农商行22736户款-不涉及现金流量 | H32: 银行存款-基本存款户-工行24921870-不涉及现金流量 | K32: 100000 | L32: 贷 | M32: 1 | N32: 10020101 | R32: =_xlfn.XLOOKUP($H32,科目余额表!$B:$B,科目余额表!J:J) ->  | S32: =_xlfn.XLOOKUP($H32,科目余额表!$B:$B,科目余额表!K:K,"") ->  | T32: =_xlfn.XLOOKUP($H32,科目余额表!$B:$B,科目余额表!L:L,"") ->  | V32: 0014 | Y32: 0 | Z32: 0 | AA32: 0 | AB32: 100000 | AC32: -100000
A33: 0015 | C33: 2022 | D33: 1 | E33: 25 | F33: 00015 | G33: 预付压力表检测费-深圳天朔计量检测股份有限公司 | H33: 预付账款-集团外部-深圳天朔计量检测股份有限公司 | J33: 932.8 | L33: 借 | M33: 1 | N33: 112302 | R33: =_xlfn.XLOOKUP($H33,科目余额表!$B:$B,科目余额表!J:J) ->  | S33: =_xlfn.XLOOKUP($H33,科目余额表!$B:$B,科目余额表!K:K,"") ->  | T33: =_xlfn.XLOOKUP($H33,科目余额表!$B:$B,科目余额表!L:L,"") ->  | V33: 0015 | Y33: 0 | Z33: 0 | AA33: 0 | AB33: 932.8 | AC33: -932.8
A34: 0015 | C34: 2022 | D34: 1 | E34: 25 | F34: 00015 | G34: 1.4日转深圳天朔计量检测公司款-购买商品、接受劳务支付的现金 | H34: 银行存款-基本存款户-工行24921870-购买商品、接受劳务支付的现金 | K34: 932.8 | L34: 贷 | M34: 1 | N34: 10020101 | R34: =_xlfn.XLOOKUP($H34,科目余额表!$B:$B,科目余额表!J:J) ->  | S34: =_xlfn.XLOOKUP($H34,科目余额表!$B:$B,科目余额表!K:K,"") ->  | T34: =_xlfn.XLOOKUP($H34,科目余额表!$B:$B,科目余额表!L:L,"") ->  | V34: 0015 | Y34: 0 | Z34: 0 | AA34: 0 | AB34: 932.8 | AC34: -932.8
A35: 0015 | C35: 2022 | D35: 1 | E35: 25 | F35: 00015 | G35: 1.4日退回款-不涉及现金流量 | H35: 银行存款-基本存款户-工行24921870-不涉及现金流量 | J35: 932.8 | L35: 借 | M35: 1 | N35: 10020101 | R35: =_xlfn.XLOOKUP($H35,科目余额表!$B:$B,科目余额表!J:J) ->  | S35: =_xlfn.XLOOKUP($H35,科目余额表!$B:$B,科目余额表!K:K,"") ->  | T35: =_xlfn.XLOOKUP($H35,科目余额表!$B:$B,科目余额表!L:L,"") ->  | V35: 0015 | Y35: 0 | Z35: 0 | AA35: 0 | AB35: 932.8 | AC35: -932.8
A36: 0015 | C36: 2022 | D36: 1 | E36: 25 | F36: 00015 | G36: 1.6日转深圳天朔计量检测公司款-不涉及现金流量 | H36: 银行存款-基本存款户-工行24921870-不涉及现金流量 | K36: 932.8 | L36: 贷 | M36: 1 | N36: 10020101 | R36: =_xlfn.XLOOKUP($H36,科目余额表!$B:$B,科目余额表!J:J) ->  | S36: =_xlfn.XLOOKUP($H36,科目余额表!$B:$B,科目余额表!K:K,"") ->  | T36: =_xlfn.XLOOKUP($H36,科目余额表!$B:$B,科目余额表!L:L,"") ->  | V36: 0015 | Y36: 0 | Z36: 0 | AA36: 0 | AB36: 932.8 | AC36: -932.8
A37: 0015 | C37: 2022 | D37: 1 | E37: 25 | F37: 00015 | G37: 1.7日退回款-不涉及现金流量 | H37: 银行存款-基本存款户-工行24921870-不涉及现金流量 | J37: 932.8 | L37: 借 | M37: 1 | N37: 10020101 | R37: =_xlfn.XLOOKUP($H37,科目余额表!$B:$B,科目余额表!J:J) ->  | S37: =_xlfn.XLOOKUP($H37,科目余额表!$B:$B,科目余额表!K:K,"") ->  | T37: =_xlfn.XLOOKUP($H37,科目余额表!$B:$B,科目余额表!L:L,"") ->  | V37: 0015 | Y37: 0 | Z37: 0 | AA37: 0 | AB37: 932.8 | AC37: -932.8
A38: 0015 | C38: 2022 | D38: 1 | E38: 25 | F38: 00015 | G38: 1.7日转深圳天朔计量检测公司款-不涉及现金流量 | H38: 银行存款-基本存款户-工行24921870-不涉及现金流量 | K38: 932.8 | L38: 贷 | M38: 1 | N38: 10020101 | R38: =_xlfn.XLOOKUP($H38,科目余额表!$B:$B,科目余额表!J:J) ->  | S38: =_xlfn.XLOOKUP($H38,科目余额表!$B:$B,科目余额表!K:K,"") ->  | T38: =_xlfn.XLOOKUP($H38,科目余额表!$B:$B,科目余额表!L:L,"") ->  | V38: 0015 | Y38: 0 | Z38: 0 | AA38: 0 | AB38: 932.8 | AC38: -932.8
A39: 0015 | C39: 2022 | D39: 1 | E39: 25 | F39: 00015 | G39: 1.7日退回款-不涉及现金流量 | H39: 银行存款-基本存款户-工行24921870-不涉及现金流量 | J39: 932.8 | L39: 借 | M39: 1 | N39: 10020101 | R39: =_xlfn.XLOOKUP($H39,科目余额表!$B:$B,科目余额表!J:J) ->  | S39: =_xlfn.XLOOKUP($H39,科目余额表!$B:$B,科目余额表!K:K,"") ->  | T39: =_xlfn.XLOOKUP($H39,科目余额表!$B:$B,科目余额表!L:L,"") ->  | V39: 0015 | Y39: 0 | Z39: 0 | AA39: 0 | AB39: 932.8 | AC39: -932.8
A40: 0015 | C40: 2022 | D40: 1 | E40: 25 | F40: 00015 | G40: 1.10日转深圳天朔计量检测公司款-不涉及现金流量 | H40: 银行存款-基本存款户-工行24921870-不涉及现金流量 | K40: 932.8 | L40: 贷 | M40: 1 | N40: 10020101 | R40: =_xlfn.XLOOKUP($H40,科目余额表!$B:$B,科目余额表!J:J) ->  | S40: =_xlfn.XLOOKUP($H40,科目余额表!$B:$B,科目余额表!K:K,"") ->  | T40: =_xlfn.XLOOKUP($H40,科目余额表!$B:$B,科目余额表!L:L,"") ->  | V40: 0015 | Y40: 0 | Z40: 0 | AA40: 0 | AB40: 932.8 | AC40: -932.8
A41: 0016 | C41: 2022 | D41: 1 | E41: 25 | F41: 00016 | G41: 支个人所得税 | H41: 应交税费-代交个人所得税 | J41: 94282.13 | L41: 借 | M41: 2 | N41: 222112 | R41: =_xlfn.XLOOKUP($H41,科目余额表!$B:$B,科目余额表!J:J) -> 0 | S41: =_xlfn.XLOOKUP($H41,科目余额表!$B:$B,科目余额表!K:K,"") -> 0 | T41: =_xlfn.XLOOKUP($H41,科目余额表!$B:$B,科目余额表!L:L,"") -> 0 | V41: 0016 | Y41: 0 | Z41: 0 | AA41: 0 | AB41: 94282.13 | AC41: -94282.13
A42: 0016 | C42: 2022 | D42: 1 | E42: 25 | F42: 00016 | G42: 1.10日支个人所得税-支付给职工以及为职工支付的现金 | H42: 银行存款-一般存款户-襄垣农商行00022736-支付给职工以及为职工支付的现金 | K42: 94282.13 | L42: 贷 | M42: 1 | N42: 10020208 | R42: =_xlfn.XLOOKUP($H42,科目余额表!$B:$B,科目余额表!J:J) ->  | S42: =_xlfn.XLOOKUP($H42,科目余额表!$B:$B,科目余额表!K:K,"") ->  | T42: =_xlfn.XLOOKUP($H42,科目余额表!$B:$B,科目余额表!L:L,"") ->  | V42: 0016 | Y42: 0 | Z42: 0 | AA42: 0 | AB42: 94282.13 | AC42: -94282.13
A43: 0017 | C43: 2022 | D43: 1 | E43: 25 | F43: 00017 | G43: 支服务队纯净水费-其他 | H43: 制造费用-其他 | J43: 6423.6 | L43: 借 | M43: 5 | N43: 5101 | R43: =_xlfn.XLOOKUP($H43,科目余额表!$B:$B,科目余额表!J:J) -> 0 | S43: =_xlfn.XLOOKUP($H43,科目余额表!$B:$B,科目余额表!K:K,"") -> 0 | T43: =_xlfn.XLOOKUP($H43,科目余额表!$B:$B,科目余额表!L:L,"") -> 0 | V43: 0017 | Y43: 0 | Z43: 0 | AA43: 0 | AB43: 6423.6 | AC43: -6423.6
A44: 0017 | C44: 2022 | D44: 1 | E44: 25 | F44: 00017 | G44: 1.12日转王桥镇天仓俊其门市部款-购买商品、接受劳务支付的现金 | H44: 银行存款-基本存款户-工行24921870-购买商品、接受劳务支付的现金 | K44: 6423.6 | L44: 贷 | M44: 1 | N44: 10020101 | R44: =_xlfn.XLOOKUP($H44,科目余额表!$B:$B,科目余额表!J:J) ->  | S44: =_xlfn.XLOOKUP($H44,科目余额表!$B:$B,科目余额表!K:K,"") ->  | T44: =_xlfn.XLOOKUP($H44,科目余额表!$B:$B,科目余额表!L:L,"") ->  | V44: 0017 | Y44: 0 | Z44: 0 | AA44: 0 | AB44: 6423.6 | AC44: -6423.6
A45: 0018 | C45: 2022 | D45: 1 | E45: 25 | F45: 00018 | G45: 支借款-郝永明 | H45: 其他应收款-个人其他应收款-郝永明 | J45: 15000 | L45: 借 | M45: 1 | N45: 122102 | R45: =_xlfn.XLOOKUP($H45,科目余额表!$B:$B,科目余额表!J:J) ->  | S45: =_xlfn.XLOOKUP($H45,科目余额表!$B:$B,科目余额表!K:K,"") ->  | T45: =_xlfn.XLOOKUP($H45,科目余额表!$B:$B,科目余额表!L:L,"") ->  | V45: 0018 | Y45: 0 | Z45: 0 | AA45: 0 | AB45: 15000 | AC45: -15000
A46: 0018 | C46: 2022 | D46: 1 | E46: 25 | F46: 00018 | G46: 1.11日支借款-支付给职工以及为职工支付的现金 | H46: 银行存款-基本存款户-工行24921870-支付给职工以及为职工支付的现金 | K46: 15000 | L46: 贷 | M46: 1 | N46: 10020101 | R46: =_xlfn.XLOOKUP($H46,科目余额表!$B:$B,科目余额表!J:J) ->  | S46: =_xlfn.XLOOKUP($H46,科目余额表!$B:$B,科目余额表!K:K,"") ->  | T46: =_xlfn.XLOOKUP($H46,科目余额表!$B:$B,科目余额表!L:L,"") ->  | V46: 0018 | Y46: 0 | Z46: 0 | AA46: 0 | AB46: 15000 | AC46: -15000
A47: 0018 | C47: 2022 | D47: 1 | E47: 25 | F47: 00018 | G47: 1.11日退回款-不涉及现金流量 | H47: 银行存款-基本存款户-工行24921870-不涉及现金流量 | J47: 15000 | L47: 借 | M47: 1 | N47: 10020101 | R47: =_xlfn.XLOOKUP($H47,科目余额表!$B:$B,科目余额表!J:J) ->  | S47: =_xlfn.XLOOKUP($H47,科目余额表!$B:$B,科目余额表!K:K,"") ->  | T47: =_xlfn.XLOOKUP($H47,科目余额表!$B:$B,科目余额表!L:L,"") ->  | V47: 0018 | Y47: 0 | Z47: 0 | AA47: 0 | AB47: 15000 | AC47: -15000
A48: 0018 | C48: 2022 | D48: 1 | E48: 25 | F48: 00018 | G48: 1.11日支借款-不涉及现金流量 | H48: 银行存款-基本存款户-工行24921870-不涉及现金流量 | K48: 15000 | L48: 贷 | M48: 1 | N48: 10020101 | R48: =_xlfn.XLOOKUP($H48,科目余额表!$B:$B,科目余额表!J:J) ->  | S48: =_xlfn.XLOOKUP($H48,科目余额表!$B:$B,科目余额表!K:K,"") ->  | T48: =_xlfn.XLOOKUP($H48,科目余额表!$B:$B,科目余额表!L:L,"") ->  | V48: 0018 | Y48: 0 | Z48: 0 | AA48: 0 | AB48: 15000 | AC48: -15000
A49: 0019 | C49: 2022 | D49: 1 | E49: 25 | F49: 00019 | G49: 退风险抵押金-刘杰 | H49: 其他应付款-个人其他应付款-风险抵押金（公有） -刘杰 | J49: 5000 | L49: 借 | M49: 2 | N49: 22410214 | R49: =_xlfn.XLOOKUP($H49,科目余额表!$B:$B,科目余额表!J:J) ->  | S49: =_xlfn.XLOOKUP($H49,科目余额表!$B:$B,科目余额表!K:K,"") ->  | T49: =_xlfn.XLOOKUP($H49,科目余额表!$B:$B,科目余额表!L:L,"") ->  | V49: 0019 | Y49: 0 | Z49: 0 | AA49: 0 | AB49: 5000 | AC49: -5000
A50: 0019 | C50: 2022 | D50: 1 | E50: 25 | F50: 00019 | G50: 1.12日退风险抵押金-支付给职工以及为职工支付的现金 | H50: 银行存款-基本存款户-工行24921870-支付给职工以及为职工支付的现金 | K50: 5000 | L50: 贷 | M50: 1 | N50: 10020101 | R50: =_xlfn.XLOOKUP($H50,科目余额表!$B:$B,科目余额表!J:J) ->  | S50: =_xlfn.XLOOKUP($H50,科目余额表!$B:$B,科目余额表!K:K,"") ->  | T50: =_xlfn.XLOOKUP($H50,科目余额表!$B:$B,科目余额表!L:L,"") ->  | V50: 0019 | Y50: 0 | Z50: 0 | AA50: 0 | AB50: 5000 | AC50: -5000
A51: 0020 | C51: 2022 | D51: 1 | E51: 25 | F51: 00020 | G51: 退废料款-郭永伟 | H51: 其他应付款-个人其他应付款-废料款-郭永伟 | J51: 4420 | L51: 借 | M51: 2 | N51: 22410207 | R51: =_xlfn.XLOOKUP($H51,科目余额表!$B:$B,科目余额表!J:J) ->  | S51: =_xlfn.XLOOKUP($H51,科目余额表!$B:$B,科目余额表!K:K,"") ->  | T51: =_xlfn.XLOOKUP($H51,科目余额表!$B:$B,科目余额表!L:L,"") ->  | V51: 0020 | Y51: 0 | Z51: 0 | AA51: 0 | AB51: 4420 | AC51: -4420
A52: 0020 | C52: 2022 | D52: 1 | E52: 25 | F52: 00020 | G52: 1.12日退废料款-销售商品、提供劳务收到的现金 | H52: 银行存款-基本存款户-工行24921870-销售商品、提供劳务收到的现金 | K52: 4420 | L52: 贷 | M52: 1 | N52: 10020101 | R52: =_xlfn.XLOOKUP($H52,科目余额表!$B:$B,科目余额表!J:J) ->  | S52: =_xlfn.XLOOKUP($H52,科目余额表!$B:$B,科目余额表!K:K,"") ->  | T52: =_xlfn.XLOOKUP($H52,科目余额表!$B:$B,科目余额表!L:L,"") ->  | V52: 0020 | Y52: 0 | Z52: 0 | AA52: 0 | AB52: 4420 | AC52: -4420
A53: 0021 | C53: 2022 | D53: 1 | E53: 25 | F53: 00021 | G53: 收医疗保险-收到其他与经营活动有关的现金 | H53: 库存现金-收到其他与经营活动有关的现金 | J53: 9740.4 | L53: 借 | M53: 1 | N53: 1001 | R53: =_xlfn.XLOOKUP($H53,科目余额表!$B:$B,科目余额表!J:J) ->  | S53: =_xlfn.XLOOKUP($H53,科目余额表!$B:$B,科目余额表!K:K,"") ->  | T53: =_xlfn.XLOOKUP($H53,科目余额表!$B:$B,科目余额表!L:L,"") ->  | V53: 0021 | Y53: 0 | Z53: 0 | AA53: 0 | AB53: 9740.4 | AC53: -9740.4
A54: 0021 | C54: 2022 | D54: 1 | E54: 25 | F54: 00021 | G54: 收医疗保险 | H54: 应付职工薪酬-社会保险费-医疗保险金-基本医疗保险 | K54: 6671.4 | L54: 贷 | M54: 2 | N54: 2211030301 | R54: =_xlfn.XLOOKUP($H54,科目余额表!$B:$B,科目余额表!J:J) -> 0 | S54: =_xlfn.XLOOKUP($H54,科目余额表!$B:$B,科目余额表!K:K,"") -> 0 | T54: =_xlfn.XLOOKUP($H54,科目余额表!$B:$B,科目余额表!L:L,"") -> 0 | V54: 0021 | Y54: 0 | Z54: 0 | AA54: 0 | AB54: 6671.4 | AC54: -6671.4
A55: 0021 | C55: 2022 | D55: 1 | E55: 25 | F55: 00021 | G55: 收医疗保险 | H55: 其他应付款-待付款项-个人医疗保险（公有） | K55: 3069 | L55: 贷 | M55: 2 | N55: 22410462 | R55: =_xlfn.XLOOKUP($H55,科目余额表!$B:$B,科目余额表!J:J) -> 0 | S55: =_xlfn.XLOOKUP($H55,科目余额表!$B:$B,科目余额表!K:K,"") -> 0 | T55: =_xlfn.XLOOKUP($H55,科目余额表!$B:$B,科目余额表!L:L,"") -> 0 | V55: 0021 | Y55: 0 | Z55: 0 | AA55: 0 | AB55: 3069 | AC55: -3069
A56: 0022 | C56: 2022 | D56: 1 | E56: 25 | F56: 00022 | G56: 收养老保险-收到其他与经营活动有关的现金 | H56: 库存现金-收到其他与经营活动有关的现金 | J56: 8660 | L56: 借 | M56: 1 | N56: 1001 | R56: =_xlfn.XLOOKUP($H56,科目余额表!$B:$B,科目余额表!J:J) ->  | S56: =_xlfn.XLOOKUP($H56,科目余额表!$B:$B,科目余额表!K:K,"") ->  | T56: =_xlfn.XLOOKUP($H56,科目余额表!$B:$B,科目余额表!L:L,"") ->  | V56: 0022 | Y56: 0 | Z56: 0 | AA56: 0 | AB56: 8660 | AC56: -8660
A57: 0022 | C57: 2022 | D57: 1 | E57: 25 | F57: 00022 | G57: 收养老保险 | H57: 其他应付款-待付款项-个人养老保险（公有） | K57: 3484 | L57: 贷 | M57: 2 | N57: 22410461 | R57: =_xlfn.XLOOKUP($H57,科目余额表!$B:$B,科目余额表!J:J) -> 0 | S57: =_xlfn.XLOOKUP($H57,科目余额表!$B:$B,科目余额表!K:K,"") -> 0 | T57: =_xlfn.XLOOKUP($H57,科目余额表!$B:$B,科目余额表!L:L,"") -> 0 | V57: 0022 | Y57: 0 | Z57: 0 | AA57: 0 | AB57: 3484 | AC57: -3484
A58: 0022 | C58: 2022 | D58: 1 | E58: 25 | F58: 00022 | G58: 收养老保险 | H58: 应付职工薪酬-社会保险费-基本养老金 | K58: 5176 | L58: 贷 | M58: 2 | N58: 22110301 | R58: =_xlfn.XLOOKUP($H58,科目余额表!$B:$B,科目余额表!J:J) -> 0 | S58: =_xlfn.XLOOKUP($H58,科目余额表!$B:$B,科目余额表!K:K,"") -> 0 | T58: =_xlfn.XLOOKUP($H58,科目余额表!$B:$B,科目余额表!L:L,"") -> 0 | V58: 0022 | Y58: 0 | Z58: 0 | AA58: 0 | AB58: 5176 | AC58: -5176
A59: 0023 | C59: 2022 | D59: 1 | E59: 25 | F59: 00023 | G59: 付电费-县电业局 | H59: 其他应收款-单位其他应收款-县电业局 | J59: 18.35 | L59: 借 | M59: 1 | N59: 122101 | R59: =_xlfn.XLOOKUP($H59,科目余额表!$B:$B,科目余额表!J:J) ->  | S59: =_xlfn.XLOOKUP($H59,科目余额表!$B:$B,科目余额表!K:K,"") ->  | T59: =_xlfn.XLOOKUP($H59,科目余额表!$B:$B,科目余额表!L:L,"") ->  | V59: 0023 | Y59: 0 | Z59: 0 | AA59: 0 | AB59: 18.35 | AC59: -18.35
A60: 0023 | C60: 2022 | D60: 1 | E60: 25 | F60: 00023 | G60: 1.12日转国网山西省电力公司款-购买商品、接受劳务支付的现金 | H60: 银行存款-基本存款户-工行24921870-购买商品、接受劳务支付的现金 | K60: 18.35 | L60: 贷 | M60: 1 | N60: 10020101 | R60: =_xlfn.XLOOKUP($H60,科目余额表!$B:$B,科目余额表!J:J) ->  | S60: =_xlfn.XLOOKUP($H60,科目余额表!$B:$B,科目余额表!K:K,"") ->  | T60: =_xlfn.XLOOKUP($H60,科目余额表!$B:$B,科目余额表!L:L,"") ->  | V60: 0023 | Y60: 0 | Z60: 0 | AA60: 0 | AB60: 18.35 | AC60: -18.35
A61: 0024 | C61: 2022 | D61: 1 | E61: 25 | F61: 00024 | G61: 付车牌识别系统设备款-长治市鑫国达科技有限公司 | H61: 应付账款-集团外部-长治市鑫国达科技有限公司 | J61: 62891 | L61: 借 | M61: 2 | N61: 220202 | R61: =_xlfn.XLOOKUP($H61,科目余额表!$B:$B,科目余额表!J:J) ->  | S61: =_xlfn.XLOOKUP($H61,科目余额表!$B:$B,科目余额表!K:K,"") ->  | T61: =_xlfn.XLOOKUP($H61,科目余额表!$B:$B,科目余额表!L:L,"") ->  | V61: 0024 | Y61: 0 | Z61: 0 | AA61: 0 | AB61: 62891 | AC61: -62891
A62: 0024 | C62: 2022 | D62: 1 | E62: 25 | F62: 00024 | G62: 1.12日转鑫国达科技公司款-购买商品、接受劳务支付的现金 | H62: 银行存款-基本存款户-工行24921870-购买商品、接受劳务支付的现金 | K62: 62891 | L62: 贷 | M62: 1 | N62: 10020101 | R62: =_xlfn.XLOOKUP($H62,科目余额表!$B:$B,科目余额表!J:J) ->  | S62: =_xlfn.XLOOKUP($H62,科目余额表!$B:$B,科目余额表!K:K,"") ->  | T62: =_xlfn.XLOOKUP($H62,科目余额表!$B:$B,科目余额表!L:L,"") ->  | V62: 0024 | Y62: 0 | Z62: 0 | AA62: 0 | AB62: 62891 | AC62: -62891
A63: 0025 | C63: 2022 | D63: 1 | E63: 25 | F63: 00025 | G63: 支手续费 | H63: 财务费用-手续费 | J63: 60 | L63: 借 | M63: 6 | N63: 660301 | R63: =_xlfn.XLOOKUP($H63,科目余额表!$B:$B,科目余额表!J:J) -> 0 | S63: =_xlfn.XLOOKUP($H63,科目余额表!$B:$B,科目余额表!K:K,"") -> 0 | T63: =_xlfn.XLOOKUP($H63,科目余额表!$B:$B,科目余额表!L:L,"") -> 0 | V63: 0025 | Y63: 0 | Z63: 0 | AA63: 0 | AB63: 60 | AC63: -60
A64: 0025 | C64: 2022 | D64: 1 | E64: 25 | F64: 00025 | G64: 1.12日支手续费-支付其他与经营活动有关的现金 | H64: 银行存款-基本存款户-工行24921870-支付其他与经营活动有关的现金 | K64: 30 | L64: 贷 | M64: 1 | N64: 10020101 | R64: =_xlfn.XLOOKUP($H64,科目余额表!$B:$B,科目余额表!J:J) ->  | S64: =_xlfn.XLOOKUP($H64,科目余额表!$B:$B,科目余额表!K:K,"") ->  | T64: =_xlfn.XLOOKUP($H64,科目余额表!$B:$B,科目余额表!L:L,"") ->  | V64: 0025 | Y64: 0 | Z64: 0 | AA64: 0 | AB64: 30 | AC64: -30
A65: 0025 | C65: 2022 | D65: 1 | E65: 25 | F65: 00025 | G65: 1.12日支手续费-支付其他与经营活动有关的现金 | H65: 银行存款-一般存款户-工行24922016-支付其他与经营活动有关的现金 | K65: 30 | L65: 贷 | M65: 1 | N65: 10020201 | R65: =_xlfn.XLOOKUP($H65,科目余额表!$B:$B,科目余额表!J:J) ->  | S65: =_xlfn.XLOOKUP($H65,科目余额表!$B:$B,科目余额表!K:K,"") ->  | T65: =_xlfn.XLOOKUP($H65,科目余额表!$B:$B,科目余额表!L:L,"") ->  | V65: 0025 | Y65: 0 | Z65: 0 | AA65: 0 | AB65: 30 | AC65: -30
A66: 0026 | C66: 2022 | D66: 1 | E66: 25 | F66: 00026 | G66: 支2021年物业管理服务费 | H66: 其他应付款-待付款项-预提费用（公有） | J66: 214577.75 | L66: 借 | M66: 2 | N66: 22410475 | R66: =_xlfn.XLOOKUP($H66,科目余额表!$B:$B,科目余额表!J:J) -> 0 | S66: =_xlfn.XLOOKUP($H66,科目余额表!$B:$B,科目余额表!K:K,"") -> 0 | T66: =_xlfn.XLOOKUP($H66,科目余额表!$B:$B,科目余额表!L:L,"") -> 0 | V66: 0026 | Y66: 0 | Z66: 0 | AA66: 0 | AB66: 214577.75 | AC66: -214577.75
A67: 0026 | C67: 2022 | D67: 1 | E67: 25 | F67: 00026 | G67: 2021年物业管理服务费进项税额 | H67: 应交税费-应交增值税-进项税额 | J67: 12874.67 | L67: 借 | M67: 2 | N67: 22210101 | R67: =_xlfn.XLOOKUP($H67,科目余额表!$B:$B,科目余额表!J:J) -> 0 | S67: =_xlfn.XLOOKUP($H67,科目余额表!$B:$B,科目余额表!K:K,"") -> 0 | T67: =_xlfn.XLOOKUP($H67,科目余额表!$B:$B,科目余额表!L:L,"") -> 0 | V67: =A67 -> 0026 | Y67: =IFERROR(_xlfn.IFS(LEFT(W67,1)="3",AB67,LEFT(W67,1)="1",AC67),0) -> 0 | Z67: =IFERROR(_xlfn.IFS(LEFT(W67,1)="3",AB67,LEFT(W67,1)="1",AC67),0) -> 0 | AA67: =IFERROR(_xlfn.IFS(LEFT(W67,1)="4",AB67,LEFT(W67,1)="2",AC67),0) -> 0 | AB67: =J67+K67 -> 12874.67 | AC67: =-AB67 -> -12874.67
A68: 0026 | C68: 2022 | D68: 1 | E68: 25 | F68: 00026 | G68: 2021年物业管理服务费入-襄垣县新天地物业管理有限公司 | H68: 其他应付款-单位其他应付款-襄垣县新天地物业管理有限公司 | K68: 227452.42 | L68: 贷 | M68: 2 | N68: 224101 | R68: =_xlfn.XLOOKUP($H68,科目余额表!$B:$B,科目余额表!J:J) ->  | S68: =_xlfn.XLOOKUP($H68,科目余额表!$B:$B,科目余额表!K:K,"") ->  | T68: =_xlfn.XLOOKUP($H68,科目余额表!$B:$B,科目余额表!L:L,"") ->  | V68: 0026 | Y68: 0 | Z68: 0 | AA68: 0 | AB68: 227452.42 | AC68: -227452.42
A69: 0027 | C69: 2022 | D69: 1 | E69: 25 | F69: 00027 | G69: 支2021年遗属补助款 | H69: 其他应付款-待付款项-预提费用（公有） | J69: 28080 | L69: 借 | M69: 2 | N69: 22410475 | R69: =_xlfn.XLOOKUP($H69,科目余额表!$B:$B,科目余额表!J:J) -> 0 | S69: =_xlfn.XLOOKUP($H69,科目余额表!$B:$B,科目余额表!K:K,"") -> 0 | T69: =_xlfn.XLOOKUP($H69,科目余额表!$B:$B,科目余额表!L:L,"") -> 0 | V69: 0027 | Y69: 0 | Z69: 0 | AA69: 0 | AB69: 28080 | AC69: -28080
A70: 0027 | C70: 2022 | D70: 1 | E70: 25 | F70: 00027 | G70: 支2021年遗属补助款-支付给职工以及为职工支付的现金 | H70: 库存现金-支付给职工以及为职工支付的现金 | K70: 28080 | L70: 贷 | M70: 1 | N70: 1001 | R70: =_xlfn.XLOOKUP($H70,科目余额表!$B:$B,科目余额表!J:J) ->  | S70: =_xlfn.XLOOKUP($H70,科目余额表!$B:$B,科目余额表!K:K,"") ->  | T70: =_xlfn.XLOOKUP($H70,科目余额表!$B:$B,科目余额表!L:L,"") ->  | V70: 0027 | Y70: 0 | Z70: 0 | AA70: 0 | AB70: 28080 | AC70: -28080
A71: 0028 | C71: 2022 | D71: 1 | E71: 25 | F71: 00028 | G71: 退煤款-襄垣县乾元选煤有限公司 | H71: 应收账款-集团外部-襄垣县乾元选煤有限公司 | J71: 1536 | L71: 借 | M71: 1 | N71: 112202 | R71: =_xlfn.XLOOKUP($H71,科目余额表!$B:$B,科目余额表!J:J) ->  | S71: =_xlfn.XLOOKUP($H71,科目余额表!$B:$B,科目余额表!K:K,"") ->  | T71: =_xlfn.XLOOKUP($H71,科目余额表!$B:$B,科目余额表!L:L,"") ->  | V71: 0028 | Y71: 0 | Z71: 0 | AA71: 0 | AB71: 1536 | AC71: -1536
A72: 0028 | C72: 2022 | D72: 1 | E72: 25 | F72: 00028 | G72: 1.13日转乾元选煤公司款-支付其他与经营活动有关的现金 | H72: 银行存款-基本存款户-工行24921870-支付其他与经营活动有关的现金 | K72: 1536 | L72: 贷 | M72: 1 | N72: 10020101 | R72: =_xlfn.XLOOKUP($H72,科目余额表!$B:$B,科目余额表!J:J) ->  | S72: =_xlfn.XLOOKUP($H72,科目余额表!$B:$B,科目余额表!K:K,"") ->  | T72: =_xlfn.XLOOKUP($H72,科目余额表!$B:$B,科目余额表!L:L,"") ->  | V72: 0028 | Y72: 0 | Z72: 0 | AA72: 0 | AB72: 1536 | AC72: -1536
A73: 0029 | C73: 2022 | D73: 1 | E73: 25 | F73: 00029 | G73: 支借款-孔玉贞 | H73: 其他应收款-个人其他应收款-孔玉贞 | J73: 5000 | L73: 借 | M73: 1 | N73: 122102 | R73: =_xlfn.XLOOKUP($H73,科目余额表!$B:$B,科目余额表!J:J) ->  | S73: =_xlfn.XLOOKUP($H73,科目余额表!$B:$B,科目余额表!K:K,"") ->  | T73: =_xlfn.XLOOKUP($H73,科目余额表!$B:$B,科目余额表!L:L,"") ->  | V73: 0029 | Y73: 0 | Z73: 0 | AA73: 0 | AB73: 5000 | AC73: -5000
A74: 0029 | C74: 2022 | D74: 1 | E74: 25 | F74: 00029 | G74: 1.13日支借款-支付给职工以及为职工支付的现金 | H74: 银行存款-基本存款户-工行24921870-支付给职工以及为职工支付的现金 | K74: 5000 | L74: 贷 | M74: 1 | N74: 10020101 | R74: =_xlfn.XLOOKUP($H74,科目余额表!$B:$B,科目余额表!J:J) ->  | S74: =_xlfn.XLOOKUP($H74,科目余额表!$B:$B,科目余额表!K:K,"") ->  | T74: =_xlfn.XLOOKUP($H74,科目余额表!$B:$B,科目余额表!L:L,"") ->  | V74: 0029 | Y74: 0 | Z74: 0 | AA74: 0 | AB74: 5000 | AC74: -5000
A75: 0030 | C75: 2022 | D75: 1 | E75: 25 | F75: 00030 | G75: 收现金还往来-收到其他与经营活动有关的现金 | H75: 库存现金-收到其他与经营活动有关的现金 | J75: 5000 | L75: 借 | M75: 1 | N75: 1001 | R75: =_xlfn.XLOOKUP($H75,科目余额表!$B:$B,科目余额表!J:J) ->  | S75: =_xlfn.XLOOKUP($H75,科目余额表!$B:$B,科目余额表!K:K,"") ->  | T75: =_xlfn.XLOOKUP($H75,科目余额表!$B:$B,科目余额表!L:L,"") ->  | V75: 0030 | Y75: 0 | Z75: 0 | AA75: 0 | AB75: 5000 | AC75: -5000
A76: 0030 | C76: 2022 | D76: 1 | E76: 25 | F76: 00030 | G76: 收现金还往来-孔玉贞 | H76: 其他应收款-个人其他应收款-孔玉贞 | K76: 5000 | L76: 贷 | M76: 1 | N76: 122102 | R76: =_xlfn.XLOOKUP($H76,科目余额表!$B:$B,科目余额表!J:J) ->  | S76: =_xlfn.XLOOKUP($H76,科目余额表!$B:$B,科目余额表!K:K,"") ->  | T76: =_xlfn.XLOOKUP($H76,科目余额表!$B:$B,科目余额表!L:L,"") ->  | V76: 0030 | Y76: 0 | Z76: 0 | AA76: 0 | AB76: 5000 | AC76: -5000
A77: 0031 | C77: 2022 | D77: 1 | E77: 25 | F77: 00031 | G77: 支物业服务费-襄垣县新天地物业管理有限公司 | H77: 其他应付款-单位其他应付款-襄垣县新天地物业管理有限公司 | J77: 200000 | L77: 借 | M77: 2 | N77: 224101 | R77: =_xlfn.XLOOKUP($H77,科目余额表!$B:$B,科目余额表!J:J) ->  | S77: =_xlfn.XLOOKUP($H77,科目余额表!$B:$B,科目余额表!K:K,"") ->  | T77: =_xlfn.XLOOKUP($H77,科目余额表!$B:$B,科目余额表!L:L,"") ->  | V77: 0031 | Y77: 0 | Z77: 0 | AA77: 0 | AB77: 200000 | AC77: -200000
A78: 0031 | C78: 2022 | D78: 1 | E78: 25 | F78: 00031 | G78: 1.13日转新天地物业公司款-支付其他与经营活动有关的现金 | H78: 银行存款-基本存款户-工行24921870-支付其他与经营活动有关的现金 | K78: 200000 | L78: 贷 | M78: 1 | N78: 10020101 | R78: =_xlfn.XLOOKUP($H78,科目余额表!$B:$B,科目余额表!J:J) ->  | S78: =_xlfn.XLOOKUP($H78,科目余额表!$B:$B,科目余额表!K:K,"") ->  | T78: =_xlfn.XLOOKUP($H78,科目余额表!$B:$B,科目余额表!L:L,"") ->  | V78: 0031 | Y78: 0 | Z78: 0 | AA78: 0 | AB78: 200000 | AC78: -200000
A79: 0032 | C79: 2022 | D79: 1 | E79: 25 | F79: 00032 | G79: 付货款-国建（山东）工矿机械设备有限公司 | H79: 应付账款-集团外部-国建（山东）工矿机械设备有限公司 | J79: 285000 | L79: 借 | M79: 2 | N79: 220202 | R79: =_xlfn.XLOOKUP($H79,科目余额表!$B:$B,科目余额表!J:J) ->  | S79: =_xlfn.XLOOKUP($H79,科目余额表!$B:$B,科目余额表!K:K,"") ->  | T79: =_xlfn.XLOOKUP($H79,科目余额表!$B:$B,科目余额表!L:L,"") ->  | V79: 0032 | Y79: 0 | Z79: 0 | AA79: 0 | AB79: 285000 | AC79: -285000
A80: 0032 | C80: 2022 | D80: 1 | E80: 25 | F80: 00032 | G80: 1.13日转国建（山东）工矿机械设备公司款-购买商品、接受劳务支付的现金 | H80: 银行存款-基本存款户-工行24921870-购买商品、接受劳务支付的现金 | K80: 256500 | L80: 贷 | M80: 1 | N80: 10020101 | R80: =_xlfn.XLOOKUP($H80,科目余额表!$B:$B,科目余额表!J:J) ->  | S80: =_xlfn.XLOOKUP($H80,科目余额表!$B:$B,科目余额表!K:K,"") ->  | T80: =_xlfn.XLOOKUP($H80,科目余额表!$B:$B,科目余额表!L:L,"") ->  | V80: 0032 | Y80: 0 | Z80: 0 | AA80: 0 | AB80: 256500 | AC80: -256500
A81: 0032 | C81: 2022 | D81: 1 | E81: 25 | F81: 00032 | G81: 1.13日转国建（山东）工矿机械设备公司款-购买商品、接受劳务支付的现金 | H81: 银行存款-基本存款户-工行24921870-购买商品、接受劳务支付的现金 | K81: 28500 | L81: 贷 | M81: 1 | N81: 10020101 | R81: =_xlfn.XLOOKUP($H81,科目余额表!$B:$B,科目余额表!J:J) ->  | S81: =_xlfn.XLOOKUP($H81,科目余额表!$B:$B,科目余额表!K:K,"") ->  | T81: =_xlfn.XLOOKUP($H81,科目余额表!$B:$B,科目余额表!L:L,"") ->  | V81: 0032 | Y81: 0 | Z81: 0 | AA81: 0 | AB81: 28500 | AC81: -28500
A82: 0033 | C82: 2022 | D82: 1 | E82: 25 | F82: 00033 | G82: 支重大安全风险牌等费 | H82: 专项储备-安全费-安全宣传培训支出 | J82: 5150 | L82: 借 | M82: 4 | N82: 43010207 | R82: =_xlfn.XLOOKUP($H82,科目余额表!$B:$B,科目余额表!J:J) -> 0 | S82: =_xlfn.XLOOKUP($H82,科目余额表!$B:$B,科目余额表!K:K,"") -> 0 | T82: =_xlfn.XLOOKUP($H82,科目余额表!$B:$B,科目余额表!L:L,"") -> 0 | V82: 0033 | Y82: 0 | Z82: 0 | AA82: 0 | AB82: 5150 | AC82: -5150
A83: 0033 | C83: 2022 | D83: 1 | E83: 25 | F83: 00033 | G83: 1.13日转星池广告制作部款-支付其他与经营活动有关的现金 | H83: 银行存款-一般存款户-襄垣农商行(安全专户)00061577-支付其他与经营活动有关的现金 | K83: 5150 | L83: 贷 | M83: 1 | N83: 10020220 | R83: =_xlfn.XLOOKUP($H83,科目余额表!$B:$B,科目余额表!J:J) ->  | S83: =_xlfn.XLOOKUP($H83,科目余额表!$B:$B,科目余额表!K:K,"") ->  | T83: =_xlfn.XLOOKUP($H83,科目余额表!$B:$B,科目余额表!L:L,"") ->  | V83: 0033 | Y83: 0 | Z83: 0 | AA83: 0 | AB83: 5150 | AC83: -5150
A84: 0034 | C84: 2022 | D84: 1 | E84: 25 | F84: 00034 | G84: 付电子地图数据更新费-山西航测地理信息测绘中心 | H84: 应付账款-集团外部-山西航测地理信息测绘中心 | J84: 8800 | L84: 借 | M84: 2 | N84: 220202 | R84: =_xlfn.XLOOKUP($H84,科目余额表!$B:$B,科目余额表!J:J) ->  | S84: =_xlfn.XLOOKUP($H84,科目余额表!$B:$B,科目余额表!K:K,"") ->  | T84: =_xlfn.XLOOKUP($H84,科目余额表!$B:$B,科目余额表!L:L,"") ->  | V84: 0034 | Y84: 0 | Z84: 0 | AA84: 0 | AB84: 8800 | AC84: -8800
A85: 0034 | C85: 2022 | D85: 1 | E85: 25 | F85: 00034 | G85: 1.14日转航测地理信息测绘中心款-购买商品、接受劳务支付的现金 | H85: 银行存款-基本存款户-工行24921870-购买商品、接受劳务支付的现金 | K85: 8800 | L85: 贷 | M85: 1 | N85: 10020101 | R85: =_xlfn.XLOOKUP($H85,科目余额表!$B:$B,科目余额表!J:J) ->  | S85: =_xlfn.XLOOKUP($H85,科目余额表!$B:$B,科目余额表!K:K,"") ->  | T85: =_xlfn.XLOOKUP($H85,科目余额表!$B:$B,科目余额表!L:L,"") ->  | V85: 0034 | Y85: 0 | Z85: 0 | AA85: 0 | AB85: 8800 | AC85: -8800
A86: 0035 | C86: 2022 | D86: 1 | E86: 25 | F86: 00035 | G86: 支机电科烟雾测试剂费-其他 | H86: 制造费用-其他 | J86: 840 | L86: 借 | M86: 5 | N86: 5101 | R86: =_xlfn.XLOOKUP($H86,科目余额表!$B:$B,科目余额表!J:J) -> 0 | S86: =_xlfn.XLOOKUP($H86,科目余额表!$B:$B,科目余额表!K:K,"") -> 0 | T86: =_xlfn.XLOOKUP($H86,科目余额表!$B:$B,科目余额表!L:L,"") -> 0 | V86: 0035 | Y86: 0 | Z86: 0 | AA86: 0 | AB86: 840 | AC86: -840
A87: 0035 | C87: 2022 | D87: 1 | E87: 25 | F87: 00035 | G87: 1.14日支机电科烟雾测试剂费-购买商品、接受劳务支付的现金 | H87: 银行存款-基本存款户-工行24921870-购买商品、接受劳务支付的现金 | K87: 840 | L87: 贷 | M87: 1 | N87: 10020101 | R87: =_xlfn.XLOOKUP($H87,科目余额表!$B:$B,科目余额表!J:J) ->  | S87: =_xlfn.XLOOKUP($H87,科目余额表!$B:$B,科目余额表!K:K,"") ->  | T87: =_xlfn.XLOOKUP($H87,科目余额表!$B:$B,科目余额表!L:L,"") ->  | V87: 0035 | Y87: 0 | Z87: 0 | AA87: 0 | AB87: 840 | AC87: -840
A88: 0036 | C88: 2022 | D88: 1 | E88: 26 | F88: 00036 | G88: 付水泥款-潞城市安科讯物贸有限公司 | H88: 预付账款-集团外部-潞城市安科讯物贸有限公司 | J88: 100000 | L88: 借 | M88: 1 | N88: 112302 | R88: =_xlfn.XLOOKUP($H88,科目余额表!$B:$B,科目余额表!J:J) ->  | S88: =_xlfn.XLOOKUP($H88,科目余额表!$B:$B,科目余额表!K:K,"") ->  | T88: =_xlfn.XLOOKUP($H88,科目余额表!$B:$B,科目余额表!L:L,"") ->  | V88: 0036 | Y88: 0 | Z88: 0 | AA88: 0 | AB88: 100000 | AC88: -100000
A89: 0036 | C89: 2022 | D89: 1 | E89: 26 | F89: 00036 | G89: 1.17日转安科讯物贸公司款-购买商品、接受劳务支付的现金 | H89: 银行存款-基本存款户-工行24921870-购买商品、接受劳务支付的现金 | K89: 100000 | L89: 贷 | M89: 1 | N89: 10020101 | R89: =_xlfn.XLOOKUP($H89,科目余额表!$B:$B,科目余额表!J:J) ->  | S89: =_xlfn.XLOOKUP($H89,科目余额表!$B:$B,科目余额表!K:K,"") ->  | T89: =_xlfn.XLOOKUP($H89,科目余额表!$B:$B,科目余额表!L:L,"") ->  | V89: 0036 | Y89: 0 | Z89: 0 | AA89: 0 | AB89: 100000 | AC89: -100000
A90: 0037 | C90: 2022 | D90: 1 | E90: 26 | F90: 00037 | G90: 购入彩电1台 | H90: 周转材料-低值易耗品 | J90: 2300.88 | L90: 借 | M90: 1 | N90: 141101 | R90: =_xlfn.XLOOKUP($H90,科目余额表!$B:$B,科目余额表!J:J) -> 0 | S90: =_xlfn.XLOOKUP($H90,科目余额表!$B:$B,科目余额表!K:K,"") -> 0 | T90: =_xlfn.XLOOKUP($H90,科目余额表!$B:$B,科目余额表!L:L,"") -> 0 | V90: 0037 | Y90: 0 | Z90: 0 | AA90: 0 | AB90: 2300.88 | AC90: -2300.88
A91: 0037 | C91: 2022 | D91: 1 | E91: 26 | F91: 00037 | G91: 彩电进项税额 | H91: 应交税费-应交增值税-进项税额 | J91: 299.12 | L91: 借 | M91: 2 | N91: 22210101 | R91: =_xlfn.XLOOKUP($H91,科目余额表!$B:$B,科目余额表!J:J) -> 0 | S91: =_xlfn.XLOOKUP($H91,科目余额表!$B:$B,科目余额表!K:K,"") -> 0 | T91: =_xlfn.XLOOKUP($H91,科目余额表!$B:$B,科目余额表!L:L,"") -> 0 | V91: 0037 | Y91: 0 | Z91: 0 | AA91: 0 | AB91: 299.12 | AC91: -299.12
A92: 0037 | C92: 2022 | D92: 1 | E92: 26 | F92: 00037 | G92: 1.17日转晋新广电器公司款-购买商品、接受劳务支付的现金 | H92: 银行存款-基本存款户-工行24921870-购买商品、接受劳务支付的现金 | K92: 2600 | L92: 贷 | M92: 1 | N92: 10020101 | R92: =_xlfn.XLOOKUP($H92,科目余额表!$B:$B,科目余额表!J:J) ->  | S92: =_xlfn.XLOOKUP($H92,科目余额表!$B:$B,科目余额表!K:K,"") ->  | T92: =_xlfn.XLOOKUP($H92,科目余额表!$B:$B,科目余额表!L:L,"") ->  | V92: 0037 | Y92: 0 | Z92: 0 | AA92: 0 | AB92: 2600 | AC92: -2600
A93: 0037 | C93: 2022 | D93: 1 | E93: 26 | F93: 00037 | G93: 低值易耗品摊销-材料及低值易耗品摊销 | H93: 管理费用-材料及低值易耗品摊销 | J93: 2300.88 | L93: 借 | M93: 6 | N93: 6602 | R93: =_xlfn.XLOOKUP($H93,科目余额表!$B:$B,科目余额表!J:J) -> 0 | S93: =_xlfn.XLOOKUP($H93,科目余额表!$B:$B,科目余额表!K:K,"") -> 0 | T93: =_xlfn.XLOOKUP($H93,科目余额表!$B:$B,科目余额表!L:L,"") -> 0 | V93: 0037 | Y93: 0 | Z93: 0 | AA93: 0 | AB93: 2300.88 | AC93: -2300.88
A94: 0037 | C94: 2022 | D94: 1 | E94: 26 | F94: 00037 | G94: 摊入管理费 | H94: 周转材料-低值易耗品 | K94: 2300.88 | L94: 贷 | M94: 1 | N94: 141101 | R94: =_xlfn.XLOOKUP($H94,科目余额表!$B:$B,科目余额表!J:J) -> 0 | S94: =_xlfn.XLOOKUP($H94,科目余额表!$B:$B,科目余额表!K:K,"") -> 0 | T94: =_xlfn.XLOOKUP($H94,科目余额表!$B:$B,科目余额表!L:L,"") -> 0 | V94: 0037 | Y94: 0 | Z94: 0 | AA94: 0 | AB94: 2300.88 | AC94: -2300.88
A95: 0038 | C95: 2022 | D95: 1 | E95: 26 | F95: 00038 | G95: 提福利费-其他 | H95: 制造费用-其他 | J95: 486.54 | L95: 借 | M95: 5 | N95: 5101 | R95: =_xlfn.XLOOKUP($H95,科目余额表!$B:$B,科目余额表!J:J) -> 0 | S95: =_xlfn.XLOOKUP($H95,科目余额表!$B:$B,科目余额表!K:K,"") -> 0 | T95: =_xlfn.XLOOKUP($H95,科目余额表!$B:$B,科目余额表!L:L,"") -> 0 | V95: 0038 | Y95: 0 | Z95: 0 | AA95: 0 | AB95: 486.54 | AC95: -486.54
A96: 0038 | C96: 2022 | D96: 1 | E96: 26 | F96: 00038 | G96: 提福利费 | H96: 应付职工薪酬-应付福利费-职工医药费 | K96: 486.54 | L96: 贷 | M96: 2 | N96: 22110202 | R96: =_xlfn.XLOOKUP($H96,科目余额表!$B:$B,科目余额表!J:J) -> 0 | S96: =_xlfn.XLOOKUP($H96,科目余额表!$B:$B,科目余额表!K:K,"") -> 0 | T96: =_xlfn.XLOOKUP($H96,科目余额表!$B:$B,科目余额表!L:L,"") -> 0 | V96: 0038 | Y96: 0 | Z96: 0 | AA96: 0 | AB96: 486.54 | AC96: -486.54
A97: 0038 | C97: 2022 | D97: 1 | E97: 26 | F97: 00038 | G97: 支医药费 | H97: 应付职工薪酬-应付福利费-职工医药费 | J97: 486.54 | L97: 借 | M97: 2 | N97: 22110202 | R97: =_xlfn.XLOOKUP($H97,科目余额表!$B:$B,科目余额表!J:J) -> 0 | S97: =_xlfn.XLOOKUP($H97,科目余额表!$B:$B,科目余额表!K:K,"") -> 0 | T97: =_xlfn.XLOOKUP($H97,科目余额表!$B:$B,科目余额表!L:L,"") -> 0 | V97: 0038 | Y97: 0 | Z97: 0 | AA97: 0 | AB97: 486.54 | AC97: -486.54
A98: 0038 | C98: 2022 | D98: 1 | E98: 26 | F98: 00038 | G98: 支杂支款-其他 | H98: 制造费用-其他 | J98: 490 | L98: 借 | M98: 5 | N98: 5101 | R98: =_xlfn.XLOOKUP($H98,科目余额表!$B:$B,科目余额表!J:J) -> 0 | S98: =_xlfn.XLOOKUP($H98,科目余额表!$B:$B,科目余额表!K:K,"") -> 0 | T98: =_xlfn.XLOOKUP($H98,科目余额表!$B:$B,科目余额表!L:L,"") -> 0 | V98: 0038 | Y98: 0 | Z98: 0 | AA98: 0 | AB98: 490 | AC98: -490
A99: 0038 | C99: 2022 | D99: 1 | E99: 26 | F99: 00038 | G99: 杜炎军报销还往来-杜炎军 | H99: 其他应收款-个人其他应收款-杜炎军 | K99: 976.54 | L99: 贷 | M99: 1 | N99: 122102 | R99: =_xlfn.XLOOKUP($H99,科目余额表!$B:$B,科目余额表!J:J) ->  | S99: =_xlfn.XLOOKUP($H99,科目余额表!$B:$B,科目余额表!K:K,"") ->  | T99: =_xlfn.XLOOKUP($H99,科目余额表!$B:$B,科目余额表!L:L,"") ->  | V99: 0038 | Y99: 0 | Z99: 0 | AA99: 0 | AB99: 976.54 | AC99: -976.54
A100: 0039 | C100: 2022 | D100: 1 | E100: 26 | F100: 00039 | G100: 支行政科台历费-其他 | H100: 管理费用-其他 | J100: 5900 | L100: 借 | M100: 6 | N100: 6602 | R100: =_xlfn.XLOOKUP($H100,科目余额表!$B:$B,科目余额表!J:J) -> 0 | S100: =_xlfn.XLOOKUP($H100,科目余额表!$B:$B,科目余额表!K:K,"") -> 0 | T100: =_xlfn.XLOOKUP($H100,科目余额表!$B:$B,科目余额表!L:L,"") -> 0 | V100: 0039 | Y100: 0 | Z100: 0 | AA100: 0 | AB100: 5900 | AC100: -5900
A101: 0039 | C101: 2022 | D101: 1 | E101: 26 | F101: 00039 | G101: 1.17日转方舟文体专卖店款-购买商品、接受劳务支付的现金 | H101: 银行存款-基本存款户-工行24921870-购买商品、接受劳务支付的现金 | K101: 5900 | L101: 贷 | M101: 1 | N101: 10020101 | R101: =_xlfn.XLOOKUP($H101,科目余额表!$B:$B,科目余额表!J:J) ->  | S101: =_xlfn.XLOOKUP($H101,科目余额表!$B:$B,科目余额表!K:K,"") ->  | T101: =_xlfn.XLOOKUP($H101,科目余额表!$B:$B,科目余额表!L:L,"") ->  | V101: 0039 | Y101: 0 | Z101: 0 | AA101: 0 | AB101: 5900 | AC101: -5900
A102: 0040 | C102: 2022 | D102: 1 | E102: 26 | F102: 00040 | G102: 支行政科打印费等-其他 | H102: 管理费用-其他 | J102: 126978.32 | L102: 借 | M102: 6 | N102: 6602 | R102: =_xlfn.XLOOKUP($H102,科目余额表!$B:$B,科目余额表!J:J) -> 0 | S102: =_xlfn.XLOOKUP($H102,科目余额表!$B:$B,科目余额表!K:K,"") -> 0 | T102: =_xlfn.XLOOKUP($H102,科目余额表!$B:$B,科目余额表!L:L,"") -> 0 | V102: 0040 | Y102: 0 | Z102: 0 | AA102: 0 | AB102: 126978.32 | AC102: -126978.32
A103: 0040 | C103: 2022 | D103: 1 | E103: 26 | F103: 00040 | G103: 打印费等进项税额 | H103: 应交税费-应交增值税-进项税额 | J103: 1269.78 | L103: 借 | M103: 2 | N103: 22210101 | R103: =_xlfn.XLOOKUP($H103,科目余额表!$B:$B,科目余额表!J:J) -> 0 | S103: =_xlfn.XLOOKUP($H103,科目余额表!$B:$B,科目余额表!K:K,"") -> 0 | T103: =_xlfn.XLOOKUP($H103,科目余额表!$B:$B,科目余额表!L:L,"") -> 0 | V103: 0040 | Y103: 0 | Z103: 0 | AA103: 0 | AB103: 1269.78 | AC103: -1269.78
A104: 0040 | C104: 2022 | D104: 1 | E104: 26 | F104: 00040 | G104: 打印费等入-襄垣县紫新广告服务部 | H104: 应付账款-集团外部-襄垣县紫新广告服务部 | K104: 128248.1 | L104: 贷 | M104: 2 | N104: 220202 | R104: =_xlfn.XLOOKUP($H104,科目余额表!$B:$B,科目余额表!J:J) ->  | S104: =_xlfn.XLOOKUP($H104,科目余额表!$B:$B,科目余额表!K:K,"") ->  | T104: =_xlfn.XLOOKUP($H104,科目余额表!$B:$B,科目余额表!L:L,"") ->  | V104: 0040 | Y104: 0 | Z104: 0 | AA104: 0 | AB104: 128248.1 | AC104: -128248.1
A105: 0041 | C105: 2022 | D105: 1 | E105: 26 | F105: 00041 | G105: 付货款-长治市锐锋鸿机电设备有限公司 | H105: 应付账款-集团外部-长治市锐锋鸿机电设备有限公司 | J105: 19000 | L105: 借 | M105: 2 | N105: 220202 | R105: =_xlfn.XLOOKUP($H105,科目余额表!$B:$B,科目余额表!J:J) ->  | S105: =_xlfn.XLOOKUP($H105,科目余额表!$B:$B,科目余额表!K:K,"") ->  | T105: =_xlfn.XLOOKUP($H105,科目余额表!$B:$B,科目余额表!L:L,"") ->  | V105: 0041 | Y105: 0 | Z105: 0 | AA105: 0 | AB105: 19000 | AC105: -19000
A106: 0041 | C106: 2022 | D106: 1 | E106: 26 | F106: 00041 | G106: 1.14日转锐锋鸿机电设备公司款-购买商品、接受劳务支付的现金 | H106: 银行存款-基本存款户-工行24921870-购买商品、接受劳务支付的现金 | K106: 19000 | L106: 贷 | M106: 1 | N106: 10020101 | R106: =_xlfn.XLOOKUP($H106,科目余额表!$B:$B,科目余额表!J:J) ->  | S106: =_xlfn.XLOOKUP($H106,科目余额表!$B:$B,科目余额表!K:K,"") ->  | T106: =_xlfn.XLOOKUP($H106,科目余额表!$B:$B,科目余额表!L:L,"") ->  | V106: 0041 | Y106: 0 | Z106: 0 | AA106: 0 | AB106: 19000 | AC106: -19000
A107: 0042 | C107: 2022 | D107: 1 | E107: 26 | F107: 00042 | G107: 1.14日工行1870户转入款-不涉及现金流量 | H107: 银行存款-一般存款户-中信银行401061-不涉及现金流量 | J107: 291374.68 | L107: 借 | M107: 1 | N107: 10020227 | R107: =_xlfn.XLOOKUP($H107,科目余额表!$B:$B,科目余额表!J:J) ->  | S107: =_xlfn.XLOOKUP($H107,科目余额表!$B:$B,科目余额表!K:K,"") ->  | T107: =_xlfn.XLOOKUP($H107,科目余额表!$B:$B,科目余额表!L:L,"") ->  | V107: 0042 | Y107: 0 | Z107: 0 | AA107: 0 | AB107: 291374.68 | AC107: -291374.68
A108: 0042 | C108: 2022 | D108: 1 | E108: 26 | F108: 00042 | G108: 1.14日转中信银行401061户款-不涉及现金流量 | H108: 银行存款-基本存款户-工行24921870-不涉及现金流量 | K108: 291374.68 | L108: 贷 | M108: 1 | N108: 10020101 | R108: =_xlfn.XLOOKUP($H108,科目余额表!$B:$B,科目余额表!J:J) ->  | S108: =_xlfn.XLOOKUP($H108,科目余额表!$B:$B,科目余额表!K:K,"") ->  | T108: =_xlfn.XLOOKUP($H108,科目余额表!$B:$B,科目余额表!L:L,"") ->  | V108: 0042 | Y108: 0 | Z108: 0 | AA108: 0 | AB108: 291374.68 | AC108: -291374.68
A109: 0043 | C109: 2022 | D109: 1 | E109: 26 | F109: 00043 | G109: 1.14日收顺达物流公司借资购车利息款-山西襄矿集团顺达物流有限公司-收到其他与经营活动有关的现金 | H109: 银行存款-基本存款户-工行24921870-山西襄矿集团顺达物流有限公司-收到其他与经营活动有关的现金 | J109: 291374.68 | L109: 借 | M109: 1 | N109: 10020101 | R109: =_xlfn.XLOOKUP($H109,科目余额表!$B:$B,科目余额表!J:J) ->  | S109: =_xlfn.XLOOKUP($H109,科目余额表!$B:$B,科目余额表!K:K,"") ->  | T109: =_xlfn.XLOOKUP($H109,科目余额表!$B:$B,科目余额表!L:L,"") ->  | V109: 0043 | Y109: 0 | Z109: 0 | AA109: 0 | AB109: 291374.68 | AC109: -291374.68
A110: 0043 | C110: 2022 | D110: 1 | E110: 26 | F110: 00043 | G110: 1.14日代付顺达物流公司借资购车利息款-支付给职工以及为职工支付的现金 | H110: 银行存款-一般存款户-中信银行401061-支付给职工以及为职工支付的现金 | K110: 291374.68 | L110: 贷 | M110: 1 | N110: 10020227 | R110: =_xlfn.XLOOKUP($H110,科目余额表!$B:$B,科目余额表!J:J) ->  | S110: =_xlfn.XLOOKUP($H110,科目余额表!$B:$B,科目余额表!K:K,"") ->  | T110: =_xlfn.XLOOKUP($H110,科目余额表!$B:$B,科目余额表!L:L,"") ->  | V110: 0043 | Y110: 0 | Z110: 0 | AA110: 0 | AB110: 291374.68 | AC110: -291374.68
A111: 0044 | C111: 2022 | D111: 1 | E111: 26 | F111: 00044 | G111: 收医疗保险-收到其他与经营活动有关的现金 | H111: 库存现金-收到其他与经营活动有关的现金 | J111: 3306.48 | L111: 借 | M111: 1 | N111: 1001 | R111: =_xlfn.XLOOKUP($H111,科目余额表!$B:$B,科目余额表!J:J) ->  | S111: =_xlfn.XLOOKUP($H111,科目余额表!$B:$B,科目余额表!K:K,"") ->  | T111: =_xlfn.XLOOKUP($H111,科目余额表!$B:$B,科目余额表!L:L,"") ->  | V111: 0044 | Y111: 0 | Z111: 0 | AA111: 0 | AB111: 3306.48 | AC111: -3306.48
A112: 0044 | C112: 2022 | D112: 1 | E112: 26 | F112: 00044 | G112: 收医疗保险 | H112: 应付职工薪酬-社会保险费-医疗保险金-基本医疗保险 | K112: 2498.28 | L112: 贷 | M112: 2 | N112: 2211030301 | R112: =_xlfn.XLOOKUP($H112,科目余额表!$B:$B,科目余额表!J:J) -> 0 | S112: =_xlfn.XLOOKUP($H112,科目余额表!$B:$B,科目余额表!K:K,"") -> 0 | T112: =_xlfn.XLOOKUP($H112,科目余额表!$B:$B,科目余额表!L:L,"") -> 0 | V112: 0044 | Y112: 0 | Z112: 0 | AA112: 0 | AB112: 2498.28 | AC112: -2498.28
A113: 0044 | C113: 2022 | D113: 1 | E113: 26 | F113: 00044 | G113: 收医疗保险 | H113: 其他应付款-待付款项-个人医疗保险（公有） | K113: 808.2 | L113: 贷 | M113: 2 | N113: 22410462 | R113: =_xlfn.XLOOKUP($H113,科目余额表!$B:$B,科目余额表!J:J) -> 0 | S113: =_xlfn.XLOOKUP($H113,科目余额表!$B:$B,科目余额表!K:K,"") -> 0 | T113: =_xlfn.XLOOKUP($H113,科目余额表!$B:$B,科目余额表!L:L,"") -> 0 | V113: 0044 | Y113: 0 | Z113: 0 | AA113: 0 | AB113: 808.2 | AC113: -808.2
A114: 0045 | C114: 2022 | D114: 1 | E114: 26 | F114: 00045 | G114: 收养老保险-收到其他与经营活动有关的现金 | H114: 库存现金-收到其他与经营活动有关的现金 | J114: 6987.6 | L114: 借 | M114: 1 | N114: 1001 | R114: =_xlfn.XLOOKUP($H114,科目余额表!$B:$B,科目余额表!J:J) ->  | S114: =_xlfn.XLOOKUP($H114,科目余额表!$B:$B,科目余额表!K:K,"") ->  | T114: =_xlfn.XLOOKUP($H114,科目余额表!$B:$B,科目余额表!L:L,"") ->  | V114: 0045 | Y114: 0 | Z114: 0 | AA114: 0 | AB114: 6987.6 | AC114: -6987.6
A115: 0045 | C115: 2022 | D115: 1 | E115: 26 | F115: 00045 | G115: 收养老保险 | H115: 其他应付款-待付款项-个人养老保险（公有） | K115: 2329.2 | L115: 贷 | M115: 2 | N115: 22410461 | R115: =_xlfn.XLOOKUP($H115,科目余额表!$B:$B,科目余额表!J:J) -> 0 | S115: =_xlfn.XLOOKUP($H115,科目余额表!$B:$B,科目余额表!K:K,"") -> 0 | T115: =_xlfn.XLOOKUP($H115,科目余额表!$B:$B,科目余额表!L:L,"") -> 0 | V115: 0045 | Y115: 0 | Z115: 0 | AA115: 0 | AB115: 2329.2 | AC115: -2329.2
A116: 0045 | C116: 2022 | D116: 1 | E116: 26 | F116: 00045 | G116: 收养老保险 | H116: 应付职工薪酬-社会保险费-基本养老金 | K116: 4658.4 | L116: 贷 | M116: 2 | N116: 22110301 | R116: =_xlfn.XLOOKUP($H116,科目余额表!$B:$B,科目余额表!J:J) -> 0 | S116: =_xlfn.XLOOKUP($H116,科目余额表!$B:$B,科目余额表!K:K,"") -> 0 | T116: =_xlfn.XLOOKUP($H116,科目余额表!$B:$B,科目余额表!L:L,"") -> 0 | V116: 0045 | Y116: 0 | Z116: 0 | AA116: 0 | AB116: 4658.4 | AC116: -4658.4
A117: 0046 | C117: 2022 | D117: 1 | E117: 26 | F117: 00046 | G117: 支消防检测费 | H117: 专项储备-安全费-安全新技术应用支出 | J117: 14000 | L117: 借 | M117: 4 | N117: 43010209 | R117: =_xlfn.XLOOKUP($H117,科目余额表!$B:$B,科目余额表!J:J) -> 0 | S117: =_xlfn.XLOOKUP($H117,科目余额表!$B:$B,科目余额表!K:K,"") -> 0 | T117: =_xlfn.XLOOKUP($H117,科目余额表!$B:$B,科目余额表!L:L,"") -> 0 | V117: 0046 | Y117: 0 | Z117: 0 | AA117: 0 | AB117: 14000 | AC117: -14000
A118: 0046 | C118: 2022 | D118: 1 | E118: 26 | F118: 00046 | G118: 1.18日转通测消防检测公司款-支付其他与经营活动有关的现金 | H118: 银行存款-一般存款户-襄垣农商行(安全专户)00061577-支付其他与经营活动有关的现金 | K118: 14000 | L118: 贷 | M118: 1 | N118: 10020220 | R118: =_xlfn.XLOOKUP($H118,科目余额表!$B:$B,科目余额表!J:J) ->  | S118: =_xlfn.XLOOKUP($H118,科目余额表!$B:$B,科目余额表!K:K,"") ->  | T118: =_xlfn.XLOOKUP($H118,科目余额表!$B:$B,科目余额表!L:L,"") ->  | V118: 0046 | Y118: 0 | Z118: 0 | AA118: 0 | AB118: 14000 | AC118: -14000
A119: 0047 | C119: 2022 | D119: 1 | E119: 26 | F119: 00047 | G119: 入道轨切割器等 | H119: 原材料-其他 | J119: 13805.31 | L119: 借 | M119: 1 | N119: 140399 | R119: =_xlfn.XLOOKUP($H119,科目余额表!$B:$B,科目余额表!J:J) -> 0 | S119: =_xlfn.XLOOKUP($H119,科目余额表!$B:$B,科目余额表!K:K,"") -> 0 | T119: =_xlfn.XLOOKUP($H119,科目余额表!$B:$B,科目余额表!L:L,"") -> 0 | V119: 0047 | Y119: 0 | Z119: 0 | AA119: 0 | AB119: 13805.31 | AC119: -13805.31
A120: 0047 | C120: 2022 | D120: 1 | E120: 26 | F120: 00047 | G120: 道轨切割器等进项税额 | H120: 应交税费-应交增值税-进项税额 | J120: 1794.69 | L120: 借 | M120: 2 | N120: 22210101 | R120: =_xlfn.XLOOKUP($H120,科目余额表!$B:$B,科目余额表!J:J) -> 0 | S120: =_xlfn.XLOOKUP($H120,科目余额表!$B:$B,科目余额表!K:K,"") -> 0 | T120: =_xlfn.XLOOKUP($H120,科目余额表!$B:$B,科目余额表!L:L,"") -> 0 | V120: 0047 | Y120: 0 | Z120: 0 | AA120: 0 | AB120: 1794.69 | AC120: -1794.69
A121: 0047 | C121: 2022 | D121: 1 | E121: 26 | F121: 00047 | G121: 1.14日转天津艾浮瑞特科技公司款-购买商品、接受劳务支付的现金 | H121: 银行存款-基本存款户-工行24921870-购买商品、接受劳务支付的现金 | K121: 15600 | L121: 贷 | M121: 1 | N121: 10020101 | R121: =_xlfn.XLOOKUP($H121,科目余额表!$B:$B,科目余额表!J:J) ->  | S121: =_xlfn.XLOOKUP($H121,科目余额表!$B:$B,科目余额表!K:K,"") ->  | T121: =_xlfn.XLOOKUP($H121,科目余额表!$B:$B,科目余额表!L:L,"") ->  | V121: 0047 | Y121: 0 | Z121: 0 | AA121: 0 | AB121: 15600 | AC121: -15600
A122: 0048 | C122: 2022 | D122: 1 | E122: 26 | F122: 00048 | G122: 入原材料 | H122: 原材料-其他 | J122: 57274.78 | L122: 借 | M122: 1 | N122: 140399 | R122: =_xlfn.XLOOKUP($H122,科目余额表!$B:$B,科目余额表!J:J) -> 0 | S122: =_xlfn.XLOOKUP($H122,科目余额表!$B:$B,科目余额表!K:K,"") -> 0 | T122: =_xlfn.XLOOKUP($H122,科目余额表!$B:$B,科目余额表!L:L,"") -> 0 | V122: 0048 | Y122: 0 | Z122: 0 | AA122: 0 | AB122: 57274.78 | AC122: -57274.78
A123: 0048 | C123: 2022 | D123: 1 | E123: 26 | F123: 00048 | G123: 原材料进项税额 | H123: 应交税费-应交增值税-进项税额 | J123: 7445.72 | L123: 借 | M123: 2 | N123: 22210101 | R123: =_xlfn.XLOOKUP($H123,科目余额表!$B:$B,科目余额表!J:J) -> 0 | S123: =_xlfn.XLOOKUP($H123,科目余额表!$B:$B,科目余额表!K:K,"") -> 0 | T123: =_xlfn.XLOOKUP($H123,科目余额表!$B:$B,科目余额表!L:L,"") -> 0 | V123: 0048 | Y123: 0 | Z123: 0 | AA123: 0 | AB123: 7445.72 | AC123: -7445.72
A124: 0048 | C124: 2022 | D124: 1 | E124: 26 | F124: 00048 | G124: 原材料入-襄垣县仁达机电设备有限公司 | H124: 应付账款-集团外部-襄垣县仁达机电设备有限公司 | K124: 64720.5 | L124: 贷 | M124: 2 | N124: 220202 | R124: =_xlfn.XLOOKUP($H124,科目余额表!$B:$B,科目余额表!J:J) ->  | S124: =_xlfn.XLOOKUP($H124,科目余额表!$B:$B,科目余额表!K:K,"") ->  | T124: =_xlfn.XLOOKUP($H124,科目余额表!$B:$B,科目余额表!L:L,"") ->  | V124: 0048 | Y124: 0 | Z124: 0 | AA124: 0 | AB124: 64720.5 | AC124: -64720.5
A125: 0049 | C125: 2022 | D125: 1 | E125: 26 | F125: 00049 | G125: 支行政科杂支款-其他 | H125: 管理费用-其他 | J125: 16675 | L125: 借 | M125: 6 | N125: 6602 | R125: =_xlfn.XLOOKUP($H125,科目余额表!$B:$B,科目余额表!J:J) -> 0 | S125: =_xlfn.XLOOKUP($H125,科目余额表!$B:$B,科目余额表!K:K,"") -> 0 | T125: =_xlfn.XLOOKUP($H125,科目余额表!$B:$B,科目余额表!L:L,"") -> 0 | V125: 0049 | Y125: 0 | Z125: 0 | AA125: 0 | AB125: 16675 | AC125: -16675
A126: 0049 | C126: 2022 | D126: 1 | E126: 26 | F126: 00049 | G126: 1.18日转红发日杂经销部款-购买商品、接受劳务支付的现金 | H126: 银行存款-基本存款户-工行24921870-购买商品、接受劳务支付的现金 | K126: 16675 | L126: 贷 | M126: 1 | N126: 10020101 | R126: =_xlfn.XLOOKUP($H126,科目余额表!$B:$B,科目余额表!J:J) ->  | S126: =_xlfn.XLOOKUP($H126,科目余额表!$B:$B,科目余额表!K:K,"") ->  | T126: =_xlfn.XLOOKUP($H126,科目余额表!$B:$B,科目余额表!L:L,"") ->  | V126: 0049 | Y126: 0 | Z126: 0 | AA126: 0 | AB126: 16675 | AC126: -16675
A127: 0050 | C127: 2022 | D127: 1 | E127: 26 | F127: 00050 | G127: 入液压油等 | H127: 原材料-其他 | J127: 60522.72 | L127: 借 | M127: 1 | N127: 140399 | R127: =_xlfn.XLOOKUP($H127,科目余额表!$B:$B,科目余额表!J:J) -> 0 | S127: =_xlfn.XLOOKUP($H127,科目余额表!$B:$B,科目余额表!K:K,"") -> 0 | T127: =_xlfn.XLOOKUP($H127,科目余额表!$B:$B,科目余额表!L:L,"") -> 0 | V127: 0050 | Y127: 0 | Z127: 0 | AA127: 0 | AB127: 60522.72 | AC127: -60522.72
A128: 0050 | C128: 2022 | D128: 1 | E128: 26 | F128: 00050 | G128: 液压油等进项税额 | H128: 应交税费-应交增值税-进项税额 | J128: 7867.95 | L128: 借 | M128: 2 | N128: 22210101 | R128: =_xlfn.XLOOKUP($H128,科目余额表!$B:$B,科目余额表!J:J) -> 0 | S128: =_xlfn.XLOOKUP($H128,科目余额表!$B:$B,科目余额表!K:K,"") -> 0 | T128: =_xlfn.XLOOKUP($H128,科目余额表!$B:$B,科目余额表!L:L,"") -> 0 | V128: 0050 | Y128: 0 | Z128: 0 | AA128: 0 | AB128: 7867.95 | AC128: -7867.95
A129: 0050 | C129: 2022 | D129: 1 | E129: 26 | F129: 00050 | G129: 液压油等入-襄垣县建恒有限责任公司 | H129: 应付账款-集团外部-襄垣县建恒有限责任公司 | K129: 68390.67 | L129: 贷 | M129: 2 | N129: 220202 | R129: =_xlfn.XLOOKUP($H129,科目余额表!$B:$B,科目余额表!J:J) ->  | S129: =_xlfn.XLOOKUP($H129,科目余额表!$B:$B,科目余额表!K:K,"") ->  | T129: =_xlfn.XLOOKUP($H129,科目余额表!$B:$B,科目余额表!L:L,"") ->  | V129: 0050 | Y129: 0 | Z129: 0 | AA129: 0 | AB129: 68390.67 | AC129: -68390.67
A130: 0051 | C130: 2022 | D130: 1 | E130: 26 | F130: 00051 | G130: 入原材料 | H130: 原材料-其他 | J130: 326145.14 | L130: 借 | M130: 1 | N130: 140399 | R130: =_xlfn.XLOOKUP($H130,科目余额表!$B:$B,科目余额表!J:J) -> 0 | S130: =_xlfn.XLOOKUP($H130,科目余额表!$B:$B,科目余额表!K:K,"") -> 0 | T130: =_xlfn.XLOOKUP($H130,科目余额表!$B:$B,科目余额表!L:L,"") -> 0 | V130: 0051 | Y130: 0 | Z130: 0 | AA130: 0 | AB130: 326145.14 | AC130: -326145.14
A131: 0051 | C131: 2022 | D131: 1 | E131: 26 | F131: 00051 | G131: 原材料进项税额 | H131: 应交税费-应交增值税-进项税额 | J131: 42398.86 | L131: 借 | M131: 2 | N131: 22210101 | R131: =_xlfn.XLOOKUP($H131,科目余额表!$B:$B,科目余额表!J:J) -> 0 | S131: =_xlfn.XLOOKUP($H131,科目余额表!$B:$B,科目余额表!K:K,"") -> 0 | T131: =_xlfn.XLOOKUP($H131,科目余额表!$B:$B,科目余额表!L:L,"") -> 0 | V131: =A131 -> 0051 | Y131: =IFERROR(_xlfn.IFS(LEFT(W131,1)="3",AB131,LEFT(W131,1)="1",AC131),0) -> 0 | Z131: =IFERROR(_xlfn.IFS(LEFT(W131,1)="3",AB131,LEFT(W131,1)="1",AC131),0) -> 0 | AA131: =IFERROR(_xlfn.IFS(LEFT(W131,1)="4",AB131,LEFT(W131,1)="2",AC131),0) -> 0 | AB131: =J131+K131 -> 42398.86 | AC131: =-AB131 -> -42398.86
A132: 0051 | C132: 2022 | D132: 1 | E132: 26 | F132: 00051 | G132: 原材料入-潞城市安科讯物贸有限公司 | H132: 预付账款-集团外部-潞城市安科讯物贸有限公司 | K132: 368544 | L132: 贷 | M132: 1 | N132: 112302 | R132: =_xlfn.XLOOKUP($H132,科目余额表!$B:$B,科目余额表!J:J) ->  | S132: =_xlfn.XLOOKUP($H132,科目余额表!$B:$B,科目余额表!K:K,"") ->  | T132: =_xlfn.XLOOKUP($H132,科目余额表!$B:$B,科目余额表!L:L,"") ->  | V132: 0051 | Y132: 0 | Z132: 0 | AA132: 0 | AB132: 368544 | AC132: -368544
A133: 0052 | C133: 2022 | D133: 1 | E133: 26 | F133: 00052 | G133: 购入工位桌、转椅等 | H133: 周转材料-低值易耗品 | J133: 89108.91 | L133: 借 | M133: 1 | N133: 141101 | R133: =_xlfn.XLOOKUP($H133,科目余额表!$B:$B,科目余额表!J:J) -> 0 | S133: =_xlfn.XLOOKUP($H133,科目余额表!$B:$B,科目余额表!K:K,"") -> 0 | T133: =_xlfn.XLOOKUP($H133,科目余额表!$B:$B,科目余额表!L:L,"") -> 0 | V133: 0052 | Y133: 0 | Z133: 0 | AA133: 0 | AB133: 89108.91 | AC133: -89108.91
A134: 0052 | C134: 2022 | D134: 1 | E134: 26 | F134: 00052 | G134: 工位桌、转椅等进项税额 | H134: 应交税费-应交增值税-进项税额 | J134: 891.09 | L134: 借 | M134: 2 | N134: 22210101 | R134: =_xlfn.XLOOKUP($H134,科目余额表!$B:$B,科目余额表!J:J) -> 0 | S134: =_xlfn.XLOOKUP($H134,科目余额表!$B:$B,科目余额表!K:K,"") -> 0 | T134: =_xlfn.XLOOKUP($H134,科目余额表!$B:$B,科目余额表!L:L,"") -> 0 | V134: 0052 | Y134: 0 | Z134: 0 | AA134: 0 | AB134: 891.09 | AC134: -891.09
A135: 0052 | C135: 2022 | D135: 1 | E135: 26 | F135: 00052 | G135: 工位桌、转椅等费入-长治市日升月恒家具有限公司 | H135: 预付账款-集团外部-长治市日升月恒家具有限公司 | K135: 90000 | L135: 贷 | M135: 1 | N135: 112302 | R135: =_xlfn.XLOOKUP($H135,科目余额表!$B:$B,科目余额表!J:J) ->  | S135: =_xlfn.XLOOKUP($H135,科目余额表!$B:$B,科目余额表!K:K,"") ->  | T135: =_xlfn.XLOOKUP($H135,科目余额表!$B:$B,科目余额表!L:L,"") ->  | V135: 0052 | Y135: 0 | Z135: 0 | AA135: 0 | AB135: 90000 | AC135: -90000
A136: 0052 | C136: 2022 | D136: 1 | E136: 26 | F136: 00052 | G136: 低值易耗品摊销-材料及低值易耗品摊销 | H136: 管理费用-材料及低值易耗品摊销 | J136: 89108.91 | L136: 借 | M136: 6 | N136: 6602 | R136: =_xlfn.XLOOKUP($H136,科目余额表!$B:$B,科目余额表!J:J) -> 0 | S136: =_xlfn.XLOOKUP($H136,科目余额表!$B:$B,科目余额表!K:K,"") -> 0 | T136: =_xlfn.XLOOKUP($H136,科目余额表!$B:$B,科目余额表!L:L,"") -> 0 | V136: 0052 | Y136: 0 | Z136: 0 | AA136: 0 | AB136: 89108.91 | AC136: -89108.91
A137: 0052 | C137: 2022 | D137: 1 | E137: 26 | F137: 00052 | G137: 摊入管理费 | H137: 周转材料-低值易耗品 | K137: 89108.91 | L137: 贷 | M137: 1 | N137: 141101 | R137: =_xlfn.XLOOKUP($H137,科目余额表!$B:$B,科目余额表!J:J) -> 0 | S137: =_xlfn.XLOOKUP($H137,科目余额表!$B:$B,科目余额表!K:K,"") -> 0 | T137: =_xlfn.XLOOKUP($H137,科目余额表!$B:$B,科目余额表!L:L,"") -> 0 | V137: 0052 | Y137: 0 | Z137: 0 | AA137: 0 | AB137: 89108.91 | AC137: -89108.91
A138: 0053 | C138: 2022 | D138: 1 | E138: 26 | F138: 00053 | G138: 支行政科减速带费-其他 | H138: 管理费用-其他 | J138: 16800 | L138: 借 | M138: 6 | N138: 6602 | R138: =_xlfn.XLOOKUP($H138,科目余额表!$B:$B,科目余额表!J:J) -> 0 | S138: =_xlfn.XLOOKUP($H138,科目余额表!$B:$B,科目余额表!K:K,"") -> 0 | T138: =_xlfn.XLOOKUP($H138,科目余额表!$B:$B,科目余额表!L:L,"") -> 0 | V138: 0053 | Y138: 0 | Z138: 0 | AA138: 0 | AB138: 16800 | AC138: -16800
A139: 0053 | C139: 2022 | D139: 1 | E139: 26 | F139: 00053 | G139: 1.18日转晨缘劳保五金批发部款-购买商品、接受劳务支付的现金 | H139: 银行存款-基本存款户-工行24921870-购买商品、接受劳务支付的现金 | K139: 16800 | L139: 贷 | M139: 1 | N139: 10020101 | R139: =_xlfn.XLOOKUP($H139,科目余额表!$B:$B,科目余额表!J:J) ->  | S139: =_xlfn.XLOOKUP($H139,科目余额表!$B:$B,科目余额表!K:K,"") ->  | T139: =_xlfn.XLOOKUP($H139,科目余额表!$B:$B,科目余额表!L:L,"") ->  | V139: 0053 | Y139: 0 | Z139: 0 | AA139: 0 | AB139: 16800 | AC139: -16800
A140: 0054 | C140: 2022 | D140: 1 | E140: 26 | F140: 00054 | G140: 入煤炭产量检测系统 | H140: 原材料-其他 | J140: 663716.8 | L140: 借 | M140: 1 | N140: 140399 | R140: =_xlfn.XLOOKUP($H140,科目余额表!$B:$B,科目余额表!J:J) -> 0 | S140: =_xlfn.XLOOKUP($H140,科目余额表!$B:$B,科目余额表!K:K,"") -> 0 | T140: =_xlfn.XLOOKUP($H140,科目余额表!$B:$B,科目余额表!L:L,"") -> 0 | V140: 0054 | Y140: 0 | Z140: 0 | AA140: 0 | AB140: 663716.8 | AC140: -663716.8
A141: 0054 | C141: 2022 | D141: 1 | E141: 26 | F141: 00054 | G141: 煤炭产量检测系统进项税额 | H141: 应交税费-应交增值税-进项税额 | J141: 86283.2 | L141: 借 | M141: 2 | N141: 22210101 | R141: =_xlfn.XLOOKUP($H141,科目余额表!$B:$B,科目余额表!J:J) -> 0 | S141: =_xlfn.XLOOKUP($H141,科目余额表!$B:$B,科目余额表!K:K,"") -> 0 | T141: =_xlfn.XLOOKUP($H141,科目余额表!$B:$B,科目余额表!L:L,"") -> 0 | V141: 0054 | Y141: 0 | Z141: 0 | AA141: 0 | AB141: 86283.2 | AC141: -86283.2
A142: 0054 | C142: 2022 | D142: 1 | E142: 26 | F142: 00054 | G142: 煤炭产量检测系统入-山西鲁鸿泰机电设备有限公司 | H142: 应付账款-集团外部-山西鲁鸿泰机电设备有限公司 | K142: 750000 | L142: 贷 | M142: 2 | N142: 220202 | R142: =_xlfn.XLOOKUP($H142,科目余额表!$B:$B,科目余额表!J:J) ->  | S142: =_xlfn.XLOOKUP($H142,科目余额表!$B:$B,科目余额表!K:K,"") ->  | T142: =_xlfn.XLOOKUP($H142,科目余额表!$B:$B,科目余额表!L:L,"") ->  | V142: 0054 | Y142: 0 | Z142: 0 | AA142: 0 | AB142: 750000 | AC142: -750000
A143: 0055 | C143: 2022 | D143: 1 | E143: 26 | F143: 00055 | G143: 支蒸压粉煤灰砖费 | H143: 专项储备-安全费-安全改造与隐患治理支出 | J143: 176991.16 | L143: 借 | M143: 4 | N143: 43010202 | R143: =_xlfn.XLOOKUP($H143,科目余额表!$B:$B,科目余额表!J:J) -> 0 | S143: =_xlfn.XLOOKUP($H143,科目余额表!$B:$B,科目余额表!K:K,"") -> 0 | T143: =_xlfn.XLOOKUP($H143,科目余额表!$B:$B,科目余额表!L:L,"") -> 0 | V143: 0055 | Y143: 0 | Z143: 0 | AA143: 0 | AB143: 176991.16 | AC143: -176991.16
A144: 0055 | C144: 2022 | D144: 1 | E144: 26 | F144: 00055 | G144: 蒸压粉煤灰砖进项税额 | H144: 应交税费-应交增值税-进项税额 | J144: 23008.84 | L144: 借 | M144: 2 | N144: 22210101 | R144: =_xlfn.XLOOKUP($H144,科目余额表!$B:$B,科目余额表!J:J) -> 0 | S144: =_xlfn.XLOOKUP($H144,科目余额表!$B:$B,科目余额表!K:K,"") -> 0 | T144: =_xlfn.XLOOKUP($H144,科目余额表!$B:$B,科目余额表!L:L,"") -> 0 | V144: 0055 | Y144: 0 | Z144: 0 | AA144: 0 | AB144: 23008.84 | AC144: -23008.84
A145: 0055 | C145: 2022 | D145: 1 | E145: 26 | F145: 00055 | G145: 蒸压粉煤灰砖费入-山西利恒环保科技有限公司 | H145: 应付账款-集团外部-山西利恒环保科技有限公司 | K145: 200000 | L145: 贷 | M145: 2 | N145: 220202 | R145: =_xlfn.XLOOKUP($H145,科目余额表!$B:$B,科目余额表!J:J) ->  | S145: =_xlfn.XLOOKUP($H145,科目余额表!$B:$B,科目余额表!K:K,"") ->  | T145: =_xlfn.XLOOKUP($H145,科目余额表!$B:$B,科目余额表!L:L,"") ->  | V145: 0055 | Y145: 0 | Z145: 0 | AA145: 0 | AB145: 200000 | AC145: -200000
A146: 0056 | C146: 2022 | D146: 1 | E146: 26 | F146: 00056 | G146: 支行政科沙发修理费-修理费 | H146: 管理费用-修理费 | J146: 32546 | L146: 借 | M146: 6 | N146: 6602 | R146: =_xlfn.XLOOKUP($H146,科目余额表!$B:$B,科目余额表!J:J) -> 0 | S146: =_xlfn.XLOOKUP($H146,科目余额表!$B:$B,科目余额表!K:K,"") -> 0 | T146: =_xlfn.XLOOKUP($H146,科目余额表!$B:$B,科目余额表!L:L,"") -> 0 | V146: 0056 | Y146: 0 | Z146: 0 | AA146: 0 | AB146: 32546 | AC146: -32546
A147: 0056 | C147: 2022 | D147: 1 | E147: 26 | F147: 00056 | G147: 1.18日转高新区大富华布艺店款-购买商品、接受劳务支付的现金 | H147: 银行存款-基本存款户-工行24921870-购买商品、接受劳务支付的现金 | K147: 32546 | L147: 贷 | M147: 1 | N147: 10020101 | R147: =_xlfn.XLOOKUP($H147,科目余额表!$B:$B,科目余额表!J:J) ->  | S147: =_xlfn.XLOOKUP($H147,科目余额表!$B:$B,科目余额表!K:K,"") ->  | T147: =_xlfn.XLOOKUP($H147,科目余额表!$B:$B,科目余额表!L:L,"") ->  | V147: 0056 | Y147: 0 | Z147: 0 | AA147: 0 | AB147: 32546 | AC147: -32546
A148: 0057 | C148: 2022 | D148: 1 | E148: 26 | F148: 00057 | G148: 支运费 | H148: 其他应付款-待付款项-预提费用（公有） | J148: 360757.03 | L148: 借 | M148: 2 | N148: 22410475 | R148: =_xlfn.XLOOKUP($H148,科目余额表!$B:$B,科目余额表!J:J) -> 0 | S148: =_xlfn.XLOOKUP($H148,科目余额表!$B:$B,科目余额表!K:K,"") -> 0 | T148: =_xlfn.XLOOKUP($H148,科目余额表!$B:$B,科目余额表!L:L,"") -> 0 | V148: 0057 | Y148: 0 | Z148: 0 | AA148: 0 | AB148: 360757.03 | AC148: -360757.03
A149: 0057 | C149: 2022 | D149: 1 | E149: 26 | F149: 00057 | G149: 运费进项税额 | H149: 应交税费-应交增值税-进项税额 | J149: 32468.13 | L149: 借 | M149: 2 | N149: 22210101 | R149: =_xlfn.XLOOKUP($H149,科目余额表!$B:$B,科目余额表!J:J) -> 0 | S149: =_xlfn.XLOOKUP($H149,科目余额表!$B:$B,科目余额表!K:K,"") -> 0 | T149: =_xlfn.XLOOKUP($H149,科目余额表!$B:$B,科目余额表!L:L,"") -> 0 | V149: 0057 | Y149: 0 | Z149: 0 | AA149: 0 | AB149: 32468.13 | AC149: -32468.13
A150: 0057 | C150: 2022 | D150: 1 | E150: 26 | F150: 00057 | G150: 运费入-山西襄矿集团顺达物流有限公司 | H150: 其他应付款-单位其他应付款-山西襄矿集团顺达物流有限公司 | K150: 393225.16 | L150: 贷 | M150: 2 | N150: 224101 | R150: =_xlfn.XLOOKUP($H150,科目余额表!$B:$B,科目余额表!J:J) ->  | S150: =_xlfn.XLOOKUP($H150,科目余额表!$B:$B,科目余额表!K:K,"") ->  | T150: =_xlfn.XLOOKUP($H150,科目余额表!$B:$B,科目余额表!L:L,"") ->  | V150: 0057 | Y150: 0 | Z150: 0 | AA150: 0 | AB150: 393225.16 | AC150: -393225.16
A151: 0058 | C151: 2022 | D151: 1 | E151: 26 | F151: 00058 | G151: 提福利费-其他 | H151: 管理费用-其他 | J151: 182070.8 | L151: 借 | M151: 6 | N151: 6602 | R151: =_xlfn.XLOOKUP($H151,科目余额表!$B:$B,科目余额表!J:J) -> 0 | S151: =_xlfn.XLOOKUP($H151,科目余额表!$B:$B,科目余额表!K:K,"") -> 0 | T151: =_xlfn.XLOOKUP($H151,科目余额表!$B:$B,科目余额表!L:L,"") -> 0 | V151: 0058 | Y151: 0 | Z151: 0 | AA151: 0 | AB151: 182070.8 | AC151: -182070.8
A152: 0058 | C152: 2022 | D152: 1 | E152: 26 | F152: 00058 | G152: 支硅PU篮球场费 | H152: 应付职工薪酬-应付福利费-其他 | K152: 182070.8 | L152: 贷 | M152: 2 | N152: 22110299 | R152: =_xlfn.XLOOKUP($H152,科目余额表!$B:$B,科目余额表!J:J) -> 0 | S152: =_xlfn.XLOOKUP($H152,科目余额表!$B:$B,科目余额表!K:K,"") -> 0 | T152: =_xlfn.XLOOKUP($H152,科目余额表!$B:$B,科目余额表!L:L,"") -> 0 | V152: 0058 | Y152: 0 | Z152: 0 | AA152: 0 | AB152: 182070.8 | AC152: -182070.8
A153: 0058 | C153: 2022 | D153: 1 | E153: 26 | F153: 00058 | G153: 支硅PU篮球场费 | H153: 应付职工薪酬-应付福利费-其他 | J153: 182070.8 | L153: 借 | M153: 2 | N153: 22110299 | R153: =_xlfn.XLOOKUP($H153,科目余额表!$B:$B,科目余额表!J:J) -> 0 | S153: =_xlfn.XLOOKUP($H153,科目余额表!$B:$B,科目余额表!K:K,"") -> 0 | T153: =_xlfn.XLOOKUP($H153,科目余额表!$B:$B,科目余额表!L:L,"") -> 0 | V153: 0058 | Y153: 0 | Z153: 0 | AA153: 0 | AB153: 182070.8 | AC153: -182070.8
A154: 0058 | C154: 2022 | D154: 1 | E154: 26 | F154: 00058 | G154: 硅PU篮球场进项税额 | H154: 应交税费-应交增值税-进项税额 | J154: 23669.2 | L154: 借 | M154: 2 | N154: 22210101 | R154: =_xlfn.XLOOKUP($H154,科目余额表!$B:$B,科目余额表!J:J) -> 0 | S154: =_xlfn.XLOOKUP($H154,科目余额表!$B:$B,科目余额表!K:K,"") -> 0 | T154: =_xlfn.XLOOKUP($H154,科目余额表!$B:$B,科目余额表!L:L,"") -> 0 | V154: 0058 | Y154: 0 | Z154: 0 | AA154: 0 | AB154: 23669.2 | AC154: -23669.2
A155: 0058 | C155: 2022 | D155: 1 | E155: 26 | F155: 00058 | G155: 硅PU篮球场入-山西昌烨装饰工程有限公司 | H155: 应付账款-集团外部-山西昌烨装饰工程有限公司 | K155: 205740 | L155: 贷 | M155: 2 | N155: 220202 | R155: =_xlfn.XLOOKUP($H155,科目余额表!$B:$B,科目余额表!J:J) ->  | S155: =_xlfn.XLOOKUP($H155,科目余额表!$B:$B,科目余额表!K:K,"") ->  | T155: =_xlfn.XLOOKUP($H155,科目余额表!$B:$B,科目余额表!L:L,"") ->  | V155: 0058 | Y155: 0 | Z155: 0 | AA155: 0 | AB155: 205740 | AC155: -205740
A156: 0059 | C156: 2022 | D156: 1 | E156: 26 | F156: 00059 | G156: 债权转让-山西隆顺工矿物资有限公司 | H156: 应付账款-集团外部-山西隆顺工矿物资有限公司 | J156: 85333.98 | L156: 借 | M156: 2 | N156: 220202 | R156: =_xlfn.XLOOKUP($H156,科目余额表!$B:$B,科目余额表!J:J) ->  | S156: =_xlfn.XLOOKUP($H156,科目余额表!$B:$B,科目余额表!K:K,"") ->  | T156: =_xlfn.XLOOKUP($H156,科目余额表!$B:$B,科目余额表!L:L,"") ->  | V156: 0059 | Y156: 0 | Z156: 0 | AA156: 0 | AB156: 85333.98 | AC156: -85333.98
A157: 0059 | C157: 2022 | D157: 1 | E157: 26 | F157: 00059 | G157: 债权转让-长治市城区玉鑫水暖物资部 | H157: 应付账款-集团外部-长治市城区玉鑫水暖物资部 | K157: 85333.98 | L157: 贷 | M157: 2 | N157: 220202 | R157: =_xlfn.XLOOKUP($H157,科目余额表!$B:$B,科目余额表!J:J) ->  | S157: =_xlfn.XLOOKUP($H157,科目余额表!$B:$B,科目余额表!K:K,"") ->  | T157: =_xlfn.XLOOKUP($H157,科目余额表!$B:$B,科目余额表!L:L,"") ->  | V157: 0059 | Y157: 0 | Z157: 0 | AA157: 0 | AB157: 85333.98 | AC157: -85333.98
A158: 0060 | C158: 2022 | D158: 1 | E158: 26 | F158: 00060 | G158: 支手续费 | H158: 财务费用-手续费 | J158: 330 | L158: 借 | M158: 6 | N158: 660301 | R158: =_xlfn.XLOOKUP($H158,科目余额表!$B:$B,科目余额表!J:J) -> 0 | S158: =_xlfn.XLOOKUP($H158,科目余额表!$B:$B,科目余额表!K:K,"") -> 0 | T158: =_xlfn.XLOOKUP($H158,科目余额表!$B:$B,科目余额表!L:L,"") -> 0 | V158: 0060 | Y158: 0 | Z158: 0 | AA158: 0 | AB158: 330 | AC158: -330
A159: 0060 | C159: 2022 | D159: 1 | E159: 26 | F159: 00060 | G159: 1.6日支手续费-支付其他与经营活动有关的现金 | H159: 银行存款-一般存款户-襄垣浦发00000039-支付其他与经营活动有关的现金 | K159: 300 | L159: 贷 | M159: 1 | N159: 10020219 | R159: =_xlfn.XLOOKUP($H159,科目余额表!$B:$B,科目余额表!J:J) ->  | S159: =_xlfn.XLOOKUP($H159,科目余额表!$B:$B,科目余额表!K:K,"") ->  | T159: =_xlfn.XLOOKUP($H159,科目余额表!$B:$B,科目余额表!L:L,"") ->  | V159: 0060 | Y159: 0 | Z159: 0 | AA159: 0 | AB159: 300 | AC159: -300
A160: 0060 | C160: 2022 | D160: 1 | E160: 26 | F160: 00060 | G160: 1.10日支手续费-支付其他与经营活动有关的现金 | H160: 银行存款-一般存款户-襄垣浦发00000039-支付其他与经营活动有关的现金 | K160: 15 | L160: 贷 | M160: 1 | N160: 10020219 | R160: =_xlfn.XLOOKUP($H160,科目余额表!$B:$B,科目余额表!J:J) ->  | S160: =_xlfn.XLOOKUP($H160,科目余额表!$B:$B,科目余额表!K:K,"") ->  | T160: =_xlfn.XLOOKUP($H160,科目余额表!$B:$B,科目余额表!L:L,"") ->  | V160: 0060 | Y160: 0 | Z160: 0 | AA160: 0 | AB160: 15 | AC160: -15
A161: 0060 | C161: 2022 | D161: 1 | E161: 26 | F161: 00060 | G161: 1.10日支手续费-支付其他与经营活动有关的现金 | H161: 银行存款-一般存款户-浦发00000495-支付其他与经营活动有关的现金 | K161: 15 | L161: 贷 | M161: 1 | N161: 10020204 | R161: =_xlfn.XLOOKUP($H161,科目余额表!$B:$B,科目余额表!J:J) ->  | S161: =_xlfn.XLOOKUP($H161,科目余额表!$B:$B,科目余额表!K:K,"") ->  | T161: =_xlfn.XLOOKUP($H161,科目余额表!$B:$B,科目余额表!L:L,"") ->  | V161: 0060 | Y161: 0 | Z161: 0 | AA161: 0 | AB161: 15 | AC161: -15
A162: 0060 | C162: 2022 | D162: 1 | E162: 26 | F162: 00060 | G162: 1.20日工行1870户转入款-不涉及现金流量 | H162: 银行存款-一般存款户-襄垣浦发00000039-不涉及现金流量 | J162: 1050000 | L162: 借 | M162: 1 | N162: 10020219 | R162: =_xlfn.XLOOKUP($H162,科目余额表!$B:$B,科目余额表!J:J) ->  | S162: =_xlfn.XLOOKUP($H162,科目余额表!$B:$B,科目余额表!K:K,"") ->  | T162: =_xlfn.XLOOKUP($H162,科目余额表!$B:$B,科目余额表!L:L,"") ->  | V162: 0060 | Y162: 0 | Z162: 0 | AA162: 0 | AB162: 1050000 | AC162: -1050000
A163: 0060 | C163: 2022 | D163: 1 | E163: 26 | F163: 00060 | G163: 1.20日转浦发0039户款-不涉及现金流量 | H163: 银行存款-基本存款户-工行24921870-不涉及现金流量 | K163: 1050000 | L163: 贷 | M163: 1 | N163: 10020101 | R163: =_xlfn.XLOOKUP($H163,科目余额表!$B:$B,科目余额表!J:J) ->  | S163: =_xlfn.XLOOKUP($H163,科目余额表!$B:$B,科目余额表!K:K,"") ->  | T163: =_xlfn.XLOOKUP($H163,科目余额表!$B:$B,科目余额表!L:L,"") ->  | V163: 0060 | Y163: 0 | Z163: 0 | AA163: 0 | AB163: 1050000 | AC163: -1050000
A164: 0061 | C164: 2022 | D164: 1 | E164: 26 | F164: 00061 | G164: 1.20日工行1870户转入款-不涉及现金流量 | H164: 银行存款-一般存款户-华夏银行00201278-不涉及现金流量 | J164: 800000 | L164: 借 | M164: 1 | N164: 10020213 | R164: =_xlfn.XLOOKUP($H164,科目余额表!$B:$B,科目余额表!J:J) ->  | S164: =_xlfn.XLOOKUP($H164,科目余额表!$B:$B,科目余额表!K:K,"") ->  | T164: =_xlfn.XLOOKUP($H164,科目余额表!$B:$B,科目余额表!L:L,"") ->  | V164: 0061 | Y164: 0 | Z164: 0 | AA164: 0 | AB164: 800000 | AC164: -800000
A165: 0061 | C165: 2022 | D165: 1 | E165: 26 | F165: 00061 | G165: 1.20日转华夏银行款-不涉及现金流量 | H165: 银行存款-基本存款户-工行24921870-不涉及现金流量 | K165: 800000 | L165: 贷 | M165: 1 | N165: 10020101 | R165: =_xlfn.XLOOKUP($H165,科目余额表!$B:$B,科目余额表!J:J) ->  | S165: =_xlfn.XLOOKUP($H165,科目余额表!$B:$B,科目余额表!K:K,"") ->  | T165: =_xlfn.XLOOKUP($H165,科目余额表!$B:$B,科目余额表!L:L,"") ->  | V165: 0061 | Y165: 0 | Z165: 0 | AA165: 0 | AB165: 800000 | AC165: -800000
A166: 0062 | C166: 2022 | D166: 1 | E166: 26 | F166: 00062 | G166: 1.20日工行1870户转入款-不涉及现金流量 | H166: 银行存款-一般存款户-长治兴业00047344-不涉及现金流量 | J166: 300000 | L166: 借 | M166: 1 | N166: 10020222 | R166: =_xlfn.XLOOKUP($H166,科目余额表!$B:$B,科目余额表!J:J) ->  | S166: =_xlfn.XLOOKUP($H166,科目余额表!$B:$B,科目余额表!K:K,"") ->  | T166: =_xlfn.XLOOKUP($H166,科目余额表!$B:$B,科目余额表!L:L,"") ->  | V166: 0062 | Y166: 0 | Z166: 0 | AA166: 0 | AB166: 300000 | AC166: -300000
A167: 0062 | C167: 2022 | D167: 1 | E167: 26 | F167: 00062 | G167: 1.20日转兴业7344户款-不涉及现金流量 | H167: 银行存款-基本存款户-工行24921870-不涉及现金流量 | K167: 300000 | L167: 贷 | M167: 1 | N167: 10020101 | R167: =_xlfn.XLOOKUP($H167,科目余额表!$B:$B,科目余额表!J:J) ->  | S167: =_xlfn.XLOOKUP($H167,科目余额表!$B:$B,科目余额表!K:K,"") ->  | T167: =_xlfn.XLOOKUP($H167,科目余额表!$B:$B,科目余额表!L:L,"") ->  | V167: 0062 | Y167: 0 | Z167: 0 | AA167: 0 | AB167: 300000 | AC167: -300000
A168: 0063 | C168: 2022 | D168: 1 | E168: 26 | F168: 00063 | G168: 冲销预计11月工资-工资 | H168: 生产成本-直接人工-工资 | J168: -9000000 | L168: 借 | M168: 5 | N168: 500102 | R168: =_xlfn.XLOOKUP($H168,科目余额表!$B:$B,科目余额表!J:J) ->  | S168: =_xlfn.XLOOKUP($H168,科目余额表!$B:$B,科目余额表!K:K,"") ->  | T168: =_xlfn.XLOOKUP($H168,科目余额表!$B:$B,科目余额表!L:L,"") ->  | V168: 0063 | Y168: 0 | Z168: 0 | AA168: 0 | AB168: -9000000 | AC168: 9000000
A169: 0063 | C169: 2022 | D169: 1 | E169: 26 | F169: 00063 | G169: 冲销预计11月工资-工资 | H169: 制造费用-工资 | J169: -1000000 | L169: 借 | M169: 5 | N169: 5101 | R169: =_xlfn.XLOOKUP($H169,科目余额表!$B:$B,科目余额表!J:J) ->  | S169: =_xlfn.XLOOKUP($H169,科目余额表!$B:$B,科目余额表!K:K,"") ->  | T169: =_xlfn.XLOOKUP($H169,科目余额表!$B:$B,科目余额表!L:L,"") ->  | V169: 0063 | Y169: 0 | Z169: 0 | AA169: 0 | AB169: -1000000 | AC169: 1000000
A170: 0063 | C170: 2022 | D170: 1 | E170: 26 | F170: 00063 | G170: 冲销预计11月工资-工资 | H170: 销售费用-工资 | J170: -200000 | L170: 借 | M170: 6 | N170: 6601 | R170: =_xlfn.XLOOKUP($H170,科目余额表!$B:$B,科目余额表!J:J) ->  | S170: =_xlfn.XLOOKUP($H170,科目余额表!$B:$B,科目余额表!K:K,"") ->  | T170: =_xlfn.XLOOKUP($H170,科目余额表!$B:$B,科目余额表!L:L,"") ->  | V170: 0063 | Y170: 0 | Z170: 0 | AA170: 0 | AB170: -200000 | AC170: 200000
A171: 0063 | C171: 2022 | D171: 1 | E171: 26 | F171: 00063 | G171: 冲销预计11月工资-工资 | H171: 管理费用-工资 | J171: -1600000 | L171: 借 | M171: 6 | N171: 6602 | R171: =_xlfn.XLOOKUP($H171,科目余额表!$B:$B,科目余额表!J:J) ->  | S171: =_xlfn.XLOOKUP($H171,科目余额表!$B:$B,科目余额表!K:K,"") ->  | T171: =_xlfn.XLOOKUP($H171,科目余额表!$B:$B,科目余额表!L:L,"") ->  | V171: 0063 | Y171: 0 | Z171: 0 | AA171: 0 | AB171: -1600000 | AC171: 1600000
A172: 0063 | C172: 2022 | D172: 1 | E172: 26 | F172: 00063 | G172: 冲销预计11月工资 | H172: 应付职工薪酬-应付工资-工资 | K172: -11800000 | L172: 贷 | M172: 2 | N172: 22110101 | R172: =_xlfn.XLOOKUP($H172,科目余额表!$B:$B,科目余额表!J:J) -> 0 | S172: =_xlfn.XLOOKUP($H172,科目余额表!$B:$B,科目余额表!K:K,"") -> 0 | T172: =_xlfn.XLOOKUP($H172,科目余额表!$B:$B,科目余额表!L:L,"") -> 0 | V172: 0063 | Y172: 0 | Z172: 0 | AA172: 0 | AB172: -11800000 | AC172: 11800000
A173: 0063 | C173: 2022 | D173: 1 | E173: 26 | F173: 00063 | G173: 冲销以预计11月生产队组工资9000000×16％提养老保险-其他 | H173: 生产成本-直接费用-其他 | J173: -1440000 | L173: 借 | M173: 5 | N173: 500103 | R173: =_xlfn.XLOOKUP($H173,科目余额表!$B:$B,科目余额表!J:J) -> 0 | S173: =_xlfn.XLOOKUP($H173,科目余额表!$B:$B,科目余额表!K:K,"") -> 0 | T173: =_xlfn.XLOOKUP($H173,科目余额表!$B:$B,科目余额表!L:L,"") -> 0 | V173: 0063 | Y173: 0 | Z173: 0 | AA173: 0 | AB173: -1440000 | AC173: 1440000
A174: 0063 | C174: 2022 | D174: 1 | E174: 26 | F174: 00063 | G174: 冲销以预计11月生产科室工资1000000×16％提养老保险-其他 | H174: 制造费用-其他 | J174: -160000 | L174: 借 | M174: 5 | N174: 5101 | R174: =_xlfn.XLOOKUP($H174,科目余额表!$B:$B,科目余额表!J:J) -> 0 | S174: =_xlfn.XLOOKUP($H174,科目余额表!$B:$B,科目余额表!K:K,"") -> 0 | T174: =_xlfn.XLOOKUP($H174,科目余额表!$B:$B,科目余额表!L:L,"") -> 0 | V174: 0063 | Y174: 0 | Z174: 0 | AA174: 0 | AB174: -160000 | AC174: 160000
A175: 0063 | C175: 2022 | D175: 1 | E175: 26 | F175: 00063 | G175: 冲销以预计11月销售科室工资200000×16％提养老保险-其他 | H175: 销售费用-其他 | J175: -32000 | L175: 借 | M175: 6 | N175: 6601 | R175: =_xlfn.XLOOKUP($H175,科目余额表!$B:$B,科目余额表!J:J) -> 0 | S175: =_xlfn.XLOOKUP($H175,科目余额表!$B:$B,科目余额表!K:K,"") -> 0 | T175: =_xlfn.XLOOKUP($H175,科目余额表!$B:$B,科目余额表!L:L,"") -> 0 | V175: 0063 | Y175: 0 | Z175: 0 | AA175: 0 | AB175: -32000 | AC175: 32000
A176: 0063 | C176: 2022 | D176: 1 | E176: 26 | F176: 00063 | G176: 冲销以预计11月管理科室工资1600000×16％提养老保险-其他 | H176: 管理费用-其他 | J176: -256000 | L176: 借 | M176: 6 | N176: 6602 | R176: =_xlfn.XLOOKUP($H176,科目余额表!$B:$B,科目余额表!J:J) -> 0 | S176: =_xlfn.XLOOKUP($H176,科目余额表!$B:$B,科目余额表!K:K,"") -> 0 | T176: =_xlfn.XLOOKUP($H176,科目余额表!$B:$B,科目余额表!L:L,"") -> 0 | V176: 0063 | Y176: 0 | Z176: 0 | AA176: 0 | AB176: -256000 | AC176: 256000
A177: 0063 | C177: 2022 | D177: 1 | E177: 26 | F177: 00063 | G177: 冲销以预计11月工资11800000×16％提养老保险 | H177: 应付职工薪酬-社会保险费-基本养老金 | K177: -1888000 | L177: 贷 | M177: 2 | N177: 22110301 | R177: =_xlfn.XLOOKUP($H177,科目余额表!$B:$B,科目余额表!J:J) -> 0 | S177: =_xlfn.XLOOKUP($H177,科目余额表!$B:$B,科目余额表!K:K,"") -> 0 | T177: =_xlfn.XLOOKUP($H177,科目余额表!$B:$B,科目余额表!L:L,"") -> 0 | V177: 0063 | Y177: 0 | Z177: 0 | AA177: 0 | AB177: -1888000 | AC177: 1888000
A178: 0063 | C178: 2022 | D178: 1 | E178: 26 | F178: 00063 | G178: 冲销以预计11月工资11800000×2％提工会经费-其他 | H178: 管理费用-其他 | J178: -236000 | L178: 借 | M178: 6 | N178: 6602 | R178: =_xlfn.XLOOKUP($H178,科目余额表!$B:$B,科目余额表!J:J) -> 0 | S178: =_xlfn.XLOOKUP($H178,科目余额表!$B:$B,科目余额表!K:K,"") -> 0 | T178: =_xlfn.XLOOKUP($H178,科目余额表!$B:$B,科目余额表!L:L,"") -> 0 | V178: 0063 | Y178: 0 | Z178: 0 | AA178: 0 | AB178: -236000 | AC178: 236000
A179: 0063 | C179: 2022 | D179: 1 | E179: 26 | F179: 00063 | G179: 冲销以预计11月工资11800000×2％×40％提工会经费 | H179: 应交税费-应交规费-上交工会经费 | K179: -94400 | L179: 贷 | M179: 2 | N179: 22211405 | R179: =_xlfn.XLOOKUP($H179,科目余额表!$B:$B,科目余额表!J:J) -> 0 | S179: =_xlfn.XLOOKUP($H179,科目余额表!$B:$B,科目余额表!K:K,"") -> 0 | T179: =_xlfn.XLOOKUP($H179,科目余额表!$B:$B,科目余额表!L:L,"") -> 0 | V179: 0063 | Y179: 0 | Z179: 0 | AA179: 0 | AB179: -94400 | AC179: 94400
A180: 0063 | C180: 2022 | D180: 1 | E180: 26 | F180: 00063 | G180: 冲销以预计11月工资11800000×2％×60％提工会经费 | H180: 应付职工薪酬-工会经费 | K180: -141600 | L180: 贷 | M180: 2 | N180: 221105 | R180: =_xlfn.XLOOKUP($H180,科目余额表!$B:$B,科目余额表!J:J) -> 0 | S180: =_xlfn.XLOOKUP($H180,科目余额表!$B:$B,科目余额表!K:K,"") -> 0 | T180: =_xlfn.XLOOKUP($H180,科目余额表!$B:$B,科目余额表!L:L,"") -> 0 | V180: 0063 | Y180: 0 | Z180: 0 | AA180: 0 | AB180: -141600 | AC180: 141600
A181: 0063 | C181: 2022 | D181: 1 | E181: 26 | F181: 00063 | G181: 冲销以预计11月工资11800000×6.8％提医疗经费-其他 | H181: 管理费用-其他 | I181: 应付职工薪酬-社会保险费-医疗保险金-基本医疗保险 | J181: -802400 | L181: 借 | M181: 6 | N181: 6602 | R181: =_xlfn.XLOOKUP($H181,科目余额表!$B:$B,科目余额表!J:J) -> 0 | S181: =_xlfn.XLOOKUP($H181,科目余额表!$B:$B,科目余额表!K:K,"") -> 0 | T181: =_xlfn.XLOOKUP($H181,科目余额表!$B:$B,科目余额表!L:L,"") -> 0 | V181: 0063 | Y181: 0 | Z181: 0 | AA181: 0 | AB181: -802400 | AC181: 802400
A182: 0063 | C182: 2022 | D182: 1 | E182: 26 | F182: 00063 | G182: 冲销以预计11月工资11800000×6.8％提医疗经费 | H182: 应付职工薪酬-社会保险费-医疗保险金-基本医疗保险 | K182: -802400 | L182: 贷 | M182: 2 | N182: 2211030301 | R182: =_xlfn.XLOOKUP($H182,科目余额表!$B:$B,科目余额表!J:J) -> 0 | S182: =_xlfn.XLOOKUP($H182,科目余额表!$B:$B,科目余额表!K:K,"") -> 0 | T182: =_xlfn.XLOOKUP($H182,科目余额表!$B:$B,科目余额表!L:L,"") -> 0 | V182: 0063 | Y182: 0 | Z182: 0 | AA182: 0 | AB182: -802400 | AC182: 802400
A183: 0063 | C183: 2022 | D183: 1 | E183: 26 | F183: 00063 | G183: 冲销以预计11月工资11800000×0.7％提失业经费-其他 | H183: 管理费用-其他 | J183: -82600 | L183: 借 | M183: 6 | N183: 6602 | R183: =_xlfn.XLOOKUP($H183,科目余额表!$B:$B,科目余额表!J:J) -> 0 | S183: =_xlfn.XLOOKUP($H183,科目余额表!$B:$B,科目余额表!K:K,"") -> 0 | T183: =_xlfn.XLOOKUP($H183,科目余额表!$B:$B,科目余额表!L:L,"") -> 0 | V183: 0063 | Y183: 0 | Z183: 0 | AA183: 0 | AB183: -82600 | AC183: 82600
A184: 0063 | C184: 2022 | D184: 1 | E184: 26 | F184: 00063 | G184: 冲销以预计11月工资11800000×0.7％提失业经费 | H184: 应付职工薪酬-社会保险费-失业保险金 | K184: -82600 | L184: 贷 | M184: 2 | N184: 22110305 | R184: =_xlfn.XLOOKUP($H184,科目余额表!$B:$B,科目余额表!J:J) -> 0 | S184: =_xlfn.XLOOKUP($H184,科目余额表!$B:$B,科目余额表!K:K,"") -> 0 | T184: =_xlfn.XLOOKUP($H184,科目余额表!$B:$B,科目余额表!L:L,"") -> 0 | V184: 0063 | Y184: 0 | Z184: 0 | AA184: 0 | AB184: -82600 | AC184: 82600
A185: 0064 | C185: 2022 | D185: 1 | E185: 26 | F185: 00064 | G185: 11月工资分配入-工资 | H185: 生产成本-直接人工-工资 | J185: 8864956 | L185: 借 | M185: 5 | N185: 500102 | R185: =_xlfn.XLOOKUP($H185,科目余额表!$B:$B,科目余额表!J:J) ->  | S185: =_xlfn.XLOOKUP($H185,科目余额表!$B:$B,科目余额表!K:K,"") ->  | T185: =_xlfn.XLOOKUP($H185,科目余额表!$B:$B,科目余额表!L:L,"") ->  | V185: 0064 | Y185: 0 | Z185: 0 | AA185: 0 | AB185: 8864956 | AC185: -8864956
A186: 0064 | C186: 2022 | D186: 1 | E186: 26 | F186: 00064 | G186: 11月工资分配入-工资 | H186: 制造费用-工资 | J186: 1111313.96 | L186: 借 | M186: 5 | N186: 5101 | R186: =_xlfn.XLOOKUP($H186,科目余额表!$B:$B,科目余额表!J:J) ->  | S186: =_xlfn.XLOOKUP($H186,科目余额表!$B:$B,科目余额表!K:K,"") ->  | T186: =_xlfn.XLOOKUP($H186,科目余额表!$B:$B,科目余额表!L:L,"") ->  | V186: 0064 | Y186: 0 | Z186: 0 | AA186: 0 | AB186: 1111313.96 | AC186: -1111313.96
A187: 0064 | C187: 2022 | D187: 1 | E187: 26 | F187: 00064 | G187: 11月工资分配入-工资 | H187: 销售费用-工资 | J187: 206344 | L187: 借 | M187: 6 | N187: 6601 | R187: =_xlfn.XLOOKUP($H187,科目余额表!$B:$B,科目余额表!J:J) ->  | S187: =_xlfn.XLOOKUP($H187,科目余额表!$B:$B,科目余额表!K:K,"") ->  | T187: =_xlfn.XLOOKUP($H187,科目余额表!$B:$B,科目余额表!L:L,"") ->  | V187: 0064 | Y187: 0 | Z187: 0 | AA187: 0 | AB187: 206344 | AC187: -206344
A188: 0064 | C188: 2022 | D188: 1 | E188: 26 | F188: 00064 | G188: 11月工资分配入-工资 | H188: 管理费用-工资 | J188: 1660304.18 | L188: 借 | M188: 6 | N188: 6602 | R188: =_xlfn.XLOOKUP($H188,科目余额表!$B:$B,科目余额表!J:J) ->  | S188: =_xlfn.XLOOKUP($H188,科目余额表!$B:$B,科目余额表!K:K,"") ->  | T188: =_xlfn.XLOOKUP($H188,科目余额表!$B:$B,科目余额表!L:L,"") ->  | V188: 0064 | Y188: 0 | Z188: 0 | AA188: 0 | AB188: 1660304.18 | AC188: -1660304.18
A189: 0064 | C189: 2022 | D189: 1 | E189: 26 | F189: 00064 | G189: 11月工资分配入 | H189: 应付职工薪酬-应付工资-工资 | K189: 11842918.14 | L189: 贷 | M189: 2 | N189: 22110101 | R189: =_xlfn.XLOOKUP($H189,科目余额表!$B:$B,科目余额表!J:J) -> 0 | S189: =_xlfn.XLOOKUP($H189,科目余额表!$B:$B,科目余额表!K:K,"") -> 0 | T189: =_xlfn.XLOOKUP($H189,科目余额表!$B:$B,科目余额表!L:L,"") -> 0 | V189: 0064 | Y189: 0 | Z189: 0 | AA189: 0 | AB189: 11842918.14 | AC189: -11842918.14
A190: 0065 | C190: 2022 | D190: 1 | E190: 26 | F190: 00065 | G190: 1.20日工行1870户转入款-不涉及现金流量 | H190: 银行存款-一般存款户-山西银行26500010-不涉及现金流量 | J190: 250000 | L190: 借 | M190: 1 | N190: 10020203 | R190: =_xlfn.XLOOKUP($H190,科目余额表!$B:$B,科目余额表!J:J) ->  | S190: =_xlfn.XLOOKUP($H190,科目余额表!$B:$B,科目余额表!K:K,"") ->  | T190: =_xlfn.XLOOKUP($H190,科目余额表!$B:$B,科目余额表!L:L,"") ->  | V190: 0065 | Y190: 0 | Z190: 0 | AA190: 0 | AB190: 250000 | AC190: -250000
A191: 0065 | C191: 2022 | D191: 1 | E191: 26 | F191: 00065 | G191: 1.20日转山西银行款-不涉及现金流量 | H191: 银行存款-基本存款户-工行24921870-不涉及现金流量 | K191: 250000 | L191: 贷 | M191: 1 | N191: 10020101 | R191: =_xlfn.XLOOKUP($H191,科目余额表!$B:$B,科目余额表!J:J) ->  | S191: =_xlfn.XLOOKUP($H191,科目余额表!$B:$B,科目余额表!K:K,"") ->  | T191: =_xlfn.XLOOKUP($H191,科目余额表!$B:$B,科目余额表!L:L,"") ->  | V191: 0065 | Y191: 0 | Z191: 0 | AA191: 0 | AB191: 250000 | AC191: -250000
A192: 0066 | C192: 2022 | D192: 1 | E192: 26 | F192: 00066 | G192: 1.20日工行1870户转入款-不涉及现金流量 | H192: 银行存款-一般存款户-光大银行00225156-不涉及现金流量 | J192: 200000 | L192: 借 | M192: 1 | N192: 10020212 | R192: =_xlfn.XLOOKUP($H192,科目余额表!$B:$B,科目余额表!J:J) ->  | S192: =_xlfn.XLOOKUP($H192,科目余额表!$B:$B,科目余额表!K:K,"") ->  | T192: =_xlfn.XLOOKUP($H192,科目余额表!$B:$B,科目余额表!L:L,"") ->  | V192: 0066 | Y192: 0 | Z192: 0 | AA192: 0 | AB192: 200000 | AC192: -200000
A193: 0066 | C193: 2022 | D193: 1 | E193: 26 | F193: 00066 | G193: 1.20日转光大银行款-不涉及现金流量 | H193: 银行存款-基本存款户-工行24921870-不涉及现金流量 | K193: 200000 | L193: 贷 | M193: 1 | N193: 10020101 | R193: =_xlfn.XLOOKUP($H193,科目余额表!$B:$B,科目余额表!J:J) ->  | S193: =_xlfn.XLOOKUP($H193,科目余额表!$B:$B,科目余额表!K:K,"") ->  | T193: =_xlfn.XLOOKUP($H193,科目余额表!$B:$B,科目余额表!L:L,"") ->  | V193: 0066 | Y193: 0 | Z193: 0 | AA193: 0 | AB193: 200000 | AC193: -200000
A194: 0067 | C194: 2022 | D194: 1 | E194: 26 | F194: 00067 | G194: 1.20日工行1870户转入款-不涉及现金流量 | H194: 银行存款-一般存款户-渤海银行63000161-不涉及现金流量 | J194: 1000 | L194: 借 | M194: 1 | N194: 10020218 | R194: =_xlfn.XLOOKUP($H194,科目余额表!$B:$B,科目余额表!J:J) ->  | S194: =_xlfn.XLOOKUP($H194,科目余额表!$B:$B,科目余额表!K:K,"") ->  | T194: =_xlfn.XLOOKUP($H194,科目余额表!$B:$B,科目余额表!L:L,"") ->  | V194: 0067 | Y194: 0 | Z194: 0 | AA194: 0 | AB194: 1000 | AC194: -1000
A195: 0067 | C195: 2022 | D195: 1 | E195: 26 | F195: 00067 | G195: 1.20日转渤海银行款-不涉及现金流量 | H195: 银行存款-基本存款户-工行24921870-不涉及现金流量 | K195: 1000 | L195: 贷 | M195: 1 | N195: 10020101 | R195: =_xlfn.XLOOKUP($H195,科目余额表!$B:$B,科目余额表!J:J) ->  | S195: =_xlfn.XLOOKUP($H195,科目余额表!$B:$B,科目余额表!K:K,"") ->  | T195: =_xlfn.XLOOKUP($H195,科目余额表!$B:$B,科目余额表!L:L,"") ->  | V195: =A195 -> 0067 | Y195: =IFERROR(_xlfn.IFS(LEFT(W195,1)="3",AB195,LEFT(W195,1)="1",AC195),0) -> 0 | Z195: =IFERROR(_xlfn.IFS(LEFT(W195,1)="3",AB195,LEFT(W195,1)="1",AC195),0) -> 0 | AA195: =IFERROR(_xlfn.IFS(LEFT(W195,1)="4",AB195,LEFT(W195,1)="2",AC195),0) -> 0 | AB195: =J195+K195 -> 1000 | AC195: =-AB195 -> -1000
A196: 0068 | C196: 2022 | D196: 1 | E196: 26 | F196: 00068 | G196: 1.12日浦发0385户转入款-不涉及现金流量 | H196: 银行存款-一般存款户-襄垣浦发00000039-不涉及现金流量 | J196: 1960000 | L196: 借 | M196: 1 | N196: 10020219 | R196: =_xlfn.XLOOKUP($H196,科目余额表!$B:$B,科目余额表!J:J) ->  | S196: =_xlfn.XLOOKUP($H196,科目余额表!$B:$B,科目余额表!K:K,"") ->  | T196: =_xlfn.XLOOKUP($H196,科目余额表!$B:$B,科目余额表!L:L,"") ->  | V196: 0068 | Y196: 0 | Z196: 0 | AA196: 0 | AB196: 1960000 | AC196: -1960000
A197: 0068 | C197: 2022 | D197: 1 | E197: 26 | F197: 00068 | G197: 1.12日转浦发0039户款-不涉及现金流量 | H197: 银行存款-一般存款户-襄垣浦发银行（矿山环境治理基金）000385-不涉及现金流量 | K197: 1960000 | L197: 贷 | M197: 1 | N197: 10020226 | R197: =_xlfn.XLOOKUP($H197,科目余额表!$B:$B,科目余额表!J:J) ->  | S197: =_xlfn.XLOOKUP($H197,科目余额表!$B:$B,科目余额表!K:K,"") ->  | T197: =_xlfn.XLOOKUP($H197,科目余额表!$B:$B,科目余额表!L:L,"") ->  | V197: 0068 | Y197: 0 | Z197: 0 | AA197: 0 | AB197: 1960000 | AC197: -1960000
A198: 0069 | C198: 2022 | D198: 1 | E198: 26 | F198: 00069 | G198: 1.20日收集团公司往来款-山西襄矿集团有限公司（本部）-收到其他与经营活动有关的现金 | H198: 银行存款-基本存款户-工行24921870-山西襄矿集团有限公司（本部）-收到其他与经营活动有关的现金 | J198: 3450000 | L198: 借 | M198: 1 | N198: 10020101 | R198: =_xlfn.XLOOKUP($H198,科目余额表!$B:$B,科目余额表!J:J) ->  | S198: =_xlfn.XLOOKUP($H198,科目余额表!$B:$B,科目余额表!K:K,"") ->  | T198: =_xlfn.XLOOKUP($H198,科目余额表!$B:$B,科目余额表!L:L,"") ->  | V198: 0069 | Y198: 0 | Z198: 0 | AA198: 0 | AB198: 3450000 | AC198: -3450000
A199: 0069 | C199: 2022 | D199: 1 | E199: 26 | F199: 00069 | G199: 1.20日收集团公司往来款-山西襄矿集团有限公司（本部） | H199: 其他应收款-单位其他应收款-山西襄矿集团有限公司（本部） | K199: 3450000 | L199: 贷 | M199: 1 | N199: 122101 | R199: =_xlfn.XLOOKUP($H199,科目余额表!$B:$B,科目余额表!J:J) ->  | S199: =_xlfn.XLOOKUP($H199,科目余额表!$B:$B,科目余额表!K:K,"") ->  | T199: =_xlfn.XLOOKUP($H199,科目余额表!$B:$B,科目余额表!L:L,"") ->  | V199: 0069 | Y199: 0 | Z199: 0 | AA199: 0 | AB199: 3450000 | AC199: -3450000
A200: 0070 | C200: 2022 | D200: 1 | E200: 26 | F200: 00070 | G200: 支11月份职工工资 | H200: 应付职工薪酬-应付工资-工资 | J200: 11842918.14 | L200: 借 | M200: 2 | N200: 22110101 | R200: =_xlfn.XLOOKUP($H200,科目余额表!$B:$B,科目余额表!J:J) -> 0 | S200: =_xlfn.XLOOKUP($H200,科目余额表!$B:$B,科目余额表!K:K,"") -> 0 | T200: =_xlfn.XLOOKUP($H200,科目余额表!$B:$B,科目余额表!L:L,"") -> 0 | V200: 0070 | Y200: 0 | Z200: 0 | AA200: 0 | AB200: 11842918.14 | AC200: -11842918.14
... 2050 more rows

Sheet 职工薪酬借贷核对
A1: 标准二级字段 | B1: 一、职工薪酬 | C1: 序时账总行数 | D1: 差异凭证笔数 | E1: 差异凭证标签 | I1: 科目余额表贷方 | J1: 透视表贷方 | K1: 差异
A2: 凭证类别 | B2: 计提 | C2: =COUNTA(序时账!$A:$A) -> 10785 | D2: =COUNTS(E2," ")+1 -> 134 | E2: 0005 0021 0022 0038 0044 0045 0058 0063 0072 0073 0138 0268 0269 0284 0286 0293 0330 0363 0377 0429 0500 0581 0623 0643 0657 0658 0746 0751 0756 0763 0807 0824 0829 0857 0858 0864 0879 0887 0889 0968 1065 1066 1069 1083 1117 1126 1128 1131 1132 1141 1213 1223 1269 1282 1349 1449 1481 1525 1526 1539 1542 1548 1590 1592 1593 1625 1690 1803 1804 1807 1845 1846 1912 1913 1964 2001 2033 2035 2036 2038 2127 2133 2155 2160 2182 2186 2239 2295 2326 2333 2344 2486 2487 2493 2559 2560 2605 2624 2626 2628 2630 2636 2645 2673 2684 2689 2740 2749 2750 2752 2777 2810 2811 2904 2985 3010 3012 3013 3014 3046 3084 3087 3091 3144 3188 3280 3281 3283 3299 3351 3357 3358 3361 3389 | I2: =SUMIFS(科目余额表!G:G,科目余额表!C:C,"应付职工薪酬",科目余额表!J:J,1) -> 0 | J2: =SUM(E:E) -> 217268380.1 | K2: =J2-I2 -> 217268380.1
J3: 单凭证核对 | M3: 多凭证核对 | P3: 单凭证合计核对 | Q3: =IF(SUM(Q5:Q100000)-SUM(R5:R100000)=0,"借贷一致","关注借贷调整不一致") -> 借贷一致
A4: 标签 | B4: 标准一级字段 | C4: 标准三级字段 | D4: 求和项:借方 | E4: 求和项:贷方 | F4: 凭证笔数 | G4: 薪酬笔数 | H4: 差异绝对值个数 | I4: 差异绝对值 | J4: 单凭证核对前 | K4: 单凭证核对后 | L4: 调整思路 | M4: 多凭证核对前 | N4: 另一标签 | O4: 多凭证核对后 | P4: 一对多核对 | Q4: 应付职工薪酬借方调整 | R4: 应付职工薪酬贷方调整 | S4: 成本费用调整金额
A5: 0005 | B5: 应付职工薪酬 | C5: 基本医疗保险费 | E5: 1355.88 | F5: =COUNTIFS(A:A,A5) -> 1 | G5: =COUNTIFS(A:A,A:A,C:C,C:C) -> 1 | H5: =COUNTIFS(I:I,I5) -> 1 | I5: =ABS(J5) -> 1355.88 | J5: =SUMIFS(D:D,A:A,A:A,C:C,C:C)-SUMIFS(E:E,A:A,A:A,C:C,C:C) -> -1355.88 | K5: =J5+S5-R5 -> -1355.88 | L5: =IF(J5=0,"无差异",IF(SUMIFS(D:D,A:A,A:A,C:C,C:C)=0,"4调费用或1去借贷",IF(SUMIFS(E:E,A:A,A:A,C:C,C:C)=0,"3调借贷或2去费用","4调费用或3调借贷"))) -> 4调费用或1去借贷 | M5: =SUMIFS($D:$D,$A:$A,$A:$A,$C:$C,$C:$C)-SUMIFS($E:$E,$A:$A,$A:$A,$C:$C,$C:$C) -> -1355.88 | O5: =M5+SUMIFS($D:$D,$C:$C,$C:$C,$A:$A,$N:$N)-SUMIFS($E:$E,$C:$C,$C:$C,$A:$A,$N:$N) -> -1355.88 | P5: =SUMIFS(D:D,A:A,A:A)-SUMIFS(E:E,A:A,A:A) -> -1355.88 | Q5: =SUMIFS(序时账!Y:Y,序时账!$V:$V,$A:$A,序时账!$X:$X,$C:$C) -> 0 | R5: =SUMIFS(序时账!Z:Z,序时账!$V:$V,$A:$A,序时账!$X:$X,$C:$C) -> 0 | S5: =SUMIFS(序时账!AA:AA,序时账!$V:$V,$A:$A,序时账!$X:$X,$C:$C) -> 0
A6: 0021 | B6: 应付职工薪酬 | C6: 基本医疗保险费 | E6: 6671.4 | F6: =COUNTIFS(A:A,A6) -> 1 | G6: =COUNTIFS(A:A,A:A,C:C,C:C) -> 1 | H6: =COUNTIFS(I:I,I6) -> 1 | I6: =ABS(J6) -> 6671.4 | J6: =SUMIFS(D:D,A:A,A:A,C:C,C:C)-SUMIFS(E:E,A:A,A:A,C:C,C:C) -> -6671.4 | K6: =J6+S6-R6 -> -6671.4 | L6: =IF(J6=0,"无差异",IF(SUMIFS(D:D,A:A,A:A,C:C,C:C)=0,"4调费用或1去借贷",IF(SUMIFS(E:E,A:A,A:A,C:C,C:C)=0,"3调借贷或2去费用","4调费用或3调借贷"))) -> 4调费用或1去借贷 | M6: =SUMIFS($D:$D,$A:$A,$A:$A,$C:$C,$C:$C)-SUMIFS($E:$E,$A:$A,$A:$A,$C:$C,$C:$C) -> -6671.4 | O6: =M6+SUMIFS($D:$D,$C:$C,$C:$C,$A:$A,$N:$N)-SUMIFS($E:$E,$C:$C,$C:$C,$A:$A,$N:$N) -> -6671.4 | P6: =SUMIFS(D:D,A:A,A:A)-SUMIFS(E:E,A:A,A:A) -> -6671.4 | Q6: =SUMIFS(序时账!Y:Y,序时账!$V:$V,$A:$A,序时账!$X:$X,$C:$C) -> 0 | R6: =SUMIFS(序时账!Z:Z,序时账!$V:$V,$A:$A,序时账!$X:$X,$C:$C) -> 0 | S6: =SUMIFS(序时账!AA:AA,序时账!$V:$V,$A:$A,序时账!$X:$X,$C:$C) -> 0
A7: 0022 | B7: 应付职工薪酬 | C7: 基本养老保险费 | E7: 5176 | F7: 1 | G7: 1 | H7: 1 | I7: 5176 | J7: -5176 | K7: -5176 | L7: 4调费用或1去借贷 | M7: -5176 | O7: -5176 | P7: -5176 | Q7: =SUMIFS(序时账!Y:Y,序时账!$V:$V,$A:$A,序时账!$X:$X,$C:$C) -> 0 | R7: =SUMIFS(序时账!Z:Z,序时账!$V:$V,$A:$A,序时账!$X:$X,$C:$C) -> 0 | S7: =SUMIFS(序时账!AA:AA,序时账!$V:$V,$A:$A,序时账!$X:$X,$C:$C) -> 0
A8: 0038 | B8: 应付职工薪酬 | C8: 职工福利费支出 | E8: 486.54 | F8: 1 | G8: 1 | H8: 1 | I8: 486.54 | J8: -486.54 | K8: -486.54 | L8: 4调费用或1去借贷 | M8: -486.54 | O8: -486.54 | P8: -486.54 | Q8: =SUMIFS(序时账!Y:Y,序时账!$V:$V,$A:$A,序时账!$X:$X,$C:$C) -> 0 | R8: =SUMIFS(序时账!Z:Z,序时账!$V:$V,$A:$A,序时账!$X:$X,$C:$C) -> 0 | S8: =SUMIFS(序时账!AA:AA,序时账!$V:$V,$A:$A,序时账!$X:$X,$C:$C) -> 0
A9: 0044 | B9: 应付职工薪酬 | C9: 基本医疗保险费 | E9: 2498.28 | F9: 1 | G9: 1 | H9: 1 | I9: 2498.28 | J9: -2498.28 | K9: -2498.28 | L9: 4调费用或1去借贷 | M9: -2498.28 | O9: -2498.28 | P9: -2498.28 | Q9: =SUMIFS(序时账!Y:Y,序时账!$V:$V,$A:$A,序时账!$X:$X,$C:$C) -> 0 | R9: =SUMIFS(序时账!Z:Z,序时账!$V:$V,$A:$A,序时账!$X:$X,$C:$C) -> 0 | S9: =SUMIFS(序时账!AA:AA,序时账!$V:$V,$A:$A,序时账!$X:$X,$C:$C) -> 0
A10: 0045 | B10: 应付职工薪酬 | C10: 基本养老保险费 | E10: 4658.4 | F10: 1 | G10: 1 | H10: 1 | I10: 4658.4 | J10: -4658.4 | K10: -4658.4 | L10: 4调费用或1去借贷 | M10: -4658.4 | O10: -4658.4 | P10: -4658.4 | Q10: =SUMIFS(序时账!Y:Y,序时账!$V:$V,$A:$A,序时账!$X:$X,$C:$C) -> 0 | R10: =SUMIFS(序时账!Z:Z,序时账!$V:$V,$A:$A,序时账!$X:$X,$C:$C) -> 0 | S10: =SUMIFS(序时账!AA:AA,序时账!$V:$V,$A:$A,序时账!$X:$X,$C:$C) -> 0
A11: 0058 | B11: 应付职工薪酬 | C11: 职工福利费支出 | E11: 182070.8 | F11: 1 | G11: 1 | H11: 1 | I11: 182070.8 | J11: -182070.8 | K11: -182070.8 | L11: 4调费用或1去借贷 | M11: -182070.8 | O11: -182070.8 | P11: -182070.8 | Q11: =SUMIFS(序时账!Y:Y,序时账!$V:$V,$A:$A,序时账!$X:$X,$C:$C) -> 0 | R11: =SUMIFS(序时账!Z:Z,序时账!$V:$V,$A:$A,序时账!$X:$X,$C:$C) -> 0 | S11: =SUMIFS(序时账!AA:AA,序时账!$V:$V,$A:$A,序时账!$X:$X,$C:$C) -> 0
A12: 0063 | B12: 制造费用 | C12: 工资薪金支出 | D12: -1000000 | F12: 9 | G12: 5 | H12: 380 | I12: 0 | J12: 0 | K12: 0 | L12: 无差异 | M12: 0 | O12: 0 | P12: 2914600 | Q12: =SUMIFS(序时账!Y:Y,序时账!$V:$V,$A:$A,序时账!$X:$X,$C:$C) -> 0 | R12: =SUMIFS(序时账!Z:Z,序时账!$V:$V,$A:$A,序时账!$X:$X,$C:$C) -> 0 | S12: =SUMIFS(序时账!AA:AA,序时账!$V:$V,$A:$A,序时账!$X:$X,$C:$C) -> 0
A13: 0063 | B13: 应付职工薪酬 | C13: 基本医疗保险费 | E13: -802400 | F13: 9 | G13: 1 | H13: 4 | I13: 802400 | J13: 802400 | K13: 802400 | L13: 4调费用或1去借贷 | M13: 802400 | O13: 802400 | P13: 2914600 | Q13: =SUMIFS(序时账!Y:Y,序时账!$V:$V,$A:$A,序时账!$X:$X,$C:$C) -> 0 | R13: =SUMIFS(序时账!Z:Z,序时账!$V:$V,$A:$A,序时账!$X:$X,$C:$C) -> 0 | S13: =SUMIFS(序时账!AA:AA,序时账!$V:$V,$A:$A,序时账!$X:$X,$C:$C) -> 0
A14: 0063 | B14: 应付职工薪酬 | C14: 基本养老保险费 | E14: -1888000 | F14: 9 | G14: 1 | H14: 4 | I14: 1888000 | J14: 1888000 | K14: 1888000 | L14: 4调费用或1去借贷 | M14: 1888000 | O14: 1888000 | P14: 2914600 | Q14: =SUMIFS(序时账!Y:Y,序时账!$V:$V,$A:$A,序时账!$X:$X,$C:$C) -> 0 | R14: =SUMIFS(序时账!Z:Z,序时账!$V:$V,$A:$A,序时账!$X:$X,$C:$C) -> 0 | S14: =SUMIFS(序时账!AA:AA,序时账!$V:$V,$A:$A,序时账!$X:$X,$C:$C) -> 0
A15: 0063 | B15: 应付职工薪酬 | C15: 工资薪金支出 | E15: -11800000 | F15: 9 | G15: 5 | H15: 380 | I15: 0 | J15: 0 | K15: 0 | L15: 无差异 | M15: 0 | O15: 0 | P15: 2914600 | Q15: =SUMIFS(序时账!Y:Y,序时账!$V:$V,$A:$A,序时账!$X:$X,$C:$C) -> 0 | R15: =SUMIFS(序时账!Z:Z,序时账!$V:$V,$A:$A,序时账!$X:$X,$C:$C) -> 0 | S15: =SUMIFS(序时账!AA:AA,序时账!$V:$V,$A:$A,序时账!$X:$X,$C:$C) -> 0
A16: 0063 | B16: 应付职工薪酬 | C16: 工会经费支出 | E16: -141600 | F16: 9 | G16: 1 | H16: 4 | I16: 141600 | J16: 141600 | K16: 141600 | L16: 4调费用或1去借贷 | M16: =SUMIFS($D:$D,$A:$A,$A:$A,$C:$C,$C:$C)-SUMIFS($E:$E,$A:$A,$A:$A,$C:$C,$C:$C) -> 141600 | O16: 141600 | P16: 2914600 | Q16: =SUMIFS(序时账!Y:Y,序时账!$V:$V,$A:$A,序时账!$X:$X,$C:$C) -> 0 | R16: =SUMIFS(序时账!Z:Z,序时账!$V:$V,$A:$A,序时账!$X:$X,$C:$C) -> 0 | S16: =SUMIFS(序时账!AA:AA,序时账!$V:$V,$A:$A,序时账!$X:$X,$C:$C) -> 0
A17: 0063 | B17: 应付职工薪酬 | C17: 失业保险费 | E17: -82600 | F17: 9 | G17: 1 | H17: 4 | I17: 82600 | J17: 82600 | K17: 82600 | L17: 4调费用或1去借贷 | M17: 82600 | O17: 82600 | P17: 2914600 | Q17: =SUMIFS(序时账!Y:Y,序时账!$V:$V,$A:$A,序时账!$X:$X,$C:$C) -> 0 | R17: =SUMIFS(序时账!Z:Z,序时账!$V:$V,$A:$A,序时账!$X:$X,$C:$C) -> 0 | S17: =SUMIFS(序时账!AA:AA,序时账!$V:$V,$A:$A,序时账!$X:$X,$C:$C) -> 0
A18: 0063 | B18: 管理费用 | C18: 工资薪金支出 | D18: -1600000 | F18: 9 | G18: 5 | H18: 380 | I18: 0 | J18: 0 | K18: 0 | L18: 无差异 | M18: 0 | O18: 0 | P18: 2914600 | Q18: =SUMIFS(序时账!Y:Y,序时账!$V:$V,$A:$A,序时账!$X:$X,$C:$C) -> 0 | R18: =SUMIFS(序时账!Z:Z,序时账!$V:$V,$A:$A,序时账!$X:$X,$C:$C) -> 0 | S18: =SUMIFS(序时账!AA:AA,序时账!$V:$V,$A:$A,序时账!$X:$X,$C:$C) -> 0
A19: 0063 | B19: 生产成本 | C19: 工资薪金支出 | D19: -9000000 | F19: 9 | G19: 5 | H19: 380 | I19: 0 | J19: 0 | K19: 0 | L19: 无差异 | M19: 0 | O19: 0 | P19: 2914600 | Q19: =SUMIFS(序时账!Y:Y,序时账!$V:$V,$A:$A,序时账!$X:$X,$C:$C) -> 0 | R19: =SUMIFS(序时账!Z:Z,序时账!$V:$V,$A:$A,序时账!$X:$X,$C:$C) -> 0 | S19: =SUMIFS(序时账!AA:AA,序时账!$V:$V,$A:$A,序时账!$X:$X,$C:$C) -> 0
A20: 0063 | B20: 销售费用 | C20: 工资薪金支出 | D20: -200000 | F20: 9 | G20: 5 | H20: 380 | I20: 0 | J20: 0 | K20: 0 | L20: 无差异 | M20: 0 | O20: 0 | P20: 2914600 | Q20: =SUMIFS(序时账!Y:Y,序时账!$V:$V,$A:$A,序时账!$X:$X,$C:$C) -> 0 | R20: =SUMIFS(序时账!Z:Z,序时账!$V:$V,$A:$A,序时账!$X:$X,$C:$C) -> 0 | S20: =SUMIFS(序时账!AA:AA,序时账!$V:$V,$A:$A,序时账!$X:$X,$C:$C) -> 0
A21: 0064 | B21: 制造费用 | C21: 工资薪金支出 | D21: 1111313.96 | F21: 5 | G21: 5 | H21: 380 | I21: 0 | J21: 0 | K21: 0 | L21: 无差异 | M21: 0 | O21: 0 | P21: 0 | Q21: =SUMIFS(序时账!Y:Y,序时账!$V:$V,$A:$A,序时账!$X:$X,$C:$C) -> 0 | R21: =SUMIFS(序时账!Z:Z,序时账!$V:$V,$A:$A,序时账!$X:$X,$C:$C) -> 0 | S21: =SUMIFS(序时账!AA:AA,序时账!$V:$V,$A:$A,序时账!$X:$X,$C:$C) -> 0
A22: 0064 | B22: 应付职工薪酬 | C22: 工资薪金支出 | E22: 11842918.14 | F22: 5 | G22: 5 | H22: 380 | I22: 0 | J22: 0 | K22: 0 | L22: 无差异 | M22: 0 | O22: 0 | P22: 0 | Q22: =SUMIFS(序时账!Y:Y,序时账!$V:$V,$A:$A,序时账!$X:$X,$C:$C) -> 0 | R22: =SUMIFS(序时账!Z:Z,序时账!$V:$V,$A:$A,序时账!$X:$X,$C:$C) -> 0 | S22: =SUMIFS(序时账!AA:AA,序时账!$V:$V,$A:$A,序时账!$X:$X,$C:$C) -> 0
A23: 0064 | B23: 管理费用 | C23: 工资薪金支出 | D23: 1660304.18 | F23: 5 | G23: 5 | H23: 380 | I23: 0 | J23: 0 | K23: 0 | L23: 无差异 | M23: 0 | O23: 0 | P23: 0 | Q23: =SUMIFS(序时账!Y:Y,序时账!$V:$V,$A:$A,序时账!$X:$X,$C:$C) -> 0 | R23: =SUMIFS(序时账!Z:Z,序时账!$V:$V,$A:$A,序时账!$X:$X,$C:$C) -> 0 | S23: =SUMIFS(序时账!AA:AA,序时账!$V:$V,$A:$A,序时账!$X:$X,$C:$C) -> 0
A24: 0064 | B24: 生产成本 | C24: 工资薪金支出 | D24: 8864956 | F24: 5 | G24: 5 | H24: 380 | I24: 0 | J24: 0 | K24: 0 | L24: 无差异 | M24: 0 | O24: 0 | P24: 0 | Q24: =SUMIFS(序时账!Y:Y,序时账!$V:$V,$A:$A,序时账!$X:$X,$C:$C) -> 0 | R24: =SUMIFS(序时账!Z:Z,序时账!$V:$V,$A:$A,序时账!$X:$X,$C:$C) -> 0 | S24: =SUMIFS(序时账!AA:AA,序时账!$V:$V,$A:$A,序时账!$X:$X,$C:$C) -> 0
A25: 0064 | B25: 销售费用 | C25: 工资薪金支出 | D25: 206344 | F25: 5 | G25: 5 | H25: 380 | I25: 0 | J25: 0 | K25: 0 | L25: 无差异 | M25: 0 | O25: 0 | P25: 0 | Q25: =SUMIFS(序时账!Y:Y,序时账!$V:$V,$A:$A,序时账!$X:$X,$C:$C) -> 0 | R25: =SUMIFS(序时账!Z:Z,序时账!$V:$V,$A:$A,序时账!$X:$X,$C:$C) -> 0 | S25: =SUMIFS(序时账!AA:AA,序时账!$V:$V,$A:$A,序时账!$X:$X,$C:$C) -> 0
A26: 0072 | B26: 应付职工薪酬 | C26: 基本医疗保险费 | E26: 805318.43 | F26: 4 | G26: 1 | H26: 1 | I26: 805318.43 | J26: -805318.43 | K26: -805318.43 | L26: 4调费用或1去借贷 | M26: =SUMIFS($D:$D,$A:$A,$A:$A,$C:$C,$C:$C)-SUMIFS($E:$E,$A:$A,$A:$A,$C:$C,$C:$C) -> -805318.43 | O26: -805318.43 | P26: -2925200.77 | Q26: =SUMIFS(序时账!Y:Y,序时账!$V:$V,$A:$A,序时账!$X:$X,$C:$C) -> 0 | R26: =SUMIFS(序时账!Z:Z,序时账!$V:$V,$A:$A,序时账!$X:$X,$C:$C) -> 0 | S26: =SUMIFS(序时账!AA:AA,序时账!$V:$V,$A:$A,序时账!$X:$X,$C:$C) -> 0
A27: 0072 | B27: 应付职工薪酬 | C27: 基本养老保险费 | E27: 1894866.9 | F27: 4 | G27: 1 | H27: 1 | I27: 1894866.9 | J27: -1894866.9 | K27: -1894866.9 | L27: 4调费用或1去借贷 | M27: -1894866.9 | O27: -1894866.9 | P27: -2925200.77 | Q27: =SUMIFS(序时账!Y:Y,序时账!$V:$V,$A:$A,序时账!$X:$X,$C:$C) -> 0 | R27: =SUMIFS(序时账!Z:Z,序时账!$V:$V,$A:$A,序时账!$X:$X,$C:$C) -> 0 | S27: =SUMIFS(序时账!AA:AA,序时账!$V:$V,$A:$A,序时账!$X:$X,$C:$C) -> 0
A28: 0072 | B28: 应付职工薪酬 | C28: 工会经费支出 | E28: 142115.01 | F28: 4 | G28: 1 | H28: 1 | I28: 142115.01 | J28: -142115.01 | K28: -142115.01 | L28: 4调费用或1去借贷 | M28: -142115.01 | O28: -142115.01 | P28: -2925200.77 | Q28: =SUMIFS(序时账!Y:Y,序时账!$V:$V,$A:$A,序时账!$X:$X,$C:$C) -> 0 | R28: =SUMIFS(序时账!Z:Z,序时账!$V:$V,$A:$A,序时账!$X:$X,$C:$C) -> 0 | S28: =SUMIFS(序时账!AA:AA,序时账!$V:$V,$A:$A,序时账!$X:$X,$C:$C) -> 0
A29: 0072 | B29: 应付职工薪酬 | C29: 失业保险费 | E29: 82900.43 | F29: 4 | G29: 1 | H29: 1 | I29: 82900.43 | J29: -82900.43 | K29: -82900.43 | L29: 4调费用或1去借贷 | M29: -82900.43 | O29: -82900.43 | P29: -2925200.77 | Q29: =SUMIFS(序时账!Y:Y,序时账!$V:$V,$A:$A,序时账!$X:$X,$C:$C) -> 0 | R29: =SUMIFS(序时账!Z:Z,序时账!$V:$V,$A:$A,序时账!$X:$X,$C:$C) -> 0 | S29: =SUMIFS(序时账!AA:AA,序时账!$V:$V,$A:$A,序时账!$X:$X,$C:$C) -> 0
A30: 0073 | B30: 制造费用 | C30: 基本养老保险费 | D30: 160000 | F30: 16 | G30: 5 | H30: 380 | I30: 0 | J30: 0 | K30: 0 | L30: 无差异 | M30: 0 | O30: 0 | P30: 94400 | Q30: =SUMIFS(序时账!Y:Y,序时账!$V:$V,$A:$A,序时账!$X:$X,$C:$C) -> 0 | R30: =SUMIFS(序时账!Z:Z,序时账!$V:$V,$A:$A,序时账!$X:$X,$C:$C) -> 0 | S30: =SUMIFS(序时账!AA:AA,序时账!$V:$V,$A:$A,序时账!$X:$X,$C:$C) -> 0
A31: 0073 | B31: 制造费用 | C31: 工资薪金支出 | D31: 1000000 | F31: 16 | G31: 5 | H31: 380 | I31: 0 | J31: 0 | K31: 0 | L31: 无差异 | M31: 0 | O31: 0 | P31: 94400 | Q31: =SUMIFS(序时账!Y:Y,序时账!$V:$V,$A:$A,序时账!$X:$X,$C:$C) -> 0 | R31: =SUMIFS(序时账!Z:Z,序时账!$V:$V,$A:$A,序时账!$X:$X,$C:$C) -> 0 | S31: =SUMIFS(序时账!AA:AA,序时账!$V:$V,$A:$A,序时账!$X:$X,$C:$C) -> 0
A32: 0073 | B32: 应付职工薪酬 | C32: 基本医疗保险费 | E32: 802400 | F32: 16 | G32: 2 | H32: 380 | I32: 0 | J32: 0 | K32: 0 | L32: 无差异 | M32: 0 | O32: 0 | P32: 94400 | Q32: =SUMIFS(序时账!Y:Y,序时账!$V:$V,$A:$A,序时账!$X:$X,$C:$C) -> 0 | R32: =SUMIFS(序时账!Z:Z,序时账!$V:$V,$A:$A,序时账!$X:$X,$C:$C) -> 0 | S32: =SUMIFS(序时账!AA:AA,序时账!$V:$V,$A:$A,序时账!$X:$X,$C:$C) -> 0
A33: 0073 | B33: 应付职工薪酬 | C33: 基本养老保险费 | E33: 1888000 | F33: 16 | G33: 5 | H33: 380 | I33: 0 | J33: 0 | K33: 0 | L33: 无差异 | M33: 0 | O33: 0 | P33: 94400 | Q33: =SUMIFS(序时账!Y:Y,序时账!$V:$V,$A:$A,序时账!$X:$X,$C:$C) -> 0 | R33: =SUMIFS(序时账!Z:Z,序时账!$V:$V,$A:$A,序时账!$X:$X,$C:$C) -> 0 | S33: =SUMIFS(序时账!AA:AA,序时账!$V:$V,$A:$A,序时账!$X:$X,$C:$C) -> 0
A34: 0073 | B34: 应付职工薪酬 | C34: 工资薪金支出 | E34: 11800000 | F34: 16 | G34: 5 | H34: 380 | I34: 0 | J34: 0 | K34: 0 | L34: 无差异 | M34: 0 | O34: 0 | P34: 94400 | Q34: =SUMIFS(序时账!Y:Y,序时账!$V:$V,$A:$A,序时账!$X:$X,$C:$C) -> 0 | R34: =SUMIFS(序时账!Z:Z,序时账!$V:$V,$A:$A,序时账!$X:$X,$C:$C) -> 0 | S34: =SUMIFS(序时账!AA:AA,序时账!$V:$V,$A:$A,序时账!$X:$X,$C:$C) -> 0
A35: 0073 | B35: 应付职工薪酬 | C35: 工会经费支出 | E35: 141600 | F35: 16 | G35: 2 | H35: 4 | I35: 94400 | J35: 94400 | K35: 94400 | L35: 4调费用或3调借贷 | M35: 94400 | O35: 94400 | P35: 94400 | Q35: =SUMIFS(序时账!Y:Y,序时账!$V:$V,$A:$A,序时账!$X:$X,$C:$C) -> 0 | R35: =SUMIFS(序时账!Z:Z,序时账!$V:$V,$A:$A,序时账!$X:$X,$C:$C) -> 0 | S35: =SUMIFS(序时账!AA:AA,序时账!$V:$V,$A:$A,序时账!$X:$X,$C:$C) -> 0
A36: 0073 | B36: 应付职工薪酬 | C36: 失业保险费 | E36: 82600 | F36: 16 | G36: 2 | H36: 380 | I36: 0 | J36: 0 | K36: 0 | L36: 无差异 | M36: =SUMIFS($D:$D,$A:$A,$A:$A,$C:$C,$C:$C)-SUMIFS($E:$E,$A:$A,$A:$A,$C:$C,$C:$C) -> 0 | O36: 0 | P36: 94400 | Q36: =SUMIFS(序时账!Y:Y,序时账!$V:$V,$A:$A,序时账!$X:$X,$C:$C) -> 0 | R36: =SUMIFS(序时账!Z:Z,序时账!$V:$V,$A:$A,序时账!$X:$X,$C:$C) -> 0 | S36: =SUMIFS(序时账!AA:AA,序时账!$V:$V,$A:$A,序时账!$X:$X,$C:$C) -> 0
A37: 0073 | B37: 管理费用 | C37: 基本医疗保险费 | D37: 802400 | F37: 16 | G37: 2 | H37: 380 | I37: 0 | J37: 0 | K37: 0 | L37: 无差异 | M37: 0 | O37: 0 | P37: 94400 | Q37: =SUMIFS(序时账!Y:Y,序时账!$V:$V,$A:$A,序时账!$X:$X,$C:$C) -> 0 | R37: =SUMIFS(序时账!Z:Z,序时账!$V:$V,$A:$A,序时账!$X:$X,$C:$C) -> 0 | S37: =SUMIFS(序时账!AA:AA,序时账!$V:$V,$A:$A,序时账!$X:$X,$C:$C) -> 0
A38: 0073 | B38: 管理费用 | C38: 基本养老保险费 | D38: 256000 | F38: 16 | G38: 5 | H38: 380 | I38: 0 | J38: 0 | K38: 0 | L38: 无差异 | M38: 0 | O38: 0 | P38: 94400 | Q38: =SUMIFS(序时账!Y:Y,序时账!$V:$V,$A:$A,序时账!$X:$X,$C:$C) -> 0 | R38: =SUMIFS(序时账!Z:Z,序时账!$V:$V,$A:$A,序时账!$X:$X,$C:$C) -> 0 | S38: =SUMIFS(序时账!AA:AA,序时账!$V:$V,$A:$A,序时账!$X:$X,$C:$C) -> 0
A39: 0073 | B39: 管理费用 | C39: 工资薪金支出 | D39: 1600000 | F39: 16 | G39: 5 | H39: 380 | I39: 0 | J39: 0 | K39: 0 | L39: 无差异 | M39: 0 | O39: 0 | P39: 94400 | Q39: =SUMIFS(序时账!Y:Y,序时账!$V:$V,$A:$A,序时账!$X:$X,$C:$C) -> 0 | R39: =SUMIFS(序时账!Z:Z,序时账!$V:$V,$A:$A,序时账!$X:$X,$C:$C) -> 0 | S39: =SUMIFS(序时账!AA:AA,序时账!$V:$V,$A:$A,序时账!$X:$X,$C:$C) -> 0
A40: 0073 | B40: 管理费用 | C40: 工会经费支出 | D40: 236000 | F40: 16 | G40: 2 | H40: 4 | I40: 94400 | J40: 94400 | K40: 94400 | L40: 4调费用或3调借贷 | M40: 94400 | O40: 94400 | P40: 94400 | Q40: =SUMIFS(序时账!Y:Y,序时账!$V:$V,$A:$A,序时账!$X:$X,$C:$C) -> 0 | R40: =SUMIFS(序时账!Z:Z,序时账!$V:$V,$A:$A,序时账!$X:$X,$C:$C) -> 0 | S40: =SUMIFS(序时账!AA:AA,序时账!$V:$V,$A:$A,序时账!$X:$X,$C:$C) -> 0
A41: 0073 | B41: 管理费用 | C41: 失业保险费 | D41: 82600 | F41: 16 | G41: 2 | H41: 380 | I41: 0 | J41: 0 | K41: 0 | L41: 无差异 | M41: 0 | O41: 0 | P41: 94400 | Q41: =SUMIFS(序时账!Y:Y,序时账!$V:$V,$A:$A,序时账!$X:$X,$C:$C) -> 0 | R41: =SUMIFS(序时账!Z:Z,序时账!$V:$V,$A:$A,序时账!$X:$X,$C:$C) -> 0 | S41: =SUMIFS(序时账!AA:AA,序时账!$V:$V,$A:$A,序时账!$X:$X,$C:$C) -> 0
A42: 0073 | B42: 生产成本 | C42: 基本养老保险费 | D42: 1440000 | F42: 16 | G42: 5 | H42: 380 | I42: 0 | J42: 0 | K42: 0 | L42: 无差异 | M42: 0 | O42: 0 | P42: 94400 | Q42: =SUMIFS(序时账!Y:Y,序时账!$V:$V,$A:$A,序时账!$X:$X,$C:$C) -> 0 | R42: =SUMIFS(序时账!Z:Z,序时账!$V:$V,$A:$A,序时账!$X:$X,$C:$C) -> 0 | S42: =SUMIFS(序时账!AA:AA,序时账!$V:$V,$A:$A,序时账!$X:$X,$C:$C) -> 0
A43: 0073 | B43: 生产成本 | C43: 工资薪金支出 | D43: 9000000 | F43: 16 | G43: 5 | H43: 380 | I43: 0 | J43: 0 | K43: 0 | L43: 无差异 | M43: 0 | O43: 0 | P43: 94400 | Q43: =SUMIFS(序时账!Y:Y,序时账!$V:$V,$A:$A,序时账!$X:$X,$C:$C) -> 0 | R43: =SUMIFS(序时账!Z:Z,序时账!$V:$V,$A:$A,序时账!$X:$X,$C:$C) -> 0 | S43: =SUMIFS(序时账!AA:AA,序时账!$V:$V,$A:$A,序时账!$X:$X,$C:$C) -> 0
A44: 0073 | B44: 销售费用 | C44: 基本养老保险费 | D44: 32000 | F44: 16 | G44: 5 | H44: 380 | I44: 0 | J44: 0 | K44: 0 | L44: 无差异 | M44: 0 | O44: 0 | P44: 94400 | Q44: =SUMIFS(序时账!Y:Y,序时账!$V:$V,$A:$A,序时账!$X:$X,$C:$C) -> 0 | R44: =SUMIFS(序时账!Z:Z,序时账!$V:$V,$A:$A,序时账!$X:$X,$C:$C) -> 0 | S44: =SUMIFS(序时账!AA:AA,序时账!$V:$V,$A:$A,序时账!$X:$X,$C:$C) -> 0
A45: 0073 | B45: 销售费用 | C45: 工资薪金支出 | D45: 200000 | F45: 16 | G45: 5 | H45: 380 | I45: 0 | J45: 0 | K45: 0 | L45: 无差异 | M45: 0 | O45: 0 | P45: 94400 | Q45: =SUMIFS(序时账!Y:Y,序时账!$V:$V,$A:$A,序时账!$X:$X,$C:$C) -> 0 | R45: =SUMIFS(序时账!Z:Z,序时账!$V:$V,$A:$A,序时账!$X:$X,$C:$C) -> 0 | S45: =SUMIFS(序时账!AA:AA,序时账!$V:$V,$A:$A,序时账!$X:$X,$C:$C) -> 0
A46: 0138 | B46: 应付职工薪酬 | C46: 职工福利费支出 | E46: 1172.28 | F46: 1 | G46: 1 | H46: 1 | I46: 1172.28 | J46: -1172.28 | K46: -1172.28 | L46: 4调费用或1去借贷 | M46: =SUMIFS($D:$D,$A:$A,$A:$A,$C:$C,$C:$C)-SUMIFS($E:$E,$A:$A,$A:$A,$C:$C,$C:$C) -> -1172.28 | O46: -1172.28 | P46: -1172.28 | Q46: =SUMIFS(序时账!Y:Y,序时账!$V:$V,$A:$A,序时账!$X:$X,$C:$C) -> 0 | R46: =SUMIFS(序时账!Z:Z,序时账!$V:$V,$A:$A,序时账!$X:$X,$C:$C) -> 0 | S46: =SUMIFS(序时账!AA:AA,序时账!$V:$V,$A:$A,序时账!$X:$X,$C:$C) -> 0
A47: 0189 | B47: 应付职工薪酬 | C47: 工伤保险费 | E47: 243038.15 | F47: 2 | G47: 2 | H47: 380 | I47: 0 | J47: 0 | K47: 0 | L47: 无差异 | M47: 0 | O47: 0 | P47: 0 | Q47: =SUMIFS(序时账!Y:Y,序时账!$V:$V,$A:$A,序时账!$X:$X,$C:$C) -> 0 | R47: =SUMIFS(序时账!Z:Z,序时账!$V:$V,$A:$A,序时账!$X:$X,$C:$C) -> 0 | S47: =SUMIFS(序时账!AA:AA,序时账!$V:$V,$A:$A,序时账!$X:$X,$C:$C) -> 0
A48: 0189 | B48: 管理费用 | C48: 工伤保险费 | D48: 243038.15 | F48: 2 | G48: 2 | H48: 380 | I48: 0 | J48: 0 | K48: 0 | L48: 无差异 | M48: 0 | O48: 0 | P48: 0 | Q48: =SUMIFS(序时账!Y:Y,序时账!$V:$V,$A:$A,序时账!$X:$X,$C:$C) -> 0 | R48: =SUMIFS(序时账!Z:Z,序时账!$V:$V,$A:$A,序时账!$X:$X,$C:$C) -> 0 | S48: =SUMIFS(序时账!AA:AA,序时账!$V:$V,$A:$A,序时账!$X:$X,$C:$C) -> 0
A49: 0249 | B49: 制造费用 | C49: 工资薪金支出 | D49: 1043466.79 | F49: 2 | G49: 2 | H49: 380 | I49: 0 | J49: 0 | K49: 0 | L49: 无差异 | M49: 0 | O49: 0 | P49: 0 | Q49: =SUMIFS(序时账!Y:Y,序时账!$V:$V,$A:$A,序时账!$X:$X,$C:$C) -> 0 | R49: =SUMIFS(序时账!Z:Z,序时账!$V:$V,$A:$A,序时账!$X:$X,$C:$C) -> 0 | S49: =SUMIFS(序时账!AA:AA,序时账!$V:$V,$A:$A,序时账!$X:$X,$C:$C) -> 0
A50: 0249 | B50: 应付职工薪酬 | C50: 工资薪金支出 | E50: 1043466.79 | F50: 2 | G50: 2 | H50: 380 | I50: 0 | J50: 0 | K50: 0 | L50: 无差异 | M50: 0 | O50: 0 | P50: 0 | Q50: =SUMIFS(序时账!Y:Y,序时账!$V:$V,$A:$A,序时账!$X:$X,$C:$C) -> 0 | R50: =SUMIFS(序时账!Z:Z,序时账!$V:$V,$A:$A,序时账!$X:$X,$C:$C) -> 0 | S50: =SUMIFS(序时账!AA:AA,序时账!$V:$V,$A:$A,序时账!$X:$X,$C:$C) -> 0
A51: 0268 | B51: 应付职工薪酬 | C51: 职工福利费支出 | E51: 8149.9 | F51: 1 | G51: 1 | H51: 1 | I51: 8149.9 | J51: -8149.9 | K51: -8149.9 | L51: 4调费用或1去借贷 | M51: -8149.9 | O51: -8149.9 | P51: -8149.9 | Q51: =SUMIFS(序时账!Y:Y,序时账!$V:$V,$A:$A,序时账!$X:$X,$C:$C) -> 0 | R51: =SUMIFS(序时账!Z:Z,序时账!$V:$V,$A:$A,序时账!$X:$X,$C:$C) -> 0 | S51: =SUMIFS(序时账!AA:AA,序时账!$V:$V,$A:$A,序时账!$X:$X,$C:$C) -> 0
A52: 0269 | B52: 应付职工薪酬 | C52: 职工福利费支出 | E52: 37754.05 | F52: 1 | G52: 1 | H52: 1 | I52: 37754.05 | J52: -37754.05 | K52: -37754.05 | L52: 4调费用或1去借贷 | M52: -37754.05 | O52: -37754.05 | P52: -37754.05 | Q52: =SUMIFS(序时账!Y:Y,序时账!$V:$V,$A:$A,序时账!$X:$X,$C:$C) -> 0 | R52: =SUMIFS(序时账!Z:Z,序时账!$V:$V,$A:$A,序时账!$X:$X,$C:$C) -> 0 | S52: =SUMIFS(序时账!AA:AA,序时账!$V:$V,$A:$A,序时账!$X:$X,$C:$C) -> 0
A53: 0284 | B53: 应付职工薪酬 | C53: 职工福利费支出 | E53: 3524640 | F53: 1 | G53: 1 | H53: 1 | I53: 3524640 | J53: -3524640 | K53: -3524640 | L53: 4调费用或1去借贷 | M53: -3524640 | O53: -3524640 | P53: -3524640 | Q53: =SUMIFS(序时账!Y:Y,序时账!$V:$V,$A:$A,序时账!$X:$X,$C:$C) -> 0 | R53: =SUMIFS(序时账!Z:Z,序时账!$V:$V,$A:$A,序时账!$X:$X,$C:$C) -> 0 | S53: =SUMIFS(序时账!AA:AA,序时账!$V:$V,$A:$A,序时账!$X:$X,$C:$C) -> 0
A54: 0286 | B54: 制造费用 | C54: 工资薪金支出 | D54: -1000000 | F54: 9 | G54: 5 | H54: 380 | I54: 0 | J54: 0 | K54: 0 | L54: 无差异 | M54: 0 | O54: 0 | P54: 2914600 | Q54: =SUMIFS(序时账!Y:Y,序时账!$V:$V,$A:$A,序时账!$X:$X,$C:$C) -> 0 | R54: =SUMIFS(序时账!Z:Z,序时账!$V:$V,$A:$A,序时账!$X:$X,$C:$C) -> 0 | S54: =SUMIFS(序时账!AA:AA,序时账!$V:$V,$A:$A,序时账!$X:$X,$C:$C) -> 0
A55: 0286 | B55: 应付职工薪酬 | C55: 基本医疗保险费 | E55: -802400 | F55: 9 | G55: 1 | H55: 4 | I55: 802400 | J55: 802400 | K55: 802400 | L55: 4调费用或1去借贷 | M55: 802400 | O55: 802400 | P55: 2914600 | Q55: =SUMIFS(序时账!Y:Y,序时账!$V:$V,$A:$A,序时账!$X:$X,$C:$C) -> 0 | R55: =SUMIFS(序时账!Z:Z,序时账!$V:$V,$A:$A,序时账!$X:$X,$C:$C) -> 0 | S55: =SUMIFS(序时账!AA:AA,序时账!$V:$V,$A:$A,序时账!$X:$X,$C:$C) -> 0
A56: 0286 | B56: 应付职工薪酬 | C56: 基本养老保险费 | E56: -1888000 | F56: 9 | G56: 1 | H56: 4 | I56: 1888000 | J56: 1888000 | K56: 1888000 | L56: 4调费用或1去借贷 | M56: =SUMIFS($D:$D,$A:$A,$A:$A,$C:$C,$C:$C)-SUMIFS($E:$E,$A:$A,$A:$A,$C:$C,$C:$C) -> 1888000 | O56: 1888000 | P56: 2914600 | Q56: =SUMIFS(序时账!Y:Y,序时账!$V:$V,$A:$A,序时账!$X:$X,$C:$C) -> 0 | R56: =SUMIFS(序时账!Z:Z,序时账!$V:$V,$A:$A,序时账!$X:$X,$C:$C) -> 0 | S56: =SUMIFS(序时账!AA:AA,序时账!$V:$V,$A:$A,序时账!$X:$X,$C:$C) -> 0
A57: 0286 | B57: 应付职工薪酬 | C57: 工资薪金支出 | E57: -11800000 | F57: 9 | G57: 5 | H57: 380 | I57: 0 | J57: 0 | K57: 0 | L57: 无差异 | M57: 0 | O57: 0 | P57: 2914600 | Q57: =SUMIFS(序时账!Y:Y,序时账!$V:$V,$A:$A,序时账!$X:$X,$C:$C) -> 0 | R57: =SUMIFS(序时账!Z:Z,序时账!$V:$V,$A:$A,序时账!$X:$X,$C:$C) -> 0 | S57: =SUMIFS(序时账!AA:AA,序时账!$V:$V,$A:$A,序时账!$X:$X,$C:$C) -> 0
A58: 0286 | B58: 应付职工薪酬 | C58: 工会经费支出 | E58: -141600 | F58: 9 | G58: 1 | H58: 4 | I58: 141600 | J58: 141600 | K58: 141600 | L58: 4调费用或1去借贷 | M58: 141600 | O58: 141600 | P58: 2914600 | Q58: =SUMIFS(序时账!Y:Y,序时账!$V:$V,$A:$A,序时账!$X:$X,$C:$C) -> 0 | R58: =SUMIFS(序时账!Z:Z,序时账!$V:$V,$A:$A,序时账!$X:$X,$C:$C) -> 0 | S58: =SUMIFS(序时账!AA:AA,序时账!$V:$V,$A:$A,序时账!$X:$X,$C:$C) -> 0
A59: 0286 | B59: 应付职工薪酬 | C59: 失业保险费 | E59: -82600 | F59: 9 | G59: 1 | H59: 4 | I59: 82600 | J59: 82600 | K59: 82600 | L59: 4调费用或1去借贷 | M59: 82600 | O59: 82600 | P59: 2914600 | Q59: =SUMIFS(序时账!Y:Y,序时账!$V:$V,$A:$A,序时账!$X:$X,$C:$C) -> 0 | R59: =SUMIFS(序时账!Z:Z,序时账!$V:$V,$A:$A,序时账!$X:$X,$C:$C) -> 0 | S59: =SUMIFS(序时账!AA:AA,序时账!$V:$V,$A:$A,序时账!$X:$X,$C:$C) -> 0
A60: 0286 | B60: 管理费用 | C60: 工资薪金支出 | D60: -1600000 | F60: 9 | G60: 5 | H60: 380 | I60: 0 | J60: 0 | K60: 0 | L60: 无差异 | M60: 0 | O60: 0 | P60: 2914600 | Q60: =SUMIFS(序时账!Y:Y,序时账!$V:$V,$A:$A,序时账!$X:$X,$C:$C) -> 0 | R60: =SUMIFS(序时账!Z:Z,序时账!$V:$V,$A:$A,序时账!$X:$X,$C:$C) -> 0 | S60: =SUMIFS(序时账!AA:AA,序时账!$V:$V,$A:$A,序时账!$X:$X,$C:$C) -> 0
A61: 0286 | B61: 生产成本 | C61: 工资薪金支出 | D61: -9000000 | F61: 9 | G61: 5 | H61: 380 | I61: 0 | J61: 0 | K61: 0 | L61: 无差异 | M61: 0 | O61: 0 | P61: 2914600 | Q61: =SUMIFS(序时账!Y:Y,序时账!$V:$V,$A:$A,序时账!$X:$X,$C:$C) -> 0 | R61: =SUMIFS(序时账!Z:Z,序时账!$V:$V,$A:$A,序时账!$X:$X,$C:$C) -> 0 | S61: =SUMIFS(序时账!AA:AA,序时账!$V:$V,$A:$A,序时账!$X:$X,$C:$C) -> 0
A62: 0286 | B62: 销售费用 | C62: 工资薪金支出 | D62: -200000 | F62: 9 | G62: 5 | H62: 380 | I62: 0 | J62: 0 | K62: 0 | L62: 无差异 | M62: 0 | O62: 0 | P62: 2914600 | Q62: =SUMIFS(序时账!Y:Y,序时账!$V:$V,$A:$A,序时账!$X:$X,$C:$C) -> 0 | R62: =SUMIFS(序时账!Z:Z,序时账!$V:$V,$A:$A,序时账!$X:$X,$C:$C) -> 0 | S62: =SUMIFS(序时账!AA:AA,序时账!$V:$V,$A:$A,序时账!$X:$X,$C:$C) -> 0
A63: 0287 | B63: 制造费用 | C63: 工资薪金支出 | D63: 1091958.02 | F63: 5 | G63: 5 | H63: 380 | I63: 0 | J63: 0 | K63: 0 | L63: 无差异 | M63: 0 | O63: 0 | P63: 0 | Q63: =SUMIFS(序时账!Y:Y,序时账!$V:$V,$A:$A,序时账!$X:$X,$C:$C) -> 0 | R63: =SUMIFS(序时账!Z:Z,序时账!$V:$V,$A:$A,序时账!$X:$X,$C:$C) -> 0 | S63: =SUMIFS(序时账!AA:AA,序时账!$V:$V,$A:$A,序时账!$X:$X,$C:$C) -> 0
A64: 0287 | B64: 应付职工薪酬 | C64: 工资薪金支出 | E64: 11775794.93 | F64: 5 | G64: 5 | H64: 380 | I64: 0 | J64: 0 | K64: 0 | L64: 无差异 | M64: 0 | O64: 0 | P64: 0 | Q64: =SUMIFS(序时账!Y:Y,序时账!$V:$V,$A:$A,序时账!$X:$X,$C:$C) -> 0 | R64: =SUMIFS(序时账!Z:Z,序时账!$V:$V,$A:$A,序时账!$X:$X,$C:$C) -> 0 | S64: =SUMIFS(序时账!AA:AA,序时账!$V:$V,$A:$A,序时账!$X:$X,$C:$C) -> 0
A65: 0287 | B65: 管理费用 | C65: 工资薪金支出 | D65: 1606809.88 | F65: 5 | G65: 5 | H65: 380 | I65: 0 | J65: 0 | K65: 0 | L65: 无差异 | M65: 0 | O65: 0 | P65: 0 | Q65: =SUMIFS(序时账!Y:Y,序时账!$V:$V,$A:$A,序时账!$X:$X,$C:$C) -> 0 | R65: =SUMIFS(序时账!Z:Z,序时账!$V:$V,$A:$A,序时账!$X:$X,$C:$C) -> 0 | S65: =SUMIFS(序时账!AA:AA,序时账!$V:$V,$A:$A,序时账!$X:$X,$C:$C) -> 0
A66: 0287 | B66: 生产成本 | C66: 工资薪金支出 | D66: 8867583.03 | F66: 5 | G66: 5 | H66: 380 | I66: 0 | J66: 0 | K66: 0 | L66: 无差异 | M66: =SUMIFS($D:$D,$A:$A,$A:$A,$C:$C,$C:$C)-SUMIFS($E:$E,$A:$A,$A:$A,$C:$C,$C:$C) -> 0 | O66: 0 | P66: 0 | Q66: =SUMIFS(序时账!Y:Y,序时账!$V:$V,$A:$A,序时账!$X:$X,$C:$C) -> 0 | R66: =SUMIFS(序时账!Z:Z,序时账!$V:$V,$A:$A,序时账!$X:$X,$C:$C) -> 0 | S66: =SUMIFS(序时账!AA:AA,序时账!$V:$V,$A:$A,序时账!$X:$X,$C:$C) -> 0
A67: 0287 | B67: 销售费用 | C67: 工资薪金支出 | D67: 209444 | F67: 5 | G67: 5 | H67: 380 | I67: 0 | J67: 0 | K67: 0 | L67: 无差异 | M67: 0 | O67: 0 | P67: 0 | Q67: =SUMIFS(序时账!Y:Y,序时账!$V:$V,$A:$A,序时账!$X:$X,$C:$C) -> 0 | R67: =SUMIFS(序时账!Z:Z,序时账!$V:$V,$A:$A,序时账!$X:$X,$C:$C) -> 0 | S67: =SUMIFS(序时账!AA:AA,序时账!$V:$V,$A:$A,序时账!$X:$X,$C:$C) -> 0
A68: 0293 | B68: 应付职工薪酬 | C68: 基本医疗保险费 | E68: 706547.7 | F68: 4 | G68: 1 | H68: 1 | I68: 706547.7 | J68: -706547.7 | K68: -706547.7 | L68: 4调费用或1去借贷 | M68: -706547.7 | O68: -706547.7 | P68: -2908621.34 | Q68: =SUMIFS(序时账!Y:Y,序时账!$V:$V,$A:$A,序时账!$X:$X,$C:$C) -> 0 | R68: =SUMIFS(序时账!Z:Z,序时账!$V:$V,$A:$A,序时账!$X:$X,$C:$C) -> 0 | S68: =SUMIFS(序时账!AA:AA,序时账!$V:$V,$A:$A,序时账!$X:$X,$C:$C) -> 0
A69: 0293 | B69: 应付职工薪酬 | C69: 基本养老保险费 | E69: 1884127.19 | F69: 4 | G69: 1 | H69: 1 | I69: 1884127.19 | J69: -1884127.19 | K69: -1884127.19 | L69: 4调费用或1去借贷 | M69: -1884127.19 | O69: -1884127.19 | P69: -2908621.34 | Q69: =SUMIFS(序时账!Y:Y,序时账!$V:$V,$A:$A,序时账!$X:$X,$C:$C) -> 0 | R69: =SUMIFS(序时账!Z:Z,序时账!$V:$V,$A:$A,序时账!$X:$X,$C:$C) -> 0 | S69: =SUMIFS(序时账!AA:AA,序时账!$V:$V,$A:$A,序时账!$X:$X,$C:$C) -> 0
A70: 0293 | B70: 应付职工薪酬 | C70: 工会经费支出 | E70: 141309.54 | F70: =COUNTIFS(A:A,A70) -> 4 | G70: =COUNTIFS(A:A,A:A,C:C,C:C) -> 1 | H70: =COUNTIFS(I:I,I70) -> 1 | I70: =ABS(J70) -> 141309.54 | J70: =SUMIFS(D:D,A:A,A:A,C:C,C:C)-SUMIFS(E:E,A:A,A:A,C:C,C:C) -> -141309.54 | K70: =J70+S70-R70 -> -141309.54 | L70: =IF(J70=0,"无差异",IF(SUMIFS(D:D,A:A,A:A,C:C,C:C)=0,"4调费用或1去借贷",IF(SUMIFS(E:E,A:A,A:A,C:C,C:C)=0,"3调借贷或2去费用","4调费用或3调借贷"))) -> 4调费用或1去借贷 | M70: -141309.54 | O70: =M70+SUMIFS($D:$D,$C:$C,$C:$C,$A:$A,$N:$N)-SUMIFS($E:$E,$C:$C,$C:$C,$A:$A,$N:$N) -> -141309.54 | P70: =SUMIFS(D:D,A:A,A:A)-SUMIFS(E:E,A:A,A:A) -> -2908621.34 | Q70: =SUMIFS(序时账!Y:Y,序时账!$V:$V,$A:$A,序时账!$X:$X,$C:$C) -> 0 | R70: =SUMIFS(序时账!Z:Z,序时账!$V:$V,$A:$A,序时账!$X:$X,$C:$C) -> 0 | S70: =SUMIFS(序时账!AA:AA,序时账!$V:$V,$A:$A,序时账!$X:$X,$C:$C) -> 0
A71: 0293 | B71: 应付职工薪酬 | C71: 失业保险费 | E71: 176636.91 | F71: 4 | G71: 1 | H71: 1 | I71: 176636.91 | J71: -176636.91 | K71: -176636.91 | L71: 4调费用或1去借贷 | M71: -176636.91 | O71: -176636.91 | P71: -2908621.34 | Q71: =SUMIFS(序时账!Y:Y,序时账!$V:$V,$A:$A,序时账!$X:$X,$C:$C) -> 0 | R71: =SUMIFS(序时账!Z:Z,序时账!$V:$V,$A:$A,序时账!$X:$X,$C:$C) -> 0 | S71: =SUMIFS(序时账!AA:AA,序时账!$V:$V,$A:$A,序时账!$X:$X,$C:$C) -> 0
A72: 0330 | B72: 应付职工薪酬 | C72: 职工福利费支出 | E72: 64372.28 | F72: 1 | G72: 1 | H72: 1 | I72: 64372.28 | J72: -64372.28 | K72: -64372.28 | L72: 4调费用或1去借贷 | M72: -64372.28 | O72: -64372.28 | P72: -64372.28 | Q72: =SUMIFS(序时账!Y:Y,序时账!$V:$V,$A:$A,序时账!$X:$X,$C:$C) -> 0 | R72: =SUMIFS(序时账!Z:Z,序时账!$V:$V,$A:$A,序时账!$X:$X,$C:$C) -> 0 | S72: =SUMIFS(序时账!AA:AA,序时账!$V:$V,$A:$A,序时账!$X:$X,$C:$C) -> 0
A73: 0343 | B73: 应付职工薪酬 | C73: 工伤保险费 | E73: 236381.8 | F73: 2 | G73: 2 | H73: 380 | I73: 0 | J73: 0 | K73: 0 | L73: 无差异 | M73: 0 | O73: 0 | P73: 0 | Q73: =SUMIFS(序时账!Y:Y,序时账!$V:$V,$A:$A,序时账!$X:$X,$C:$C) -> 0 | R73: =SUMIFS(序时账!Z:Z,序时账!$V:$V,$A:$A,序时账!$X:$X,$C:$C) -> 0 | S73: =SUMIFS(序时账!AA:AA,序时账!$V:$V,$A:$A,序时账!$X:$X,$C:$C) -> 0
A74: 0343 | B74: 管理费用 | C74: 工伤保险费 | D74: 236381.8 | F74: 2 | G74: 2 | H74: 380 | I74: 0 | J74: 0 | K74: 0 | L74: 无差异 | M74: 0 | O74: 0 | P74: 0 | Q74: =SUMIFS(序时账!Y:Y,序时账!$V:$V,$A:$A,序时账!$X:$X,$C:$C) -> 0 | R74: =SUMIFS(序时账!Z:Z,序时账!$V:$V,$A:$A,序时账!$X:$X,$C:$C) -> 0 | S74: =SUMIFS(序时账!AA:AA,序时账!$V:$V,$A:$A,序时账!$X:$X,$C:$C) -> 0
A75: 0363 | B75: 制造费用 | C75: 基本养老保险费 | D75: 160000 | F75: 16 | G75: 5 | H75: 380 | I75: 0 | J75: 0 | K75: 0 | L75: 无差异 | M75: 0 | O75: 0 | P75: 94400 | Q75: =SUMIFS(序时账!Y:Y,序时账!$V:$V,$A:$A,序时账!$X:$X,$C:$C) -> 0 | R75: =SUMIFS(序时账!Z:Z,序时账!$V:$V,$A:$A,序时账!$X:$X,$C:$C) -> 0 | S75: =SUMIFS(序时账!AA:AA,序时账!$V:$V,$A:$A,序时账!$X:$X,$C:$C) -> 0
A76: 0363 | B76: 制造费用 | C76: 工资薪金支出 | D76: 1000000 | F76: 16 | G76: 5 | H76: 380 | I76: 0 | J76: 0 | K76: 0 | L76: 无差异 | M76: =SUMIFS($D:$D,$A:$A,$A:$A,$C:$C,$C:$C)-SUMIFS($E:$E,$A:$A,$A:$A,$C:$C,$C:$C) -> 0 | O76: 0 | P76: 94400 | Q76: =SUMIFS(序时账!Y:Y,序时账!$V:$V,$A:$A,序时账!$X:$X,$C:$C) -> 0 | R76: =SUMIFS(序时账!Z:Z,序时账!$V:$V,$A:$A,序时账!$X:$X,$C:$C) -> 0 | S76: =SUMIFS(序时账!AA:AA,序时账!$V:$V,$A:$A,序时账!$X:$X,$C:$C) -> 0
A77: 0363 | B77: 应付职工薪酬 | C77: 基本医疗保险费 | E77: 802400 | F77: 16 | G77: 2 | H77: 380 | I77: 0 | J77: 0 | K77: 0 | L77: 无差异 | M77: 0 | O77: 0 | P77: 94400 | Q77: =SUMIFS(序时账!Y:Y,序时账!$V:$V,$A:$A,序时账!$X:$X,$C:$C) -> 0 | R77: =SUMIFS(序时账!Z:Z,序时账!$V:$V,$A:$A,序时账!$X:$X,$C:$C) -> 0 | S77: =SUMIFS(序时账!AA:AA,序时账!$V:$V,$A:$A,序时账!$X:$X,$C:$C) -> 0
A78: 0363 | B78: 应付职工薪酬 | C78: 基本养老保险费 | E78: 1888000 | F78: 16 | G78: 5 | H78: 380 | I78: 0 | J78: 0 | K78: 0 | L78: 无差异 | M78: 0 | O78: 0 | P78: 94400 | Q78: =SUMIFS(序时账!Y:Y,序时账!$V:$V,$A:$A,序时账!$X:$X,$C:$C) -> 0 | R78: =SUMIFS(序时账!Z:Z,序时账!$V:$V,$A:$A,序时账!$X:$X,$C:$C) -> 0 | S78: =SUMIFS(序时账!AA:AA,序时账!$V:$V,$A:$A,序时账!$X:$X,$C:$C) -> 0
A79: 0363 | B79: 应付职工薪酬 | C79: 工资薪金支出 | E79: 11800000 | F79: 16 | G79: 5 | H79: 380 | I79: 0 | J79: 0 | K79: 0 | L79: 无差异 | M79: 0 | O79: 0 | P79: 94400 | Q79: =SUMIFS(序时账!Y:Y,序时账!$V:$V,$A:$A,序时账!$X:$X,$C:$C) -> 0 | R79: =SUMIFS(序时账!Z:Z,序时账!$V:$V,$A:$A,序时账!$X:$X,$C:$C) -> 0 | S79: =SUMIFS(序时账!AA:AA,序时账!$V:$V,$A:$A,序时账!$X:$X,$C:$C) -> 0
A80: 0363 | B80: 应付职工薪酬 | C80: 工会经费支出 | E80: 141600 | F80: 16 | G80: 2 | H80: 4 | I80: 94400 | J80: 94400 | K80: 94400 | L80: 4调费用或3调借贷 | M80: 94400 | O80: 94400 | P80: 94400 | Q80: =SUMIFS(序时账!Y:Y,序时账!$V:$V,$A:$A,序时账!$X:$X,$C:$C) -> 0 | R80: =SUMIFS(序时账!Z:Z,序时账!$V:$V,$A:$A,序时账!$X:$X,$C:$C) -> 0 | S80: =SUMIFS(序时账!AA:AA,序时账!$V:$V,$A:$A,序时账!$X:$X,$C:$C) -> 0
A81: 0363 | B81: 应付职工薪酬 | C81: 失业保险费 | E81: 82600 | F81: 16 | G81: 2 | H81: 380 | I81: 0 | J81: 0 | K81: 0 | L81: 无差异 | M81: 0 | O81: 0 | P81: 94400 | Q81: =SUMIFS(序时账!Y:Y,序时账!$V:$V,$A:$A,序时账!$X:$X,$C:$C) -> 0 | R81: =SUMIFS(序时账!Z:Z,序时账!$V:$V,$A:$A,序时账!$X:$X,$C:$C) -> 0 | S81: =SUMIFS(序时账!AA:AA,序时账!$V:$V,$A:$A,序时账!$X:$X,$C:$C) -> 0
A82: 0363 | B82: 管理费用 | C82: 基本医疗保险费 | D82: 802400 | F82: 16 | G82: 2 | H82: 380 | I82: 0 | J82: 0 | K82: 0 | L82: 无差异 | M82: 0 | O82: 0 | P82: 94400 | Q82: =SUMIFS(序时账!Y:Y,序时账!$V:$V,$A:$A,序时账!$X:$X,$C:$C) -> 0 | R82: =SUMIFS(序时账!Z:Z,序时账!$V:$V,$A:$A,序时账!$X:$X,$C:$C) -> 0 | S82: =SUMIFS(序时账!AA:AA,序时账!$V:$V,$A:$A,序时账!$X:$X,$C:$C) -> 0
A83: 0363 | B83: 管理费用 | C83: 基本养老保险费 | D83: 256000 | F83: 16 | G83: 5 | H83: 380 | I83: 0 | J83: 0 | K83: 0 | L83: 无差异 | M83: 0 | O83: 0 | P83: 94400 | Q83: =SUMIFS(序时账!Y:Y,序时账!$V:$V,$A:$A,序时账!$X:$X,$C:$C) -> 0 | R83: =SUMIFS(序时账!Z:Z,序时账!$V:$V,$A:$A,序时账!$X:$X,$C:$C) -> 0 | S83: =SUMIFS(序时账!AA:AA,序时账!$V:$V,$A:$A,序时账!$X:$X,$C:$C) -> 0
A84: 0363 | B84: 管理费用 | C84: 工资薪金支出 | D84: 1600000 | F84: 16 | G84: 5 | H84: 380 | I84: 0 | J84: 0 | K84: 0 | L84: 无差异 | M84: 0 | O84: 0 | P84: 94400 | Q84: =SUMIFS(序时账!Y:Y,序时账!$V:$V,$A:$A,序时账!$X:$X,$C:$C) -> 0 | R84: =SUMIFS(序时账!Z:Z,序时账!$V:$V,$A:$A,序时账!$X:$X,$C:$C) -> 0 | S84: =SUMIFS(序时账!AA:AA,序时账!$V:$V,$A:$A,序时账!$X:$X,$C:$C) -> 0
A85: 0363 | B85: 管理费用 | C85: 工会经费支出 | D85: 236000 | F85: 16 | G85: 2 | H85: 4 | I85: 94400 | J85: 94400 | K85: 94400 | L85: 4调费用或3调借贷 | M85: 94400 | O85: 94400 | P85: 94400 | Q85: =SUMIFS(序时账!Y:Y,序时账!$V:$V,$A:$A,序时账!$X:$X,$C:$C) -> 0 | R85: =SUMIFS(序时账!Z:Z,序时账!$V:$V,$A:$A,序时账!$X:$X,$C:$C) -> 0 | S85: =SUMIFS(序时账!AA:AA,序时账!$V:$V,$A:$A,序时账!$X:$X,$C:$C) -> 0
A86: 0363 | B86: 管理费用 | C86: 失业保险费 | D86: 82600 | F86: 16 | G86: 2 | H86: 380 | I86: 0 | J86: 0 | K86: 0 | L86: 无差异 | M86: =SUMIFS($D:$D,$A:$A,$A:$A,$C:$C,$C:$C)-SUMIFS($E:$E,$A:$A,$A:$A,$C:$C,$C:$C) -> 0 | O86: 0 | P86: 94400 | Q86: =SUMIFS(序时账!Y:Y,序时账!$V:$V,$A:$A,序时账!$X:$X,$C:$C) -> 0 | R86: =SUMIFS(序时账!Z:Z,序时账!$V:$V,$A:$A,序时账!$X:$X,$C:$C) -> 0 | S86: =SUMIFS(序时账!AA:AA,序时账!$V:$V,$A:$A,序时账!$X:$X,$C:$C) -> 0
A87: 0363 | B87: 生产成本 | C87: 基本养老保险费 | D87: 1440000 | F87: 16 | G87: 5 | H87: 380 | I87: 0 | J87: 0 | K87: 0 | L87: 无差异 | M87: 0 | O87: 0 | P87: 94400 | Q87: =SUMIFS(序时账!Y:Y,序时账!$V:$V,$A:$A,序时账!$X:$X,$C:$C) -> 0 | R87: =SUMIFS(序时账!Z:Z,序时账!$V:$V,$A:$A,序时账!$X:$X,$C:$C) -> 0 | S87: =SUMIFS(序时账!AA:AA,序时账!$V:$V,$A:$A,序时账!$X:$X,$C:$C) -> 0
A88: 0363 | B88: 生产成本 | C88: 工资薪金支出 | D88: 9000000 | F88: 16 | G88: 5 | H88: 380 | I88: 0 | J88: 0 | K88: 0 | L88: 无差异 | M88: 0 | O88: 0 | P88: 94400 | Q88: =SUMIFS(序时账!Y:Y,序时账!$V:$V,$A:$A,序时账!$X:$X,$C:$C) -> 0 | R88: =SUMIFS(序时账!Z:Z,序时账!$V:$V,$A:$A,序时账!$X:$X,$C:$C) -> 0 | S88: =SUMIFS(序时账!AA:AA,序时账!$V:$V,$A:$A,序时账!$X:$X,$C:$C) -> 0
A89: 0363 | B89: 销售费用 | C89: 基本养老保险费 | D89: 32000 | F89: 16 | G89: 5 | H89: 380 | I89: 0 | J89: 0 | K89: 0 | L89: 无差异 | M89: 0 | O89: 0 | P89: 94400 | Q89: =SUMIFS(序时账!Y:Y,序时账!$V:$V,$A:$A,序时账!$X:$X,$C:$C) -> 0 | R89: =SUMIFS(序时账!Z:Z,序时账!$V:$V,$A:$A,序时账!$X:$X,$C:$C) -> 0 | S89: =SUMIFS(序时账!AA:AA,序时账!$V:$V,$A:$A,序时账!$X:$X,$C:$C) -> 0
A90: 0363 | B90: 销售费用 | C90: 工资薪金支出 | D90: 200000 | F90: 16 | G90: 5 | H90: 380 | I90: 0 | J90: 0 | K90: 0 | L90: 无差异 | M90: 0 | O90: 0 | P90: 94400 | Q90: =SUMIFS(序时账!Y:Y,序时账!$V:$V,$A:$A,序时账!$X:$X,$C:$C) -> 0 | R90: =SUMIFS(序时账!Z:Z,序时账!$V:$V,$A:$A,序时账!$X:$X,$C:$C) -> 0 | S90: =SUMIFS(序时账!AA:AA,序时账!$V:$V,$A:$A,序时账!$X:$X,$C:$C) -> 0
A91: 0377 | B91: 应付职工薪酬 | C91: 职工福利费支出 | E91: 9101.14 | F91: 1 | G91: 1 | H91: 1 | I91: 9101.14 | J91: -9101.14 | K91: -9101.14 | L91: 4调费用或1去借贷 | M91: -9101.14 | O91: -9101.14 | P91: -9101.14 | Q91: =SUMIFS(序时账!Y:Y,序时账!$V:$V,$A:$A,序时账!$X:$X,$C:$C) -> 0 | R91: =SUMIFS(序时账!Z:Z,序时账!$V:$V,$A:$A,序时账!$X:$X,$C:$C) -> 0 | S91: =SUMIFS(序时账!AA:AA,序时账!$V:$V,$A:$A,序时账!$X:$X,$C:$C) -> 0
A92: 0429 | B92: 应付职工薪酬 | C92: 职工福利费支出 | E92: 459162 | F92: 1 | G92: 1 | H92: 1 | I92: 459162 | J92: -459162 | K92: -459162 | L92: 4调费用或1去借贷 | M92: -459162 | O92: -459162 | P92: -459162 | Q92: =SUMIFS(序时账!Y:Y,序时账!$V:$V,$A:$A,序时账!$X:$X,$C:$C) -> 0 | R92: =SUMIFS(序时账!Z:Z,序时账!$V:$V,$A:$A,序时账!$X:$X,$C:$C) -> 0 | S92: =SUMIFS(序时账!AA:AA,序时账!$V:$V,$A:$A,序时账!$X:$X,$C:$C) -> 0
A93: 0439 | B93: 应付职工薪酬 | C93: 工伤保险费 | E93: 240029.8 | F93: 2 | G93: 2 | H93: 380 | I93: 0 | J93: 0 | K93: 0 | L93: 无差异 | M93: 0 | O93: 0 | P93: 0 | Q93: =SUMIFS(序时账!Y:Y,序时账!$V:$V,$A:$A,序时账!$X:$X,$C:$C) -> 0 | R93: =SUMIFS(序时账!Z:Z,序时账!$V:$V,$A:$A,序时账!$X:$X,$C:$C) -> 0 | S93: =SUMIFS(序时账!AA:AA,序时账!$V:$V,$A:$A,序时账!$X:$X,$C:$C) -> 0
A94: 0439 | B94: 管理费用 | C94: 工伤保险费 | D94: 240029.8 | F94: 2 | G94: 2 | H94: 380 | I94: 0 | J94: 0 | K94: 0 | L94: 无差异 | M94: 0 | O94: 0 | P94: 0 | Q94: =SUMIFS(序时账!Y:Y,序时账!$V:$V,$A:$A,序时账!$X:$X,$C:$C) -> 0 | R94: =SUMIFS(序时账!Z:Z,序时账!$V:$V,$A:$A,序时账!$X:$X,$C:$C) -> 0 | S94: =SUMIFS(序时账!AA:AA,序时账!$V:$V,$A:$A,序时账!$X:$X,$C:$C) -> 0
A95: 0500 | B95: 制造费用 | C95: 基本养老保险费 | D95: 162488 | F95: 16 | G95: 5 | H95: 380 | I95: 0 | J95: 0 | K95: 0 | L95: 无差异 | M95: 0 | O95: 0 | P95: 96164.4 | Q95: =SUMIFS(序时账!Y:Y,序时账!$V:$V,$A:$A,序时账!$X:$X,$C:$C) -> 0 | R95: =SUMIFS(序时账!Z:Z,序时账!$V:$V,$A:$A,序时账!$X:$X,$C:$C) -> 0 | S95: =SUMIFS(序时账!AA:AA,序时账!$V:$V,$A:$A,序时账!$X:$X,$C:$C) -> 0
A96: 0500 | B96: 制造费用 | C96: 工资薪金支出 | D96: 1015550 | F96: 16 | G96: 5 | H96: 380 | I96: 0 | J96: 0 | K96: 0 | L96: 无差异 | M96: =SUMIFS($D:$D,$A:$A,$A:$A,$C:$C,$C:$C)-SUMIFS($E:$E,$A:$A,$A:$A,$C:$C,$C:$C) -> 0 | O96: 0 | P96: 96164.4 | Q96: =SUMIFS(序时账!Y:Y,序时账!$V:$V,$A:$A,序时账!$X:$X,$C:$C) -> 0 | R96: =SUMIFS(序时账!Z:Z,序时账!$V:$V,$A:$A,序时账!$X:$X,$C:$C) -> 0 | S96: =SUMIFS(序时账!AA:AA,序时账!$V:$V,$A:$A,序时账!$X:$X,$C:$C) -> 0
A97: 0500 | B97: 应付职工薪酬 | C97: 基本医疗保险费 | E97: 817397.4 | F97: 16 | G97: 2 | H97: 380 | I97: 0 | J97: 0 | K97: 0 | L97: 无差异 | M97: 0 | O97: 0 | P97: 96164.4 | Q97: =SUMIFS(序时账!Y:Y,序时账!$V:$V,$A:$A,序时账!$X:$X,$C:$C) -> 0 | R97: =SUMIFS(序时账!Z:Z,序时账!$V:$V,$A:$A,序时账!$X:$X,$C:$C) -> 0 | S97: =SUMIFS(序时账!AA:AA,序时账!$V:$V,$A:$A,序时账!$X:$X,$C:$C) -> 0
A98: 0500 | B98: 应付职工薪酬 | C98: 基本养老保险费 | E98: 1923288 | F98: 16 | G98: 5 | H98: 380 | I98: 0 | J98: 0 | K98: 0 | L98: 无差异 | M98: 0 | O98: 0 | P98: 96164.4 | Q98: =SUMIFS(序时账!Y:Y,序时账!$V:$V,$A:$A,序时账!$X:$X,$C:$C) -> 0 | R98: =SUMIFS(序时账!Z:Z,序时账!$V:$V,$A:$A,序时账!$X:$X,$C:$C) -> 0 | S98: =SUMIFS(序时账!AA:AA,序时账!$V:$V,$A:$A,序时账!$X:$X,$C:$C) -> 0
A99: 0500 | B99: 应付职工薪酬 | C99: 工资薪金支出 | E99: 12020550 | F99: 16 | G99: 5 | H99: 380 | I99: 0 | J99: 0 | K99: 0 | L99: 无差异 | M99: 0 | O99: 0 | P99: 96164.4 | Q99: =SUMIFS(序时账!Y:Y,序时账!$V:$V,$A:$A,序时账!$X:$X,$C:$C) -> 0 | R99: =SUMIFS(序时账!Z:Z,序时账!$V:$V,$A:$A,序时账!$X:$X,$C:$C) -> 0 | S99: =SUMIFS(序时账!AA:AA,序时账!$V:$V,$A:$A,序时账!$X:$X,$C:$C) -> 0
A100: 0500 | B100: 应付职工薪酬 | C100: 工会经费支出 | E100: 144246.6 | F100: 16 | G100: 2 | H100: 2 | I100: 96164.4 | J100: 96164.4 | K100: 96164.4 | L100: 4调费用或3调借贷 | M100: 96164.4 | O100: 96164.4 | P100: 96164.4 | Q100: =SUMIFS(序时账!Y:Y,序时账!$V:$V,$A:$A,序时账!$X:$X,$C:$C) -> 0 | R100: =SUMIFS(序时账!Z:Z,序时账!$V:$V,$A:$A,序时账!$X:$X,$C:$C) -> 0 | S100: =SUMIFS(序时账!AA:AA,序时账!$V:$V,$A:$A,序时账!$X:$X,$C:$C) -> 0
A101: 0500 | B101: 应付职工薪酬 | C101: 失业保险费 | E101: 84143.85 | F101: 16 | G101: 2 | H101: 380 | I101: 0 | J101: 0 | K101: 0 | L101: 无差异 | M101: 0 | O101: 0 | P101: 96164.4 | Q101: =SUMIFS(序时账!Y:Y,序时账!$V:$V,$A:$A,序时账!$X:$X,$C:$C) -> 0 | R101: =SUMIFS(序时账!Z:Z,序时账!$V:$V,$A:$A,序时账!$X:$X,$C:$C) -> 0 | S101: =SUMIFS(序时账!AA:AA,序时账!$V:$V,$A:$A,序时账!$X:$X,$C:$C) -> 0
A102: 0500 | B102: 管理费用 | C102: 基本医疗保险费 | D102: 817397.4 | F102: 16 | G102: 2 | H102: 380 | I102: 0 | J102: 0 | K102: 0 | L102: 无差异 | M102: 0 | O102: 0 | P102: 96164.4 | Q102: =SUMIFS(序时账!Y:Y,序时账!$V:$V,$A:$A,序时账!$X:$X,$C:$C) -> 0 | R102: =SUMIFS(序时账!Z:Z,序时账!$V:$V,$A:$A,序时账!$X:$X,$C:$C) -> 0 | S102: =SUMIFS(序时账!AA:AA,序时账!$V:$V,$A:$A,序时账!$X:$X,$C:$C) -> 0
A103: 0500 | B103: 管理费用 | C103: 基本养老保险费 | D103: 256000 | F103: 16 | G103: 5 | H103: 380 | I103: 0 | J103: 0 | K103: 0 | L103: 无差异 | M103: 0 | O103: 0 | P103: 96164.4 | Q103: =SUMIFS(序时账!Y:Y,序时账!$V:$V,$A:$A,序时账!$X:$X,$C:$C) -> 0 | R103: =SUMIFS(序时账!Z:Z,序时账!$V:$V,$A:$A,序时账!$X:$X,$C:$C) -> 0 | S103: =SUMIFS(序时账!AA:AA,序时账!$V:$V,$A:$A,序时账!$X:$X,$C:$C) -> 0
A104: 0500 | B104: 管理费用 | C104: 工资薪金支出 | D104: 1600000 | F104: 16 | G104: 5 | H104: 380 | I104: 0 | J104: 0 | K104: 0 | L104: 无差异 | M104: 0 | O104: 0 | P104: 96164.4 | Q104: =SUMIFS(序时账!Y:Y,序时账!$V:$V,$A:$A,序时账!$X:$X,$C:$C) -> 0 | R104: =SUMIFS(序时账!Z:Z,序时账!$V:$V,$A:$A,序时账!$X:$X,$C:$C) -> 0 | S104: =SUMIFS(序时账!AA:AA,序时账!$V:$V,$A:$A,序时账!$X:$X,$C:$C) -> 0
A105: 0500 | B105: 管理费用 | C105: 工会经费支出 | D105: 240411 | F105: 16 | G105: 2 | H105: 2 | I105: 96164.4 | J105: 96164.4 | K105: 96164.4 | L105: 4调费用或3调借贷 | M105: 96164.4 | O105: 96164.4 | P105: 96164.4 | Q105: =SUMIFS(序时账!Y:Y,序时账!$V:$V,$A:$A,序时账!$X:$X,$C:$C) -> 0 | R105: =SUMIFS(序时账!Z:Z,序时账!$V:$V,$A:$A,序时账!$X:$X,$C:$C) -> 0 | S105: =SUMIFS(序时账!AA:AA,序时账!$V:$V,$A:$A,序时账!$X:$X,$C:$C) -> 0
A106: 0500 | B106: 管理费用 | C106: 失业保险费 | D106: 84143.85 | F106: 16 | G106: 2 | H106: 380 | I106: 0 | J106: 0 | K106: 0 | L106: 无差异 | M106: =SUMIFS($D:$D,$A:$A,$A:$A,$C:$C,$C:$C)-SUMIFS($E:$E,$A:$A,$A:$A,$C:$C,$C:$C) -> 0 | O106: 0 | P106: 96164.4 | Q106: =SUMIFS(序时账!Y:Y,序时账!$V:$V,$A:$A,序时账!$X:$X,$C:$C) -> 0 | R106: =SUMIFS(序时账!Z:Z,序时账!$V:$V,$A:$A,序时账!$X:$X,$C:$C) -> 0 | S106: =SUMIFS(序时账!AA:AA,序时账!$V:$V,$A:$A,序时账!$X:$X,$C:$C) -> 0
A107: 0500 | B107: 生产成本 | C107: 基本养老保险费 | D107: 1472800 | F107: 16 | G107: 5 | H107: 380 | I107: 0 | J107: 0 | K107: 0 | L107: 无差异 | M107: 0 | O107: 0 | P107: 96164.4 | Q107: =SUMIFS(序时账!Y:Y,序时账!$V:$V,$A:$A,序时账!$X:$X,$C:$C) -> 0 | R107: =SUMIFS(序时账!Z:Z,序时账!$V:$V,$A:$A,序时账!$X:$X,$C:$C) -> 0 | S107: =SUMIFS(序时账!AA:AA,序时账!$V:$V,$A:$A,序时账!$X:$X,$C:$C) -> 0
A108: 0500 | B108: 生产成本 | C108: 工资薪金支出 | D108: 9205000 | F108: 16 | G108: 5 | H108: 380 | I108: 0 | J108: 0 | K108: 0 | L108: 无差异 | M108: 0 | O108: 0 | P108: 96164.4 | Q108: =SUMIFS(序时账!Y:Y,序时账!$V:$V,$A:$A,序时账!$X:$X,$C:$C) -> 0 | R108: =SUMIFS(序时账!Z:Z,序时账!$V:$V,$A:$A,序时账!$X:$X,$C:$C) -> 0 | S108: =SUMIFS(序时账!AA:AA,序时账!$V:$V,$A:$A,序时账!$X:$X,$C:$C) -> 0
A109: 0500 | B109: 销售费用 | C109: 基本养老保险费 | D109: 32000 | F109: 16 | G109: 5 | H109: 380 | I109: 0 | J109: 0 | K109: 0 | L109: 无差异 | M109: 0 | O109: 0 | P109: 96164.4 | Q109: =SUMIFS(序时账!Y:Y,序时账!$V:$V,$A:$A,序时账!$X:$X,$C:$C) -> 0 | R109: =SUMIFS(序时账!Z:Z,序时账!$V:$V,$A:$A,序时账!$X:$X,$C:$C) -> 0 | S109: =SUMIFS(序时账!AA:AA,序时账!$V:$V,$A:$A,序时账!$X:$X,$C:$C) -> 0
A110: 0500 | B110: 销售费用 | C110: 工资薪金支出 | D110: 200000 | F110: 16 | G110: 5 | H110: 380 | I110: 0 | J110: 0 | K110: 0 | L110: 无差异 | M110: 0 | O110: 0 | P110: 96164.4 | Q110: =SUMIFS(序时账!Y:Y,序时账!$V:$V,$A:$A,序时账!$X:$X,$C:$C) -> 0 | R110: =SUMIFS(序时账!Z:Z,序时账!$V:$V,$A:$A,序时账!$X:$X,$C:$C) -> 0 | S110: =SUMIFS(序时账!AA:AA,序时账!$V:$V,$A:$A,序时账!$X:$X,$C:$C) -> 0
A111: 0510 | B111: 应付职工薪酬 | C111: 工伤保险费 | E111: 1368 | F111: 2 | G111: 2 | H111: 380 | I111: 0 | J111: 0 | K111: 0 | L111: 无差异 | M111: 0 | O111: 0 | P111: 0 | Q111: =SUMIFS(序时账!Y:Y,序时账!$V:$V,$A:$A,序时账!$X:$X,$C:$C) -> 0 | R111: =SUMIFS(序时账!Z:Z,序时账!$V:$V,$A:$A,序时账!$X:$X,$C:$C) -> 0 | S111: =SUMIFS(序时账!AA:AA,序时账!$V:$V,$A:$A,序时账!$X:$X,$C:$C) -> 0
A112: 0510 | B112: 管理费用 | C112: 工伤保险费 | D112: 1368 | F112: 2 | G112: 2 | H112: 380 | I112: 0 | J112: 0 | K112: 0 | L112: 无差异 | M112: 0 | O112: 0 | P112: 0 | Q112: =SUMIFS(序时账!Y:Y,序时账!$V:$V,$A:$A,序时账!$X:$X,$C:$C) -> 0 | R112: =SUMIFS(序时账!Z:Z,序时账!$V:$V,$A:$A,序时账!$X:$X,$C:$C) -> 0 | S112: =SUMIFS(序时账!AA:AA,序时账!$V:$V,$A:$A,序时账!$X:$X,$C:$C) -> 0
A113: 0581 | B113: 应付职工薪酬 | C113: 职工福利费支出 | E113: 2559.9 | F113: 1 | G113: 1 | H113: 1 | I113: 2559.9 | J113: -2559.9 | K113: -2559.9 | L113: 4调费用或1去借贷 | M113: -2559.9 | O113: -2559.9 | P113: -2559.9 | Q113: =SUMIFS(序时账!Y:Y,序时账!$V:$V,$A:$A,序时账!$X:$X,$C:$C) -> 0 | R113: =SUMIFS(序时账!Z:Z,序时账!$V:$V,$A:$A,序时账!$X:$X,$C:$C) -> 0 | S113: =SUMIFS(序时账!AA:AA,序时账!$V:$V,$A:$A,序时账!$X:$X,$C:$C) -> 0
A114: 0601 | B114: 应付职工薪酬 | C114: 职工福利费支出 | E114: 70000 | F114: 2 | G114: 2 | H114: 380 | I114: 0 | J114: 0 | K114: 0 | L114: 无差异 | M114: 0 | O114: 0 | P114: 0 | Q114: =SUMIFS(序时账!Y:Y,序时账!$V:$V,$A:$A,序时账!$X:$X,$C:$C) -> 0 | R114: =SUMIFS(序时账!Z:Z,序时账!$V:$V,$A:$A,序时账!$X:$X,$C:$C) -> 0 | S114: =SUMIFS(序时账!AA:AA,序时账!$V:$V,$A:$A,序时账!$X:$X,$C:$C) -> 0
A115: 0601 | B115: 管理费用 | C115: 职工福利费支出 | D115: 70000 | F115: 2 | G115: 2 | H115: 380 | I115: 0 | J115: 0 | K115: 0 | L115: 无差异 | M115: 0 | O115: 0 | P115: 0 | Q115: =SUMIFS(序时账!Y:Y,序时账!$V:$V,$A:$A,序时账!$X:$X,$C:$C) -> 0 | R115: =SUMIFS(序时账!Z:Z,序时账!$V:$V,$A:$A,序时账!$X:$X,$C:$C) -> 0 | S115: =SUMIFS(序时账!AA:AA,序时账!$V:$V,$A:$A,序时账!$X:$X,$C:$C) -> 0
A116: 0623 | B116: 应付职工薪酬 | C116: 职工福利费支出 | E116: 6435.64 | F116: 1 | G116: 1 | H116: 1 | I116: 6435.64 | J116: -6435.64 | K116: -6435.64 | L116: 4调费用或1去借贷 | M116: =SUMIFS($D:$D,$A:$A,$A:$A,$C:$C,$C:$C)-SUMIFS($E:$E,$A:$A,$A:$A,$C:$C,$C:$C) -> -6435.64 | O116: -6435.64 | P116: -6435.64 | Q116: =SUMIFS(序时账!Y:Y,序时账!$V:$V,$A:$A,序时账!$X:$X,$C:$C) -> 0 | R116: =SUMIFS(序时账!Z:Z,序时账!$V:$V,$A:$A,序时账!$X:$X,$C:$C) -> 0 | S116: =SUMIFS(序时账!AA:AA,序时账!$V:$V,$A:$A,序时账!$X:$X,$C:$C) -> 0
A117: 0643 | B117: 应付职工薪酬 | C117: 基本养老保险费 | E117: 7675 | F117: 1 | G117: 1 | H117: 1 | I117: 7675 | J117: -7675 | K117: -7675 | L117: 4调费用或1去借贷 | M117: -7675 | O117: -7675 | P117: -7675 | Q117: =SUMIFS(序时账!Y:Y,序时账!$V:$V,$A:$A,序时账!$X:$X,$C:$C) -> 0 | R117: =SUMIFS(序时账!Z:Z,序时账!$V:$V,$A:$A,序时账!$X:$X,$C:$C) -> 0 | S117: =SUMIFS(序时账!AA:AA,序时账!$V:$V,$A:$A,序时账!$X:$X,$C:$C) -> 0
A118: 0648 | B118: 应付职工薪酬 | C118: 职工福利费支出 | E118: 10000 | F118: 2 | G118: 2 | H118: 380 | I118: 0 | J118: 0 | K118: 0 | L118: 无差异 | M118: 0 | O118: 0 | P118: 0 | Q118: =SUMIFS(序时账!Y:Y,序时账!$V:$V,$A:$A,序时账!$X:$X,$C:$C) -> 0 | R118: =SUMIFS(序时账!Z:Z,序时账!$V:$V,$A:$A,序时账!$X:$X,$C:$C) -> 0 | S118: =SUMIFS(序时账!AA:AA,序时账!$V:$V,$A:$A,序时账!$X:$X,$C:$C) -> 0
A119: 0648 | B119: 管理费用 | C119: 职工福利费支出 | D119: 10000 | F119: 2 | G119: 2 | H119: 380 | I119: 0 | J119: 0 | K119: 0 | L119: 无差异 | M119: 0 | O119: 0 | P119: 0 | Q119: =SUMIFS(序时账!Y:Y,序时账!$V:$V,$A:$A,序时账!$X:$X,$C:$C) -> 0 | R119: =SUMIFS(序时账!Z:Z,序时账!$V:$V,$A:$A,序时账!$X:$X,$C:$C) -> 0 | S119: =SUMIFS(序时账!AA:AA,序时账!$V:$V,$A:$A,序时账!$X:$X,$C:$C) -> 0
A120: 0657 | B120: 应付职工薪酬 | C120: 基本养老保险费 | E120: 1120 | F120: 1 | G120: 1 | H120: 2 | I120: 1120 | J120: -1120 | K120: -1120 | L120: 4调费用或1去借贷 | M120: -1120 | O120: -1120 | P120: -1120 | Q120: =SUMIFS(序时账!Y:Y,序时账!$V:$V,$A:$A,序时账!$X:$X,$C:$C) -> 0 | R120: =SUMIFS(序时账!Z:Z,序时账!$V:$V,$A:$A,序时账!$X:$X,$C:$C) -> 0 | S120: =SUMIFS(序时账!AA:AA,序时账!$V:$V,$A:$A,序时账!$X:$X,$C:$C) -> 0
A121: 0658 | B121: 应付职工薪酬 | C121: 基本医疗保险费 | E121: 5315.52 | F121: 1 | G121: 1 | H121: 1 | I121: 5315.52 | J121: -5315.52 | K121: -5315.52 | L121: 4调费用或1去借贷 | M121: -5315.52 | O121: -5315.52 | P121: -5315.52 | Q121: =SUMIFS(序时账!Y:Y,序时账!$V:$V,$A:$A,序时账!$X:$X,$C:$C) -> 0 | R121: =SUMIFS(序时账!Z:Z,序时账!$V:$V,$A:$A,序时账!$X:$X,$C:$C) -> 0 | S121: =SUMIFS(序时账!AA:AA,序时账!$V:$V,$A:$A,序时账!$X:$X,$C:$C) -> 0
A122: 0746 | B122: 制造费用 | C122: 工资薪金支出 | D122: -1000000 | F122: 9 | G122: 5 | H122: 380 | I122: 0 | J122: 0 | K122: 0 | L122: 无差异 | M122: 0 | O122: 0 | P122: 2914600 | Q122: =SUMIFS(序时账!Y:Y,序时账!$V:$V,$A:$A,序时账!$X:$X,$C:$C) -> 0 | R122: =SUMIFS(序时账!Z:Z,序时账!$V:$V,$A:$A,序时账!$X:$X,$C:$C) -> 0 | S122: =SUMIFS(序时账!AA:AA,序时账!$V:$V,$A:$A,序时账!$X:$X,$C:$C) -> 0
A123: 0746 | B123: 应付职工薪酬 | C123: 基本医疗保险费 | E123: -802400 | F123: 9 | G123: 1 | H123: 4 | I123: 802400 | J123: 802400 | K123: 802400 | L123: 4调费用或1去借贷 | M123: 802400 | O123: 802400 | P123: 2914600 | Q123: =SUMIFS(序时账!Y:Y,序时账!$V:$V,$A:$A,序时账!$X:$X,$C:$C) -> 0 | R123: =SUMIFS(序时账!Z:Z,序时账!$V:$V,$A:$A,序时账!$X:$X,$C:$C) -> 0 | S123: =SUMIFS(序时账!AA:AA,序时账!$V:$V,$A:$A,序时账!$X:$X,$C:$C) -> 0
A124: 0746 | B124: 应付职工薪酬 | C124: 基本养老保险费 | E124: -1888000 | F124: 9 | G124: 1 | H124: 4 | I124: 1888000 | J124: 1888000 | K124: 1888000 | L124: 4调费用或1去借贷 | M124: 1888000 | O124: 1888000 | P124: 2914600 | Q124: =SUMIFS(序时账!Y:Y,序时账!$V:$V,$A:$A,序时账!$X:$X,$C:$C) -> 0 | R124: =SUMIFS(序时账!Z:Z,序时账!$V:$V,$A:$A,序时账!$X:$X,$C:$C) -> 0 | S124: =SUMIFS(序时账!AA:AA,序时账!$V:$V,$A:$A,序时账!$X:$X,$C:$C) -> 0
A125: 0746 | B125: 应付职工薪酬 | C125: 工资薪金支出 | E125: -11800000 | F125: 9 | G125: 5 | H125: 380 | I125: 0 | J125: 0 | K125: 0 | L125: 无差异 | M125: 0 | O125: 0 | P125: 2914600 | Q125: =SUMIFS(序时账!Y:Y,序时账!$V:$V,$A:$A,序时账!$X:$X,$C:$C) -> 0 | R125: =SUMIFS(序时账!Z:Z,序时账!$V:$V,$A:$A,序时账!$X:$X,$C:$C) -> 0 | S125: =SUMIFS(序时账!AA:AA,序时账!$V:$V,$A:$A,序时账!$X:$X,$C:$C) -> 0
A126: 0746 | B126: 应付职工薪酬 | C126: 工会经费支出 | E126: -141600 | F126: 9 | G126: 1 | H126: 4 | I126: 141600 | J126: 141600 | K126: 141600 | L126: 4调费用或1去借贷 | M126: =SUMIFS($D:$D,$A:$A,$A:$A,$C:$C,$C:$C)-SUMIFS($E:$E,$A:$A,$A:$A,$C:$C,$C:$C) -> 141600 | O126: 141600 | P126: 2914600 | Q126: =SUMIFS(序时账!Y:Y,序时账!$V:$V,$A:$A,序时账!$X:$X,$C:$C) -> 0 | R126: =SUMIFS(序时账!Z:Z,序时账!$V:$V,$A:$A,序时账!$X:$X,$C:$C) -> 0 | S126: =SUMIFS(序时账!AA:AA,序时账!$V:$V,$A:$A,序时账!$X:$X,$C:$C) -> 0
A127: 0746 | B127: 应付职工薪酬 | C127: 失业保险费 | E127: -82600 | F127: 9 | G127: 1 | H127: 4 | I127: 82600 | J127: 82600 | K127: 82600 | L127: 4调费用或1去借贷 | M127: 82600 | O127: 82600 | P127: 2914600 | Q127: =SUMIFS(序时账!Y:Y,序时账!$V:$V,$A:$A,序时账!$X:$X,$C:$C) -> 0 | R127: =SUMIFS(序时账!Z:Z,序时账!$V:$V,$A:$A,序时账!$X:$X,$C:$C) -> 0 | S127: =SUMIFS(序时账!AA:AA,序时账!$V:$V,$A:$A,序时账!$X:$X,$C:$C) -> 0
A128: 0746 | B128: 管理费用 | C128: 工资薪金支出 | D128: -1600000 | F128: 9 | G128: 5 | H128: 380 | I128: 0 | J128: 0 | K128: 0 | L128: 无差异 | M128: 0 | O128: 0 | P128: 2914600 | Q128: =SUMIFS(序时账!Y:Y,序时账!$V:$V,$A:$A,序时账!$X:$X,$C:$C) -> 0 | R128: =SUMIFS(序时账!Z:Z,序时账!$V:$V,$A:$A,序时账!$X:$X,$C:$C) -> 0 | S128: =SUMIFS(序时账!AA:AA,序时账!$V:$V,$A:$A,序时账!$X:$X,$C:$C) -> 0
A129: 0746 | B129: 生产成本 | C129: 工资薪金支出 | D129: -9000000 | F129: 9 | G129: 5 | H129: 380 | I129: 0 | J129: 0 | K129: 0 | L129: 无差异 | M129: 0 | O129: 0 | P129: 2914600 | Q129: =SUMIFS(序时账!Y:Y,序时账!$V:$V,$A:$A,序时账!$X:$X,$C:$C) -> 0 | R129: =SUMIFS(序时账!Z:Z,序时账!$V:$V,$A:$A,序时账!$X:$X,$C:$C) -> 0 | S129: =SUMIFS(序时账!AA:AA,序时账!$V:$V,$A:$A,序时账!$X:$X,$C:$C) -> 0
A130: 0746 | B130: 销售费用 | C130: 工资薪金支出 | D130: -200000 | F130: 9 | G130: 5 | H130: 380 | I130: 0 | J130: 0 | K130: 0 | L130: 无差异 | M130: 0 | O130: 0 | P130: 2914600 | Q130: =SUMIFS(序时账!Y:Y,序时账!$V:$V,$A:$A,序时账!$X:$X,$C:$C) -> 0 | R130: =SUMIFS(序时账!Z:Z,序时账!$V:$V,$A:$A,序时账!$X:$X,$C:$C) -> 0 | S130: =SUMIFS(序时账!AA:AA,序时账!$V:$V,$A:$A,序时账!$X:$X,$C:$C) -> 0
A131: 0747 | B131: 制造费用 | C131: 工资薪金支出 | D131: 1265339.27 | F131: 5 | G131: 5 | H131: 380 | I131: 0 | J131: 0 | K131: 0 | L131: 无差异 | M131: 0 | O131: 0 | P131: 0 | Q131: =SUMIFS(序时账!Y:Y,序时账!$V:$V,$A:$A,序时账!$X:$X,$C:$C) -> 0 | R131: =SUMIFS(序时账!Z:Z,序时账!$V:$V,$A:$A,序时账!$X:$X,$C:$C) -> 0 | S131: =SUMIFS(序时账!AA:AA,序时账!$V:$V,$A:$A,序时账!$X:$X,$C:$C) -> 0
A132: 0747 | B132: 应付职工薪酬 | C132: 工资薪金支出 | E132: 13130165.35 | F132: 5 | G132: 5 | H132: 380 | I132: 0 | J132: 0 | K132: 0 | L132: 无差异 | M132: 0 | O132: 0 | P132: 0 | Q132: =SUMIFS(序时账!Y:Y,序时账!$V:$V,$A:$A,序时账!$X:$X,$C:$C) -> 0 | R132: =SUMIFS(序时账!Z:Z,序时账!$V:$V,$A:$A,序时账!$X:$X,$C:$C) -> 0 | S132: =SUMIFS(序时账!AA:AA,序时账!$V:$V,$A:$A,序时账!$X:$X,$C:$C) -> 0
A133: 0747 | B133: 管理费用 | C133: 工资薪金支出 | D133: 1867275.28 | F133: 5 | G133: 5 | H133: 380 | I133: 0 | J133: 0 | K133: 0 | L133: 无差异 | M133: 0 | O133: 0 | P133: 0 | Q133: =SUMIFS(序时账!Y:Y,序时账!$V:$V,$A:$A,序时账!$X:$X,$C:$C) -> 0 | R133: =SUMIFS(序时账!Z:Z,序时账!$V:$V,$A:$A,序时账!$X:$X,$C:$C) -> 0 | S133: =SUMIFS(序时账!AA:AA,序时账!$V:$V,$A:$A,序时账!$X:$X,$C:$C) -> 0
A134: 0747 | B134: 生产成本 | C134: 工资薪金支出 | D134: 9738580.8 | F134: =COUNTIFS(A:A,A134) -> 5 | G134: =COUNTIFS(A:A,A:A,C:C,C:C) -> 5 | H134: =COUNTIFS(I:I,I134) -> 380 | I134: =ABS(J134) -> 0 | J134: =SUMIFS(D:D,A:A,A:A,C:C,C:C)-SUMIFS(E:E,A:A,A:A,C:C,C:C) -> 0 | K134: =J134+S134-R134 -> 0 | L134: =IF(J134=0,"无差异",IF(SUMIFS(D:D,A:A,A:A,C:C,C:C)=0,"4调费用或1去借贷",IF(SUMIFS(E:E,A:A,A:A,C:C,C:C)=0,"3调借贷或2去费用","4调费用或3调借贷"))) -> 无差异 | M134: 0 | O134: =M134+SUMIFS($D:$D,$C:$C,$C:$C,$A:$A,$N:$N)-SUMIFS($E:$E,$C:$C,$C:$C,$A:$A,$N:$N) -> 0 | P134: =SUMIFS(D:D,A:A,A:A)-SUMIFS(E:E,A:A,A:A) -> 0 | Q134: =SUMIFS(序时账!Y:Y,序时账!$V:$V,$A:$A,序时账!$X:$X,$C:$C) -> 0 | R134: =SUMIFS(序时账!Z:Z,序时账!$V:$V,$A:$A,序时账!$X:$X,$C:$C) -> 0 | S134: =SUMIFS(序时账!AA:AA,序时账!$V:$V,$A:$A,序时账!$X:$X,$C:$C) -> 0
A135: 0747 | B135: 销售费用 | C135: 工资薪金支出 | D135: 258970 | F135: 5 | G135: 5 | H135: 380 | I135: 0 | J135: 0 | K135: 0 | L135: 无差异 | M135: 0 | O135: 0 | P135: 0 | Q135: =SUMIFS(序时账!Y:Y,序时账!$V:$V,$A:$A,序时账!$X:$X,$C:$C) -> 0 | R135: =SUMIFS(序时账!Z:Z,序时账!$V:$V,$A:$A,序时账!$X:$X,$C:$C) -> 0 | S135: =SUMIFS(序时账!AA:AA,序时账!$V:$V,$A:$A,序时账!$X:$X,$C:$C) -> 0
A136: 0751 | B136: 应付职工薪酬 | C136: 基本医疗保险费 | E136: 892851.24 | F136: 4 | G136: 1 | H136: 1 | I136: 892851.24 | J136: -892851.24 | K136: -892851.24 | L136: 4调费用或1去借贷 | M136: =SUMIFS($D:$D,$A:$A,$A:$A,$C:$C,$C:$C)-SUMIFS($E:$E,$A:$A,$A:$A,$C:$C,$C:$C) -> -892851.24 | O136: -892851.24 | P136: -3243150.84 | Q136: =SUMIFS(序时账!Y:Y,序时账!$V:$V,$A:$A,序时账!$X:$X,$C:$C) -> 0 | R136: =SUMIFS(序时账!Z:Z,序时账!$V:$V,$A:$A,序时账!$X:$X,$C:$C) -> 0 | S136: =SUMIFS(序时账!AA:AA,序时账!$V:$V,$A:$A,序时账!$X:$X,$C:$C) -> 0
A137: 0751 | B137: 应付职工薪酬 | C137: 基本养老保险费 | E137: 2100826.45 | F137: 4 | G137: 1 | H137: 1 | I137: 2100826.45 | J137: -2100826.45 | K137: -2100826.45 | L137: 4调费用或1去借贷 | M137: -2100826.45 | O137: -2100826.45 | P137: -3243150.84 | Q137: =SUMIFS(序时账!Y:Y,序时账!$V:$V,$A:$A,序时账!$X:$X,$C:$C) -> 0 | R137: =SUMIFS(序时账!Z:Z,序时账!$V:$V,$A:$A,序时账!$X:$X,$C:$C) -> 0 | S137: =SUMIFS(序时账!AA:AA,序时账!$V:$V,$A:$A,序时账!$X:$X,$C:$C) -> 0
A138: 0751 | B138: 应付职工薪酬 | C138: 工会经费支出 | E138: 157561.99 | F138: 4 | G138: 1 | H138: 1 | I138: 157561.99 | J138: -157561.99 | K138: -157561.99 | L138: 4调费用或1去借贷 | M138: -157561.99 | O138: -157561.99 | P138: -3243150.84 | Q138: =SUMIFS(序时账!Y:Y,序时账!$V:$V,$A:$A,序时账!$X:$X,$C:$C) -> 0 | R138: =SUMIFS(序时账!Z:Z,序时账!$V:$V,$A:$A,序时账!$X:$X,$C:$C) -> 0 | S138: =SUMIFS(序时账!AA:AA,序时账!$V:$V,$A:$A,序时账!$X:$X,$C:$C) -> 0
A139: 0751 | B139: 应付职工薪酬 | C139: 失业保险费 | E139: 91911.16 | F139: 4 | G139: 1 | H139: 1 | I139: 91911.16 | J139: -91911.16 | K139: -91911.16 | L139: 4调费用或1去借贷 | M139: -91911.16 | O139: -91911.16 | P139: -3243150.84 | Q139: =SUMIFS(序时账!Y:Y,序时账!$V:$V,$A:$A,序时账!$X:$X,$C:$C) -> 0 | R139: =SUMIFS(序时账!Z:Z,序时账!$V:$V,$A:$A,序时账!$X:$X,$C:$C) -> 0 | S139: =SUMIFS(序时账!AA:AA,序时账!$V:$V,$A:$A,序时账!$X:$X,$C:$C) -> 0
A140: 0752 | B140: 应付职工薪酬 | C140: 工伤保险费 | E140: 239488.73 | F140: 2 | G140: 2 | H140: 380 | I140: 0 | J140: 0 | K140: 0 | L140: 无差异 | M140: 0 | O140: 0 | P140: 0 | Q140: =SUMIFS(序时账!Y:Y,序时账!$V:$V,$A:$A,序时账!$X:$X,$C:$C) -> 0 | R140: =SUMIFS(序时账!Z:Z,序时账!$V:$V,$A:$A,序时账!$X:$X,$C:$C) -> 0 | S140: =SUMIFS(序时账!AA:AA,序时账!$V:$V,$A:$A,序时账!$X:$X,$C:$C) -> 0
A141: 0752 | B141: 管理费用 | C141: 工伤保险费 | D141: 239488.73 | F141: 2 | G141: 2 | H141: 380 | I141: 0 | J141: 0 | K141: 0 | L141: 无差异 | M141: 0 | O141: 0 | P141: 0 | Q141: =SUMIFS(序时账!Y:Y,序时账!$V:$V,$A:$A,序时账!$X:$X,$C:$C) -> 0 | R141: =SUMIFS(序时账!Z:Z,序时账!$V:$V,$A:$A,序时账!$X:$X,$C:$C) -> 0 | S141: =SUMIFS(序时账!AA:AA,序时账!$V:$V,$A:$A,序时账!$X:$X,$C:$C) -> 0
A142: 0756 | B142: 应付职工薪酬 | C142: 职工福利费支出 | E142: 1239.11 | F142: 1 | G142: 1 | H142: 1 | I142: 1239.11 | J142: -1239.11 | K142: -1239.11 | L142: 4调费用或1去借贷 | M142: -1239.11 | O142: -1239.11 | P142: -1239.11 | Q142: =SUMIFS(序时账!Y:Y,序时账!$V:$V,$A:$A,序时账!$X:$X,$C:$C) -> 0 | R142: =SUMIFS(序时账!Z:Z,序时账!$V:$V,$A:$A,序时账!$X:$X,$C:$C) -> 0 | S142: =SUMIFS(序时账!AA:AA,序时账!$V:$V,$A:$A,序时账!$X:$X,$C:$C) -> 0
A143: 0763 | B143: 制造费用 | C143: 工资薪金支出 | D143: 143968.04 | F143: 1 | G143: 1 | H143: 1 | I143: 143968.04 | J143: 143968.04 | K143: 143968.04 | L143: 3调借贷或2去费用 | M143: 143968.04 | O143: 143968.04 | P143: 143968.04 | Q143: =SUMIFS(序时账!Y:Y,序时账!$V:$V,$A:$A,序时账!$X:$X,$C:$C) -> 0 | R143: =SUMIFS(序时账!Z:Z,序时账!$V:$V,$A:$A,序时账!$X:$X,$C:$C) -> 0 | S143: =SUMIFS(序时账!AA:AA,序时账!$V:$V,$A:$A,序时账!$X:$X,$C:$C) -> 0
A144: 0807 | B144: 应付职工薪酬 | C144: 基本医疗保险费 | E144: 42456.14 | F144: 1 | G144: 1 | H144: 1 | I144: 42456.14 | J144: -42456.14 | K144: -42456.14 | L144: 4调费用或1去借贷 | M144: -42456.14 | O144: -42456.14 | P144: -42456.14 | Q144: =SUMIFS(序时账!Y:Y,序时账!$V:$V,$A:$A,序时账!$X:$X,$C:$C) -> 0 | R144: =SUMIFS(序时账!Z:Z,序时账!$V:$V,$A:$A,序时账!$X:$X,$C:$C) -> 0 | S144: =SUMIFS(序时账!AA:AA,序时账!$V:$V,$A:$A,序时账!$X:$X,$C:$C) -> 0
A145: 0824 | B145: 管理费用 | C145: 职工福利费支出 | D145: 114957 | F145: 1 | G145: 1 | H145: 1 | I145: 114957 | J145: 114957 | K145: 114957 | L145: 3调借贷或2去费用 | M145: 114957 | O145: 114957 | P145: 114957 | Q145: =SUMIFS(序时账!Y:Y,序时账!$V:$V,$A:$A,序时账!$X:$X,$C:$C) -> 0 | R145: =SUMIFS(序时账!Z:Z,序时账!$V:$V,$A:$A,序时账!$X:$X,$C:$C) -> 0 | S145: =SUMIFS(序时账!AA:AA,序时账!$V:$V,$A:$A,序时账!$X:$X,$C:$C) -> 0
A146: 0829 | B146: 制造费用 | C146: 职工福利费支出 | D146: 200085 | F146: 2 | G146: 2 | H146: 2 | I146: 718995 | J146: 718995 | K146: 718995 | L146: 3调借贷或2去费用 | M146: =SUMIFS($D:$D,$A:$A,$A:$A,$C:$C,$C:$C)-SUMIFS($E:$E,$A:$A,$A:$A,$C:$C,$C:$C) -> 718995 | O146: 718995 | P146: 718995 | Q146: =SUMIFS(序时账!Y:Y,序时账!$V:$V,$A:$A,序时账!$X:$X,$C:$C) -> 0 | R146: =SUMIFS(序时账!Z:Z,序时账!$V:$V,$A:$A,序时账!$X:$X,$C:$C) -> 0 | S146: =SUMIFS(序时账!AA:AA,序时账!$V:$V,$A:$A,序时账!$X:$X,$C:$C) -> 0
A147: 0829 | B147: 生产成本 | C147: 职工福利费支出 | D147: 518910 | F147: 2 | G147: 2 | H147: 2 | I147: 718995 | J147: 718995 | K147: 718995 | L147: 3调借贷或2去费用 | M147: 718995 | O147: 718995 | P147: 718995 | Q147: =SUMIFS(序时账!Y:Y,序时账!$V:$V,$A:$A,序时账!$X:$X,$C:$C) -> 0 | R147: =SUMIFS(序时账!Z:Z,序时账!$V:$V,$A:$A,序时账!$X:$X,$C:$C) -> 0 | S147: =SUMIFS(序时账!AA:AA,序时账!$V:$V,$A:$A,序时账!$X:$X,$C:$C) -> 0
A148: 0857 | B148: 制造费用 | C148: 基本养老保险费 | D148: 206400 | F148: 16 | G148: 5 | H148: 380 | I148: 0 | J148: 0 | K148: 0 | L148: 无差异 | M148: 0 | O148: 0 | P148: 104800 | Q148: =SUMIFS(序时账!Y:Y,序时账!$V:$V,$A:$A,序时账!$X:$X,$C:$C) -> 0 | R148: =SUMIFS(序时账!Z:Z,序时账!$V:$V,$A:$A,序时账!$X:$X,$C:$C) -> 0 | S148: =SUMIFS(序时账!AA:AA,序时账!$V:$V,$A:$A,序时账!$X:$X,$C:$C) -> 0
A149: 0857 | B149: 制造费用 | C149: 工资薪金支出 | D149: 1290000 | F149: 16 | G149: 5 | H149: 380 | I149: 0 | J149: 0 | K149: 0 | L149: 无差异 | M149: 0 | O149: 0 | P149: 104800 | Q149: =SUMIFS(序时账!Y:Y,序时账!$V:$V,$A:$A,序时账!$X:$X,$C:$C) -> 0 | R149: =SUMIFS(序时账!Z:Z,序时账!$V:$V,$A:$A,序时账!$X:$X,$C:$C) -> 0 | S149: =SUMIFS(序时账!AA:AA,序时账!$V:$V,$A:$A,序时账!$X:$X,$C:$C) -> 0
A150: 0857 | B150: 应付职工薪酬 | C150: 基本医疗保险费 | E150: 890800 | F150: 16 | G150: 2 | H150: 380 | I150: 0 | J150: 0 | K150: 0 | L150: 无差异 | M150: 0 | O150: 0 | P150: 104800 | Q150: =SUMIFS(序时账!Y:Y,序时账!$V:$V,$A:$A,序时账!$X:$X,$C:$C) -> 0 | R150: =SUMIFS(序时账!Z:Z,序时账!$V:$V,$A:$A,序时账!$X:$X,$C:$C) -> 0 | S150: =SUMIFS(序时账!AA:AA,序时账!$V:$V,$A:$A,序时账!$X:$X,$C:$C) -> 0
A151: 0857 | B151: 应付职工薪酬 | C151: 基本养老保险费 | E151: 2096000 | F151: 16 | G151: 5 | H151: 380 | I151: 0 | J151: 0 | K151: 0 | L151: 无差异 | M151: 0 | O151: 0 | P151: 104800 | Q151: =SUMIFS(序时账!Y:Y,序时账!$V:$V,$A:$A,序时账!$X:$X,$C:$C) -> 0 | R151: =SUMIFS(序时账!Z:Z,序时账!$V:$V,$A:$A,序时账!$X:$X,$C:$C) -> 0 | S151: =SUMIFS(序时账!AA:AA,序时账!$V:$V,$A:$A,序时账!$X:$X,$C:$C) -> 0
A152: 0857 | B152: 应付职工薪酬 | C152: 工资薪金支出 | E152: 13100000 | F152: 16 | G152: 5 | H152: 380 | I152: 0 | J152: 0 | K152: 0 | L152: 无差异 | M152: 0 | O152: 0 | P152: 104800 | Q152: =SUMIFS(序时账!Y:Y,序时账!$V:$V,$A:$A,序时账!$X:$X,$C:$C) -> 0 | R152: =SUMIFS(序时账!Z:Z,序时账!$V:$V,$A:$A,序时账!$X:$X,$C:$C) -> 0 | S152: =SUMIFS(序时账!AA:AA,序时账!$V:$V,$A:$A,序时账!$X:$X,$C:$C) -> 0
A153: 0857 | B153: 应付职工薪酬 | C153: 工会经费支出 | E153: 157200 | F153: 16 | G153: 2 | H153: 22 | I153: 104800 | J153: 104800 | K153: 104800 | L153: 4调费用或3调借贷 | M153: 104800 | O153: 104800 | P153: 104800 | Q153: =SUMIFS(序时账!Y:Y,序时账!$V:$V,$A:$A,序时账!$X:$X,$C:$C) -> 0 | R153: =SUMIFS(序时账!Z:Z,序时账!$V:$V,$A:$A,序时账!$X:$X,$C:$C) -> 0 | S153: =SUMIFS(序时账!AA:AA,序时账!$V:$V,$A:$A,序时账!$X:$X,$C:$C) -> 0
A154: 0857 | B154: 应付职工薪酬 | C154: 失业保险费 | E154: 91700 | F154: 16 | G154: 2 | H154: 380 | I154: 0 | J154: 0 | K154: 0 | L154: 无差异 | M154: 0 | O154: 0 | P154: 104800 | Q154: =SUMIFS(序时账!Y:Y,序时账!$V:$V,$A:$A,序时账!$X:$X,$C:$C) -> 0 | R154: =SUMIFS(序时账!Z:Z,序时账!$V:$V,$A:$A,序时账!$X:$X,$C:$C) -> 0 | S154: =SUMIFS(序时账!AA:AA,序时账!$V:$V,$A:$A,序时账!$X:$X,$C:$C) -> 0
A155: 0857 | B155: 管理费用 | C155: 基本医疗保险费 | D155: 890800 | F155: 16 | G155: 2 | H155: 380 | I155: 0 | J155: 0 | K155: 0 | L155: 无差异 | M155: 0 | O155: 0 | P155: 104800 | Q155: =SUMIFS(序时账!Y:Y,序时账!$V:$V,$A:$A,序时账!$X:$X,$C:$C) -> 0 | R155: =SUMIFS(序时账!Z:Z,序时账!$V:$V,$A:$A,序时账!$X:$X,$C:$C) -> 0 | S155: =SUMIFS(序时账!AA:AA,序时账!$V:$V,$A:$A,序时账!$X:$X,$C:$C) -> 0
A156: 0857 | B156: 管理费用 | C156: 基本养老保险费 | D156: 256000 | F156: 16 | G156: 5 | H156: 380 | I156: 0 | J156: 0 | K156: 0 | L156: 无差异 | M156: =SUMIFS($D:$D,$A:$A,$A:$A,$C:$C,$C:$C)-SUMIFS($E:$E,$A:$A,$A:$A,$C:$C,$C:$C) -> 0 | O156: 0 | P156: 104800 | Q156: =SUMIFS(序时账!Y:Y,序时账!$V:$V,$A:$A,序时账!$X:$X,$C:$C) -> 0 | R156: =SUMIFS(序时账!Z:Z,序时账!$V:$V,$A:$A,序时账!$X:$X,$C:$C) -> 0 | S156: =SUMIFS(序时账!AA:AA,序时账!$V:$V,$A:$A,序时账!$X:$X,$C:$C) -> 0
A157: 0857 | B157: 管理费用 | C157: 工资薪金支出 | D157: 1600000 | F157: 16 | G157: 5 | H157: 380 | I157: 0 | J157: 0 | K157: 0 | L157: 无差异 | M157: 0 | O157: 0 | P157: 104800 | Q157: =SUMIFS(序时账!Y:Y,序时账!$V:$V,$A:$A,序时账!$X:$X,$C:$C) -> 0 | R157: =SUMIFS(序时账!Z:Z,序时账!$V:$V,$A:$A,序时账!$X:$X,$C:$C) -> 0 | S157: =SUMIFS(序时账!AA:AA,序时账!$V:$V,$A:$A,序时账!$X:$X,$C:$C) -> 0
A158: 0857 | B158: 管理费用 | C158: 工会经费支出 | D158: 262000 | F158: 16 | G158: 2 | H158: 22 | I158: 104800 | J158: 104800 | K158: 104800 | L158: 4调费用或3调借贷 | M158: 104800 | O158: 104800 | P158: 104800 | Q158: =SUMIFS(序时账!Y:Y,序时账!$V:$V,$A:$A,序时账!$X:$X,$C:$C) -> 0 | R158: =SUMIFS(序时账!Z:Z,序时账!$V:$V,$A:$A,序时账!$X:$X,$C:$C) -> 0 | S158: =SUMIFS(序时账!AA:AA,序时账!$V:$V,$A:$A,序时账!$X:$X,$C:$C) -> 0
A159: 0857 | B159: 管理费用 | C159: 失业保险费 | D159: 91700 | F159: 16 | G159: 2 | H159: 380 | I159: 0 | J159: 0 | K159: 0 | L159: 无差异 | M159: 0 | O159: 0 | P159: 104800 | Q159: =SUMIFS(序时账!Y:Y,序时账!$V:$V,$A:$A,序时账!$X:$X,$C:$C) -> 0 | R159: =SUMIFS(序时账!Z:Z,序时账!$V:$V,$A:$A,序时账!$X:$X,$C:$C) -> 0 | S159: =SUMIFS(序时账!AA:AA,序时账!$V:$V,$A:$A,序时账!$X:$X,$C:$C) -> 0
A160: 0857 | B160: 生产成本 | C160: 基本养老保险费 | D160: 1598400 | F160: 16 | G160: 5 | H160: 380 | I160: 0 | J160: 0 | K160: 0 | L160: 无差异 | M160: 0 | O160: 0 | P160: 104800 | Q160: =SUMIFS(序时账!Y:Y,序时账!$V:$V,$A:$A,序时账!$X:$X,$C:$C) -> 0 | R160: =SUMIFS(序时账!Z:Z,序时账!$V:$V,$A:$A,序时账!$X:$X,$C:$C) -> 0 | S160: =SUMIFS(序时账!AA:AA,序时账!$V:$V,$A:$A,序时账!$X:$X,$C:$C) -> 0
A161: 0857 | B161: 生产成本 | C161: 工资薪金支出 | D161: 9990000 | F161: 16 | G161: 5 | H161: 380 | I161: 0 | J161: 0 | K161: 0 | L161: 无差异 | M161: 0 | O161: 0 | P161: 104800 | Q161: =SUMIFS(序时账!Y:Y,序时账!$V:$V,$A:$A,序时账!$X:$X,$C:$C) -> 0 | R161: =SUMIFS(序时账!Z:Z,序时账!$V:$V,$A:$A,序时账!$X:$X,$C:$C) -> 0 | S161: =SUMIFS(序时账!AA:AA,序时账!$V:$V,$A:$A,序时账!$X:$X,$C:$C) -> 0
A162: 0857 | B162: 销售费用 | C162: 基本养老保险费 | D162: 35200 | F162: 16 | G162: 5 | H162: 380 | I162: 0 | J162: 0 | K162: 0 | L162: 无差异 | M162: 0 | O162: 0 | P162: 104800 | Q162: =SUMIFS(序时账!Y:Y,序时账!$V:$V,$A:$A,序时账!$X:$X,$C:$C) -> 0 | R162: =SUMIFS(序时账!Z:Z,序时账!$V:$V,$A:$A,序时账!$X:$X,$C:$C) -> 0 | S162: =SUMIFS(序时账!AA:AA,序时账!$V:$V,$A:$A,序时账!$X:$X,$C:$C) -> 0
A163: 0857 | B163: 销售费用 | C163: 工资薪金支出 | D163: 220000 | F163: 16 | G163: 5 | H163: 380 | I163: 0 | J163: 0 | K163: 0 | L163: 无差异 | M163: 0 | O163: 0 | P163: 104800 | Q163: =SUMIFS(序时账!Y:Y,序时账!$V:$V,$A:$A,序时账!$X:$X,$C:$C) -> 0 | R163: =SUMIFS(序时账!Z:Z,序时账!$V:$V,$A:$A,序时账!$X:$X,$C:$C) -> 0 | S163: =SUMIFS(序时账!AA:AA,序时账!$V:$V,$A:$A,序时账!$X:$X,$C:$C) -> 0
A164: 0858 | B164: 制造费用 | C164: 工资薪金支出 | D164: -1000000 | F164: 9 | G164: 5 | H164: 380 | I164: 0 | J164: 0 | K164: 0 | L164: 无差异 | M164: 0 | O164: 0 | P164: 2914600 | Q164: =SUMIFS(序时账!Y:Y,序时账!$V:$V,$A:$A,序时账!$X:$X,$C:$C) -> 0 | R164: =SUMIFS(序时账!Z:Z,序时账!$V:$V,$A:$A,序时账!$X:$X,$C:$C) -> 0 | S164: =SUMIFS(序时账!AA:AA,序时账!$V:$V,$A:$A,序时账!$X:$X,$C:$C) -> 0
A165: 0858 | B165: 应付职工薪酬 | C165: 基本医疗保险费 | E165: -802400 | F165: 9 | G165: 1 | H165: 4 | I165: 802400 | J165: 802400 | K165: 802400 | L165: 4调费用或1去借贷 | M165: 802400 | O165: 802400 | P165: 2914600 | Q165: =SUMIFS(序时账!Y:Y,序时账!$V:$V,$A:$A,序时账!$X:$X,$C:$C) -> 0 | R165: =SUMIFS(序时账!Z:Z,序时账!$V:$V,$A:$A,序时账!$X:$X,$C:$C) -> 0 | S165: =SUMIFS(序时账!AA:AA,序时账!$V:$V,$A:$A,序时账!$X:$X,$C:$C) -> 0
A166: 0858 | B166: 应付职工薪酬 | C166: 基本养老保险费 | E166: -1888000 | F166: 9 | G166: 1 | H166: 4 | I166: 1888000 | J166: 1888000 | K166: 1888000 | L166: 4调费用或1去借贷 | M166: =SUMIFS($D:$D,$A:$A,$A:$A,$C:$C,$C:$C)-SUMIFS($E:$E,$A:$A,$A:$A,$C:$C,$C:$C) -> 1888000 | O166: 1888000 | P166: 2914600 | Q166: =SUMIFS(序时账!Y:Y,序时账!$V:$V,$A:$A,序时账!$X:$X,$C:$C) -> 0 | R166: =SUMIFS(序时账!Z:Z,序时账!$V:$V,$A:$A,序时账!$X:$X,$C:$C) -> 0 | S166: =SUMIFS(序时账!AA:AA,序时账!$V:$V,$A:$A,序时账!$X:$X,$C:$C) -> 0
A167: 0858 | B167: 应付职工薪酬 | C167: 工资薪金支出 | E167: -11800000 | F167: 9 | G167: 5 | H167: 380 | I167: 0 | J167: 0 | K167: 0 | L167: 无差异 | M167: 0 | O167: 0 | P167: 2914600 | Q167: =SUMIFS(序时账!Y:Y,序时账!$V:$V,$A:$A,序时账!$X:$X,$C:$C) -> 0 | R167: =SUMIFS(序时账!Z:Z,序时账!$V:$V,$A:$A,序时账!$X:$X,$C:$C) -> 0 | S167: =SUMIFS(序时账!AA:AA,序时账!$V:$V,$A:$A,序时账!$X:$X,$C:$C) -> 0
A168: 0858 | B168: 应付职工薪酬 | C168: 工会经费支出 | E168: -141600 | F168: 9 | G168: 1 | H168: 4 | I168: 141600 | J168: 141600 | K168: 141600 | L168: 4调费用或1去借贷 | M168: 141600 | O168: 141600 | P168: 2914600 | Q168: =SUMIFS(序时账!Y:Y,序时账!$V:$V,$A:$A,序时账!$X:$X,$C:$C) -> 0 | R168: =SUMIFS(序时账!Z:Z,序时账!$V:$V,$A:$A,序时账!$X:$X,$C:$C) -> 0 | S168: =SUMIFS(序时账!AA:AA,序时账!$V:$V,$A:$A,序时账!$X:$X,$C:$C) -> 0
A169: 0858 | B169: 应付职工薪酬 | C169: 失业保险费 | E169: -82600 | F169: 9 | G169: 1 | H169: 4 | I169: 82600 | J169: 82600 | K169: 82600 | L169: 4调费用或1去借贷 | M169: 82600 | O169: 82600 | P169: 2914600 | Q169: =SUMIFS(序时账!Y:Y,序时账!$V:$V,$A:$A,序时账!$X:$X,$C:$C) -> 0 | R169: =SUMIFS(序时账!Z:Z,序时账!$V:$V,$A:$A,序时账!$X:$X,$C:$C) -> 0 | S169: =SUMIFS(序时账!AA:AA,序时账!$V:$V,$A:$A,序时账!$X:$X,$C:$C) -> 0
A170: 0858 | B170: 管理费用 | C170: 工资薪金支出 | D170: -1600000 | F170: 9 | G170: 5 | H170: 380 | I170: 0 | J170: 0 | K170: 0 | L170: 无差异 | M170: 0 | O170: 0 | P170: 2914600 | Q170: =SUMIFS(序时账!Y:Y,序时账!$V:$V,$A:$A,序时账!$X:$X,$C:$C) -> 0 | R170: =SUMIFS(序时账!Z:Z,序时账!$V:$V,$A:$A,序时账!$X:$X,$C:$C) -> 0 | S170: =SUMIFS(序时账!AA:AA,序时账!$V:$V,$A:$A,序时账!$X:$X,$C:$C) -> 0
A171: 0858 | B171: 生产成本 | C171: 工资薪金支出 | D171: -9000000 | F171: 9 | G171: 5 | H171: 380 | I171: 0 | J171: 0 | K171: 0 | L171: 无差异 | M171: 0 | O171: 0 | P171: 2914600 | Q171: =SUMIFS(序时账!Y:Y,序时账!$V:$V,$A:$A,序时账!$X:$X,$C:$C) -> 0 | R171: =SUMIFS(序时账!Z:Z,序时账!$V:$V,$A:$A,序时账!$X:$X,$C:$C) -> 0 | S171: =SUMIFS(序时账!AA:AA,序时账!$V:$V,$A:$A,序时账!$X:$X,$C:$C) -> 0
A172: 0858 | B172: 销售费用 | C172: 工资薪金支出 | D172: -200000 | F172: 9 | G172: 5 | H172: 380 | I172: 0 | J172: 0 | K172: 0 | L172: 无差异 | M172: 0 | O172: 0 | P172: 2914600 | Q172: =SUMIFS(序时账!Y:Y,序时账!$V:$V,$A:$A,序时账!$X:$X,$C:$C) -> 0 | R172: =SUMIFS(序时账!Z:Z,序时账!$V:$V,$A:$A,序时账!$X:$X,$C:$C) -> 0 | S172: =SUMIFS(序时账!AA:AA,序时账!$V:$V,$A:$A,序时账!$X:$X,$C:$C) -> 0
A173: 0860 | B173: 制造费用 | C173: 工资薪金支出 | D173: 1246517.11 | F173: 5 | G173: 5 | H173: 380 | I173: 0 | J173: 0 | K173: 0 | L173: 无差异 | M173: 0 | O173: 0 | P173: 0 | Q173: =SUMIFS(序时账!Y:Y,序时账!$V:$V,$A:$A,序时账!$X:$X,$C:$C) -> 0 | R173: =SUMIFS(序时账!Z:Z,序时账!$V:$V,$A:$A,序时账!$X:$X,$C:$C) -> 0 | S173: =SUMIFS(序时账!AA:AA,序时账!$V:$V,$A:$A,序时账!$X:$X,$C:$C) -> 0
A174: 0860 | B174: 应付职工薪酬 | C174: 工资薪金支出 | E174: 12945164.83 | F174: 5 | G174: 5 | H174: 380 | I174: 0 | J174: 0 | K174: 0 | L174: 无差异 | M174: 0 | O174: 0 | P174: 0 | Q174: =SUMIFS(序时账!Y:Y,序时账!$V:$V,$A:$A,序时账!$X:$X,$C:$C) -> 0 | R174: =SUMIFS(序时账!Z:Z,序时账!$V:$V,$A:$A,序时账!$X:$X,$C:$C) -> 0 | S174: =SUMIFS(序时账!AA:AA,序时账!$V:$V,$A:$A,序时账!$X:$X,$C:$C) -> 0
A175: 0860 | B175: 管理费用 | C175: 工资薪金支出 | D175: 1923473.33 | F175: 5 | G175: 5 | H175: 380 | I175: 0 | J175: 0 | K175: 0 | L175: 无差异 | M175: 0 | O175: 0 | P175: 0 | Q175: =SUMIFS(序时账!Y:Y,序时账!$V:$V,$A:$A,序时账!$X:$X,$C:$C) -> 0 | R175: =SUMIFS(序时账!Z:Z,序时账!$V:$V,$A:$A,序时账!$X:$X,$C:$C) -> 0 | S175: =SUMIFS(序时账!AA:AA,序时账!$V:$V,$A:$A,序时账!$X:$X,$C:$C) -> 0
A176: 0860 | B176: 生产成本 | C176: 工资薪金支出 | D176: 9488897.39 | F176: 5 | G176: 5 | H176: 380 | I176: 0 | J176: 0 | K176: 0 | L176: 无差异 | M176: =SUMIFS($D:$D,$A:$A,$A:$A,$C:$C,$C:$C)-SUMIFS($E:$E,$A:$A,$A:$A,$C:$C,$C:$C) -> 0 | O176: 0 | P176: 0 | Q176: =SUMIFS(序时账!Y:Y,序时账!$V:$V,$A:$A,序时账!$X:$X,$C:$C) -> 0 | R176: =SUMIFS(序时账!Z:Z,序时账!$V:$V,$A:$A,序时账!$X:$X,$C:$C) -> 0 | S176: =SUMIFS(序时账!AA:AA,序时账!$V:$V,$A:$A,序时账!$X:$X,$C:$C) -> 0
A177: 0860 | B177: 销售费用 | C177: 工资薪金支出 | D177: 286277 | F177: 5 | G177: 5 | H177: 380 | I177: 0 | J177: 0 | K177: 0 | L177: 无差异 | M177: 0 | O177: 0 | P177: 0 | Q177: =SUMIFS(序时账!Y:Y,序时账!$V:$V,$A:$A,序时账!$X:$X,$C:$C) -> 0 | R177: =SUMIFS(序时账!Z:Z,序时账!$V:$V,$A:$A,序时账!$X:$X,$C:$C) -> 0 | S177: =SUMIFS(序时账!AA:AA,序时账!$V:$V,$A:$A,序时账!$X:$X,$C:$C) -> 0
A178: 0864 | B178: 应付职工薪酬 | C178: 基本医疗保险费 | E178: 880271.21 | F178: 4 | G178: 1 | H178: 1 | I178: 880271.21 | J178: -880271.21 | K178: -880271.21 | L178: 4调费用或1去借贷 | M178: -880271.21 | O178: -880271.21 | P178: -3197455.71 | Q178: =SUMIFS(序时账!Y:Y,序时账!$V:$V,$A:$A,序时账!$X:$X,$C:$C) -> 0 | R178: =SUMIFS(序时账!Z:Z,序时账!$V:$V,$A:$A,序时账!$X:$X,$C:$C) -> 0 | S178: =SUMIFS(序时账!AA:AA,序时账!$V:$V,$A:$A,序时账!$X:$X,$C:$C) -> 0
A179: 0864 | B179: 应付职工薪酬 | C179: 基本养老保险费 | E179: 2071226.37 | F179: 4 | G179: 1 | H179: 1 | I179: 2071226.37 | J179: -2071226.37 | K179: -2071226.37 | L179: 4调费用或1去借贷 | M179: -2071226.37 | O179: -2071226.37 | P179: -3197455.71 | Q179: =SUMIFS(序时账!Y:Y,序时账!$V:$V,$A:$A,序时账!$X:$X,$C:$C) -> 0 | R179: =SUMIFS(序时账!Z:Z,序时账!$V:$V,$A:$A,序时账!$X:$X,$C:$C) -> 0 | S179: =SUMIFS(序时账!AA:AA,序时账!$V:$V,$A:$A,序时账!$X:$X,$C:$C) -> 0
A180: 0864 | B180: 应付职工薪酬 | C180: 工会经费支出 | E180: 155341.98 | F180: 4 | G180: 1 | H180: 1 | I180: 155341.98 | J180: -155341.98 | K180: -155341.98 | L180: 4调费用或1去借贷 | M180: -155341.98 | O180: -155341.98 | P180: -3197455.71 | Q180: =SUMIFS(序时账!Y:Y,序时账!$V:$V,$A:$A,序时账!$X:$X,$C:$C) -> 0 | R180: =SUMIFS(序时账!Z:Z,序时账!$V:$V,$A:$A,序时账!$X:$X,$C:$C) -> 0 | S180: =SUMIFS(序时账!AA:AA,序时账!$V:$V,$A:$A,序时账!$X:$X,$C:$C) -> 0
A181: 0864 | B181: 应付职工薪酬 | C181: 失业保险费 | E181: 90616.15 | F181: 4 | G181: 1 | H181: 1 | I181: 90616.15 | J181: -90616.15 | K181: -90616.15 | L181: 4调费用或1去借贷 | M181: -90616.15 | O181: -90616.15 | P181: -3197455.71 | Q181: =SUMIFS(序时账!Y:Y,序时账!$V:$V,$A:$A,序时账!$X:$X,$C:$C) -> 0 | R181: =SUMIFS(序时账!Z:Z,序时账!$V:$V,$A:$A,序时账!$X:$X,$C:$C) -> 0 | S181: =SUMIFS(序时账!AA:AA,序时账!$V:$V,$A:$A,序时账!$X:$X,$C:$C) -> 0
A182: 0879 | B182: 应付职工薪酬 | C182: 职工福利费支出 | E182: 8855.3 | F182: 1 | G182: 1 | H182: 1 | I182: 8855.3 | J182: -8855.3 | K182: -8855.3 | L182: 4调费用或1去借贷 | M182: -8855.3 | O182: -8855.3 | P182: -8855.3 | Q182: =SUMIFS(序时账!Y:Y,序时账!$V:$V,$A:$A,序时账!$X:$X,$C:$C) -> 0 | R182: =SUMIFS(序时账!Z:Z,序时账!$V:$V,$A:$A,序时账!$X:$X,$C:$C) -> 0 | S182: =SUMIFS(序时账!AA:AA,序时账!$V:$V,$A:$A,序时账!$X:$X,$C:$C) -> 0
A183: 0887 | B183: 应付职工薪酬 | C183: 基本医疗保险费 | E183: 10631.04 | F183: 1 | G183: 1 | H183: 1 | I183: 10631.04 | J183: -10631.04 | K183: -10631.04 | L183: 4调费用或1去借贷 | M183: -10631.04 | O183: -10631.04 | P183: -10631.04 | Q183: =SUMIFS(序时账!Y:Y,序时账!$V:$V,$A:$A,序时账!$X:$X,$C:$C) -> 0 | R183: =SUMIFS(序时账!Z:Z,序时账!$V:$V,$A:$A,序时账!$X:$X,$C:$C) -> 0 | S183: =SUMIFS(序时账!AA:AA,序时账!$V:$V,$A:$A,序时账!$X:$X,$C:$C) -> 0
A184: 0889 | B184: 应付职工薪酬 | C184: 基本养老保险费 | E184: 12828.03 | F184: 1 | G184: 1 | H184: 1 | I184: 12828.03 | J184: -12828.03 | K184: -12828.03 | L184: 4调费用或1去借贷 | M184: -12828.03 | O184: -12828.03 | P184: -12828.03 | Q184: =SUMIFS(序时账!Y:Y,序时账!$V:$V,$A:$A,序时账!$X:$X,$C:$C) -> 0 | R184: =SUMIFS(序时账!Z:Z,序时账!$V:$V,$A:$A,序时账!$X:$X,$C:$C) -> 0 | S184: =SUMIFS(序时账!AA:AA,序时账!$V:$V,$A:$A,序时账!$X:$X,$C:$C) -> 0
A185: 0968 | B185: 应付职工薪酬 | C185: 职工福利费支出 | E185: 4737.45 | F185: 1 | G185: 1 | H185: 1 | I185: 4737.45 | J185: -4737.45 | K185: -4737.45 | L185: 4调费用或1去借贷 | M185: -4737.45 | O185: -4737.45 | P185: -4737.45 | Q185: =SUMIFS(序时账!Y:Y,序时账!$V:$V,$A:$A,序时账!$X:$X,$C:$C) -> 0 | R185: =SUMIFS(序时账!Z:Z,序时账!$V:$V,$A:$A,序时账!$X:$X,$C:$C) -> 0 | S185: =SUMIFS(序时账!AA:AA,序时账!$V:$V,$A:$A,序时账!$X:$X,$C:$C) -> 0
A186: 1050 | B186: 应付职工薪酬 | C186: 工伤保险费 | E186: 480080.98 | F186: 2 | G186: 2 | H186: 380 | I186: 0 | J186: 0 | K186: 0 | L186: 无差异 | M186: =SUMIFS($D:$D,$A:$A,$A:$A,$C:$C,$C:$C)-SUMIFS($E:$E,$A:$A,$A:$A,$C:$C,$C:$C) -> 0 | O186: 0 | P186: 0 | Q186: =SUMIFS(序时账!Y:Y,序时账!$V:$V,$A:$A,序时账!$X:$X,$C:$C) -> 0 | R186: =SUMIFS(序时账!Z:Z,序时账!$V:$V,$A:$A,序时账!$X:$X,$C:$C) -> 0 | S186: =SUMIFS(序时账!AA:AA,序时账!$V:$V,$A:$A,序时账!$X:$X,$C:$C) -> 0
A187: 1050 | B187: 管理费用 | C187: 工伤保险费 | D187: 480080.98 | F187: 2 | G187: 2 | H187: 380 | I187: 0 | J187: 0 | K187: 0 | L187: 无差异 | M187: 0 | O187: 0 | P187: 0 | Q187: =SUMIFS(序时账!Y:Y,序时账!$V:$V,$A:$A,序时账!$X:$X,$C:$C) -> 0 | R187: =SUMIFS(序时账!Z:Z,序时账!$V:$V,$A:$A,序时账!$X:$X,$C:$C) -> 0 | S187: =SUMIFS(序时账!AA:AA,序时账!$V:$V,$A:$A,序时账!$X:$X,$C:$C) -> 0
A188: 1065 | B188: 管理费用 | C188: 职工福利费支出 | D188: 105811 | F188: 1 | G188: 1 | H188: 1 | I188: 105811 | J188: 105811 | K188: 105811 | L188: 3调借贷或2去费用 | M188: 105811 | O188: 105811 | P188: 105811 | Q188: =SUMIFS(序时账!Y:Y,序时账!$V:$V,$A:$A,序时账!$X:$X,$C:$C) -> 0 | R188: =SUMIFS(序时账!Z:Z,序时账!$V:$V,$A:$A,序时账!$X:$X,$C:$C) -> 0 | S188: =SUMIFS(序时账!AA:AA,序时账!$V:$V,$A:$A,序时账!$X:$X,$C:$C) -> 0
A189: 1066 | B189: 制造费用 | C189: 职工福利费支出 | D189: 187035 | F189: 2 | G189: 2 | H189: 2 | I189: 642240 | J189: 642240 | K189: 642240 | L189: 3调借贷或2去费用 | M189: 642240 | O189: 642240 | P189: 642240 | Q189: =SUMIFS(序时账!Y:Y,序时账!$V:$V,$A:$A,序时账!$X:$X,$C:$C) -> 0 | R189: =SUMIFS(序时账!Z:Z,序时账!$V:$V,$A:$A,序时账!$X:$X,$C:$C) -> 0 | S189: =SUMIFS(序时账!AA:AA,序时账!$V:$V,$A:$A,序时账!$X:$X,$C:$C) -> 0
A190: 1066 | B190: 生产成本 | C190: 职工福利费支出 | D190: 455205 | F190: 2 | G190: 2 | H190: 2 | I190: 642240 | J190: 642240 | K190: 642240 | L190: 3调借贷或2去费用 | M190: 642240 | O190: 642240 | P190: 642240 | Q190: =SUMIFS(序时账!Y:Y,序时账!$V:$V,$A:$A,序时账!$X:$X,$C:$C) -> 0 | R190: =SUMIFS(序时账!Z:Z,序时账!$V:$V,$A:$A,序时账!$X:$X,$C:$C) -> 0 | S190: =SUMIFS(序时账!AA:AA,序时账!$V:$V,$A:$A,序时账!$X:$X,$C:$C) -> 0
A191: 1069 | B191: 管理费用 | C191: 职工福利费支出 | D191: 48600 | F191: 1 | G191: 1 | H191: 1 | I191: 48600 | J191: 48600 | K191: 48600 | L191: 3调借贷或2去费用 | M191: 48600 | O191: 48600 | P191: 48600 | Q191: =SUMIFS(序时账!Y:Y,序时账!$V:$V,$A:$A,序时账!$X:$X,$C:$C) -> 0 | R191: =SUMIFS(序时账!Z:Z,序时账!$V:$V,$A:$A,序时账!$X:$X,$C:$C) -> 0 | S191: =SUMIFS(序时账!AA:AA,序时账!$V:$V,$A:$A,序时账!$X:$X,$C:$C) -> 0
A192: 1083 | B192: 应付职工薪酬 | C192: 职工福利费支出 | E192: 91743.12 | F192: 1 | G192: 1 | H192: 1 | I192: 91743.12 | J192: -91743.12 | K192: -91743.12 | L192: 4调费用或1去借贷 | M192: -91743.12 | O192: -91743.12 | P192: -91743.12 | Q192: =SUMIFS(序时账!Y:Y,序时账!$V:$V,$A:$A,序时账!$X:$X,$C:$C) -> 0 | R192: =SUMIFS(序时账!Z:Z,序时账!$V:$V,$A:$A,序时账!$X:$X,$C:$C) -> 0 | S192: =SUMIFS(序时账!AA:AA,序时账!$V:$V,$A:$A,序时账!$X:$X,$C:$C) -> 0
A193: 1110 | B193: 应付职工薪酬 | C193: 工伤保险费 | E193: 359346.15 | F193: 2 | G193: 2 | H193: 380 | I193: 0 | J193: 0 | K193: 0 | L193: 无差异 | M193: 0 | O193: 0 | P193: 0 | Q193: =SUMIFS(序时账!Y:Y,序时账!$V:$V,$A:$A,序时账!$X:$X,$C:$C) -> 0 | R193: =SUMIFS(序时账!Z:Z,序时账!$V:$V,$A:$A,序时账!$X:$X,$C:$C) -> 0 | S193: =SUMIFS(序时账!AA:AA,序时账!$V:$V,$A:$A,序时账!$X:$X,$C:$C) -> 0
A194: 1110 | B194: 管理费用 | C194: 工伤保险费 | D194: 359346.15 | F194: 2 | G194: 2 | H194: 380 | I194: 0 | J194: 0 | K194: 0 | L194: 无差异 | M194: 0 | O194: 0 | P194: 0 | Q194: =SUMIFS(序时账!Y:Y,序时账!$V:$V,$A:$A,序时账!$X:$X,$C:$C) -> 0 | R194: =SUMIFS(序时账!Z:Z,序时账!$V:$V,$A:$A,序时账!$X:$X,$C:$C) -> 0 | S194: =SUMIFS(序时账!AA:AA,序时账!$V:$V,$A:$A,序时账!$X:$X,$C:$C) -> 0
A195: 1117 | B195: 应付职工薪酬 | C195: 职工福利费支出 | E195: 57275 | F195: 1 | G195: 1 | H195: 1 | I195: 57275 | J195: -57275 | K195: -57275 | L195: 4调费用或1去借贷 | M195: -57275 | O195: -57275 | P195: -57275 | Q195: =SUMIFS(序时账!Y:Y,序时账!$V:$V,$A:$A,序时账!$X:$X,$C:$C) -> 0 | R195: =SUMIFS(序时账!Z:Z,序时账!$V:$V,$A:$A,序时账!$X:$X,$C:$C) -> 0 | S195: =SUMIFS(序时账!AA:AA,序时账!$V:$V,$A:$A,序时账!$X:$X,$C:$C) -> 0
A196: 1126 | B196: 制造费用 | C196: 基本养老保险费 | D196: 206400 | F196: 16 | G196: 5 | H196: 380 | I196: 0 | J196: 0 | K196: 0 | L196: 无差异 | M196: =SUMIFS($D:$D,$A:$A,$A:$A,$C:$C,$C:$C)-SUMIFS($E:$E,$A:$A,$A:$A,$C:$C,$C:$C) -> 0 | O196: 0 | P196: 104800 | Q196: =SUMIFS(序时账!Y:Y,序时账!$V:$V,$A:$A,序时账!$X:$X,$C:$C) -> 0 | R196: =SUMIFS(序时账!Z:Z,序时账!$V:$V,$A:$A,序时账!$X:$X,$C:$C) -> 0 | S196: =SUMIFS(序时账!AA:AA,序时账!$V:$V,$A:$A,序时账!$X:$X,$C:$C) -> 0
A197: 1126 | B197: 制造费用 | C197: 工资薪金支出 | D197: 1290000 | F197: 16 | G197: 5 | H197: 380 | I197: 0 | J197: 0 | K197: 0 | L197: 无差异 | M197: 0 | O197: 0 | P197: 104800 | Q197: =SUMIFS(序时账!Y:Y,序时账!$V:$V,$A:$A,序时账!$X:$X,$C:$C) -> 0 | R197: =SUMIFS(序时账!Z:Z,序时账!$V:$V,$A:$A,序时账!$X:$X,$C:$C) -> 0 | S197: =SUMIFS(序时账!AA:AA,序时账!$V:$V,$A:$A,序时账!$X:$X,$C:$C) -> 0
A198: 1126 | B198: 应付职工薪酬 | C198: 基本医疗保险费 | E198: 890800 | F198: =COUNTIFS(A:A,A198) -> 16 | G198: =COUNTIFS(A:A,A:A,C:C,C:C) -> 2 | H198: =COUNTIFS(I:I,I198) -> 380 | I198: =ABS(J198) -> 0 | J198: =SUMIFS(D:D,A:A,A:A,C:C,C:C)-SUMIFS(E:E,A:A,A:A,C:C,C:C) -> 0 | K198: =J198+S198-R198 -> 0 | L198: =IF(J198=0,"无差异",IF(SUMIFS(D:D,A:A,A:A,C:C,C:C)=0,"4调费用或1去借贷",IF(SUMIFS(E:E,A:A,A:A,C:C,C:C)=0,"3调借贷或2去费用","4调费用或3调借贷"))) -> 无差异 | M198: 0 | O198: =M198+SUMIFS($D:$D,$C:$C,$C:$C,$A:$A,$N:$N)-SUMIFS($E:$E,$C:$C,$C:$C,$A:$A,$N:$N) -> 0 | P198: =SUMIFS(D:D,A:A,A:A)-SUMIFS(E:E,A:A,A:A) -> 104800 | Q198: =SUMIFS(序时账!Y:Y,序时账!$V:$V,$A:$A,序时账!$X:$X,$C:$C) -> 0 | R198: =SUMIFS(序时账!Z:Z,序时账!$V:$V,$A:$A,序时账!$X:$X,$C:$C) -> 0 | S198: =SUMIFS(序时账!AA:AA,序时账!$V:$V,$A:$A,序时账!$X:$X,$C:$C) -> 0
A199: 1126 | B199: 应付职工薪酬 | C199: 基本养老保险费 | E199: 2096000 | F199: 16 | G199: 5 | H199: 380 | I199: 0 | J199: 0 | K199: 0 | L199: 无差异 | M199: 0 | O199: 0 | P199: 104800 | Q199: =SUMIFS(序时账!Y:Y,序时账!$V:$V,$A:$A,序时账!$X:$X,$C:$C) -> 0 | R199: =SUMIFS(序时账!Z:Z,序时账!$V:$V,$A:$A,序时账!$X:$X,$C:$C) -> 0 | S199: =SUMIFS(序时账!AA:AA,序时账!$V:$V,$A:$A,序时账!$X:$X,$C:$C) -> 0
A200: 1126 | B200: 应付职工薪酬 | C200: 工资薪金支出 | E200: 13100000 | F200: 16 | G200: 5 | H200: 380 | I200: 0 | J200: 0 | K200: 0 | L200: 无差异 | M200: 0 | O200: 0 | P200: 104800 | Q200: =SUMIFS(序时账!Y:Y,序时账!$V:$V,$A:$A,序时账!$X:$X,$C:$C) -> 0 | R200: =SUMIFS(序时账!Z:Z,序时账!$V:$V,$A:$A,序时账!$X:$X,$C:$C) -> 0 | S200: =SUMIFS(序时账!AA:AA,序时账!$V:$V,$A:$A,序时账!$X:$X,$C:$C) -> 0
... 419 more rows

Sheet 职工薪酬调整明细
A1: 标签 | B1: 核算 | C1: 年 | D1: 月 | E1: 日 | F1: 凭证号 | G1: 摘要 | H1: 科目名称 | I1: 对方科目 | J1: 借方 | K1: 贷方 | W1: 调整原因 | X1: 调整项目 | Y1: 应付职工薪酬借方调整 | Z1: 应付职工薪酬贷方调整 | AA1: 成本费用调整金额

Sheet 职工薪酬差异核对后
A1: 薪酬项目 | B1: 余额表标准化取数 | E1: 费用取数差异 | F1: 应付职工薪酬借方取数差异 | G1: 应付职工薪酬贷方取数差异 | H1: 序时账标准化取数 | L1: 序时账差异调整 | O1: 余额表差异调整 | R1: 调整后 | V1: 纳税调整 | AE1: 限额余额 | AG1: 备注 | AH1: 序号 | AI1: 交换意见稿
B2: 费用 | C2: 借方 | D2: 贷方 | H2: 费用 | I2: 借方 | J2: 贷方 | K2: 调整前差异 | L2: 费用调整 | M2: 借方调整 | N2: 贷方调整 | O2: 费用调整 | P2: 借方调整 | Q2: 贷方调整 | R2: 费用 | S2: 借方 | T2: 贷方 | U2: 调整后差异 | V2: 重分类调入 | W2: 重分类调出 | X2: 账载金额 | Y2: 年初余额发放 | Z2: 年末余额发放 | AA2: 本年发放金额 | AB2: 税收限额 | AC2: 税收金额 | AD2: 纳税调整
A3: =科目标准字段!B27 -> 工资薪金支出 | B3: =SUMIFS(科目余额表!E:E,科目余额表!$L:$L,$A3)-C3 -> 0 | C3: =SUMIFS(科目余额表!E:E,科目余额表!$J:$J,"应付职工薪酬",科目余额表!$L:$L,$A3) -> 0 | D3: =SUMIFS(科目余额表!F:F,科目余额表!$J:$J,"应付职工薪酬",科目余额表!$L:$L,$A3) -> 0 | E3: =H3-B3 -> 176049628.9 | F3: =I3-C3 -> 0 | G3: =J3-D3 -> 176209271.2 | H3: =SUMIFS(职工薪酬借贷核对!D:D,职工薪酬借贷核对!$C:$C,$A:$A) -> 176049628.9 | I3: =SUMIFS(序时账!J:J,序时账!$T:$T,$A:$A,序时账!$R:$R,"应付职工薪酬") -> 0 | J3: =SUMIFS(职工薪酬借贷核对!E:E,职工薪酬借贷核对!$C:$C,$A:$A) -> 176209271.2 | K3: =H3-J3 -> -159642.25 | L3: =SUMIFS(序时账!AA:AA,序时账!$X:$X,$A3) -> 0 | M3: =SUMIFS(序时账!Y:Y,序时账!$X:$X,$A3) -> 0 | N3: =SUMIFS(序时账!Z:Z,序时账!$X:$X,$A3) -> 0 | O3: =R3-B3 -> 176049628.9 | P3: =S3-C3 -> 0 | Q3: =T3-D3 -> 176209271.2 | R3: =H3+L3 -> 176049628.9 | S3: =I3+M3 -> 0 | T3: =J3+N3 -> 176209271.2 | U3: =T3-R3 -> 159642.25 | X3: =R3+V3-W3 -> 176049628.9 | AA3: =S3+V3-W3-Y3+Z3 -> 0 | AB3: * | AC3: =AA3 -> 0 | AD3: =X3-AC3 -> 176049628.9 | AI3: ="贵单位2023年度账面核算的"&A3&"为"&FIXED(R3)&"元，"&IF(V3="","","重分类调入"&FIXED(V3)&"元，")&IF(W3="","","作为其他纳税调整事项调出"&FIXED(W3)&"元（），")&"实际发放"&FIXED(AA3)&"元，"&IF(AB3="*","","税收限额为"&FIXED(AB3)&"元，")&"我们确认的税收金额为"&FIXED(AC3)&"元，"&_xlfn.IFS(AD3=0,"本年不作纳税调整。",AD3>0,"应作纳税调增"&FIXED(AD3)&"元。",AD3<0,"应作纳税调减"&FIXED(ABS(AD3))&"元。") -> 贵单位2023年度账面核算的工资薪金支出为176,049,628.92元，实际发放0.00元，我们确认的税收金额为0.00元，应作纳税调增176,049,628.92元。 | AJ3: =_xlfn.TEXTJOIN(CHAR(10),1,AI3:AI21) -> 贵单位2023年度账面核算的工资薪金支出为176,049,628.92元，实际发放0.00元，我们确认的税收金额为0.00元，应作纳税调增176,049,628.92元。 贵单位2023年度账面核算的职工福利费支出为8,283,196.00元，实际发放0.00元，税收限额为0.00元，我们确认的税收金额为0.00元，应作纳税调增8,283,196.00元。 贵单位2023年度账面核算的职工教育经费支出为0.00元，实际发放0.00元，税收限额为0.00元，我们确认的税收金额为0.00元，本年不作纳税调整。 贵单位2023年度账面核算的工会经费支出为2,546,411.00元，取得有效票据并实际拨缴的金额为0.00元，税收限额为0.00元，我们确认的税收金额为0.00元，应作纳税调增2,546,411.00元。 贵单位2023年度账面核算的基本养老保险费为18,566,488.00元，实际发放0.00元，我们确认的税收金额为0.00元，应作纳税调增18,566,488.00元。 贵单位2023年度账面核算的基本医疗保险费为8,657,797.40元，实际发放0.00元，我们确认的税收金额为0.00元，应作纳税调增8,657,797.40元。 贵单位2023年度账面核算的失业保险费为891,243.85元，实际发放0.00元，我们确认的税收金额为0.00元，应作纳税调增891,243.85元。 贵单位2023年度账面核算的工伤保险费为4,406,680.90元，实际发放0.00元，我们确认的税收金额为0.00元，应作纳税调增4,406,680.90元。 贵单位2023年度账面核算的生育保险费为0.00元，实际发放0.00元，我们确认的税收金额为0.00元，本年不作纳税调整。 贵单位2023年度账面核算的住房公积金为0.00元，实际发放0.00元，我们确认的税收金额为0.00元，本年不作纳税调整。 贵单位2023年度账面核算的补充养老保险为0.00元，实际发放0.00元，税收限额为0.00元，我们确认的税收金额为0.00元，本年不作纳税调整。 贵单位2023年度账面核算的补充医疗保险为0.00元，实际发放0.00元，税收限额为0.00元，我们确认的税收金额为0.00元，本年不作纳税调整。
A4: =科目标准字段!B28 -> 职工福利费支出 | B4: =SUMIFS(科目余额表!E:E,科目余额表!$L:$L,$A4)-C4 -> 0 | C4: =SUMIFS(科目余额表!E:E,科目余额表!$J:$J,"应付职工薪酬",科目余额表!$L:$L,$A4) -> 0 | D4: =SUMIFS(科目余额表!F:F,科目余额表!$J:$J,"应付职工薪酬",科目余额表!$L:$L,$A4) -> 0 | E4: 8283196 | F4: 0 | G4: 5819546.27 | H4: =SUMIFS(职工薪酬借贷核对!D:D,职工薪酬借贷核对!$C:$C,$A:$A) -> 8283196 | I4: =SUMIFS(序时账!J:J,序时账!$T:$T,$A:$A,序时账!$R:$R,"应付职工薪酬") -> 0 | J4: =SUMIFS(职工薪酬借贷核对!E:E,职工薪酬借贷核对!$C:$C,$A:$A) -> 5819546.27 | K4: 2463649.73 | L4: =SUMIFS(序时账!AA:AA,序时账!$X:$X,$A4) -> 0 | M4: =SUMIFS(序时账!Y:Y,序时账!$X:$X,$A4) -> 0 | N4: =SUMIFS(序时账!Z:Z,序时账!$X:$X,$A4) -> 0 | O4: 8283196 | P4: 0 | Q4: 5819546.27 | R4: 8283196 | S4: 0 | T4: 5819546.27 | U4: -2463649.73 | X4: 8283196 | AA4: 0 | AB4: =$AC$3*AE4 -> 0 | AC4: =MIN(X4,AA4,AB4) -> 0 | AD4: =MAX(X4-AC4,0) -> 8283196 | AE4: 0.14 | AF4: =MAX($AC$3*AE4-X4,0) -> 0 | AI4: ="贵单位2023年度账面核算的"&A4&"为"&FIXED(R4)&"元，"&IF(V4="","","重分类调入"&FIXED(V4)&"元，")&IF(W4="","","作为其他纳税调整事项调出"&FIXED(W4)&"元（），")&"实际发放"&FIXED(AA4)&"元，"&IF(AB4="*","","税收限额为"&FIXED(AB4)&"元，")&"我们确认的税收金额为"&FIXED(AC4)&"元，"&_xlfn.IFS(AD4=0,"本年不作纳税调整。",AD4>0,"应作纳税调增"&FIXED(AD4)&"元。",AD4<0,"应作纳税调减"&FIXED(ABS(AD4))&"元。") -> 贵单位2023年度账面核算的职工福利费支出为8,283,196.00元，实际发放0.00元，税收限额为0.00元，我们确认的税收金额为0.00元，应作纳税调增8,283,196.00元。
A5: =科目标准字段!B29 -> 职工教育经费支出 | B5: =SUMIFS(科目余额表!E:E,科目余额表!$L:$L,$A5)-C5 -> 0 | C5: =SUMIFS(科目余额表!E:E,科目余额表!$J:$J,"应付职工薪酬",科目余额表!$L:$L,$A5) -> 0 | D5: =SUMIFS(科目余额表!F:F,科目余额表!$J:$J,"应付职工薪酬",科目余额表!$L:$L,$A5) -> 0 | E5: 0 | F5: 0 | G5: 0 | H5: =SUMIFS(职工薪酬借贷核对!D:D,职工薪酬借贷核对!$C:$C,$A:$A) -> 0 | I5: =SUMIFS(序时账!J:J,序时账!$T:$T,$A:$A,序时账!$R:$R,"应付职工薪酬") -> 0 | J5: =SUMIFS(职工薪酬借贷核对!E:E,职工薪酬借贷核对!$C:$C,$A:$A) -> 0 | K5: 0 | L5: =SUMIFS(序时账!AA:AA,序时账!$X:$X,$A5) -> 0 | M5: =SUMIFS(序时账!Y:Y,序时账!$X:$X,$A5) -> 0 | N5: =SUMIFS(序时账!Z:Z,序时账!$X:$X,$A5) -> 0 | O5: 0 | P5: 0 | Q5: 0 | R5: 0 | S5: 0 | T5: 0 | U5: 0 | X5: 0 | AA5: 0 | AB5: =$AC$3*AE5 -> 0 | AC5: =MIN(AA5,AB5) -> 0 | AD5: 0 | AE5: 0.08 | AF5: =MAX($AC$3*AE5-X5,0) -> 0 | AI5: ="贵单位2023年度账面核算的"&A5&"为"&FIXED(R5)&"元，"&IF(V5="","","重分类调入"&FIXED(V5)&"元，")&IF(W5="","","作为其他纳税调整事项调出"&FIXED(W5)&"元（），")&"实际发放"&FIXED(AA5)&"元，"&IF(AB5="*","","税收限额为"&FIXED(AB5)&"元，")&"我们确认的税收金额为"&FIXED(AC5)&"元，"&_xlfn.IFS(AD5=0,"本年不作纳税调整。",AD5>0,"应作纳税调增"&FIXED(AD5)&"元。",AD5<0,"应作纳税调减"&FIXED(ABS(AD5))&"元。") -> 贵单位2023年度账面核算的职工教育经费支出为0.00元，实际发放0.00元，税收限额为0.00元，我们确认的税收金额为0.00元，本年不作纳税调整。
A6: =科目标准字段!B30 -> 工会经费支出 | B6: =SUMIFS(科目余额表!E:E,科目余额表!$L:$L,$A6)-C6 -> 0 | C6: =SUMIFS(科目余额表!E:E,科目余额表!$J:$J,"应付职工薪酬",科目余额表!$L:$L,$A6) -> 0 | D6: =SUMIFS(科目余额表!F:F,科目余额表!$J:$J,"应付职工薪酬",科目余额表!$L:$L,$A6) -> 0 | E6: 2546411 | F6: 0 | G6: 2024676.13 | H6: =SUMIFS(职工薪酬借贷核对!D:D,职工薪酬借贷核对!$C:$C,$A:$A) -> 2546411 | I6: =SUMIFS(序时账!J:J,序时账!$T:$T,$A:$A,序时账!$R:$R,"应付职工薪酬") -> 0 | J6: =SUMIFS(职工薪酬借贷核对!E:E,职工薪酬借贷核对!$C:$C,$A:$A) -> 2024676.13 | K6: 521734.87 | L6: =SUMIFS(序时账!AA:AA,序时账!$X:$X,$A6) -> 0 | M6: =SUMIFS(序时账!Y:Y,序时账!$X:$X,$A6) -> 0 | N6: =SUMIFS(序时账!Z:Z,序时账!$X:$X,$A6) -> 0 | O6: 2546411 | P6: 0 | Q6: 2024676.13 | R6: 2546411 | S6: 0 | T6: 2024676.13 | U6: -521734.87 | X6: 2546411 | AA6: 0 | AB6: =$AC$3*AE6 -> 0 | AC6: 0 | AD6: 2546411 | AE6: 0.02 | AF6: =MAX($AC$3*AE6-X6,0) -> 0 | AI6: ="贵单位2023年度账面核算的"&A6&"为"&FIXED(R6)&"元，"&IF(V6="","","重分类调入"&FIXED(V6)&"元，")&IF(W6="","","作为其他纳税调整事项调出"&FIXED(W6)&"元（），")&"取得有效票据并实际拨缴的金额为"&FIXED(AA6)&"元，"&IF(AB6="*","","税收限额为"&FIXED(AB6)&"元，")&"我们确认的税收金额为"&FIXED(AC6)&"元，"&_xlfn.IFS(AD6=0,"本年不作纳税调整。",AD6>0,"应作纳税调增"&FIXED(AD6)&"元。",AD6<0,"应作纳税调减"&FIXED(AD6)&"元。") -> 贵单位2023年度账面核算的工会经费支出为2,546,411.00元，取得有效票据并实际拨缴的金额为0.00元，税收限额为0.00元，我们确认的税收金额为0.00元，应作纳税调增2,546,411.00元。
A7: =科目标准字段!B31 -> 基本养老保险费 | B7: =SUMIFS(科目余额表!E:E,科目余额表!$L:$L,$A7)-C7 -> 0 | C7: =SUMIFS(科目余额表!E:E,科目余额表!$J:$J,"应付职工薪酬",科目余额表!$L:$L,$A7) -> 0 | D7: =SUMIFS(科目余额表!F:F,科目余额表!$J:$J,"应付职工薪酬",科目余额表!$L:$L,$A7) -> 0 | E7: 18566488 | F7: 0 | G7: 18889914.52 | H7: =SUMIFS(职工薪酬借贷核对!D:D,职工薪酬借贷核对!$C:$C,$A:$A) -> 18566488 | I7: =SUMIFS(序时账!J:J,序时账!$T:$T,$A:$A,序时账!$R:$R,"应付职工薪酬") -> 0 | J7: =SUMIFS(职工薪酬借贷核对!E:E,职工薪酬借贷核对!$C:$C,$A:$A) -> 18889914.52 | K7: -323426.52 | L7: =SUMIFS(序时账!AA:AA,序时账!$X:$X,$A7) -> 0 | M7: =SUMIFS(序时账!Y:Y,序时账!$X:$X,$A7) -> 0 | N7: =SUMIFS(序时账!Z:Z,序时账!$X:$X,$A7) -> 0 | O7: 18566488 | P7: 0 | Q7: 18889914.52 | R7: 18566488 | S7: 0 | T7: 18889914.52 | U7: 323426.52 | X7: 18566488 | AA7: 0 | AB7: * | AC7: 0 | AD7: 18566488 | AI7: ="贵单位2023年度账面核算的"&A7&"为"&FIXED(R7)&"元，"&IF(V7="","","重分类调入"&FIXED(V7)&"元，")&IF(W7="","","作为其他纳税调整事项调出"&FIXED(W7)&"元（），")&"实际发放"&FIXED(AA7)&"元，"&IF(AB7="*","","税收限额为"&FIXED(AB7)&"元，")&"我们确认的税收金额为"&FIXED(AC7)&"元，"&_xlfn.IFS(AD7=0,"本年不作纳税调整。",AD7>0,"应作纳税调增"&FIXED(AD7)&"元。",AD7<0,"应作纳税调减"&FIXED(ABS(AD7))&"元。") -> 贵单位2023年度账面核算的基本养老保险费为18,566,488.00元，实际发放0.00元，我们确认的税收金额为0.00元，应作纳税调增18,566,488.00元。
A8: =科目标准字段!B32 -> 基本医疗保险费 | B8: =SUMIFS(科目余额表!E:E,科目余额表!$L:$L,$A8)-C8 -> 0 | C8: =SUMIFS(科目余额表!E:E,科目余额表!$J:$J,"应付职工薪酬",科目余额表!$L:$L,$A8) -> 0 | D8: =SUMIFS(科目余额表!F:F,科目余额表!$J:$J,"应付职工薪酬",科目余额表!$L:$L,$A8) -> 0 | E8: 8657797.4 | F8: 0 | G8: 8440464.27 | H8: =SUMIFS(职工薪酬借贷核对!D:D,职工薪酬借贷核对!$C:$C,$A:$A) -> 8657797.4 | I8: =SUMIFS(序时账!J:J,序时账!$T:$T,$A:$A,序时账!$R:$R,"应付职工薪酬") -> 0 | J8: =SUMIFS(职工薪酬借贷核对!E:E,职工薪酬借贷核对!$C:$C,$A:$A) -> 8440464.27 | K8: 217333.13 | L8: =SUMIFS(序时账!AA:AA,序时账!$X:$X,$A8) -> 0 | M8: =SUMIFS(序时账!Y:Y,序时账!$X:$X,$A8) -> 0 | N8: =SUMIFS(序时账!Z:Z,序时账!$X:$X,$A8) -> 0 | O8: 8657797.4 | P8: 0 | Q8: 8440464.27 | R8: 8657797.4 | S8: 0 | T8: 8440464.27 | U8: -217333.13 | X8: 8657797.4 | AA8: 0 | AB8: * | AC8: 0 | AD8: 8657797.4 | AI8: 贵单位2023年度账面核算的基本医疗保险费为8,657,797.40元，实际发放0.00元，我们确认的税收金额为0.00元，应作纳税调增8,657,797.40元。
A9: =科目标准字段!B33 -> 失业保险费 | B9: =SUMIFS(科目余额表!E:E,科目余额表!$L:$L,$A9)-C9 -> 0 | C9: =SUMIFS(科目余额表!E:E,科目余额表!$J:$J,"应付职工薪酬",科目余额表!$L:$L,$A9) -> 0 | D9: =SUMIFS(科目余额表!F:F,科目余额表!$J:$J,"应付职工薪酬",科目余额表!$L:$L,$A9) -> 0 | E9: 891243.85 | F9: 0 | G9: 1477826.88 | H9: =SUMIFS(职工薪酬借贷核对!D:D,职工薪酬借贷核对!$C:$C,$A:$A) -> 891243.85 | I9: =SUMIFS(序时账!J:J,序时账!$T:$T,$A:$A,序时账!$R:$R,"应付职工薪酬") -> 0 | J9: =SUMIFS(职工薪酬借贷核对!E:E,职工薪酬借贷核对!$C:$C,$A:$A) -> 1477826.88 | K9: -586583.03 | L9: =SUMIFS(序时账!AA:AA,序时账!$X:$X,$A9) -> 0 | M9: =SUMIFS(序时账!Y:Y,序时账!$X:$X,$A9) -> 0 | N9: =SUMIFS(序时账!Z:Z,序时账!$X:$X,$A9) -> 0 | O9: 891243.85 | P9: 0 | Q9: 1477826.88 | R9: 891243.85 | S9: 0 | T9: 1477826.88 | U9: 586583.03 | X9: 891243.85 | AA9: 0 | AB9: * | AC9: 0 | AD9: 891243.85 | AI9: 贵单位2023年度账面核算的失业保险费为891,243.85元，实际发放0.00元，我们确认的税收金额为0.00元，应作纳税调增891,243.85元。
A10: =科目标准字段!B34 -> 工伤保险费 | B10: =SUMIFS(科目余额表!E:E,科目余额表!$L:$L,$A10)-C10 -> 0 | C10: =SUMIFS(科目余额表!E:E,科目余额表!$J:$J,"应付职工薪酬",科目余额表!$L:$L,$A10) -> 0 | D10: =SUMIFS(科目余额表!F:F,科目余额表!$J:$J,"应付职工薪酬",科目余额表!$L:$L,$A10) -> 0 | E10: 4406680.9 | F10: 0 | G10: 4406680.9 | H10: =SUMIFS(职工薪酬借贷核对!D:D,职工薪酬借贷核对!$C:$C,$A:$A) -> 4406680.9 | I10: =SUMIFS(序时账!J:J,序时账!$T:$T,$A:$A,序时账!$R:$R,"应付职工薪酬") -> 0 | J10: =SUMIFS(职工薪酬借贷核对!E:E,职工薪酬借贷核对!$C:$C,$A:$A) -> 4406680.9 | K10: 0 | L10: =SUMIFS(序时账!AA:AA,序时账!$X:$X,$A10) -> 0 | M10: =SUMIFS(序时账!Y:Y,序时账!$X:$X,$A10) -> 0 | N10: =SUMIFS(序时账!Z:Z,序时账!$X:$X,$A10) -> 0 | O10: 4406680.9 | P10: 0 | Q10: 4406680.9 | R10: 4406680.9 | S10: 0 | T10: 4406680.9 | U10: 0 | X10: 4406680.9 | AA10: 0 | AB10: * | AC10: 0 | AD10: 4406680.9 | AI10: 贵单位2023年度账面核算的工伤保险费为4,406,680.90元，实际发放0.00元，我们确认的税收金额为0.00元，应作纳税调增4,406,680.90元。
A11: =科目标准字段!B35 -> 生育保险费 | B11: =SUMIFS(科目余额表!E:E,科目余额表!$L:$L,$A11)-C11 -> 0 | C11: =SUMIFS(科目余额表!E:E,科目余额表!$J:$J,"应付职工薪酬",科目余额表!$L:$L,$A11) -> 0 | D11: =SUMIFS(科目余额表!F:F,科目余额表!$J:$J,"应付职工薪酬",科目余额表!$L:$L,$A11) -> 0 | E11: 0 | F11: 0 | G11: 0 | H11: =SUMIFS(职工薪酬借贷核对!D:D,职工薪酬借贷核对!$C:$C,$A:$A) -> 0 | I11: =SUMIFS(序时账!J:J,序时账!$T:$T,$A:$A,序时账!$R:$R,"应付职工薪酬") -> 0 | J11: =SUMIFS(职工薪酬借贷核对!E:E,职工薪酬借贷核对!$C:$C,$A:$A) -> 0 | K11: 0 | L11: =SUMIFS(序时账!AA:AA,序时账!$X:$X,$A11) -> 0 | M11: =SUMIFS(序时账!Y:Y,序时账!$X:$X,$A11) -> 0 | N11: =SUMIFS(序时账!Z:Z,序时账!$X:$X,$A11) -> 0 | O11: 0 | P11: 0 | Q11: 0 | R11: 0 | S11: 0 | T11: 0 | U11: 0 | X11: 0 | AA11: 0 | AB11: * | AC11: 0 | AD11: 0 | AI11: 贵单位2023年度账面核算的生育保险费为0.00元，实际发放0.00元，我们确认的税收金额为0.00元，本年不作纳税调整。
A12: =科目标准字段!B36 -> 住房公积金 | B12: =SUMIFS(科目余额表!E:E,科目余额表!$L:$L,$A12)-C12 -> 0 | C12: =SUMIFS(科目余额表!E:E,科目余额表!$J:$J,"应付职工薪酬",科目余额表!$L:$L,$A12) -> 0 | D12: =SUMIFS(科目余额表!F:F,科目余额表!$J:$J,"应付职工薪酬",科目余额表!$L:$L,$A12) -> 0 | E12: 0 | F12: 0 | G12: 0 | H12: =SUMIFS(职工薪酬借贷核对!D:D,职工薪酬借贷核对!$C:$C,$A:$A) -> 0 | I12: =SUMIFS(序时账!J:J,序时账!$T:$T,$A:$A,序时账!$R:$R,"应付职工薪酬") -> 0 | J12: =SUMIFS(职工薪酬借贷核对!E:E,职工薪酬借贷核对!$C:$C,$A:$A) -> 0 | K12: 0 | L12: =SUMIFS(序时账!AA:AA,序时账!$X:$X,$A12) -> 0 | M12: =SUMIFS(序时账!Y:Y,序时账!$X:$X,$A12) -> 0 | N12: =SUMIFS(序时账!Z:Z,序时账!$X:$X,$A12) -> 0 | O12: 0 | P12: 0 | Q12: 0 | R12: 0 | S12: 0 | T12: 0 | U12: 0 | X12: 0 | AA12: 0 | AB12: * | AC12: 0 | AD12: 0 | AI12: 贵单位2023年度账面核算的住房公积金为0.00元，实际发放0.00元，我们确认的税收金额为0.00元，本年不作纳税调整。
A13: =科目标准字段!B37 -> 补充养老保险 | B13: =SUMIFS(科目余额表!E:E,科目余额表!$L:$L,$A13)-C13 -> 0 | C13: =SUMIFS(科目余额表!E:E,科目余额表!$J:$J,"应付职工薪酬",科目余额表!$L:$L,$A13) -> 0 | D13: =SUMIFS(科目余额表!F:F,科目余额表!$J:$J,"应付职工薪酬",科目余额表!$L:$L,$A13) -> 0 | E13: 0 | F13: 0 | G13: 0 | H13: =SUMIFS(职工薪酬借贷核对!D:D,职工薪酬借贷核对!$C:$C,$A:$A) -> 0 | I13: =SUMIFS(序时账!J:J,序时账!$T:$T,$A:$A,序时账!$R:$R,"应付职工薪酬") -> 0 | J13: =SUMIFS(职工薪酬借贷核对!E:E,职工薪酬借贷核对!$C:$C,$A:$A) -> 0 | K13: 0 | L13: =SUMIFS(序时账!AA:AA,序时账!$X:$X,$A13) -> 0 | M13: =SUMIFS(序时账!Y:Y,序时账!$X:$X,$A13) -> 0 | N13: =SUMIFS(序时账!Z:Z,序时账!$X:$X,$A13) -> 0 | O13: 0 | P13: 0 | Q13: 0 | R13: 0 | S13: 0 | T13: 0 | U13: 0 | X13: 0 | AA13: 0 | AB13: =$AC$3*AE13 -> 0 | AC13: 0 | AD13: 0 | AE13: 0.05 | AF13: =MAX($AC$3*AE13-X13,0) -> 0 | AI13: 贵单位2023年度账面核算的补充养老保险为0.00元，实际发放0.00元，税收限额为0.00元，我们确认的税收金额为0.00元，本年不作纳税调整。
A14: =科目标准字段!B38 -> 补充医疗保险 | B14: =SUMIFS(科目余额表!E:E,科目余额表!$L:$L,$A14)-C14 -> 0 | C14: =SUMIFS(科目余额表!E:E,科目余额表!$J:$J,"应付职工薪酬",科目余额表!$L:$L,$A14) -> 0 | D14: =SUMIFS(科目余额表!F:F,科目余额表!$J:$J,"应付职工薪酬",科目余额表!$L:$L,$A14) -> 0 | E14: 0 | F14: 0 | G14: 0 | H14: =SUMIFS(职工薪酬借贷核对!D:D,职工薪酬借贷核对!$C:$C,$A:$A) -> 0 | I14: =SUMIFS(序时账!J:J,序时账!$T:$T,$A:$A,序时账!$R:$R,"应付职工薪酬") -> 0 | J14: =SUMIFS(职工薪酬借贷核对!E:E,职工薪酬借贷核对!$C:$C,$A:$A) -> 0 | K14: 0 | L14: =SUMIFS(序时账!AA:AA,序时账!$X:$X,$A14) -> 0 | M14: =SUMIFS(序时账!Y:Y,序时账!$X:$X,$A14) -> 0 | N14: =SUMIFS(序时账!Z:Z,序时账!$X:$X,$A14) -> 0 | O14: 0 | P14: 0 | Q14: 0 | R14: 0 | S14: 0 | T14: 0 | U14: 0 | X14: 0 | AA14: 0 | AB14: =$AC$3*AE14 -> 0 | AC14: 0 | AD14: 0 | AE14: 0.05 | AF14: =MAX($AC$3*AE14-X14,0) -> 0 | AI14: ="贵单位2023年度账面核算的"&A14&"为"&FIXED(R14)&"元，"&IF(V14="","","重分类调入"&FIXED(V14)&"元，")&IF(W14="","","作为其他纳税调整事项调出"&FIXED(W14)&"元（），")&"实际发放"&FIXED(AA14)&"元，"&IF(AB14="*","","税收限额为"&FIXED(AB14)&"元，")&"我们确认的税收金额为"&FIXED(AC14)&"元，"&_xlfn.IFS(AD14=0,"本年不作纳税调整。",AD14>0,"应作纳税调增"&FIXED(AD14)&"元。",AD14<0,"应作纳税调减"&FIXED(ABS(AD4))&"元。") -> 贵单位2023年度账面核算的补充医疗保险为0.00元，实际发放0.00元，税收限额为0.00元，我们确认的税收金额为0.00元，本年不作纳税调整。
A15: =科目标准字段!B39 -> 辞退福利 | B15: =SUMIFS(科目余额表!E:E,科目余额表!$L:$L,$A15)-C15 -> 0 | C15: =SUMIFS(科目余额表!E:E,科目余额表!$J:$J,"应付职工薪酬",科目余额表!$L:$L,$A15) -> 0 | D15: =SUMIFS(科目余额表!F:F,科目余额表!$J:$J,"应付职工薪酬",科目余额表!$L:$L,$A15) -> 0 | E15: 0 | F15: 0 | G15: 0 | H15: =SUMIFS(职工薪酬借贷核对!D:D,职工薪酬借贷核对!$C:$C,$A:$A) -> 0 | I15: =SUMIFS(序时账!J:J,序时账!$T:$T,$A:$A,序时账!$R:$R,"应付职工薪酬") -> 0 | J15: =SUMIFS(职工薪酬借贷核对!E:E,职工薪酬借贷核对!$C:$C,$A:$A) -> 0 | K15: 0 | L15: =SUMIFS(序时账!AA:AA,序时账!$X:$X,$A15) -> 0 | M15: =SUMIFS(序时账!Y:Y,序时账!$X:$X,$A15) -> 0 | N15: =SUMIFS(序时账!Z:Z,序时账!$X:$X,$A15) -> 0 | O15: 0 | P15: 0 | Q15: 0 | R15: 0 | S15: 0 | T15: 0 | U15: 0 | X15: 0 | AA15: 0 | AB15: * | AC15: 0 | AD15: 0
A16: =科目标准字段!B40 -> 大病医疗保险 | B16: =SUMIFS(科目余额表!E:E,科目余额表!$L:$L,$A16)-C16 -> 0 | C16: =SUMIFS(科目余额表!E:E,科目余额表!$J:$J,"应付职工薪酬",科目余额表!$L:$L,$A16) -> 0 | D16: =SUMIFS(科目余额表!F:F,科目余额表!$J:$J,"应付职工薪酬",科目余额表!$L:$L,$A16) -> 0 | E16: 0 | F16: 0 | G16: 0 | H16: =SUMIFS(职工薪酬借贷核对!D:D,职工薪酬借贷核对!$C:$C,$A:$A) -> 0 | I16: =SUMIFS(序时账!J:J,序时账!$T:$T,$A:$A,序时账!$R:$R,"应付职工薪酬") -> 0 | J16: =SUMIFS(职工薪酬借贷核对!E:E,职工薪酬借贷核对!$C:$C,$A:$A) -> 0 | K16: 0 | L16: =SUMIFS(序时账!AA:AA,序时账!$X:$X,$A16) -> 0 | M16: =SUMIFS(序时账!Y:Y,序时账!$X:$X,$A16) -> 0 | N16: =SUMIFS(序时账!Z:Z,序时账!$X:$X,$A16) -> 0 | O16: 0 | P16: 0 | Q16: 0 | R16: 0 | S16: 0 | T16: 0 | U16: 0 | X16: 0 | AA16: 0 | AB16: * | AC16: 0 | AD16: 0
A17: =科目标准字段!B41 -> 其他 | B17: =SUMIFS(科目余额表!E:E,科目余额表!$L:$L,$A17)-C17 -> 0 | C17: =SUMIFS(科目余额表!E:E,科目余额表!$J:$J,"应付职工薪酬",科目余额表!$L:$L,$A17) -> 0 | D17: =SUMIFS(科目余额表!F:F,科目余额表!$J:$J,"应付职工薪酬",科目余额表!$L:$L,$A17) -> 0 | E17: 0 | F17: 0 | G17: 0 | H17: =SUMIFS(职工薪酬借贷核对!D:D,职工薪酬借贷核对!$C:$C,$A:$A) -> 0 | I17: =SUMIFS(序时账!J:J,序时账!$T:$T,$A:$A,序时账!$R:$R,"应付职工薪酬") -> 0 | J17: =SUMIFS(职工薪酬借贷核对!E:E,职工薪酬借贷核对!$C:$C,$A:$A) -> 0 | K17: 0 | L17: =SUMIFS(序时账!AA:AA,序时账!$X:$X,$A17) -> 0 | M17: =SUMIFS(序时账!Y:Y,序时账!$X:$X,$A17) -> 0 | N17: =SUMIFS(序时账!Z:Z,序时账!$X:$X,$A17) -> 0 | O17: 0 | P17: 0 | Q17: 0 | R17: 0 | S17: 0 | T17: 0 | U17: 0 | X17: 0 | AA17: 0 | AB17: * | AC17: 0 | AD17: 0
A18: =科目标准字段!B42 -> 党组织工作经费 | B18: =SUMIFS(科目余额表!E:E,科目余额表!$L:$L,$A18)-C18 -> 0 | C18: =SUMIFS(科目余额表!E:E,科目余额表!$J:$J,"应付职工薪酬",科目余额表!$L:$L,$A18) -> 0 | D18: =SUMIFS(科目余额表!F:F,科目余额表!$J:$J,"应付职工薪酬",科目余额表!$L:$L,$A18) -> 0 | E18: 0 | F18: 0 | G18: 0 | H18: =SUMIFS(职工薪酬借贷核对!D:D,职工薪酬借贷核对!$C:$C,$A:$A) -> 0 | I18: =SUMIFS(序时账!J:J,序时账!$T:$T,$A:$A,序时账!$R:$R,"应付职工薪酬") -> 0 | J18: =SUMIFS(职工薪酬借贷核对!E:E,职工薪酬借贷核对!$C:$C,$A:$A) -> 0 | K18: 0 | L18: =SUMIFS(序时账!AA:AA,序时账!$X:$X,$A18) -> 0 | M18: =SUMIFS(序时账!Y:Y,序时账!$X:$X,$A18) -> 0 | N18: =SUMIFS(序时账!Z:Z,序时账!$X:$X,$A18) -> 0 | O18: 0 | P18: 0 | Q18: 0 | R18: 0 | S18: 0 | T18: 0 | U18: 0 | X18: 0 | AA18: 0 | AB18: =$AC$3*AE18 -> 0 | AC18: 0 | AD18: 0 | AE18: 0.01 | AF18: =MAX($AC$3*AE18-X18,0) -> 0
A19: =科目标准字段!B43 -> 劳务派遣薪酬 | B19: =SUMIFS(科目余额表!E:E,科目余额表!$L:$L,$A19)-C19 -> 0 | C19: =SUMIFS(科目余额表!E:E,科目余额表!$J:$J,"应付职工薪酬",科目余额表!$L:$L,$A19) -> 0 | D19: =SUMIFS(科目余额表!F:F,科目余额表!$J:$J,"应付职工薪酬",科目余额表!$L:$L,$A19) -> 0 | E19: 0 | F19: 0 | G19: 0 | H19: =SUMIFS(职工薪酬借贷核对!D:D,职工薪酬借贷核对!$C:$C,$A:$A) -> 0 | I19: =SUMIFS(序时账!J:J,序时账!$T:$T,$A:$A,序时账!$R:$R,"应付职工薪酬") -> 0 | J19: =SUMIFS(职工薪酬借贷核对!E:E,职工薪酬借贷核对!$C:$C,$A:$A) -> 0 | K19: 0 | L19: =SUMIFS(序时账!AA:AA,序时账!$X:$X,$A19) -> 0 | M19: =SUMIFS(序时账!Y:Y,序时账!$X:$X,$A19) -> 0 | N19: =SUMIFS(序时账!Z:Z,序时账!$X:$X,$A19) -> 0 | O19: 0 | P19: 0 | Q19: 0 | R19: 0 | S19: 0 | T19: 0 | U19: 0 | X19: 0 | AA19: 0 | AB19: * | AC19: 0 | AD19: 0
A20: =科目标准字段!B44 -> 互助金 | B20: =SUMIFS(科目余额表!E:E,科目余额表!$L:$L,$A20)-C20 -> 0 | C20: =SUMIFS(科目余额表!E:E,科目余额表!$J:$J,"应付职工薪酬",科目余额表!$L:$L,$A20) -> 0 | D20: =SUMIFS(科目余额表!F:F,科目余额表!$J:$J,"应付职工薪酬",科目余额表!$L:$L,$A20) -> 0 | E20: 0 | F20: 0 | G20: 0 | H20: =SUMIFS(职工薪酬借贷核对!D:D,职工薪酬借贷核对!$C:$C,$A:$A) -> 0 | I20: =SUMIFS(序时账!J:J,序时账!$T:$T,$A:$A,序时账!$R:$R,"应付职工薪酬") -> 0 | J20: =SUMIFS(职工薪酬借贷核对!E:E,职工薪酬借贷核对!$C:$C,$A:$A) -> 0 | K20: 0 | L20: =SUMIFS(序时账!AA:AA,序时账!$X:$X,$A20) -> 0 | M20: =SUMIFS(序时账!Y:Y,序时账!$X:$X,$A20) -> 0 | N20: =SUMIFS(序时账!Z:Z,序时账!$X:$X,$A20) -> 0 | O20: 0 | P20: 0 | Q20: 0 | R20: 0 | S20: 0 | T20: 0 | U20: 0 | X20: 0 | AA20: 0 | AB20: * | AC20: 0 | AD20: 0
A21: =科目标准字段!B45 -> 商业保险 | B21: =SUMIFS(科目余额表!E:E,科目余额表!$L:$L,$A21)-C21 -> 0 | C21: =SUMIFS(科目余额表!E:E,科目余额表!$J:$J,"应付职工薪酬",科目余额表!$L:$L,$A21) -> 0 | D21: =SUMIFS(科目余额表!F:F,科目余额表!$J:$J,"应付职工薪酬",科目余额表!$L:$L,$A21) -> 0 | E21: 0 | F21: 0 | G21: 0 | H21: =SUMIFS(职工薪酬借贷核对!D:D,职工薪酬借贷核对!$C:$C,$A:$A) -> 0 | I21: =SUMIFS(序时账!J:J,序时账!$T:$T,$A:$A) -> 0 | J21: =SUMIFS(职工薪酬借贷核对!E:E,职工薪酬借贷核对!$C:$C,$A:$A) -> 0 | K21: 0 | L21: =SUMIFS(序时账!AA:AA,序时账!$X:$X,$A21) -> 0 | M21: =SUMIFS(序时账!Y:Y,序时账!$X:$X,$A21) -> 0 | N21: =SUMIFS(序时账!Z:Z,序时账!$X:$X,$A21) -> 0 | O21: 0 | P21: 0 | Q21: 0 | R21: 0 | S21: 0 | T21: 0 | U21: 0 | X21: 0 | AA21: 0 | AB21: * | AC21: 0 | AD21: 0
A22: 合计 | B22: =SUM(B3:B21) -> 0 | C22: =SUM(C3:C21) -> 0 | D22: =SUM(D3:D21) -> 0 | H22: =SUM(H3:H21) -> 219401446.1 | I22: =SUM(I3:I21) -> 0 | J22: =SUM(J3:J21) -> 217268380.1 | K22: 2133065.93 | L22: 0 | M22: 0 | N22: 0 | O22: 219401446.1 | P22: 0 | Q22: 217268380.1 | R22: 219401446.1 | S22: =SUM(S3:S21) -> 0 | T22: 217268380.1 | U22: -2133065.93 | V22: 0 | W22: 0 | X22: 219401446.1 | Y22: 0 | Z22: 0 | AA22: 0 | AB22: 0 | AC22: 0 | AD22: 219401446.1 | AF22: =SUM(AF3:AF21) -> 0
A23: 科目余额表 | B23: 应付职工薪酬 | C23: =_xlfn.XLOOKUP($B23,科目余额表!$B:$B,科目余额表!E:E) -> 196883632.3 | D23: =_xlfn.XLOOKUP($B23,科目余额表!$B:$B,科目余额表!F:F) -> 217268380.1 | I23: =_xlfn.XLOOKUP($B23,科目余额表!$B:$B,科目余额表!E:E) -> 196883632.3 | J23: =_xlfn.XLOOKUP($B23,科目余额表!$B:$B,科目余额表!F:F) -> 217268380.1 | V23: * | W23: * | X23: * | Y23: * | Z23: * | AA23: * | AB23: * | AC23: * | AD23: * | AE23: * | AF23: * | AG23: * | AH23: * | AI23: *
A24: 差异 | C24: =C22-C23 -> -196883632.3 | D24: =D22-D23 -> -217268380.1 | H24: =H22-H23 -> 219401446.1 | I24: -196883632.3 | J24: 0 | K24: 2133065.93 | L24: 0 | M24: 0 | N24: 0 | O24: 219401446.1 | P24: 0 | Q24: 217268380.1 | R24: 219401446.1 | S24: 0 | T24: 217268380.1 | U24: -2133065.93 | V24: * | W24: * | X24: * | Y24: * | Z24: * | AA24: * | AB24: * | AC24: * | AD24: * | AE24: * | AF24: * | AG24: * | AH24: * | AI24: *

Sheet 职工薪酬差异调整步骤
A1: 顺序 | B1: 核对差异操作步骤描述 | C1: 注意事项 | D1: 备注
A2: 1
A3: 2
A4: 3
A5: 4
A6: 5
A7: 6
A8: 7
A9: 8
A10: 9
A11: 10

Sheet 保险比例
B1: 全年 | D1: 上半年 | F1: 下半年
B2: 单位部分 | C2: 个人部分 | D2: 单位部分 | E2: 个人部分 | F2: 单位部分 | G2: 个人部分
A3: 工资薪金支出
A4: 职工福利费支出
A5: 职工教育经费支出
A6: 工会经费支出
A7: 基本养老保险费
A8: 基本医疗保险费
A9: 失业保险费
A10: 工伤保险费
A11: 生育保险费
A12: 住房公积金
A13: 补充养老保险
A14: 补充医疗保险
A15: 辞退福利
A16: 大病医疗保险
A17: 其他
A18: 党组织工作经费
A19: 劳务费
A20: 互助金
A21: 商业保险

Sheet 职工薪酬明细构成分析
A1: 标准一级字段 | B1: (全部) | D1: 余额表总行数 | E1: 点击刷新透视表
A2: 标准二级字段 | B2: (全部) | D2: =COUNTA(科目余额表!$A:$A) -> 325
A3: 是否末级 | B3: 末级
A5: 标准三级字段 | B5: 四级明细 | C5: 求和项:期初余额 | D5: 求和项:本期借方 | E5: 求和项:本期贷方 | F5: 求和项:期末余额
A6: (空白)
B7: (空白)
A8: 总计

Sheet 职工薪酬本年支付分析
A1: 标准一级字段 | B1: (全部) | D1: 序时账总行数 | E1: 点击刷新透视表
A2: 凭证类别 | B2: (全部) | D2: =COUNTA(序时账!$A:$A) -> 10785
A4: 求和项:借方 | C4: 纳税年度
A5: 标准三级字段 | B5: 月 | C5: (空白)
A6: 0 | B6: (空白)

Sheet 职工薪酬计提支付结余月汇总
A1: 标准一级字段 | B1: (全部) | C1: 序时账总行数 | D1: 点击刷新透视表
C2: =COUNTA(序时账!$A:$A) -> 10785
A3: 求和项:金额 | C3: 凭证类别
A4: 标准三级字段 | B4: 月 | C4: (空白) | E4: 结余
A5: 0 | B5: (空白) | E5: =C5-D5 -> 0
A6: 0 汇总 | E6: =C6-D6 -> 0
E7: 0
E8: 0
E9: 0
E10: 0
E11: 0
E12: 0
E13: 0
E14: 0
E15: 0
E16: 0
E17: 0
E18: 0
E19: 0
E20: 0
E21: 0
E22: 0
E23: 0
E24: 0
E25: 0
E26: 0
E27: 0
E28: 0
E29: 0
E30: 0
E31: 0
E32: 0
E33: 0
E34: 0
E35: 0
E36: 0
E37: 0
E38: =C38-D38 -> 0
E39: 0
E40: 0
E41: 0
E42: 0
E43: 0
E44: 0
E45: 0
E46: 0
E47: 0
E48: 0
E49: 0
E50: 0
E51: 0
E52: 0
E53: 0
E54: 0
E55: 0
E56: 0
E57: 0
E58: 0
E59: 0
E60: 0
E61: 0
E62: 0
E63: 0
E64: 0
E65: 0
E66: 0
E67: 0
E68: 0
E69: 0
E70: =C70-D70 -> 0
E71: 0
E72: 0
E73: 0
E74: 0
E75: 0
E76: 0
E77: 0
E78: 0
E79: 0
E80: 0
E81: 0
E82: 0
E83: 0
E84: 0
E85: 0
E86: 0
E87: 0
E88: 0
E89: 0
E90: 0
E91: 0
E92: 0
E93: 0
E94: 0
E95: 0
E96: 0
E97: 0
E98: 0
E99: 0
E100: 0
E101: 0
E102: =C102-D102 -> 0
E103: 0
E104: 0
E105: 0
E106: 0
E107: 0
E108: 0
E109: 0
E110: 0
E111: 0
E112: 0
E113: 0
E114: 0
E115: 0
E116: 0
E117: 0
E118: 0
E119: 0
E120: 0
E121: 0
E122: 0
E123: 0
E124: 0

Sheet 薪酬余额分析汇总
A1: 序号 | B1: 工资薪金支出 | H1: 基本养老保险费
A2: 1 | B2: =D2-1 -> 2021 | D2: 2022 | F2: =D2+1 -> 2023 | H2: =B2 -> 2021 | J2: =D2 -> 2022 | L2: =F2 -> 2023
A3: 2 | B3: 余额表期初余额 | C3: =SUMIFS(科目余额表!$D:$D,科目余额表!$J:$J,"应付职工薪酬",科目余额表!$L:$L,B1,科目余额表!$C:$C,"贷")-SUMIFS(科目余额表!$D:$D,科目余额表!$J:$J,"应付职工薪酬",科目余额表!$L:$L,B1,科目余额表!$C:$C,"借") -> 0 | D3: ="计提"&$B$2 -> 计提2021 | E3: =SUMIFS(序时账!$K:$K,序时账!$T:$T,B1,序时账!$P:$P,"计提",序时账!$Q:$Q,B2) -> 0 | F3: ="计提"&$D$2 -> 计提2022 | H3: 余额表期初余额 | I3: =SUMIFS(科目余额表!$D:$D,科目余额表!$J:$J,"应付职工薪酬",科目余额表!$L:$L,H1,科目余额表!$C:$C,"贷")-SUMIFS(科目余额表!$D:$D,科目余额表!$J:$J,"应付职工薪酬",科目余额表!$L:$L,H1,科目余额表!$C:$C,"借") -> 0 | J3: ="计提"&$B$2 -> 计提2021 | K3: =SUMIFS(序时账!$K:$K,序时账!$T:$T,H1,序时账!$P:$P,"计提",序时账!$Q:$Q,H2) -> 0 | L3: ="计提"&$D$2 -> 计提2022
A4: 3 | B4: ="5.31前支付"&$B$2 -> 5.31前支付2021 | C4: =SUMIFS(序时账!$J:$J,序时账!$T:$T,B1,序时账!$P:$P,"支付",序时账!$Q:$Q,$B$2,序时账!$D:$D,"<6") -> 0 | D4: ="计提"&$D$2 -> 计提2022 | E4: =SUMIFS(序时账!$K:$K,序时账!$T:$T,B1,序时账!$P:$P,"计提",序时账!$Q:$Q,D2) -> 0 | F4: ="支付"&$D$2 -> 支付2022 | H4: ="5.31前支付"&$B$2 -> 5.31前支付2021 | I4: =SUMIFS(序时账!$J:$J,序时账!$T:$T,H1,序时账!$P:$P,"支付",序时账!$Q:$Q,$B$2,序时账!$D:$D,"<6") -> 0 | J4: ="计提"&$D$2 -> 计提2022 | K4: =SUMIFS(序时账!$K:$K,序时账!$T:$T,H1,序时账!$P:$P,"计提",序时账!$Q:$Q,J2) -> 0 | L4: ="支付"&$D$2 -> 支付2022
A5: 4 | B5: ="5.31后支付"&$B$2 -> 5.31后支付2021 | C5: =SUMIFS(序时账!$J:$J,序时账!$T:$T,B1,序时账!$P:$P,"支付",序时账!$Q:$Q,$B$2,序时账!$D:$D,">5") -> 0 | D5: ="支付"&$D$2 -> 支付2022 | E5: =SUMIFS(序时账!$J:$J,序时账!$T:$T,B1,序时账!$P:$P,"支付",序时账!$Q:$Q,D2) -> 0 | F5: ="计提"&$F$2 -> 计提2023 | H5: ="5.31后支付"&$B$2 -> 5.31后支付2021 | I5: =SUMIFS(序时账!$J:$J,序时账!$T:$T,H1,序时账!$P:$P,"支付",序时账!$Q:$Q,$B$2,序时账!$D:$D,">5") -> 0 | J5: ="支付"&$D$2 -> 支付2022 | K5: =SUMIFS(序时账!$J:$J,序时账!$T:$T,H1,序时账!$P:$P,"支付",序时账!$Q:$Q,J2) -> 0 | L5: ="计提"&$F$2 -> 计提2023
A6: 5 | B6: =$B$2&"结余" -> 2021结余 | C6: =C3-C4-C5 -> 0 | D6: =$D$2&"结余" -> 2022结余 | E6: =E4-E5 -> 0 | F6: ="支付"&$F$2 -> 支付2023 | H6: =$B$2&"结余" -> 2021结余 | I6: =I3-I4-I5 -> 0 | J6: =$D$2&"结余" -> 2022结余 | K6: =K4-K5 -> 0 | L6: ="支付"&$F$2 -> 支付2023
A7: 6 | B7: 余额表期末余额 | C7: =SUMIFS(科目余额表!$G:$G,科目余额表!$J:$J,"应付职工薪酬",科目余额表!$L:$L,B1,科目余额表!$H:$H,"贷")-SUMIFS(科目余额表!$G:$G,科目余额表!$J:$J,"应付职工薪酬",科目余额表!$L:$L,B1,科目余额表!$H:$H,"借") -> 0 | D7: 计算期末余额 | E7: =C6+E6+E3 -> 0 | F7: 差异 | G7: =C7-E7 -> 0 | H7: 余额表期末余额 | I7: =SUMIFS(科目余额表!$G:$G,科目余额表!$J:$J,"应付职工薪酬",科目余额表!$L:$L,H1,科目余额表!$H:$H,"贷")-SUMIFS(科目余额表!$G:$G,科目余额表!$J:$J,"应付职工薪酬",科目余额表!$L:$L,H1,科目余额表!$H:$H,"借") -> 0 | J7: 计算期末余额 | K7: =I6+K6+K3 -> 0 | L7: 差异 | M7: =I7-K7 -> 0
A8: 7 | B8: =$B$2&"调整" -> 2021调整 | D8: =$D$2&"调整" -> 2022调整 | E8: =E6-G4 -> 0 | H8: =$B$2&"调整" -> 2021调整 | J8: =$D$2&"调整" -> 2022调整 | K8: =K6-M4 -> 0
A9: 8
A10: 9 | B10: 职工福利费支出 | H10: 基本医疗保险费
A11: 10 | B11: =D11-1 -> 2021 | D11: 2022 | F11: =D11+1 -> 2023 | H11: =B11 -> 2021 | J11: 2022 | L11: 2023
A12: 11 | B12: 余额表期初余额 | C12: =SUMIFS(科目余额表!$D:$D,科目余额表!$J:$J,"应付职工薪酬",科目余额表!$L:$L,B10,科目余额表!$C:$C,"贷")-SUMIFS(科目余额表!$D:$D,科目余额表!$J:$J,"应付职工薪酬",科目余额表!$L:$L,B10,科目余额表!$C:$C,"借") -> 0 | D12: ="计提"&$B$2 -> 计提2021 | E12: =SUMIFS(序时账!$K:$K,序时账!$T:$T,B10,序时账!$P:$P,"计提",序时账!$Q:$Q,B11) -> 0 | F12: ="计提"&$D$2 -> 计提2022 | H12: 余额表期初余额 | I12: =SUMIFS(科目余额表!$D:$D,科目余额表!$J:$J,"应付职工薪酬",科目余额表!$L:$L,H10,科目余额表!$C:$C,"贷")-SUMIFS(科目余额表!$D:$D,科目余额表!$J:$J,"应付职工薪酬",科目余额表!$L:$L,H10,科目余额表!$C:$C,"借") -> 0 | J12: ="计提"&$B$2 -> 计提2021 | K12: =SUMIFS(序时账!$K:$K,序时账!$T:$T,H10,序时账!$P:$P,"计提",序时账!$Q:$Q,H11) -> 0 | L12: ="计提"&$D$2 -> 计提2022
A13: 12 | B13: ="5.31前支付"&$B$2 -> 5.31前支付2021 | C13: =SUMIFS(序时账!$J:$J,序时账!$T:$T,B10,序时账!$P:$P,"支付",序时账!$Q:$Q,$B$2,序时账!$D:$D,"<6") -> 0 | D13: ="计提"&$D$2 -> 计提2022 | E13: =SUMIFS(序时账!$K:$K,序时账!$T:$T,B10,序时账!$P:$P,"计提",序时账!$Q:$Q,D11) -> 0 | F13: ="支付"&$D$2 -> 支付2022 | H13: ="5.31前支付"&$B$2 -> 5.31前支付2021 | I13: =SUMIFS(序时账!$J:$J,序时账!$T:$T,H10,序时账!$P:$P,"支付",序时账!$Q:$Q,$B$2,序时账!$D:$D,"<6") -> 0 | J13: ="计提"&$D$2 -> 计提2022 | K13: =SUMIFS(序时账!$K:$K,序时账!$T:$T,H10,序时账!$P:$P,"计提",序时账!$Q:$Q,J11) -> 0 | L13: ="支付"&$D$2 -> 支付2022
A14: 13 | B14: ="5.31后支付"&$B$2 -> 5.31后支付2021 | C14: =SUMIFS(序时账!$J:$J,序时账!$T:$T,B10,序时账!$P:$P,"支付",序时账!$Q:$Q,$B$2,序时账!$D:$D,">5") -> 0 | D14: ="支付"&$D$2 -> 支付2022 | E14: =SUMIFS(序时账!$J:$J,序时账!$T:$T,B10,序时账!$P:$P,"支付",序时账!$Q:$Q,D11) -> 0 | F14: ="计提"&$F$2 -> 计提2023 | H14: ="5.31后支付"&$B$2 -> 5.31后支付2021 | I14: =SUMIFS(序时账!$J:$J,序时账!$T:$T,H10,序时账!$P:$P,"支付",序时账!$Q:$Q,$B$2,序时账!$D:$D,">5") -> 0 | J14: ="支付"&$D$2 -> 支付2022 | K14: =SUMIFS(序时账!$J:$J,序时账!$T:$T,H10,序时账!$P:$P,"支付",序时账!$Q:$Q,J11) -> 0 | L14: ="计提"&$F$2 -> 计提2023
A15: 14 | B15: =$B$2&"结余" -> 2021结余 | C15: =C12-C13-C14 -> 0 | D15: =$D$2&"结余" -> 2022结余 | E15: =E13-E14 -> 0 | F15: ="支付"&$F$2 -> 支付2023 | H15: =$B$2&"结余" -> 2021结余 | I15: =I12-I13-I14 -> 0 | J15: =$D$2&"结余" -> 2022结余 | K15: =K13-K14 -> 0 | L15: ="支付"&$F$2 -> 支付2023 | N15: 基本医疗保险费有期初余额至今未发放
A16: 15 | B16: 余额表期末余额 | C16: =SUMIFS(科目余额表!$G:$G,科目余额表!$J:$J,"应付职工薪酬",科目余额表!$L:$L,B10,科目余额表!$H:$H,"贷")-SUMIFS(科目余额表!$G:$G,科目余额表!$J:$J,"应付职工薪酬",科目余额表!$L:$L,B10,科目余额表!$H:$H,"借") -> 0 | D16: 计算期末余额 | E16: =C15+E15+E12 -> 0 | F16: 差异 | G16: =C16-E16 -> 0 | H16: 余额表期末余额 | I16: =SUMIFS(科目余额表!$G:$G,科目余额表!$J:$J,"应付职工薪酬",科目余额表!$L:$L,H10,科目余额表!$H:$H,"贷")-SUMIFS(科目余额表!$G:$G,科目余额表!$J:$J,"应付职工薪酬",科目余额表!$L:$L,H10,科目余额表!$H:$H,"借") -> 0 | J16: 计算期末余额 | K16: =I15+K15+K12 -> 0 | L16: 差异 | M16: =I16-K16 -> 0
A17: 16 | B17: =$B$2&"调整" -> 2021调整 | D17: =$D$2&"调整" -> 2022调整 | E17: =E15-G13 -> 0 | H17: =$B$2&"调整" -> 2021调整 | J17: =$D$2&"调整" -> 2022调整 | K17: =K15-M13 -> 0
A18: 17 | H18: 基本医疗保险费有期初余额至今未发放
A19: 18 | B19: 职工教育经费支出 | H19: 失业保险费
A20: 19 | B20: =D20-1 -> 2021 | D20: 2022 | F20: =D20+1 -> 2023 | H20: =B20 -> 2021 | J20: 2022 | L20: 2023
A21: 20 | B21: 余额表期初余额 | C21: =SUMIFS(科目余额表!$D:$D,科目余额表!$J:$J,"应付职工薪酬",科目余额表!$L:$L,B19,科目余额表!$C:$C,"贷")-SUMIFS(科目余额表!$D:$D,科目余额表!$J:$J,"应付职工薪酬",科目余额表!$L:$L,B19,科目余额表!$C:$C,"借") -> 0 | D21: ="计提"&$B$2 -> 计提2021 | E21: =SUMIFS(序时账!$K:$K,序时账!$T:$T,B19,序时账!$P:$P,"计提",序时账!$Q:$Q,B20) -> 0 | F21: ="计提"&$D$2 -> 计提2022 | H21: 余额表期初余额 | I21: =SUMIFS(科目余额表!$D:$D,科目余额表!$J:$J,"应付职工薪酬",科目余额表!$L:$L,H19,科目余额表!$C:$C,"贷")-SUMIFS(科目余额表!$D:$D,科目余额表!$J:$J,"应付职工薪酬",科目余额表!$L:$L,H19,科目余额表!$C:$C,"借") -> 0 | J21: ="计提"&$B$2 -> 计提2021 | K21: =SUMIFS(序时账!$K:$K,序时账!$T:$T,H19,序时账!$P:$P,"计提",序时账!$Q:$Q,H20) -> 0 | L21: ="计提"&$D$2 -> 计提2022
A22: 21 | B22: ="5.31前支付"&$B$2 -> 5.31前支付2021 | C22: =SUMIFS(序时账!$J:$J,序时账!$T:$T,B19,序时账!$P:$P,"支付",序时账!$Q:$Q,$B$2,序时账!$D:$D,"<6") -> 0 | D22: ="计提"&$D$2 -> 计提2022 | E22: =SUMIFS(序时账!$K:$K,序时账!$T:$T,B19,序时账!$P:$P,"计提",序时账!$Q:$Q,D20) -> 0 | F22: ="支付"&$D$2 -> 支付2022 | H22: ="5.31前支付"&$B$2 -> 5.31前支付2021 | I22: =SUMIFS(序时账!$J:$J,序时账!$T:$T,H19,序时账!$P:$P,"支付",序时账!$Q:$Q,$B$2,序时账!$D:$D,"<6") -> 0 | J22: ="计提"&$D$2 -> 计提2022 | K22: =SUMIFS(序时账!$K:$K,序时账!$T:$T,H19,序时账!$P:$P,"计提",序时账!$Q:$Q,J20) -> 0 | L22: ="支付"&$D$2 -> 支付2022
A23: 22 | B23: ="5.31后支付"&$B$2 -> 5.31后支付2021 | C23: =SUMIFS(序时账!$J:$J,序时账!$T:$T,B19,序时账!$P:$P,"支付",序时账!$Q:$Q,$B$2,序时账!$D:$D,">5") -> 0 | D23: ="支付"&$D$2 -> 支付2022 | E23: =SUMIFS(序时账!$J:$J,序时账!$T:$T,B19,序时账!$P:$P,"支付",序时账!$Q:$Q,D20) -> 0 | F23: ="计提"&$F$2 -> 计提2023 | H23: ="5.31后支付"&$B$2 -> 5.31后支付2021 | I23: =SUMIFS(序时账!$J:$J,序时账!$T:$T,H19,序时账!$P:$P,"支付",序时账!$Q:$Q,$B$2,序时账!$D:$D,">5") -> 0 | J23: ="支付"&$D$2 -> 支付2022 | K23: =SUMIFS(序时账!$J:$J,序时账!$T:$T,H19,序时账!$P:$P,"支付",序时账!$Q:$Q,J20) -> 0 | L23: ="计提"&$F$2 -> 计提2023
A24: 23 | B24: =$B$2&"结余" -> 2021结余 | C24: =C21-C22-C23 -> 0 | D24: =$D$2&"结余" -> 2022结余 | E24: =E22-E23 -> 0 | F24: ="支付"&$F$2 -> 支付2023 | H24: =$B$2&"结余" -> 2021结余 | I24: =I21-I22-I23 -> 0 | J24: =$D$2&"结余" -> 2022结余 | K24: =K22-K23 -> 0 | L24: ="支付"&$F$2 -> 支付2023
A25: 24 | B25: 余额表期末余额 | C25: =SUMIFS(科目余额表!$G:$G,科目余额表!$J:$J,"应付职工薪酬",科目余额表!$L:$L,B19,科目余额表!$H:$H,"贷")-SUMIFS(科目余额表!$G:$G,科目余额表!$J:$J,"应付职工薪酬",科目余额表!$L:$L,B19,科目余额表!$H:$H,"借") -> 0 | D25: 计算期末余额 | E25: =C24+E24+E21 -> 0 | F25: 差异 | G25: =C25-E25 -> 0 | H25: 余额表期末余额 | I25: =SUMIFS(科目余额表!$G:$G,科目余额表!$J:$J,"应付职工薪酬",科目余额表!$L:$L,H19,科目余额表!$H:$H,"贷")-SUMIFS(科目余额表!$G:$G,科目余额表!$J:$J,"应付职工薪酬",科目余额表!$L:$L,H19,科目余额表!$H:$H,"借") -> 0 | J25: 计算期末余额 | K25: =I24+K24+K21 -> 0 | L25: 差异 | M25: =I25-K25 -> 0
A26: 25 | B26: =$B$2&"调整" -> 2021调整 | D26: =$D$2&"调整" -> 2022调整 | E26: =E24-G22 -> 0 | H26: =$B$2&"调整" -> 2021调整 | J26: =$D$2&"调整" -> 2022调整 | K26: =K24-M22 -> 0
A27: 26 | B27: 职工教育经费支出以前年度调增，本年转回 | H27: 失业保险费有期初余额，至今未发放
A28: 27 | B28: 工会经费支出 | H28: 工伤保险费
A29: 28 | B29: =D29-1 -> 2021 | D29: 2022 | F29: =D29+1 -> 2023 | H29: =B29 -> 2021 | J29: 2022 | L29: 2023
A30: 29 | B30: 余额表期初余额 | C30: =SUMIFS(科目余额表!$D:$D,科目余额表!$J:$J,"应付职工薪酬",科目余额表!$L:$L,B28,科目余额表!$C:$C,"贷")-SUMIFS(科目余额表!$D:$D,科目余额表!$J:$J,"应付职工薪酬",科目余额表!$L:$L,B28,科目余额表!$C:$C,"借") -> 0 | D30: ="计提"&$B$2 -> 计提2021 | E30: =SUMIFS(序时账!$K:$K,序时账!$T:$T,B28,序时账!$P:$P,"计提",序时账!$Q:$Q,B29) -> 0 | F30: ="计提"&$D$2 -> 计提2022 | G30: =SUMIFS(序时账!$K:$K,序时账!$T:$T,B28,序时账!$P:$P,"计提",序时账!$Q:$Q,$B$2) -> 0 | H30: 余额表期初余额 | I30: =SUMIFS(科目余额表!$D:$D,科目余额表!$J:$J,"应付职工薪酬",科目余额表!$L:$L,H28,科目余额表!$C:$C,"贷")-SUMIFS(科目余额表!$D:$D,科目余额表!$J:$J,"应付职工薪酬",科目余额表!$L:$L,H28,科目余额表!$C:$C,"借") -> 0 | J30: ="计提"&$B$2 -> 计提2021 | K30: =SUMIFS(序时账!$K:$K,序时账!$T:$T,H28,序时账!$P:$P,"计提",序时账!$Q:$Q,H29) -> 0 | L30: ="计提"&$D$2 -> 计提2022 | M30: =SUMIFS(序时账!$K:$K,序时账!$T:$T,H28,序时账!$P:$P,"计提",序时账!$Q:$Q,$B$2) -> 0
A31: 30 | B31: ="5.31前支付"&$B$2 -> 5.31前支付2021 | C31: =SUMIFS(序时账!$J:$J,序时账!$T:$T,B28,序时账!$P:$P,"支付",序时账!$Q:$Q,$B$2,序时账!$D:$D,"<6") -> 0 | D31: ="计提"&$D$2 -> 计提2022 | E31: =SUMIFS(序时账!$K:$K,序时账!$T:$T,B28,序时账!$P:$P,"计提",序时账!$Q:$Q,D29) -> 0 | F31: ="支付"&$D$2 -> 支付2022 | G31: =SUMIFS(序时账!$K:$K,序时账!$T:$T,B28,序时账!$P:$P,"计提",序时账!$Q:$Q,$F$2) -> 0 | H31: ="5.31前支付"&$B$2 -> 5.31前支付2021 | I31: =SUMIFS(序时账!$J:$J,序时账!$T:$T,H28,序时账!$P:$P,"支付",序时账!$Q:$Q,$B$2,序时账!$D:$D,"<6") -> 0 | J31: ="计提"&$D$2 -> 计提2022 | K31: =SUMIFS(序时账!$K:$K,序时账!$T:$T,H28,序时账!$P:$P,"计提",序时账!$Q:$Q,J29) -> 0 | L31: ="支付"&$D$2 -> 支付2022 | M31: =SUMIFS(序时账!$K:$K,序时账!$T:$T,H28,序时账!$P:$P,"计提",序时账!$Q:$Q,$F$2) -> 0
A32: 31 | B32: ="5.31后支付"&$B$2 -> 5.31后支付2021 | C32: =SUMIFS(序时账!$J:$J,序时账!$T:$T,B28,序时账!$P:$P,"支付",序时账!$Q:$Q,$B$2,序时账!$D:$D,">5") -> 0 | D32: ="支付"&$D$2 -> 支付2022 | E32: =SUMIFS(序时账!$J:$J,序时账!$T:$T,B28,序时账!$P:$P,"支付",序时账!$Q:$Q,D29) -> 0 | F32: ="计提"&$F$2 -> 计提2023 | G32: =SUMIFS(序时账!$J:$J,序时账!$T:$T,B28,序时账!$P:$P,"支付",序时账!$Q:$Q,$F$2) -> 0 | H32: ="5.31后支付"&$B$2 -> 5.31后支付2021 | I32: =SUMIFS(序时账!$J:$J,序时账!$T:$T,H28,序时账!$P:$P,"支付",序时账!$Q:$Q,$B$2,序时账!$D:$D,">5") -> 0 | J32: ="支付"&$D$2 -> 支付2022 | K32: =SUMIFS(序时账!$J:$J,序时账!$T:$T,H28,序时账!$P:$P,"支付",序时账!$Q:$Q,J29) -> 0 | L32: ="计提"&$F$2 -> 计提2023 | M32: =SUMIFS(序时账!$J:$J,序时账!$T:$T,H28,序时账!$P:$P,"支付",序时账!$Q:$Q,$F$2) -> 0
A33: 32 | B33: =$B$2&"结余" -> 2021结余 | C33: =C30-C31-C32 -> 0 | D33: =$D$2&"结余" -> 2022结余 | E33: =E31-E32 -> 0 | F33: ="支付"&$F$2 -> 支付2023 | G33: =G31-G32 -> 0 | H33: =$B$2&"结余" -> 2021结余 | I33: =I30-I31-I32 -> 0 | J33: =$D$2&"结余" -> 2022结余 | K33: =K31-K32 -> 0 | L33: ="支付"&$F$2 -> 支付2023 | M33: =M31-M32 -> 0
A34: 33 | B34: 余额表期末余额 | C34: =SUMIFS(科目余额表!$G:$G,科目余额表!$J:$J,"应付职工薪酬",科目余额表!$L:$L,B28,科目余额表!$H:$H,"贷")-SUMIFS(科目余额表!$G:$G,科目余额表!$J:$J,"应付职工薪酬",科目余额表!$L:$L,B28,科目余额表!$H:$H,"借") -> 0 | D34: 计算期末余额 | E34: =C33+E33+E30 -> 0 | F34: 差异 | G34: =C34-E34 -> 0 | H34: 余额表期末余额 | I34: =SUMIFS(科目余额表!$G:$G,科目余额表!$J:$J,"应付职工薪酬",科目余额表!$L:$L,H28,科目余额表!$H:$H,"贷")-SUMIFS(科目余额表!$G:$G,科目余额表!$J:$J,"应付职工薪酬",科目余额表!$L:$L,H28,科目余额表!$H:$H,"借") -> 0 | J34: 计算期末余额 | K34: =I33+K33+K30 -> 0 | L34: 差异 | M34: =I34-K34 -> 0
A35: 34 | B35: =$B$2&"调整" -> 2021调整 | D35: =$D$2&"调整" -> 2022调整 | E35: =E33-G31 -> 0 | H35: =$B$2&"调整" -> 2021调整 | J35: =$D$2&"调整" -> 2022调整 | K35: =K33-M31 -> 0
A36: 35
A37: 36 | B37: 党组织工作经费 | H37: 生育保险费
A38: 37 | B38: =D38-1 -> 2021 | D38: 2022 | F38: =D38+1 -> 2023 | H38: =B38 -> 2021 | J38: 2022 | L38: 2023
A39: 38 | B39: 余额表期初余额 | C39: =SUMIFS(科目余额表!$D:$D,科目余额表!$J:$J,"应付职工薪酬",科目余额表!$L:$L,B37,科目余额表!$C:$C,"贷")-SUMIFS(科目余额表!$D:$D,科目余额表!$J:$J,"应付职工薪酬",科目余额表!$L:$L,B37,科目余额表!$C:$C,"借") -> 0 | D39: ="计提"&$B$2 -> 计提2021 | E39: =SUMIFS(序时账!$K:$K,序时账!$T:$T,B37,序时账!$P:$P,"计提",序时账!$Q:$Q,B38) -> 0 | F39: ="计提"&$D$2 -> 计提2022 | G39: =SUMIFS(序时账!$K:$K,序时账!$T:$T,B37,序时账!$P:$P,"计提",序时账!$Q:$Q,$B$2) -> 0 | H39: 余额表期初余额 | I39: =SUMIFS(科目余额表!$D:$D,科目余额表!$J:$J,"应付职工薪酬",科目余额表!$L:$L,H37,科目余额表!$C:$C,"贷")-SUMIFS(科目余额表!$D:$D,科目余额表!$J:$J,"应付职工薪酬",科目余额表!$L:$L,H37,科目余额表!$C:$C,"借") -> 0 | J39: ="计提"&$B$2 -> 计提2021 | K39: =SUMIFS(序时账!$K:$K,序时账!$T:$T,H37,序时账!$P:$P,"计提",序时账!$Q:$Q,H38) -> 0 | L39: ="计提"&$D$2 -> 计提2022 | M39: =SUMIFS(序时账!$K:$K,序时账!$T:$T,H37,序时账!$P:$P,"计提",序时账!$Q:$Q,$B$2) -> 0
A40: 39 | B40: ="5.31前支付"&$B$2 -> 5.31前支付2021 | C40: =SUMIFS(序时账!$J:$J,序时账!$T:$T,B37,序时账!$P:$P,"支付",序时账!$Q:$Q,$B$2,序时账!$D:$D,"<6") -> 0 | D40: ="计提"&$D$2 -> 计提2022 | E40: =SUMIFS(序时账!$K:$K,序时账!$T:$T,B37,序时账!$P:$P,"计提",序时账!$Q:$Q,D38) -> 0 | F40: ="支付"&$D$2 -> 支付2022 | G40: =SUMIFS(序时账!$K:$K,序时账!$T:$T,B37,序时账!$P:$P,"计提",序时账!$Q:$Q,$F$2) -> 0 | H40: ="5.31前支付"&$B$2 -> 5.31前支付2021 | I40: =SUMIFS(序时账!$J:$J,序时账!$T:$T,H37,序时账!$P:$P,"支付",序时账!$Q:$Q,$B$2,序时账!$D:$D,"<6") -> 0 | J40: ="计提"&$D$2 -> 计提2022 | K40: =SUMIFS(序时账!$K:$K,序时账!$T:$T,H37,序时账!$P:$P,"计提",序时账!$Q:$Q,J38) -> 0 | L40: ="支付"&$D$2 -> 支付2022 | M40: =SUMIFS(序时账!$K:$K,序时账!$T:$T,H37,序时账!$P:$P,"计提",序时账!$Q:$Q,$F$2) -> 0
A41: 40 | B41: ="5.31后支付"&$B$2 -> 5.31后支付2021 | C41: =SUMIFS(序时账!$J:$J,序时账!$T:$T,B37,序时账!$P:$P,"支付",序时账!$Q:$Q,$B$2,序时账!$D:$D,">5") -> 0 | D41: ="支付"&$D$2 -> 支付2022 | E41: =SUMIFS(序时账!$J:$J,序时账!$T:$T,B37,序时账!$P:$P,"支付",序时账!$Q:$Q,D38) -> 0 | F41: ="计提"&$F$2 -> 计提2023 | G41: =SUMIFS(序时账!$J:$J,序时账!$T:$T,B37,序时账!$P:$P,"支付",序时账!$Q:$Q,$F$2) -> 0 | H41: ="5.31后支付"&$B$2 -> 5.31后支付2021 | I41: =SUMIFS(序时账!$J:$J,序时账!$T:$T,H37,序时账!$P:$P,"支付",序时账!$Q:$Q,$B$2,序时账!$D:$D,">5") -> 0 | J41: ="支付"&$D$2 -> 支付2022 | K41: =SUMIFS(序时账!$J:$J,序时账!$T:$T,H37,序时账!$P:$P,"支付",序时账!$Q:$Q,J38) -> 0 | L41: ="计提"&$F$2 -> 计提2023 | M41: =SUMIFS(序时账!$J:$J,序时账!$T:$T,H37,序时账!$P:$P,"支付",序时账!$Q:$Q,$F$2) -> 0
A42: 41 | B42: =$B$2&"结余" -> 2021结余 | C42: =C39-C40-C41 -> 0 | D42: =$D$2&"结余" -> 2022结余 | E42: =E40-E41 -> 0 | F42: ="支付"&$F$2 -> 支付2023 | G42: =G40-G41 -> 0 | H42: =$B$2&"结余" -> 2021结余 | I42: =I39-I40-I41 -> 0 | J42: =$D$2&"结余" -> 2022结余 | K42: =K40-K41 -> 0 | L42: ="支付"&$F$2 -> 支付2023 | M42: =M40-M41 -> 0
A43: 42 | B43: 余额表期末余额 | C43: =SUMIFS(科目余额表!$G:$G,科目余额表!$J:$J,"应付职工薪酬",科目余额表!$L:$L,B37,科目余额表!$H:$H,"贷")-SUMIFS(科目余额表!$G:$G,科目余额表!$J:$J,"应付职工薪酬",科目余额表!$L:$L,B37,科目余额表!$H:$H,"借") -> 0 | D43: 计算期末余额 | E43: =C42+E42+E39 -> 0 | F43: 差异 | G43: =C43-E43 -> 0 | H43: 余额表期末余额 | I43: =SUMIFS(科目余额表!$G:$G,科目余额表!$J:$J,"应付职工薪酬",科目余额表!$L:$L,H37,科目余额表!$H:$H,"贷")-SUMIFS(科目余额表!$G:$G,科目余额表!$J:$J,"应付职工薪酬",科目余额表!$L:$L,H37,科目余额表!$H:$H,"借") -> 0 | J43: 计算期末余额 | K43: =I42+K42+K39 -> 0 | L43: 差异 | M43: =I43-K43 -> 0
A44: 43 | B44: =$B$2&"调整" -> 2021调整 | D44: =$D$2&"调整" -> 2022调整 | E44: =E42-G40 -> 0 | H44: =$B$2&"调整" -> 2021调整 | J44: =$D$2&"调整" -> 2022调整 | K44: =K42-M40 -> 0
A45: 44
A46: 45 | B46: 辞退福利 | H46: 住房公积金
A47: 46 | B47: =D47-1 -> 2021 | D47: 2022 | F47: =D47+1 -> 2023 | H47: =B47 -> 2021 | J47: 2022 | L47: 2023
A48: 47 | B48: 余额表期初余额 | C48: =SUMIFS(科目余额表!$D:$D,科目余额表!$J:$J,"应付职工薪酬",科目余额表!$L:$L,B46,科目余额表!$C:$C,"贷")-SUMIFS(科目余额表!$D:$D,科目余额表!$J:$J,"应付职工薪酬",科目余额表!$L:$L,B46,科目余额表!$C:$C,"借") -> 0 | D48: ="计提"&$B$2 -> 计提2021 | E48: =SUMIFS(序时账!$K:$K,序时账!$T:$T,B46,序时账!$P:$P,"计提",序时账!$Q:$Q,B47) -> 0 | F48: ="计提"&$D$2 -> 计提2022 | G48: =SUMIFS(序时账!$K:$K,序时账!$T:$T,B46,序时账!$P:$P,"计提",序时账!$Q:$Q,$B$2) -> 0 | H48: 余额表期初余额 | I48: =SUMIFS(科目余额表!$D:$D,科目余额表!$J:$J,"应付职工薪酬",科目余额表!$L:$L,H46,科目余额表!$C:$C,"贷")-SUMIFS(科目余额表!$D:$D,科目余额表!$J:$J,"应付职工薪酬",科目余额表!$L:$L,H46,科目余额表!$C:$C,"借") -> 0 | J48: ="计提"&$B$2 -> 计提2021 | K48: =SUMIFS(序时账!$K:$K,序时账!$T:$T,H46,序时账!$P:$P,"计提",序时账!$Q:$Q,H47) -> 0 | L48: ="计提"&$D$2 -> 计提2022 | M48: =SUMIFS(序时账!$K:$K,序时账!$T:$T,H46,序时账!$P:$P,"计提",序时账!$Q:$Q,$B$2) -> 0
A49: 48 | B49: ="5.31前支付"&$B$2 -> 5.31前支付2021 | C49: =SUMIFS(序时账!$J:$J,序时账!$T:$T,B46,序时账!$P:$P,"支付",序时账!$Q:$Q,$B$2,序时账!$D:$D,"<6") -> 0 | D49: ="计提"&$D$2 -> 计提2022 | E49: =SUMIFS(序时账!$K:$K,序时账!$T:$T,B46,序时账!$P:$P,"计提",序时账!$Q:$Q,D47) -> 0 | F49: ="支付"&$D$2 -> 支付2022 | G49: =SUMIFS(序时账!$K:$K,序时账!$T:$T,B46,序时账!$P:$P,"计提",序时账!$Q:$Q,$F$2) -> 0 | H49: ="5.31前支付"&$B$2 -> 5.31前支付2021 | I49: =SUMIFS(序时账!$J:$J,序时账!$T:$T,H46,序时账!$P:$P,"支付",序时账!$Q:$Q,$B$2,序时账!$D:$D,"<6") -> 0 | J49: ="计提"&$D$2 -> 计提2022 | K49: =SUMIFS(序时账!$K:$K,序时账!$T:$T,H46,序时账!$P:$P,"计提",序时账!$Q:$Q,J47) -> 0 | L49: ="支付"&$D$2 -> 支付2022 | M49: =SUMIFS(序时账!$K:$K,序时账!$T:$T,H46,序时账!$P:$P,"计提",序时账!$Q:$Q,$F$2) -> 0
A50: 49 | B50: ="5.31后支付"&$B$2 -> 5.31后支付2021 | C50: =SUMIFS(序时账!$J:$J,序时账!$T:$T,B46,序时账!$P:$P,"支付",序时账!$Q:$Q,$B$2,序时账!$D:$D,">5") -> 0 | D50: ="支付"&$D$2 -> 支付2022 | E50: =SUMIFS(序时账!$J:$J,序时账!$T:$T,B46,序时账!$P:$P,"支付",序时账!$Q:$Q,D47) -> 0 | F50: ="计提"&$F$2 -> 计提2023 | G50: =SUMIFS(序时账!$J:$J,序时账!$T:$T,B46,序时账!$P:$P,"支付",序时账!$Q:$Q,$F$2) -> 0 | H50: ="5.31后支付"&$B$2 -> 5.31后支付2021 | I50: =SUMIFS(序时账!$J:$J,序时账!$T:$T,H46,序时账!$P:$P,"支付",序时账!$Q:$Q,$B$2,序时账!$D:$D,">5") -> 0 | J50: ="支付"&$D$2 -> 支付2022 | K50: =SUMIFS(序时账!$J:$J,序时账!$T:$T,H46,序时账!$P:$P,"支付",序时账!$Q:$Q,J47) -> 0 | L50: ="计提"&$F$2 -> 计提2023 | M50: =SUMIFS(序时账!$J:$J,序时账!$T:$T,H46,序时账!$P:$P,"支付",序时账!$Q:$Q,$F$2) -> 0
A51: 50 | B51: =$B$2&"结余" -> 2021结余 | C51: =C48-C49-C50 -> 0 | D51: =$D$2&"结余" -> 2022结余 | E51: =E49-E50 -> 0 | F51: ="支付"&$F$2 -> 支付2023 | G51: =G49-G50 -> 0 | H51: =$B$2&"结余" -> 2021结余 | I51: =I48-I49-I50 -> 0 | J51: =$D$2&"结余" -> 2022结余 | K51: =K49-K50 -> 0 | L51: ="支付"&$F$2 -> 支付2023 | M51: =M49-M50 -> 0
A52: 51 | B52: 余额表期末余额 | C52: =SUMIFS(科目余额表!$G:$G,科目余额表!$J:$J,"应付职工薪酬",科目余额表!$L:$L,B46,科目余额表!$H:$H,"贷")-SUMIFS(科目余额表!$G:$G,科目余额表!$J:$J,"应付职工薪酬",科目余额表!$L:$L,B46,科目余额表!$H:$H,"借") -> 0 | D52: 计算期末余额 | E52: =C51+E51+E48 -> 0 | F52: 差异 | G52: =C52-E52 -> 0 | H52: 余额表期末余额 | I52: =SUMIFS(科目余额表!$G:$G,科目余额表!$J:$J,"应付职工薪酬",科目余额表!$L:$L,H46,科目余额表!$H:$H,"贷")-SUMIFS(科目余额表!$G:$G,科目余额表!$J:$J,"应付职工薪酬",科目余额表!$L:$L,H46,科目余额表!$H:$H,"借") -> 0 | J52: 计算期末余额 | K52: =I51+K51+K48 -> 0 | L52: 差异 | M52: =I52-K52 -> 0
A53: 52 | B53: =$B$2&"调整" -> 2021调整 | D53: =$D$2&"调整" -> 2022调整 | E53: =E51-G49 -> 0 | H53: =$B$2&"调整" -> 2021调整 | J53: =$D$2&"调整" -> 2022调整 | K53: =K51-M49 -> 0
A54: 53 | H54: 住房公积金有期初余额至今未发放
A55: 54 | B55: 大病医疗保险 | H55: 补充养老保险
A56: 55 | B56: =D56-1 -> 2021 | D56: 2022 | F56: =D56+1 -> 2023 | H56: =B56 -> 2021 | J56: 2022 | L56: 2023
A57: 56 | B57: 余额表期初余额 | C57: =SUMIFS(科目余额表!$D:$D,科目余额表!$J:$J,"应付职工薪酬",科目余额表!$L:$L,B55,科目余额表!$C:$C,"贷")-SUMIFS(科目余额表!$D:$D,科目余额表!$J:$J,"应付职工薪酬",科目余额表!$L:$L,B55,科目余额表!$C:$C,"借") -> 0 | D57: ="计提"&$B$2 -> 计提2021 | E57: =SUMIFS(序时账!$K:$K,序时账!$T:$T,B55,序时账!$P:$P,"计提",序时账!$Q:$Q,B56) -> 0 | F57: ="计提"&$D$2 -> 计提2022 | G57: =SUMIFS(序时账!$K:$K,序时账!$T:$T,B55,序时账!$P:$P,"计提",序时账!$Q:$Q,$B$2) -> 0 | H57: 余额表期初余额 | I57: =SUMIFS(科目余额表!$D:$D,科目余额表!$J:$J,"应付职工薪酬",科目余额表!$L:$L,H55,科目余额表!$C:$C,"贷")-SUMIFS(科目余额表!$D:$D,科目余额表!$J:$J,"应付职工薪酬",科目余额表!$L:$L,H55,科目余额表!$C:$C,"借") -> 0 | J57: ="计提"&$B$2 -> 计提2021 | K57: =SUMIFS(序时账!$K:$K,序时账!$T:$T,H55,序时账!$P:$P,"计提",序时账!$Q:$Q,H56) -> 0 | L57: ="计提"&$D$2 -> 计提2022 | M57: =SUMIFS(序时账!$K:$K,序时账!$T:$T,H55,序时账!$P:$P,"计提",序时账!$Q:$Q,$B$2) -> 0
A58: 57 | B58: ="5.31前支付"&$B$2 -> 5.31前支付2021 | C58: =SUMIFS(序时账!$J:$J,序时账!$T:$T,B55,序时账!$P:$P,"支付",序时账!$Q:$Q,$B$2,序时账!$D:$D,"<6") -> 0 | D58: ="计提"&$D$2 -> 计提2022 | E58: =SUMIFS(序时账!$K:$K,序时账!$T:$T,B55,序时账!$P:$P,"计提",序时账!$Q:$Q,D56) -> 0 | F58: ="支付"&$D$2 -> 支付2022 | G58: =SUMIFS(序时账!$K:$K,序时账!$T:$T,B55,序时账!$P:$P,"计提",序时账!$Q:$Q,$F$2) -> 0 | H58: ="5.31前支付"&$B$2 -> 5.31前支付2021 | I58: =SUMIFS(序时账!$J:$J,序时账!$T:$T,H55,序时账!$P:$P,"支付",序时账!$Q:$Q,$B$2,序时账!$D:$D,"<6") -> 0 | J58: ="计提"&$D$2 -> 计提2022 | K58: =SUMIFS(序时账!$K:$K,序时账!$T:$T,H55,序时账!$P:$P,"计提",序时账!$Q:$Q,J56) -> 0 | L58: ="支付"&$D$2 -> 支付2022 | M58: =SUMIFS(序时账!$K:$K,序时账!$T:$T,H55,序时账!$P:$P,"计提",序时账!$Q:$Q,$F$2) -> 0
A59: 58 | B59: ="5.31后支付"&$B$2 -> 5.31后支付2021 | C59: =SUMIFS(序时账!$J:$J,序时账!$T:$T,B55,序时账!$P:$P,"支付",序时账!$Q:$Q,$B$2,序时账!$D:$D,">5") -> 0 | D59: ="支付"&$D$2 -> 支付2022 | E59: =SUMIFS(序时账!$J:$J,序时账!$T:$T,B55,序时账!$P:$P,"支付",序时账!$Q:$Q,D56) -> 0 | F59: ="计提"&$F$2 -> 计提2023 | G59: =SUMIFS(序时账!$J:$J,序时账!$T:$T,B55,序时账!$P:$P,"支付",序时账!$Q:$Q,$F$2) -> 0 | H59: ="5.31后支付"&$B$2 -> 5.31后支付2021 | I59: =SUMIFS(序时账!$J:$J,序时账!$T:$T,H55,序时账!$P:$P,"支付",序时账!$Q:$Q,$B$2,序时账!$D:$D,">5") -> 0 | J59: ="支付"&$D$2 -> 支付2022 | K59: =SUMIFS(序时账!$J:$J,序时账!$T:$T,H55,序时账!$P:$P,"支付",序时账!$Q:$Q,J56) -> 0 | L59: ="计提"&$F$2 -> 计提2023 | M59: =SUMIFS(序时账!$J:$J,序时账!$T:$T,H55,序时账!$P:$P,"支付",序时账!$Q:$Q,$F$2) -> 0
A60: 59 | B60: =$B$2&"结余" -> 2021结余 | C60: =C57-C58-C59 -> 0 | D60: =$D$2&"结余" -> 2022结余 | E60: =E58-E59 -> 0 | F60: ="支付"&$F$2 -> 支付2023 | G60: =G58-G59 -> 0 | H60: =$B$2&"结余" -> 2021结余 | I60: =I57-I58-I59 -> 0 | J60: =$D$2&"结余" -> 2022结余 | K60: =K58-K59 -> 0 | L60: ="支付"&$F$2 -> 支付2023 | M60: =M58-M59 -> 0
A61: 60 | B61: 余额表期末余额 | C61: =SUMIFS(科目余额表!$G:$G,科目余额表!$J:$J,"应付职工薪酬",科目余额表!$L:$L,B55,科目余额表!$H:$H,"贷")-SUMIFS(科目余额表!$G:$G,科目余额表!$J:$J,"应付职工薪酬",科目余额表!$L:$L,B55,科目余额表!$H:$H,"借") -> 0 | D61: 计算期末余额 | E61: =C60+E60+E57 -> 0 | F61: 差异 | G61: =C61-E61 -> 0 | H61: 余额表期末余额 | I61: =SUMIFS(科目余额表!$G:$G,科目余额表!$J:$J,"应付职工薪酬",科目余额表!$L:$L,H55,科目余额表!$H:$H,"贷")-SUMIFS(科目余额表!$G:$G,科目余额表!$J:$J,"应付职工薪酬",科目余额表!$L:$L,H55,科目余额表!$H:$H,"借") -> 0 | J61: 计算期末余额 | K61: =I60+K60+K57 -> 0 | L61: 差异 | M61: =I61-K61 -> 0
A62: 61 | B62: =$B$2&"调整" -> 2021调整 | D62: =$D$2&"调整" -> 2022调整 | E62: =E60-G58 -> 0 | H62: =$B$2&"调整" -> 2021调整 | J62: =$D$2&"调整" -> 2022调整 | K62: =K60-M58 -> 0
A63: 62
A64: 63 | B64: 劳务费 | H64: 补充医疗保险
A65: 64 | B65: =D65-1 -> 2021 | D65: 2022 | F65: =D65+1 -> 2023 | H65: =B65 -> 2021 | J65: 2022 | L65: 2023
A66: 65 | B66: 余额表期初余额 | C66: =SUMIFS(科目余额表!$D:$D,科目余额表!$J:$J,"应付职工薪酬",科目余额表!$L:$L,B64,科目余额表!$C:$C,"贷")-SUMIFS(科目余额表!$D:$D,科目余额表!$J:$J,"应付职工薪酬",科目余额表!$L:$L,B64,科目余额表!$C:$C,"借") -> 0 | D66: ="计提"&$B$2 -> 计提2021 | E66: =SUMIFS(序时账!$K:$K,序时账!$T:$T,B64,序时账!$P:$P,"计提",序时账!$Q:$Q,B65) -> 0 | F66: ="计提"&$D$2 -> 计提2022 | G66: =SUMIFS(序时账!$K:$K,序时账!$T:$T,B64,序时账!$P:$P,"计提",序时账!$Q:$Q,$B$2) -> 0 | H66: 余额表期初余额 | I66: =SUMIFS(科目余额表!$D:$D,科目余额表!$J:$J,"应付职工薪酬",科目余额表!$L:$L,H64,科目余额表!$C:$C,"贷")-SUMIFS(科目余额表!$D:$D,科目余额表!$J:$J,"应付职工薪酬",科目余额表!$L:$L,H64,科目余额表!$C:$C,"借") -> 0 | J66: ="计提"&$B$2 -> 计提2021 | K66: =SUMIFS(序时账!$K:$K,序时账!$T:$T,H64,序时账!$P:$P,"计提",序时账!$Q:$Q,H65) -> 0 | L66: ="计提"&$D$2 -> 计提2022 | M66: =SUMIFS(序时账!$K:$K,序时账!$T:$T,H64,序时账!$P:$P,"计提",序时账!$Q:$Q,$B$2) -> 0
A67: 66 | B67: ="5.31前支付"&$B$2 -> 5.31前支付2021 | C67: =SUMIFS(序时账!$J:$J,序时账!$T:$T,B64,序时账!$P:$P,"支付",序时账!$Q:$Q,$B$2,序时账!$D:$D,"<6") -> 0 | D67: ="计提"&$D$2 -> 计提2022 | E67: =SUMIFS(序时账!$K:$K,序时账!$T:$T,B64,序时账!$P:$P,"计提",序时账!$Q:$Q,D65) -> 0 | F67: ="支付"&$D$2 -> 支付2022 | G67: =SUMIFS(序时账!$K:$K,序时账!$T:$T,B64,序时账!$P:$P,"计提",序时账!$Q:$Q,$F$2) -> 0 | H67: ="5.31前支付"&$B$2 -> 5.31前支付2021 | I67: =SUMIFS(序时账!$J:$J,序时账!$T:$T,H64,序时账!$P:$P,"支付",序时账!$Q:$Q,$B$2,序时账!$D:$D,"<6") -> 0 | J67: ="计提"&$D$2 -> 计提2022 | K67: =SUMIFS(序时账!$K:$K,序时账!$T:$T,H64,序时账!$P:$P,"计提",序时账!$Q:$Q,J65) -> 0 | L67: ="支付"&$D$2 -> 支付2022 | M67: =SUMIFS(序时账!$K:$K,序时账!$T:$T,H64,序时账!$P:$P,"计提",序时账!$Q:$Q,$F$2) -> 0
A68: 67 | B68: ="5.31后支付"&$B$2 -> 5.31后支付2021 | C68: =SUMIFS(序时账!$J:$J,序时账!$T:$T,B64,序时账!$P:$P,"支付",序时账!$Q:$Q,$B$2,序时账!$D:$D,">5") -> 0 | D68: ="支付"&$D$2 -> 支付2022 | E68: =SUMIFS(序时账!$J:$J,序时账!$T:$T,B64,序时账!$P:$P,"支付",序时账!$Q:$Q,D65) -> 0 | F68: ="计提"&$F$2 -> 计提2023 | G68: =SUMIFS(序时账!$J:$J,序时账!$T:$T,B64,序时账!$P:$P,"支付",序时账!$Q:$Q,$F$2) -> 0 | H68: ="5.31后支付"&$B$2 -> 5.31后支付2021 | I68: =SUMIFS(序时账!$J:$J,序时账!$T:$T,H64,序时账!$P:$P,"支付",序时账!$Q:$Q,$B$2,序时账!$D:$D,">5") -> 0 | J68: ="支付"&$D$2 -> 支付2022 | K68: =SUMIFS(序时账!$J:$J,序时账!$T:$T,H64,序时账!$P:$P,"支付",序时账!$Q:$Q,J65) -> 0 | L68: ="计提"&$F$2 -> 计提2023 | M68: =SUMIFS(序时账!$J:$J,序时账!$T:$T,H64,序时账!$P:$P,"支付",序时账!$Q:$Q,$F$2) -> 0
A69: 68 | B69: =$B$2&"结余" -> 2021结余 | C69: =C66-C67-C68 -> 0 | D69: =$D$2&"结余" -> 2022结余 | E69: =E67-E68 -> 0 | F69: ="支付"&$F$2 -> 支付2023 | G69: =G67-G68 -> 0 | H69: =$B$2&"结余" -> 2021结余 | I69: =I66-I67-I68 -> 0 | J69: =$D$2&"结余" -> 2022结余 | K69: =K67-K68 -> 0 | L69: ="支付"&$F$2 -> 支付2023 | M69: =M67-M68 -> 0
A70: 69 | B70: 余额表期末余额 | C70: =SUMIFS(科目余额表!$G:$G,科目余额表!$J:$J,"应付职工薪酬",科目余额表!$L:$L,B64,科目余额表!$H:$H,"贷")-SUMIFS(科目余额表!$G:$G,科目余额表!$J:$J,"应付职工薪酬",科目余额表!$L:$L,B64,科目余额表!$H:$H,"借") -> 0 | D70: 计算期末余额 | E70: =C69+E69+E66 -> 0 | F70: 差异 | G70: =C70-E70 -> 0 | H70: 余额表期末余额 | I70: =SUMIFS(科目余额表!$G:$G,科目余额表!$J:$J,"应付职工薪酬",科目余额表!$L:$L,H64,科目余额表!$H:$H,"贷")-SUMIFS(科目余额表!$G:$G,科目余额表!$J:$J,"应付职工薪酬",科目余额表!$L:$L,H64,科目余额表!$H:$H,"借") -> 0 | J70: 计算期末余额 | K70: =I69+K69+K66 -> 0 | L70: 差异 | M70: =I70-K70 -> 0
A71: 70 | B71: =$B$2&"调整" -> 2021调整 | D71: =$D$2&"调整" -> 2022调整 | E71: =E69-G67 -> 0 | H71: =$B$2&"调整" -> 2021调整 | J71: =$D$2&"调整" -> 2022调整 | K71: =K69-M67 -> 0

Sheet 薪酬本年支付序时账
A1: 标签 | B1: 年 | C1: 月 | D1: 日 | E1: 凭证号 | F1: 摘要 | G1: 科目名称 | H1: 对方科目 | I1: 借方 | J1: 贷方 | K1: 方向 | L1: 数量 | M1: 审核记录 | N1: 凭证类别 | O1: 纳税年度 | P1: 标准一级字段 | Q1: 标准二级字段 | R1: 标准三级字段 | S1: 辅助科目
M2: 审核贷方是否为银行存款 | P2: =_xlfn.XLOOKUP($G2,科目余额表!$B:$B,科目余额表!J:J,"") -> 生产成本 | Q2: =_xlfn.XLOOKUP($G2,科目余额表!$B:$B,科目余额表!K:K,"") -> 一、职工薪酬 | R2: =_xlfn.XLOOKUP($G2,科目余额表!$B:$B,科目余额表!L:L,"") -> 工资薪金支出
M3: 如果是其他应付款再追 | P3: =_xlfn.XLOOKUP($G3,科目余额表!$B:$B,科目余额表!J:J,"") -> 生产成本 | Q3: =_xlfn.XLOOKUP($G3,科目余额表!$B:$B,科目余额表!K:K,"") -> 一、职工薪酬 | R3: =_xlfn.XLOOKUP($G3,科目余额表!$B:$B,科目余额表!L:L,"") -> 工资薪金支出
P4: =_xlfn.XLOOKUP($G4,科目余额表!$B:$B,科目余额表!J:J,"") -> 生产成本 | Q4: =_xlfn.XLOOKUP($G4,科目余额表!$B:$B,科目余额表!K:K,"") -> 一、职工薪酬 | R4: =_xlfn.XLOOKUP($G4,科目余额表!$B:$B,科目余额表!L:L,"") -> 工资薪金支出
P5: =_xlfn.XLOOKUP($G5,科目余额表!$B:$B,科目余额表!J:J,"") -> 生产成本 | Q5: =_xlfn.XLOOKUP($G5,科目余额表!$B:$B,科目余额表!K:K,"") -> 一、职工薪酬 | R5: =_xlfn.XLOOKUP($G5,科目余额表!$B:$B,科目余额表!L:L,"") -> 工资薪金支出
P6: =_xlfn.XLOOKUP($G6,科目余额表!$B:$B,科目余额表!J:J,"") -> 生产成本 | Q6: =_xlfn.XLOOKUP($G6,科目余额表!$B:$B,科目余额表!K:K,"") -> 一、职工薪酬 | R6: =_xlfn.XLOOKUP($G6,科目余额表!$B:$B,科目余额表!L:L,"") -> 工资薪金支出
P7: =_xlfn.XLOOKUP($G7,科目余额表!$B:$B,科目余额表!J:J,"") -> 生产成本 | Q7: =_xlfn.XLOOKUP($G7,科目余额表!$B:$B,科目余额表!K:K,"") -> 一、职工薪酬 | R7: =_xlfn.XLOOKUP($G7,科目余额表!$B:$B,科目余额表!L:L,"") -> 工资薪金支出
P8: =_xlfn.XLOOKUP($G8,科目余额表!$B:$B,科目余额表!J:J,"") -> 生产成本 | Q8: =_xlfn.XLOOKUP($G8,科目余额表!$B:$B,科目余额表!K:K,"") -> 一、职工薪酬 | R8: =_xlfn.XLOOKUP($G8,科目余额表!$B:$B,科目余额表!L:L,"") -> 工资薪金支出
P9: =_xlfn.XLOOKUP($G9,科目余额表!$B:$B,科目余额表!J:J,"") -> 生产成本 | Q9: =_xlfn.XLOOKUP($G9,科目余额表!$B:$B,科目余额表!K:K,"") -> 一、职工薪酬 | R9: =_xlfn.XLOOKUP($G9,科目余额表!$B:$B,科目余额表!L:L,"") -> 工资薪金支出
P10: =_xlfn.XLOOKUP($G10,科目余额表!$B:$B,科目余额表!J:J,"") -> 生产成本 | Q10: =_xlfn.XLOOKUP($G10,科目余额表!$B:$B,科目余额表!K:K,"") -> 一、职工薪酬 | R10: =_xlfn.XLOOKUP($G10,科目余额表!$B:$B,科目余额表!L:L,"") -> 工资薪金支出
P11: =_xlfn.XLOOKUP($G11,科目余额表!$B:$B,科目余额表!J:J,"") -> 生产成本 | Q11: =_xlfn.XLOOKUP($G11,科目余额表!$B:$B,科目余额表!K:K,"") -> 一、职工薪酬 | R11: =_xlfn.XLOOKUP($G11,科目余额表!$B:$B,科目余额表!L:L,"") -> 工资薪金支出
P12: =_xlfn.XLOOKUP($G12,科目余额表!$B:$B,科目余额表!J:J,"") -> 生产成本 | Q12: =_xlfn.XLOOKUP($G12,科目余额表!$B:$B,科目余额表!K:K,"") -> 一、职工薪酬 | R12: =_xlfn.XLOOKUP($G12,科目余额表!$B:$B,科目余额表!L:L,"") -> 工资薪金支出

Sheet 薪酬次年支付序时账1-5月
A1: 标签 | B1: 年 | C1: 月 | D1: 日 | E1: 凭证号 | F1: 摘要 | G1: 科目名称 | H1: 对方科目 | I1: 借方 | J1: 贷方 | K1: 方向 | L1: 数量 | M1: 审核记录 | N1: 凭证类别 | O1: 纳税年度 | P1: 标准一级字段 | Q1: 标准二级字段 | R1: 标准三级字段 | S1: 辅助科目
P2: =_xlfn.XLOOKUP($G2,科目余额表!$B:$B,科目余额表!J:J,"") -> 生产成本 | Q2: =_xlfn.XLOOKUP($G2,科目余额表!$B:$B,科目余额表!K:K,"") -> 一、职工薪酬 | R2: =_xlfn.XLOOKUP($G2,科目余额表!$B:$B,科目余额表!L:L,"") -> 工资薪金支出
P3: =_xlfn.XLOOKUP($G3,科目余额表!$B:$B,科目余额表!J:J,"") -> 生产成本 | Q3: =_xlfn.XLOOKUP($G3,科目余额表!$B:$B,科目余额表!K:K,"") -> 一、职工薪酬 | R3: =_xlfn.XLOOKUP($G3,科目余额表!$B:$B,科目余额表!L:L,"") -> 工资薪金支出
P4: =_xlfn.XLOOKUP($G4,科目余额表!$B:$B,科目余额表!J:J,"") -> 生产成本 | Q4: =_xlfn.XLOOKUP($G4,科目余额表!$B:$B,科目余额表!K:K,"") -> 一、职工薪酬 | R4: =_xlfn.XLOOKUP($G4,科目余额表!$B:$B,科目余额表!L:L,"") -> 工资薪金支出
P5: =_xlfn.XLOOKUP($G5,科目余额表!$B:$B,科目余额表!J:J,"") -> 生产成本 | Q5: =_xlfn.XLOOKUP($G5,科目余额表!$B:$B,科目余额表!K:K,"") -> 一、职工薪酬 | R5: =_xlfn.XLOOKUP($G5,科目余额表!$B:$B,科目余额表!L:L,"") -> 工资薪金支出
P6: =_xlfn.XLOOKUP($G6,科目余额表!$B:$B,科目余额表!J:J,"") -> 生产成本 | Q6: =_xlfn.XLOOKUP($G6,科目余额表!$B:$B,科目余额表!K:K,"") -> 一、职工薪酬 | R6: =_xlfn.XLOOKUP($G6,科目余额表!$B:$B,科目余额表!L:L,"") -> 工资薪金支出
P7: =_xlfn.XLOOKUP($G7,科目余额表!$B:$B,科目余额表!J:J,"") -> 生产成本 | Q7: =_xlfn.XLOOKUP($G7,科目余额表!$B:$B,科目余额表!K:K,"") -> 一、职工薪酬 | R7: =_xlfn.XLOOKUP($G7,科目余额表!$B:$B,科目余额表!L:L,"") -> 工资薪金支出
P8: =_xlfn.XLOOKUP($G8,科目余额表!$B:$B,科目余额表!J:J,"") -> 生产成本 | Q8: =_xlfn.XLOOKUP($G8,科目余额表!$B:$B,科目余额表!K:K,"") -> 一、职工薪酬 | R8: =_xlfn.XLOOKUP($G8,科目余额表!$B:$B,科目余额表!L:L,"") -> 工资薪金支出
P9: =_xlfn.XLOOKUP($G9,科目余额表!$B:$B,科目余额表!J:J,"") -> 生产成本 | Q9: =_xlfn.XLOOKUP($G9,科目余额表!$B:$B,科目余额表!K:K,"") -> 一、职工薪酬 | R9: =_xlfn.XLOOKUP($G9,科目余额表!$B:$B,科目余额表!L:L,"") -> 工资薪金支出
P10: =_xlfn.XLOOKUP($G10,科目余额表!$B:$B,科目余额表!J:J,"") -> 生产成本 | Q10: =_xlfn.XLOOKUP($G10,科目余额表!$B:$B,科目余额表!K:K,"") -> 一、职工薪酬 | R10: =_xlfn.XLOOKUP($G10,科目余额表!$B:$B,科目余额表!L:L,"") -> 工资薪金支出
P11: =_xlfn.XLOOKUP($G11,科目余额表!$B:$B,科目余额表!J:J,"") -> 生产成本 | Q11: =_xlfn.XLOOKUP($G11,科目余额表!$B:$B,科目余额表!K:K,"") -> 一、职工薪酬 | R11: =_xlfn.XLOOKUP($G11,科目余额表!$B:$B,科目余额表!L:L,"") -> 工资薪金支出
P12: =_xlfn.XLOOKUP($G12,科目余额表!$B:$B,科目余额表!J:J,"") -> 生产成本 | Q12: =_xlfn.XLOOKUP($G12,科目余额表!$B:$B,科目余额表!K:K,"") -> 一、职工薪酬 | R12: =_xlfn.XLOOKUP($G12,科目余额表!$B:$B,科目余额表!L:L,"") -> 工资薪金支出

Sheet 工会经费审核明细
A1: 标签 | B1: 年 | C1: 月 | D1: 日 | E1: 凭证号 | F1: 摘要 | G1: 科目名称 | H1: 对方科目 | I1: 借方 | J1: 贷方 | K1: 方向 | L1: 数量 | M1: 取票情况 | N1: 凭证类别 | O1: 纳税年度 | P1: 标准一级字段 | Q1: 标准二级字段 | R1: 标准三级字段 | S1: 辅助科目
P2: =_xlfn.XLOOKUP($G2,科目余额表!$B:$B,科目余额表!J:J,"") -> 生产成本 | Q2: =_xlfn.XLOOKUP($G2,科目余额表!$B:$B,科目余额表!K:K,"") -> 一、职工薪酬 | R2: =_xlfn.XLOOKUP($G2,科目余额表!$B:$B,科目余额表!L:L,"") -> 工资薪金支出
P3: =_xlfn.XLOOKUP($G3,科目余额表!$B:$B,科目余额表!J:J,"") -> 生产成本 | Q3: =_xlfn.XLOOKUP($G3,科目余额表!$B:$B,科目余额表!K:K,"") -> 一、职工薪酬 | R3: =_xlfn.XLOOKUP($G3,科目余额表!$B:$B,科目余额表!L:L,"") -> 工资薪金支出
P4: =_xlfn.XLOOKUP($G4,科目余额表!$B:$B,科目余额表!J:J,"") -> 生产成本 | Q4: =_xlfn.XLOOKUP($G4,科目余额表!$B:$B,科目余额表!K:K,"") -> 一、职工薪酬 | R4: =_xlfn.XLOOKUP($G4,科目余额表!$B:$B,科目余额表!L:L,"") -> 工资薪金支出
P5: =_xlfn.XLOOKUP($G5,科目余额表!$B:$B,科目余额表!J:J,"") -> 生产成本 | Q5: =_xlfn.XLOOKUP($G5,科目余额表!$B:$B,科目余额表!K:K,"") -> 一、职工薪酬 | R5: =_xlfn.XLOOKUP($G5,科目余额表!$B:$B,科目余额表!L:L,"") -> 工资薪金支出
P6: =_xlfn.XLOOKUP($G6,科目余额表!$B:$B,科目余额表!J:J,"") -> 生产成本 | Q6: =_xlfn.XLOOKUP($G6,科目余额表!$B:$B,科目余额表!K:K,"") -> 一、职工薪酬 | R6: =_xlfn.XLOOKUP($G6,科目余额表!$B:$B,科目余额表!L:L,"") -> 工资薪金支出
P7: =_xlfn.XLOOKUP($G7,科目余额表!$B:$B,科目余额表!J:J,"") -> 生产成本 | Q7: =_xlfn.XLOOKUP($G7,科目余额表!$B:$B,科目余额表!K:K,"") -> 一、职工薪酬 | R7: =_xlfn.XLOOKUP($G7,科目余额表!$B:$B,科目余额表!L:L,"") -> 工资薪金支出
P8: =_xlfn.XLOOKUP($G8,科目余额表!$B:$B,科目余额表!J:J,"") -> 生产成本 | Q8: =_xlfn.XLOOKUP($G8,科目余额表!$B:$B,科目余额表!K:K,"") -> 一、职工薪酬 | R8: =_xlfn.XLOOKUP($G8,科目余额表!$B:$B,科目余额表!L:L,"") -> 工资薪金支出
P9: =_xlfn.XLOOKUP($G9,科目余额表!$B:$B,科目余额表!J:J,"") -> 生产成本 | Q9: =_xlfn.XLOOKUP($G9,科目余额表!$B:$B,科目余额表!K:K,"") -> 一、职工薪酬 | R9: =_xlfn.XLOOKUP($G9,科目余额表!$B:$B,科目余额表!L:L,"") -> 工资薪金支出
P10: =_xlfn.XLOOKUP($G10,科目余额表!$B:$B,科目余额表!J:J,"") -> 生产成本 | Q10: =_xlfn.XLOOKUP($G10,科目余额表!$B:$B,科目余额表!K:K,"") -> 一、职工薪酬 | R10: =_xlfn.XLOOKUP($G10,科目余额表!$B:$B,科目余额表!L:L,"") -> 工资薪金支出
P11: =_xlfn.XLOOKUP($G11,科目余额表!$B:$B,科目余额表!J:J,"") -> 生产成本 | Q11: =_xlfn.XLOOKUP($G11,科目余额表!$B:$B,科目余额表!K:K,"") -> 一、职工薪酬 | R11: =_xlfn.XLOOKUP($G11,科目余额表!$B:$B,科目余额表!L:L,"") -> 工资薪金支出
P12: =_xlfn.XLOOKUP($G12,科目余额表!$B:$B,科目余额表!J:J,"") -> 生产成本 | Q12: =_xlfn.XLOOKUP($G12,科目余额表!$B:$B,科目余额表!K:K,"") -> 一、职工薪酬 | R12: =_xlfn.XLOOKUP($G12,科目余额表!$B:$B,科目余额表!L:L,"") -> 工资薪金支出

Sheet 财务费用-利息支出
A1: 标签 | B1: 年 | C1: 月 | D1: 日 | E1: 凭证号 | F1: 摘要 | G1: 科目名称 | H1: 对方科目 | I1: 借方 | J1: 贷方 | K1: 方向 | L1: 银行 | M1: 开票金额 | N1: 审核记录 | O1: 抽凭 | P1: 类别

Sheet 财务费用-手续费
A1: 标签 | B1: 年 | C1: 月 | D1: 日 | E1: 凭证号 | F1: 摘要 | G1: 科目名称 | H1: 对方科目 | I1: 借方 | J1: 贷方 | K1: 方向 | L1: 银行 | M1: 开票金额 | N1: 费用年度 | O1: 审核记录 | P1: 抽凭 | S1: 费用年度 | T1: 银行 | U1: 求和项:借方 | V1: 求和项:开票金额 | W1: 求和项:未开票金额
S2: 2021
T3: 工商银行 | U3: -5745.96 | V3: 5745.96 | W3: -11491.92
T4: 交通银行 | U4: -790 | V4: 790 | W4: -1580
T5: 平安银行 | U5: -629.58 | V5: 629.58 | W5: -1259.16
T6: 中信银行 | U6: -600 | V6: 600 | W6: -1200
S7: 2021 汇总 | U7: -7765.54 | V7: 7765.54 | W7: -15531.08
S8: 2022
T9: 工商银行 | U9: 48082.5 | V9: 45157.89 | W9: 2924.61
T10: 华夏银行 | U10: 210.5 | W10: 210.5
T11: 建设银行 | U11: 1150.08 | W11: 1150.08
T12: 交通银行 | U12: 1795.48 | V12: 120 | W12: 1675.48
T13: 民生银行 | U13: 200 | W13: 200
T14: 平安银行 | U14: 670.94 | W14: 670.94
T15: 未知银行 | U15: 0 | W15: 0
T16: 兴业银行 | U16: 7.5 | W16: 7.5
T17: 中信银行 | U17: 1994.45 | W17: 1994.45
S18: 2022 汇总 | U18: 54111.45 | V18: 45277.89 | W18: 8833.56
S19: (空白)
T20: (空白) | W20: 0
T21: 进项税 | U21: 3002.47 | W21: 3002.47
S22: (空白) 汇总 | U22: 3002.47 | W22: 3002.47
S23: 总计 | U23: 49348.38 | V23: 53043.43 | W23: -3695.05

Sheet 折旧摊销借贷核对
A1: 标准二级字段 | B1: (全部) | C1: 序时账总行数 | D1: 差异凭证笔数 | E1: 差异凭证标签
A2: 凭证类别 | B2: (全部) | C2: =COUNTA(序时账!$A:$A) -> 10785 | D2: =COUNTS(E2," ")+1 -> 0
A4: 标签 | B4: 标准一级字段 | C4: 标准三级字段 | D4: 求和项:借方 | E4: 求和项:贷方
A5: (空白) | B5: 0 | C5: 0

Sheet 税费借贷核对
A1: 标准二级字段 | B1: (全部) | C1: 序时账总行数 | D1: 差异凭证笔数 | E1: 差异凭证标签
A2: 凭证类别 | B2: (全部) | C2: =COUNTA(序时账!$A:$A) -> 10785 | D2: =COUNTS(E2," ")+1 -> 0
A4: 标签 | B4: 标准一级字段 | C4: 标准三级字段 | D4: 求和项:借方 | E4: 求和项:贷方
A5: (空白) | B5: 0 | C5: 0
